Workbook

Sheet Cover

Sheet Contents
A8: Contents
A11: Tab | B11: Description
A12: One-pager
A14: Cover, Guide & Drivers
A16: RAG and Ranking
A18: Chapter 2 - Incentive Payments
A19: Incentive Payments | B19: Summary table of 2018-19 incentive payments including: BMCS, IIS, ICE, TTC, LDR and total incentive payments
A21: Reliability | B21: Reliability and Availability incentive measures including: IIS, GSoP, WSC and Network resilience
A23: Network Asset Secondary Deliverables | B23: Health, critically and monetised risk
A25: Connections | B25: Connection incentives including: Time to Connect Incentive, Incentive on Connections Engagement (ICE), Connections on Guaranteed Standards of Performance and Customer Satisfaction Survey
A27: Environment | B27: Environment incentives including: Obligation to manage losses, Business Carbon Footprint, limiting emissions of Sulphur Hexafluoride (SF6), Fluid filled cable leakage, Noise pollution, Visual impact allowance for undergrounding overhead lines in Areas of Outstanding Natural Beauty (AONB) & National Parks and Environmental report
A29: Customer Satisfaction | B29: Customer Satisfaction incentives including: Customer Satisfaction Survey, Complaints Metric and Stakeholder Engagement and Consumer Vulnerability
A31: Innovation | B31: Innovation data including: Network Innovation Allowance, Network Innovation Competition and Innovation projects
A33: Chapter 3 - Financial Performance
A34: Financial Performance | B34: Review of the expenditure and financial performance of DNOs in 2018/19
A36: Chapter 4 - Expenditure Drivers
A37: Expenditure Drivers | B37: Expenditure driver's data including: Expenditure drivers of allowances and expenditures of each cost category, distribution of overall allowances and expenditures and Baselines allowances & actual expenditure by cost category
A39: Expenditure Drivers 2 | B39: Overall outline of baseline allowances of each cost category, areas of underspend and areas of overspend

Sheet One-pager
A1: One-Pager
A2: Industry Average
A3: One-Pager - key data points of each DNO (Dropdown Menu above)
A4: Cover, Guide and Drivers | G4: Financial Performance
B5: 2019 | C5: 8 year trend | H5: 2019 | I5: ED1 trend
A6: Customer numbers | B6: =TEXT(Calculations!K7,"#,##0") -> 2,134,275 | G6: Allowed totex | H6: ="£"&TEXT(Calculations!I234,"#,##0.00")&"m" -> £259.18m
A7: Network length | B7: =TEXT(Calculations!K8,"#,##0.00")&"km" -> 57,209.82km | G7: Actual totex | H7: ="£"&TEXT(Calculations!I235,"#,##0.00")&"m" -> £248.66m
A8: Total units distributed | B8: =TEXT(Calculations!K9,"#,##0.00")&" GWh" -> 19,982.71 GWh | G8: Overspend/underspend | H8: =TEXT(Calculations!I236,"+£0.00;-£0.00")&"m" -> -£10.52m
A9: Network-wide peak load | B9: =TEXT(Calculations!K10,"#,##0")&" MVA" -> 3,687 MVA | G9: Allowed totex after totex incentive rate | H9: ="£"&TEXT(Calculations!I238,"#,##0.00")&"m" -> £255.67m
A11: Incentive Payments | G11: Customer Bill Impact (per customer) | H11: ="£"&TEXT(Calculations!J241,"#,##0.00") -> £89.87
B12: 2019 | G12: RAV at start of financial year | H12: ="£"&TEXT(Calculations!I244,"#,##0.00")&"m" -> £1,842.54m
A13: Total Incentive Payments | B13: ="£"&TEXT(Calculations!C19,"#,##0.00")&"m" -> £15.28m | G13: RAV at end of financial year | H13: ="£"&TEXT(Calculations!I247,"#,##0.00")&"m" -> £1,865.82m
A15: Reliability | G15: Expenditure Drivers (Over-spend/under-spend %)
B16: 2019 | C16: ED1 trend | D16: RAG rating | H16: 2019 Difference | I16: 2019 Difference % | J16: ED1 trend
A17: CI Performance | B17: =Calculations!G24 -> 43.81037002 | D17: =IF(B17<=(Calculations!F29+Calculations!F35),"Green",IF(B17<=(Calculations!F29+Calculations!F35)*1.05,"Amber","Red")) -> Green | G17: Network reinforcement | H17: =TEXT(Calculations!P269,"+£0.00;-£0.00")&"m" -> -£12.68m | I17: =IFERROR(TEXT(Calculations!P270,"+0.00%;-0.00%"),"") -> -49.22%
A18: CML Performance | B18: =Calculations!G26 -> 35.19952148 | D18: =IF(B18<=(Calculations!F32+Calculations!F38),"Green",IF(B18<=(Calculations!F32+Calculations!F38)*1.05,"Amber","Red")) -> Green | G18: Replacing and refurbishing equipment | H18: =TEXT(Calculations!P276,"+£0.00;-£0.00")&"m" -> -£11.75m | I18: =IFERROR(TEXT(Calculations!P277,"+0.00%;-0.00%"),"") -> -18.24%
A19: IIS Total Reward/Penalty | B19: ="£"&TEXT(Calculations!G40,"#,##0.00")&"m" -> £10.18m | G19: Network faults | H19: =TEXT(Calculations!P283,"+£0.00;-£0.00")&"m" -> +£6.36m | I19: =IFERROR(TEXT(Calculations!P284,"+0.00%;-0.00%"),"") -> +21.44%
A20: GSOP mandatory payments vs valid payments owed | B20: =Calculations!G70 -> 0.2331810631 | G20: Operational support | H20: =TEXT(Calculations!P290,"+£0.00;-£0.00")&"m" -> +£6.99m | I20: =IFERROR(TEXT(Calculations!P291,"+0.00%;-0.00%"),"") -> +13.99%
A21: WSC Expenditure | B21: ="£"&TEXT(Calculations!G75,"#,##0.00")&"m" -> £0.09m | G21: Business support | H21: =TEXT(Calculations!P297,"+£0.00;-£0.00")&"m" -> +£1.54m | I21: =IFERROR(TEXT(Calculations!P298,"+0.00%;-0.00%"),"") -> +5.70%
A22: Total Resilience Baseline | B22: ="£"&TEXT(Calculations!G88,"#,##0.00")&"m" -> £10.65m | G22: Black start, Flood mitigation, Physical security and Tree cutting | H22: =TEXT(Calculations!P304,"+£0.00;-£0.00")&"m" -> -£1.16m | I22: =IFERROR(TEXT(Calculations!P305,"+0.00%;-0.00%"),"") -> -10.85%
A23: Total Resilience Actual | B23: ="£"&TEXT(Calculations!G89,"#,##0.00")&"m" -> £9.50m
G24: Connections | H24: =TEXT(Calculations!P311,"+£0.00;-£0.00")&"m" -> -£0.09m | I24: =IFERROR(TEXT(Calculations!P312,"+0.00%;-0.00%"),"") -> -3.76%
A25: Connections | G25: Reinforcement | H25: =TEXT(Calculations!P318,"+£0.00;-£0.00")&"m" -> -£11.23m | I25: =IFERROR(TEXT(Calculations!P319,"+0.00%;-0.00%"),"") -> -51.53%
B26: 2019 | C26: ED1 trend | D26: RAG rating | E26: Ranking | G26: Transmission Connection Point | H26: =TEXT(Calculations!P325,"+£0.00;-£0.00")&"m" -> -£1.36m | I26: =IFERROR(TEXT(Calculations!P326,"+0.00%;-0.00%"),"") -> -87.19%
A27: Distributed Generation | B27: =TEXT(Calculations!F106,"#,##0.00")&" MW" -> 75.01 MW | G27: Diversions (Excluding Rail Electrification) | H27: =TEXT(Calculations!P332,"+£0.00;-£0.00")&"m" -> +£0.97m | I27: =IFERROR(TEXT(Calculations!P333,"+0.00%;-0.00%"),"") -> +14.89%
A28: TTC Reward | B28: ="£"&TEXT(Calculations!F118,"#,##0.00")&"m" -> £1.08m | D28: =Calculations!E119 -> Green | E28: =Calculations!E121 -> 7.357142857 | G28: Diversions Rail Elec | H28: =TEXT(Calculations!P339,"+£0.00;-£0.00")&"m" -> -£0.10m | I28: =IFERROR(TEXT(Calculations!P340,"+0.00%;-0.00%"),"") -> -11.66%
A29: ICE Penalty | B29: ="£"&TEXT(Calculations!C15,"#,##0.00")&"m" -> £0.00m | G29: Asset Replacement | H29: =TEXT(Calculations!P346,"+£0.00;-£0.00")&"m" -> -£9.66m | I29: =IFERROR(TEXT(Calculations!P347,"+0.00%;-0.00%"),"") -> -18.81%
A30: Penalties paid against Connection GSOPs | B30: ="£"&TEXT(Calculations!F127,"#,##0") -> £56,796 | D30: =Calculations!E129 -> Green | E30: =Calculations!E130 -> 7.071428571 | G30: Refurbishment | H30: =TEXT(Calculations!P353,"+£0.00;-£0.00")&"m" -> -£0.20m | I30: =IFERROR(TEXT(Calculations!P354,"+0.00%;-0.00%"),"") -> -3.13%
G31: Civil Works Condition Driven | H31: =TEXT(Calculations!P360,"+£0.00;-£0.00")&"m" -> -£1.58m | I31: =IFERROR(TEXT(Calculations!P361,"+0.00%;-0.00%"),"") -> -35.27%
A32: Environment | G32: Operational IT and telecoms | H32: =TEXT(Calculations!P367,"+£0.00;-£0.00")&"m" -> -£1.33m | I32: =IFERROR(TEXT(Calculations!P368,"+0.00%;-0.00%"),"") -> -28.60%
B33: 2019 | C33: ED1 trend | E33: Ranking | G33: Blackstart | H33: =TEXT(Calculations!P374,"+£0.00;-£0.00")&"m" -> +£0.16m | I33: =IFERROR(TEXT(Calculations!P375,"+0.00%;-0.00%"),"") -> +22.15%
A34: Distribution Losses | B34: =Calculations!K136 -> 0.05825466775 | G34: BT21CN | H34: =TEXT(Calculations!P381,"+£0.00;-£0.00")&"m" -> +£0.25m | I34: =IFERROR(TEXT(Calculations!P382,"+0.00%;-0.00%"),"") -> +56.25%
A35: LDR Reward (2018/19) | B35: ="£"&TEXT(Calculations!K135,"#,##0.00") -> £0.00 | E35: =Calculations!I137 -> 6.642857143 | G35: Legal & Safety | H35: =TEXT(Calculations!P388,"+£0.00;-£0.00")&"m" -> -£1.80m | I35: =IFERROR(TEXT(Calculations!P389,"+0.00%;-0.00%"),"") -> -38.82%
A36: BCF (as % of network length and customer numbers) | B36: =Calculations!K141 -> 0.1410905257 | E36: =Calculations!J142 -> 7.5 | G36: QoS & North of Scotland Resilience | H36: =TEXT(Calculations!P395,"+£0.00;-£0.00")&"m" -> +£2.28m | I36: =IFERROR(TEXT(Calculations!P396,"+0.00%;-0.00%"),"") -> +374.67%
A37: SF6 emissions (as % of SF6 bank) | B37: =Calculations!K147 -> 0.002952813583 | E37: =Calculations!J148 -> 7.5 | G37: Flood Mitigation | H37: =TEXT(Calculations!P402,"+£0.00;-£0.00")&"m" -> +£0.21m | I37: =IFERROR(TEXT(Calculations!P403,"+0.00%;-0.00%"),"") -> +20.94%
A38: Top up of fluid-filled cabes (as % of oil in service) | B38: =Calculations!K153 -> 0.02737451419 | E38: =Calculations!J154 -> 6.5 | G38: Physical Security | H38: =TEXT(Calculations!P409,"+£0.00;-£0.00")&"m" -> -£0.05m | I38: =IFERROR(TEXT(Calculations!P410,"+0.00%;-0.00%"),"") -> -65.09%
A39: Undergrounding expenditure | B39: ="£"&TEXT(Calculations!K159,"#,##0.00")&"m" -> £0.35m | G39: Rising and Lateral Mains | H39: =TEXT(Calculations!P416,"+£0.00;-£0.00")&"m" -> -£0.57m | I39: =IFERROR(TEXT(Calculations!P417,"+0.00%;-0.00%"),"") -> -30.20%
A40: Slow charge EVs connected to the distribution network | B40: =TEXT(Calculations!K162,"#,##0.00")&" MW" -> 0.68 MW | G40: Overhead Line Clearances | H40: =TEXT(Calculations!P423,"+£0.00;-£0.00")&"m" -> +£1.85m | I40: =IFERROR(TEXT(Calculations!P424,"+0.00%;-0.00%"),"") -> +90.68%
A41: Fast charge EVs connected to the distribution network | B41: =TEXT(Calculations!K163,"#,##0.00")&" MW" -> 10.06 MW | G41: Environmental Reporting & Losses | H41: =TEXT(Calculations!P430,"+£0.00;-£0.00")&"m" -> -£0.41m | I41: =IFERROR(TEXT(Calculations!P431,"+0.00%;-0.00%"),"") -> -32.72%
A42: Noise complaints | B42: =Calculations!K166 -> 8.285714286 | G42: Faults | H42: =TEXT(Calculations!P437,"+£0.00;-£0.00")&"m" -> +£5.44m | I42: =IFERROR(TEXT(Calculations!P438,"+0.00%;-0.00%"),"") -> +23.26%
G43: Severe Weather 1 in 20 | H43: =TEXT(Calculations!P444,"+£0.00;-£0.00")&"m" -> -£1.03m | I43: =IFERROR(TEXT(Calculations!P445,"+0.00%;-0.00%"),"") -> -100.00%
A44: Customer Satisfaction | G44: ONIs | H44: =TEXT(Calculations!P451,"+£0.00;-£0.00")&"m" -> +£1.95m | I44: =IFERROR(TEXT(Calculations!P452,"+0.00%;-0.00%"),"") -> +37.10%
B45: 2019 | C45: ED1 trend | D45: RAG rating | E45: Ranking | G45: Tree Cutting | H45: =TEXT(Calculations!P458,"+£0.00;-£0.00")&"m" -> -£1.47m | I45: =IFERROR(TEXT(Calculations!P459,"+0.00%;-0.00%"),"") -> -16.64%
A46: Overall CSS Score | B46: =TEXT(Calculations!F174,"#,##0.00") -> 8.86 | D46: =Calculations!E175 -> Green | E46: =Calculations!E176 -> 7.5 | G46: I&M | H46: =TEXT(Calculations!P465,"+£0.00;-£0.00")&"m" -> +£0.60m | I46: =IFERROR(TEXT(Calculations!P466,"+0.00%;-0.00%"),"") -> +6.12%
A47: Complaint Metric Score | B47: =TEXT(Calculations!F183,"#,##0.00") -> 2.10 | D47: =Calculations!E184 -> Green | E47: =Calculations!E185 -> 7.5 | G47: NOCs Other | H47: =TEXT(Calculations!P472,"+£0.00;-£0.00")&"m" -> -£0.73m | I47: =IFERROR(TEXT(Calculations!P473,"+0.00%;-0.00%"),"") -> -25.84%
A48: CSS Reward/Penalty | B48: ="£"&TEXT(Calculations!F193,"#,##0.00")&"m" -> £0.00m | G48: Non Op Capex | H48: =TEXT(Calculations!P479,"+£0.00;-£0.00")&"m" -> +£1.01m | I48: =IFERROR(TEXT(Calculations!P480,"+0.00%;-0.00%"),"") -> +10.29%
A49: Complaints Metric Penalty | B49: ="£"&TEXT(Calculations!F194,"#,##0.00")&"m" -> £1.10m | G49: Smart Meter | H49: =TEXT(Calculations!P486,"+£0.00;-£0.00")&"m" -> -£0.13m | I49: =IFERROR(TEXT(Calculations!P487,"+0.00%;-0.00%"),"") -> -4.35%
A50: Stakeholder Engagement and Consumer Vulnerability Score | B50: =TEXT(Calculations!F188,"#,##0.00") -> 6.96 | D50: =Calculations!E189 -> Green | E50: =Calculations!E190 -> 3 | G50: Closely Associated Indirects | H50: =TEXT(Calculations!P493,"+£0.00;-£0.00")&"m" -> +£6.99m | I50: =IFERROR(TEXT(Calculations!P494,"+0.00%;-0.00%"),"") -> +13.99%
A51: Stakeholder Engagement and Consumer Vulnerability Reward | B51: ="£"&TEXT(Calculations!F195,"#,##0.00")&"m" -> £4.02m | G51: Business Support | H51: =TEXT(Calculations!P500,"+£0.00;-£0.00")&"m" -> +£1.54m | I51: =IFERROR(TEXT(Calculations!P501,"+0.00%;-0.00%"),"") -> +5.70%
A52: Broad Measure of Customer Service Reward/Penalty | B52: ="£"&TEXT(Calculations!F196,"#,##0.00")&"m" -> £0.00m | E52: =Calculations!E197 -> 7.5 | G52: HVP ED1 | H52: =TEXT(Calculations!P507,"+£0.00;-£0.00")&"m" -> -£0.27m | I52: =IFERROR(TEXT(Calculations!P508,"+0.00%;-0.00%"),"") -> -10.67%
G53: HVP DPCR5 | H53: =TEXT(Calculations!P514,"+£0.00;-£0.00")&"m" -> +£0.54m | I53: =IFERROR(TEXT(Calculations!P515,"+0.00%;-0.00%"),"") -> 
A54: Innovation | B54: 2019 | C54: ED1 trend | G54: Total of the disaggregated areas | H54: =TEXT(Calculations!P521,"+£0.00;-£0.00")&"m" -> -£8.20m | I54: =IFERROR(TEXT(Calculations!P522,"+0.00%;-0.00%"),"") -> -3.20%
A55: NIA Expenditure | B55: ="£"&TEXT(Calculations!F204,"#,##0.00")&"m" -> £1.50m | G55: Policy Adjustments (Forecast DRS 8, Disposals, Shetland Competitive Process, Shetland Uncertain Energy, WSC, Atypicals) | H55: =TEXT(Calculations!P528,"+£0.00;-£0.00")&"m" -> -£1.51m | I55: =IFERROR(TEXT(Calculations!P529,"+0.00%;-0.00%"),"") -> -80.05%
A56: % of NIA Allowance | B56: =Calculations!F205 -> 0.7353704318
A57: NIC Funding Awarded | B57: ="£"&TEXT(Calculations!F207,"#,##0.00")&"m" -> £1.66m

Sheet Guide & drivers
A1: Guide and Drivers
A2: This workbook provides data that is reported in the Annual Report and more detailed data for those who want to undertake further analysis.
A4: Key
B5: Future year input (graphs will be manually pointed to the relevant years' data)
B6: Actual expenditure or performance
B7: Forecast / target expenditure or performance
B8: Baseline allowances
B9: Forecast/Adjusted allowances
B10: Adjustment factor / Difference
B11: Ranking
A13: Price base: | B13: 2018/19
A15: Input Terms
B17: RPI Index
C18: Financial Year Average RPI | D18: Conversion from 12/13 to nominal prices | E18: Conversion from 15/16 to nominal prices | I18: Index adjustment 2018/19 base year
B19: 2009/10 | C19: 215.767 | D19: =C19/$C$22 -> 0.8818514356 | E19: =C19/$C$25 -> 0.8316867939 | I19: 2009/10 | J19: =$C$28/C19 -> 1.313027479
B20: 2010/11 | C20: 226.475 | D20: 0.9256156125 | E20: 0.8729614197 | I20: 2010/11 | J20: =$C$28/C20 -> 1.250946021
B21: 2011/12 | C21: 237.342 | D21: 0.9700296311 | E21: 0.9148489205 | I21: 2011/12 | J21: 1.193669894
B22: 2012/13 | C22: 244.675 | D22: 1 | E22: 0.9431144072 | I22: 2012/13 | J22: 1.157895167
B23: 2013/14 | C23: 251.733 | D23: 1.028846429 | E23: 0.9703198899 | I23: 2013/14 | J23: 1.125430516
B24: 2014/15 | C24: 256.667 | D24: 1.049011955 | E24: 0.9893382877 | I24: 2014/15 | J24: 1.103795969
B25: 2015/16 | C25: 259.433 | D25: =C25/$C$22 -> 1.060316747 | E25: 1 | I25: 2015/16 | J25: 1.092027614
B26: 2016/17 | C26: 264.992 | D26: =C26/$C$22 -> 1.083036681 | E26: =C26/$C$25 -> 1.021427498 | I26: 2016/17 | J26: 1.069119068
B27: 2017/18 | C27: 274.908 | D27: =C27/$C$22 -> 1.123563911 | E27: =C27/$C$25 -> 1.059649312 | I27: 2017/18 | J27: 1.030555677
B28: 2018/19 | C28: 283.308 | D28: =C28/$C$22 -> 1.157895167 | E28: =C28/$C$25 -> 1.092027614 | I28: 2018/19 | J28: 1
B29: 2019/20
B30: 2020/21
B31: 2021/22
B32: 2022/23
B35: Convert 2012/13 prices to 2018/19 | C35: =C28/C22 -> 1.157895167
A38: Drivers
B39: Customer numbers
C40: DPCR5 | H40: RIIO ED1
B41: Column1 | C41: 2011 | D41: 2012 | E41: 2013 | F41: 2014 | G41: 2015 | H41: 2016 | I41: 2017 | J41: 2018 | K41: 2019 | L41: 2020 | M41: 2021 | N41: 2022 | O41: 2023
B42: ENWL | C42: 2359391 | D42: 2364446 | E42: 2368572 | F42: 2371790 | G42: 2375305 | H42: 2381080 | I42: 2383214 | J42: 2383887 | K42: 2393226
B43: NPgN | C43: 1575686 | D43: 1581420 | E43: 1583627 | F43: 1586437 | G43: 1590615 | H43: 1596374 | I43: 1600885 | J43: 1602128 | K43: 1606300
B44: NPgY | C44: 2258404 | D44: 2266464 | E44: 2272386 | F44: 2277373 | G44: 2284044 | H44: 2291522 | I44: 2298672 | J44: 2298786 | K44: 2306293
B45: WMID | C45: 2446951 | D45: 2462123 | E45: 2469953 | F45: 2448930 | G45: 2455914 | H45: 2463217 | I45: 2470151 | J45: 2481944 | K45: 2491212
B46: EMID | C46: 2614165 | D46: 2623103 | E46: 2619183 | F46: 2604846 | G46: 2613507 | H46: 2622449 | I46: 2631017 | J46: 2647059 | K46: 2658397
B47: SWALES | C47: 1099333 | D47: 1103465 | E47: 1108168 | F47: 1113015 | G47: 1117685 | H47: 1122920 | I47: 1128284 | J47: 1133101 | K47: 1137812
B48: SWEST | C48: 1541188 | D48: 1551046 | E48: 1561137 | F48: 1570645 | G48: 1579687 | H48: 1590050 | I48: 1600520 | J48: 1613218 | K48: 1624131
B49: LPN | C49: 2251892 | D49: 2267440 | E49: 2279053 | F49: 2286322 | G49: 2298560 | H49: 2311906 | I49: 2330356 | J49: 2345807 | K49: 2357951
B50: SPN | C50: 2233288 | D50: 2247823 | E50: 2257968 | F50: 2262882 | G50: 2271189 | H50: 2281009 | I50: 2288599 | J50: 2296864 | K50: 2304887
B51: EPN | C51: 3516859 | D51: 3537357 | E51: 3556281 | F51: 3565115 | G51: 3581606 | H51: 3599594 | I51: 3614431 | J51: 3627858 | K51: 3638189
B52: SPD | C52: 1992998 | D52: 1994241 | E52: 1996169 | F52: 1996758 | G52: 1998881 | H52: 2002257 | I52: 2004462 | J52: 2007341 | K52: 2002889
B53: SPMW | C53: 1485153 | D53: 1487412 | E53: 1490883 | F53: 1494271 | G53: 1499500 | H53: 1503914 | I53: 1508672 | J53: 1512961 | K53: 1512275
B54: SSEH | C54: 740768 | D54: 745907 | E54: 750446 | F54: 754258 | G54: 757906 | H54: 758000 | I54: 767082 | J54: 772984 | K54: 778304
B55: SSES | C55: 3026488 | D55: 3040102 | E55: 3054120 | F55: 3067274 | G55: 3082913 | H55: 3098577 | I55: 3032766 | J55: 3049924 | K55: 3067988
B56: Total | C56: =SUM(C42:C55) -> 29142564 | D56: =SUM(D42:D55) -> 29272349 | E56: 29367946 | F56: 29399916 | G56: 29507312 | H56: 29622869 | I56: 29659111 | J56: 29773862 | K56: 29879854
B58: Network length (km)
C59: DPCR5 | H59: RIIO ED1
C60: 2011 | D60: 2012 | E60: 2013 | F60: 2014 | G60: 2015 | H60: 2016 | I60: 2017 | J60: 2018 | K60: 2019 | L60: 2020 | M60: 2021 | N60: 2022 | O60: 2023
B61: ENWL | C61: 56952.2565 | D61: 57115.77162 | E61: 57296.44743 | F61: 57547.74498 | G61: 57722.14882 | H61: 57946.36778 | I61: 57090.45584 | J61: 57324.15031 | K61: 57348.87727
B62: NPgN | C62: 40159.667 | D62: 40351.759 | E62: 40668.071 | F62: 40787.16 | G62: 41012.91718 | H62: 41243.50856 | I62: 41503.33523 | J62: 41704.94 | K62: 41839.146
B63: NPgY | C63: 52782.96193 | D63: 52946.18823 | E63: 53163.7354 | F63: 53299.51433 | G63: 53567.08269 | H63: 53873.9474 | I63: 54095.00209 | J63: 54319.33284 | K63: 54654.55243
B64: WMID | C64: 63459.141 | D64: 64111.49284 | E64: 64147.94284 | F64: 64280.34684 | G64: 64590.59284 | H64: 64268.96741 | I64: 64575.20572 | J64: 64878.79095 | K64: 65153.43203
B65: EMID | C65: 71700.13171 | D65: 71919.771 | E65: 72058.561 | F65: 72381.282 | G65: 72761.459 | H65: 72976.36852 | I65: 73379.48601 | J65: 73745.45368 | K65: 74111.28296
B66: SWALES | C66: 35162.26796 | D66: 35298.91919 | E66: 35362.00919 | F66: 35458.70019 | G66: 35632.41818 | H66: 35612.29927 | I66: 35789.68601 | J66: 35678.69495 | K66: 35758.72022
B67: SWEST | C67: 50183.208 | D67: 50440.85943 | E67: 50584.05944 | F67: 50761.22542 | G67: 51050.23841 | H67: 50247.79492 | I67: 50450.1221 | J67: 50610.00051 | K67: 50798.9617
B68: LPN | C68: 36627.93 | D68: 36703.93 | E68: 36732.21 | F68: 36822.66089 | G68: 36845.69054 | H68: 36932.86279 | I68: 37041.84435 | J68: 37159.64061 | K68: 37270.9533
B69: SPN | C69: 52200 | D69: 52315.75334 | E69: 52449.36234 | F69: 52686.69774 | G69: 52805.84673 | H69: 52841.05469 | I69: 52924.03279 | J69: 53014.55406 | K69: 53134.23316
B70: EPN | C70: 96266 | D70: 96408.8 | E70: 96541.527 | F70: 96767.73147 | G70: 96913.08314 | H70: 97261.38548 | I70: 97631.96554 | J70: 97817.45905 | K70: 98070.96429
B71: SPD | C71: 63848.4556 | D71: 63943.0006 | E71: 57811.99774 | F71: 57324 | G71: 57628.9 | H71: 57984.4 | I71: 58303.9 | J71: 58515.3 | K71: 58578.6
B72: SPMW | C72: 49669.0976 | D72: 49619.0976 | E72: 48454.39517 | F72: 46437.905 | G72: 46589.90371 | H72: 46844.00973 | I72: 46947 | J72: 47051.39112 | K72: 47151
B73: SSEH | C73: 47024.21947 | D73: 47477.55799 | E73: 47676.3229 | F73: 48053.1727 | G73: 48407.80773 | H73: 48331.868 | I73: 49026.46946 | J73: 49153.93914 | K73: 49356.67714
B74: SSES | C74: 76219.64 | D74: 76727.2343 | E74: 76965.98655 | F74: 76667.08495 | G74: 77077.0711 | H74: 77958.97015 | I74: 77378.55482 | J74: 77486.95767 | K74: 77710.03567
B75: Total | C75: =SUM(C61:C74) -> 792254.9768 | D75: 795380.1351 | E75: 789912.628 | F75: 789275.2265 | G75: 792605.1601 | H75: 794323.8047 | I75: 796137.06 | J75: 798460.6049 | K75: 800937.4362
B77: Total units distributed (GWh)
C78: DPCR5 | H78: RIIO ED1
C79: 2011 | D79: 2012 | E79: 2013 | F79: 2014 | G79: 2015 | H79: 2016 | I79: 2017 | J79: 2018 | K79: 2019 | L79: 2020 | M79: 2021 | N79: 2022 | O79: 2023
B80: ENWL | C80: 23835.24 | D80: 23367.42 | E80: 23484.00688 | F80: 22820 | G80: 22393 | H80: 22223.98232 | I80: 22059.6 | J80: 21855.5 | K80: 21712.4
B81: NPgN | C81: 15795.56804 | D81: 15271.77665 | E81: 15489.97147 | F81: 15131.45655 | G81: 14984.01833 | H81: 14861.88999 | I81: 14494.54801 | J81: 14414.14121 | K81: 14092.21149
B82: NPgY | C82: 23063.32753 | D82: 22570.84487 | E82: 22692.94041 | F82: 22438.35129 | G82: 22263.32887 | H82: 22012.43424 | I82: 21674.854 | J82: 21614.84335 | K82: 21387.84575
B83: WMID | C83: 24932.16037 | D83: 24247.72246 | E83: 24682.02266 | F83: 24427.32822 | G83: 24212.9227 | H83: 23941.53422 | I83: 23896.39712 | J83: 23775.52961 | K83: 23229.46173
B84: EMID | C84: 27882.57017 | D84: 27073.80591 | E84: 27598.0905 | F84: 26795.42345 | G84: 26627.16446 | H84: 26424.68798 | I84: 26354.59076 | J84: 26190.71402 | K84: 25637.62849
B85: SWALES | C85: 12110.70383 | D85: 11776.00643 | E85: 11769.62784 | F85: 11640.55919 | G85: 11490.95206 | H85: 11333.0048 | I85: 11177.14997 | J85: 11076.84901 | K85: 10986.45172
B86: SWEST | C86: 14625.00699 | D86: 14078.27414 | E86: 14412.45131 | F86: 13932.94421 | G86: 13767.26653 | H86: 13561.17809 | I86: 13531.26104 | J86: 13506.486 | K86: 13221.30231
B87: LPN | C87: 29355 | D87: 28492.36302 | E87: 28722.3 | F87: 28006 | G87: 27632 | H87: 27442.4 | I87: 27266 | J87: 27012 | K87: 26864
B88: SPN | C88: 21694 | D88: 20813 | E88: 20994 | F88: 20508.408 | G88: 19713 | H88: 19413.4 | I88: 19468 | J88: 19373 | K88: 19379
B89: EPN | C89: 34525 | D89: 34093 | E89: 35108 | F89: 33794 | G89: 32882 | H89: 32721 | I89: 33295 | J89: 33106 | K89: 32994
B90: SPD | C90: 16195 | D90: 19341 | E90: 19537 | F90: 18943 | G90: 18589 | H90: 18348 | I90: 17961 | J90: 17833 | K90: 17266
B91: SPMW | C91: 16195 | D91: 15787 | E91: 16065 | F91: 15997 | G91: 15742 | H91: 15449 | I91: 15211 | J91: 15118 | K91: 14655
B92: SSEH | C92: 8521 | D92: 8117.4 | E92: 8333.8 | F92: 8075.6 | G92: 7818.5 | H92: 7859.7 | I92: 7427.8 | J92: 7662.7 | K92: 7461.9
B93: SSES | C93: 33646.1 | D93: 32536.8 | E93: 33207.3 | F93: 32359.1 | G93: 31840.1 | H93: 31425.5 | I93: 30984.1 | J93: 31527.7 | K93: 30870.8
B94: Total | C94: =SUM(C80:C93) -> 302375.6769 | D94: =SUM(D80:D93) -> 297566.4135 | E94: 302096.5111 | F94: 294869.1709 | G94: 289955.2529 | H94: 287017.7116 | I94: 284801.3009 | J94: 284066.4632 | K94: =SUM(K80:K93) -> 279758.0015
B96: Network-wide Peak load (MVA)
C97: DPCR5 | H97: RIIO ED1
C98: 2011 | D98: 2012 | E98: 2013 | F98: 2014 | G98: 2015 | H98: 2016 | I98: 2017 | J98: 2018 | K98: 2019 | L98: 2020 | M98: 2021 | N98: 2022 | O98: 2023
B99: ENWL | C99: 4388.66 | D99: 4280.41 | E99: 4250.4 | F99: 4062.350515 | G99: 4267 | H99: 4233 | I99: 4262 | J99: 4305 | K99: 4160
B100: NPgN | C100: 2997 | D100: 2852 | E100: 2777 | F100: 2604 | G100: 2593 | H100: 2581.47 | I100: 2567.086 | J100: 2421.822 | K100: 2149.284
B101: NPgY | C101: 4285 | D101: 4195 | E101: 4041 | F101: 4086 | G101: 3763 | H101: 3604.22 | I101: 3574.056 | J101: 3460.562 | K101: 3485.02
B102: WMID | C102: 4662.231544 | D102: 4792.138457 | E102: 4782.4592 | F102: 4492 | G102: 4597.6 | H102: 4487.2 | I102: 4469.6 | J102: 4440 | K102: 4323.8
B103: EMID | C103: 5042.450848 | D103: 5292.3975 | E103: 5293.0718 | F103: 5056 | G103: 5012.2 | H103: 4968.4 | I103: 4961.6 | J103: 4801.8 | K103: 4769
B104: SWALES | C104: 2152.652603 | D104: 2117.6 | E104: 1999.5122 | F104: 1992 | G104: 2012 | H104: 1970.4 | I104: 1946.4 | J104: 1914 | K104: 1897.6
B105: SWEST | C105: 2903.634729 | D105: 2854.9 | E105: 2754.5462 | F105: 2594 | G105: 2583.8 | H105: 2536.8 | I105: 2590.8 | J105: 2565.8 | K105: 2486.8
B106: LPN | C106: 5203 | D106: 5125 | E106: 5167 | F106: 4820 | G106: 4952 | H106: 4833 | I106: 4915 | J106: 5189 | K106: 4780
B107: SPN | C107: 3976 | D107: 4108 | E107: 4107 | F107: 3672 | G107: 3795 | H107: 3809 | I107: 3923 | J107: 4022 | K107: 3672
B108: EPN | C108: 6966 | D108: 6407 | E108: 6408 | F108: 6096 | G108: 6267 | H108: 6236 | I108: 6441 | J108: 6573 | K108: 5926
B109: SPD | C109: 3320 | D109: 3611 | E109: 3673 | F109: 3426 | G109: 3414 | H109: 3626 | I109: 3563 | J109: 3575 | K109: 3596
B110: SPMW | C110: 3320 | D110: 3197 | E110: 3245 | F110: 3023 | G110: 3127 | H110: 3014 | I110: 3022 | J110: 3039 | K110: 3054
B111: SSEH | C111: 1633 | D111: 1559 | E111: 1518 | F111: 1518 | G111: 1514 | H111: 1417 | I111: 1497.2 | J111: 1564.5 | K111: 1429.5
B112: SSES | C112: 6692.8 | D112: 6395.7 | E112: 6387.1 | F112: 5916.3 | G112: 6005.4 | H112: 5971.2 | I112: 6079.3 | J112: 6293 | K112: 5883.7
B113: Total | C113: =SUM(C99:C112) -> 57542.42972 | D113: =SUM(D99:D112) -> 56787.14596 | E113: 56403.0894 | F113: 53357.65052 | G113: 53903 | H113: 53287.69 | I113: 53812.042 | J113: 54164.484 | K113: 51612.704

Sheet RAG and Ranking
A1: Outputs overview
C3: Reliability & Availability | F3: Environment | J3: Connections | O3: Customer satisfaction | T3: Social obligations
C4: Number of interruption (CIs) RAG | D4: Number of minutes lost (CMLs) RAG | F4: BCF (excl. losses) ranking | G4: SF6 ranking | H4: Fluid filled cable leakage ranking | J4: Time to Quote and Time to Connect RAG | K4: Time to Quote and Time to Connect ranking | L4: Connection GSoPs RAG | M4: Connection GSoPs ranking | O4: Complaints RAG | P4: Complaints ranking | Q4: Customer Satisfaction RAG | R4: BMCS ranking | T4: SECV RAG | U4: SECV ranking
A5: ENWL | C5: 1 | D5: 1 | F5: ='Ch2 outputs - environment'!T76 -> 5 | G5: ='Ch2 outputs - environment'!T116 -> 8 | H5: ='Ch2 outputs - environment'!T155 -> 13 | J5: 1 | K5: ='Ch2 outputs - connections'!BK42 -> 6 | L5: 1 | M5: ='Ch2 outputs - connections'!AE85 -> 7 | O5: 1 | P5: ='Ch2 outputs - cust sat'!AF43 -> 8 | Q5: 1 | R5: ='Ch2 outputs - cust sat'!AB23 -> 12 | T5: 1 | U5: ='Ch2 outputs - cust sat'!H89 -> 5
A6: NPgN | C6: 1 | D6: 1 | F6: ='Ch2 outputs - environment'!T77 -> 2 | G6: ='Ch2 outputs - environment'!T117 -> 5 | H6: ='Ch2 outputs - environment'!T156 -> 4 | J6: 1 | K6: ='Ch2 outputs - connections'!BK43 -> 11 | L6: 1 | M6: ='Ch2 outputs - connections'!AE86 -> 10 | O6: 1 | P6: ='Ch2 outputs - cust sat'!AF44 -> 14 | Q6: 1 | R6: ='Ch2 outputs - cust sat'!AB24 -> 10 | T6: 1 | U6: ='Ch2 outputs - cust sat'!H90 -> 3
A7: NPgY | C7: 1 | D7: 1 | F7: ='Ch2 outputs - environment'!T78 -> 3 | G7: ='Ch2 outputs - environment'!T118 -> 9 | H7: ='Ch2 outputs - environment'!T157 -> 6 | J7: 0.5 | K7: ='Ch2 outputs - connections'!BK44 -> 13 | L7: 1 | M7: ='Ch2 outputs - connections'!AE87 -> 12 | O7: 1 | P7: ='Ch2 outputs - cust sat'!AF45 -> 11 | Q7: 1 | R7: ='Ch2 outputs - cust sat'!AB25 -> 13
A8: WMID | C8: 1 | D8: 1 | F8: ='Ch2 outputs - environment'!T79 -> 8 | G8: ='Ch2 outputs - environment'!T119 -> 12 | H8: ='Ch2 outputs - environment'!T158 -> 12 | J8: 1 | K8: ='Ch2 outputs - connections'!BK45 -> 5 | L8: 1 | M8: ='Ch2 outputs - connections'!AE88 -> 3 | O8: 1 | P8: ='Ch2 outputs - cust sat'!AF46 -> 3 | Q8: 1 | R8: ='Ch2 outputs - cust sat'!AB26 -> 3 | T8: 1 | U8: ='Ch2 outputs - cust sat'!H91 -> 1
A9: EMID | C9: 1 | D9: 1 | F9: ='Ch2 outputs - environment'!T80 -> 7 | G9: ='Ch2 outputs - environment'!T120 -> 10 | H9: ='Ch2 outputs - environment'!T159 -> 7 | J9: 1 | K9: ='Ch2 outputs - connections'!BK46 -> 2 | L9: 1 | M9: ='Ch2 outputs - connections'!AE89 -> 1 | O9: 1 | P9: ='Ch2 outputs - cust sat'!AF47 -> 2 | Q9: 1 | R9: ='Ch2 outputs - cust sat'!AB27 -> 5
A10: SWALES | C10: 1 | D10: 1 | F10: ='Ch2 outputs - environment'!T81 -> 12 | G10: ='Ch2 outputs - environment'!T121 -> 13 | H10: ='Ch2 outputs - environment'!T160 -> 2 | J10: 1 | K10: ='Ch2 outputs - connections'!BK47 -> 2 | L10: 1 | M10: ='Ch2 outputs - connections'!AE90 -> 1 | O10: 1 | P10: ='Ch2 outputs - cust sat'!AF48 -> 6 | Q10: 1 | R10: ='Ch2 outputs - cust sat'!AB28 -> 1
A11: SWEST | C11: 1 | D11: 1 | F11: ='Ch2 outputs - environment'!T82 -> 10 | G11: ='Ch2 outputs - environment'!T122 -> 11 | H11: ='Ch2 outputs - environment'!T161 -> 5 | J11: 1 | K11: ='Ch2 outputs - connections'!BK48 -> 4 | L11: 1 | M11: ='Ch2 outputs - connections'!AE91 -> 4 | O11: 1 | P11: ='Ch2 outputs - cust sat'!AF49 -> 9 | Q11: 1 | R11: ='Ch2 outputs - cust sat'!AB29 -> 6
A12: LPN | C12: 1 | D12: 1 | F12: ='Ch2 outputs - environment'!T83 -> 11 | G12: ='Ch2 outputs - environment'!T123 -> 2 | H12: ='Ch2 outputs - environment'!T162 -> 9 | J12: 1 | K12: ='Ch2 outputs - connections'!BK49 -> 8 | L12: 1 | M12: ='Ch2 outputs - connections'!AE92 -> 5 | O12: 1 | P12: ='Ch2 outputs - cust sat'!AF50 -> 12 | Q12: 1 | R12: ='Ch2 outputs - cust sat'!AB30 -> 9 | T12: 1 | U12: ='Ch2 outputs - cust sat'!H92 -> 2
A13: SPN | C13: 1 | D13: 1 | F13: ='Ch2 outputs - environment'!T84 -> 9 | G13: ='Ch2 outputs - environment'!T124 -> 3 | H13: ='Ch2 outputs - environment'!T163 -> 10 | J13: 1 | K13: ='Ch2 outputs - connections'!BK50 -> 10 | L13: 1 | M13: ='Ch2 outputs - connections'!AE93 -> 9 | O13: 1 | P13: ='Ch2 outputs - cust sat'!AF51 -> 10 | Q13: 1 | R13: ='Ch2 outputs - cust sat'!AB31 -> 11
A14: EPN | C14: 1 | D14: 1 | F14: ='Ch2 outputs - environment'!T85 -> 6 | G14: ='Ch2 outputs - environment'!T125 -> 4 | H14: ='Ch2 outputs - environment'!T164 -> 8 | J14: 1 | K14: ='Ch2 outputs - connections'!BK51 -> 14 | L14: 1 | M14: ='Ch2 outputs - connections'!AE94 -> 8 | O14: 1 | P14: ='Ch2 outputs - cust sat'!AF52 -> 13 | Q14: 1 | R14: ='Ch2 outputs - cust sat'!AB32 -> 8
A15: SPD | C15: 1 | D15: 1 | F15: ='Ch2 outputs - environment'!T86 -> 1 | G15: ='Ch2 outputs - environment'!T126 -> 1 | H15: ='Ch2 outputs - environment'!T165 -> 3 | J15: 0.5 | K15: ='Ch2 outputs - connections'!BK52 -> 8 | L15: 1 | M15: ='Ch2 outputs - connections'!AE95 -> 13 | O15: 1 | P15: ='Ch2 outputs - cust sat'!AF53 -> 4 | Q15: 1 | R15: ='Ch2 outputs - cust sat'!AB33 -> 7 | T15: 1 | U15: ='Ch2 outputs - cust sat'!H93 -> 4
A16: SPMW | C16: 1 | D16: 1 | F16: ='Ch2 outputs - environment'!T87 -> 4 | G16: ='Ch2 outputs - environment'!T127 -> 7 | H16: ='Ch2 outputs - environment'!T165 -> 3 | J16: 0.5 | K16: ='Ch2 outputs - connections'!BK53 -> 11 | L16: 1 | M16: ='Ch2 outputs - connections'!AE96 -> 11 | O16: 1 | P16: ='Ch2 outputs - cust sat'!AF54 -> 7 | Q16: 1 | R16: ='Ch2 outputs - cust sat'!AB34 -> 4
A17: SSEH | C17: 1 | D17: 1 | F17: ='Ch2 outputs - environment'!T88 -> 14 | G17: ='Ch2 outputs - environment'!T128 -> 6 | H17: ='Ch2 outputs - environment'!T166 -> 11 | J17: 1 | K17: ='Ch2 outputs - connections'!BK54 -> 1 | L17: 1 | M17: ='Ch2 outputs - connections'!AE97 -> 6 | O17: 1 | P17: ='Ch2 outputs - cust sat'!AF55 -> 1 | Q17: 1 | R17: ='Ch2 outputs - cust sat'!AB35 -> 2 | T17: 0 | U17: ='Ch2 outputs - cust sat'!H94 -> 6
A18: SSES | C18: 1 | D18: 0.5 | F18: ='Ch2 outputs - environment'!T89 -> 13 | G18: ='Ch2 outputs - environment'!T129 -> 14 | H18: ='Ch2 outputs - environment'!T167 -> 1 | J18: 1 | K18: ='Ch2 outputs - connections'!BK55 -> 6 | L18: 1 | M18: ='Ch2 outputs - connections'!AE98 -> 14 | O18: 1 | P18: ='Ch2 outputs - cust sat'!AF56 -> 5 | Q18: 1 | R18: ='Ch2 outputs - cust sat'!AB36 -> 14
A20: Industry | C20: 1 | D20: 1 | J20: 1 | L20: 1 | O20: 1 | Q20: 1 | T20: 1

Sheet Ch2 outputs - environment
A1: Chapter 2 - Environment
B4: Environment: encouraging DNOs to play their role in achieving broader environmental objectives, namely the reduction in carbon emissions, as well as minimising the narrow environmental impact of the company's activities by managing their own carbon footprint, visual amenity and pollution.
B5: Incentive measure | F5: Incentive type
B6: Obligation to manage losses | F6: Financial: Losses Discretionary Reward of up to £32m across all DNOs, awarded in three tranches. Reputational: publish annual progress and a losses strategy. Licence obligation: to keep losses as low as reasonably practicable.
B7: Business Carbon Footprint (BCF) | F7: Reputational: publish annual progress.
B8: Limiting emissions of Sulphur Hexafluoride (SF6) | F8: Reputational: publish annual progress.
B9: Fluid filled cable leakage | F9: Reputational: publish annual progress.
B10: Noise pollution | F10: Reputational: publish annual progress.
B11: Visual impact allowance for undergrounding overhead lines in Areas of Outstanding Natural Beauty (AONB) and National Parks. | F11: Reputational incentive in the context of its performance in the utilisation of a funding pot of £103.6m (split between DNOs).
B12: Environmental report: obligation to inform stakeholders about the activities they have undertaken in relation to environmental matters, including their role in the transition to a low carbon economy. | F12: Licence obligation. Reputational.
D15: Reward allocated for the LDR
B16: Losses Discretionary Reward (LDR) | E16: Score
E17: 2015/16 | F17: 2016/17 | G17: 2017/18 | H17: 2018/19 | I17: 2019/20 | J17: 2020/21 | K17: 2021/22 | L17: 2022/23
D18: ENWL | F18: 0.52 | H18: 0
D19: NPg | F19: 0.26 | H19: 0
D20: WPD | F20: 0.12 | H20: 0
D21: UKPN | F21: 0.71 | H21: 0
D22: SPEN | F22: 0.58 | H22: 0
D23: SSEN | F23: 0.68 | H23: 0
D24: Total | F24: 0.48 | H24: 0
E26: Reward (£)
E27: 2015/16 | F27: 2016/17 | G27: 2017/18 | H27: 2018/19 | I27: 2019/20 | J27: 2020/21 | K27: 2021/22 | L27: 2022/23
D28: ENWL | F28: =SUM(695000*'Guide & drivers'!D27) -> 780876.9184 | H28: 0
D29: NPg | F29: =SUM(350000*'Guide & drivers'!D27) -> 393247.369 | H29: 0
D30: WPD | F30: =SUM(160000*'Guide & drivers'!D27) -> 179770.2258 | H30: 0
D31: UKPN | F31: =SUM(945000*'Guide & drivers'!D27) -> 1061767.896 | H31: 0
D32: SPEN | F32: =SUM(770000*'Guide & drivers'!D27) -> 865144.2117 | H32: 0
D33: SSEN | F33: =SUM(910000*'Guide & drivers'!D27) -> 1022443.159 | H33: 0
D34: Total | F34: =SUM(3830000*'Guide & drivers'!$D$27) -> 4303249.78 | H34: 0
D36: Distribution losses (as % of units distributed)
E37: 2015/16 | F37: 2016/17 | G37: 2017/18 | H37: 2018/19 | I37: 2019/20 | J37: 2020/21 | K37: 2021/22 | L37: 2022/23
D38: ENWL | E38: 0.06503127969 | F38: 0.06384746757 | G38: 0.0666740889 | H38: 0.05645994619
D39: NPGN | E39: 0.0532639851 | F39: 0.0528818281 | G39: 0.05320209731 | H39: 0.04772904924
D40: NPGY | E40: 0.05812554782 | F40: 0.05827591783 | G40: 0.06339824738 | H40: 0.05765754177
D41: WMID | E41: 0.0524072641 | F41: 0.05728462902 | G41: 0.0607144765 | H41: 0.05620892188
D42: EMID | E42: 0.04790145432 | F42: 0.04794039889 | G42: 0.0514940027 | H42: 0.04699791171
D43: SWALES | E43: 0.04387134635 | F43: 0.0401617583 | G43: 0.04083216283 | H43: 0.04136085165
D44: SWEST | E44: 0.04668244866 | F44: 0.04672892827 | G44: 0.04988355705 | H44: 0.04413884399
D45: LPN | E45: 0.06938168673 | F45: 0.06939044964 | G45: 0.06782170887 | H45: 0.06625967838
D46: SPN | E46: 0.06232808266 | F46: 0.06744401068 | G46: 0.07190419656 | H46: 0.06914701481
D47: EPN | E47: 0.06839644265 | F47: 0.07412524403 | G47: 0.07207152782 | H47: 0.06464811784
D48: SPD | E48: 0.06660126444 | F48: 0.06775791994 | G48: 0.0699826165 | H48: 0.0697903394
D49: SPMW | E49: 0.06595896175 | F49: 0.06725396095 | G49: 0.06733694933 | H49: 0.06734902764
D50: SSEH | E50: 0.06611154598 | F50: 0.07151942211 | G50: 0.06969440421 | H50: 0.06790284753
D51: SSES | E51: 0.05674256815 | F51: 0.05790632281 | G51: 0.05185657632 | H51: 0.05154598418
D52: Total | E52: 0.05953596787 | F52: 0.06115147005 | G52: 0.06181156963 | H52: 0.05825466775
B55: Business Carbon Footprint (BCF)
D56: Business Carbon Footprint (excluding losses and contractors) (tCO2e)
E57: DPCR5 - 2013/14 | F57: DPCR5 - 2014/15 | G57: 2015/16 | H57: 2016/17 | I57: 2017/18 | J57: 2018/19 | K57: 2019/20 | L57: 2020/21 | M57: 2021/22 | N57: 2022/23
D58: ENWL | E58: 23761.21 | F58: 24414.91 | G58: 15790.45012 | H58: 15301.95892 | I58: 14147.27178 | J58: 12567.10379
D59: NPgN | E59: 23368.30067 | F59: 22745.42599 | G59: 10554.83099 | H59: 9412.945166 | I59: 9162.694699 | J59: 7564.022133
D60: NPgY | E60: 26495.1002 | F60: 28807.02231 | G60: 14559.85992 | H60: 13872.99774 | I60: 12110.70638 | J60: 10159.42816
D61: WMID | E61: 29290.64506 | F61: 29722.9 | G61: 26708.58787 | H61: 22933.91543 | I61: 20832.01647 | J61: 17325.74038
D62: EMID | E62: 30151.78594 | F62: 30172.15 | G62: 22830.06446 | H62: 21098.21969 | I62: 19571.0382 | J62: 19027.40271
D63: SWALES | E63: 13395.22439 | F63: 18330.133 | G63: 13628.27571 | H63: 12486.93762 | I63: 12144.53251 | J63: 12131.97911
D64: SWEST | E64: 23059.60036 | F64: 23752.9 | G64: 17504.45863 | H64: 15669.23247 | I64: 15183.02573 | J64: 15336.21441
D65: LPN | E65: 16573.19727 | F65: 19776.4951 | G65: 14176.25335 | H65: 14796.48874 | I65: 12807.22149 | J65: 11755.68789
D66: SPN | E66: 26961.82503 | F66: 25025.1182 | G66: 17694.08893 | H66: 16687.61324 | I66: 15607.20966 | J66: 16029.60831
D67: EPN | E67: 35454.95621 | F67: 32539.493 | G67: 23609.29692 | H67: 26083.40172 | I67: 24848.05331 | J67: 22849.98509
D68: SPD* | E68: 31076.88718 | F68: 24549.36 | G68: 15610.57052 | H68: 13493.50554 | I68: 12158.26568 | J68: 10526.07559
D69: SPMW* | E69: 15143.10141 | F69: 26026.38 | G69: 12710.08881 | H69: 12572.99524 | I69: 11557.53608 | J69: 9893.680329
D70: SSEH | E70: 23653.44041 | F70: 43857.57083 | G70: 27278.8228 | H70: 25448.29407 | I70: 25162.03612 | J70: 26210.07335
D71: SSES | E71: 35373.50362 | F71: 34060.00891 | G71: 34723.3515 | H71: 33716.4999 | I71: 31748.67283 | J71: 28732.27884
D72: Total | E72: =SUM(E58:E71) -> 353758.7777 | F72: 383779.8673 | G72: 267379.0005 | H72: 253575.0055 | I72: 237040.2809 | J72: 220109.2801
D73: *SPEN have moved from estimation to direct observation for a large proposition of it's activities
D74: Business Carbon Footprint (excluding losses and contractors) as % network length and customer numbers
E75: DPCR5 - 2013/14 | F75: DPCR5 - 2014/15 | G75: 2015/16 | H75: 2016/17 | I75: 2017/18 | J75: 2018/19 | K75: 2019/20 | L75: 2020/21 | M75: 2021/22 | N75: 2022/23 | P75: Ranking | Q75: 2015/16 | R75: 2016/17 | S75: 2017/18 | T75: 2018/19 | U75: 2019/20 | V75: 2020/21 | W75: 2021/22 | X75: 2022/23
D76: ENWL | E76: =((E58/'Guide & drivers'!F42)*50%)+(E58/'Guide & drivers'!F61)*50% -> 0.2114569242 | F76: =((F58/'Guide & drivers'!G42)*50%)+(F58/'Guide & drivers'!G61)*50% -> 0.2166258171 | G76: =((G58/'Guide & drivers'!H42)*50%)+(G58/'Guide & drivers'!H61)*50% -> 0.1395663768 | H76: =((H58/'Guide & drivers'!I42)*50%)+(H58/'Guide & drivers'!I61)*50% -> 0.1372253973 | I76: =((I58/'Guide & drivers'!J42)*50%)+(I58/'Guide & drivers'!J61)*50% -> 0.1263644044 | J76: =((J58/'Guide & drivers'!K42)*50%)+(J58/'Guide & drivers'!K61)*50% -> 0.1121926873 | P76: ENWL | Q76: =RANK(G76,$G$76:$G$89,1) -> 5 | R76: =RANK(H76,$H$76:$H$89,1) -> 5 | S76: =RANK(I76,$I$76:$I$89,1) -> 4 | T76: =RANK(J76,$J$76:$J$89,1) -> 5
D77: NPgN | E77: =((E59/'Guide & drivers'!F43)*50%)+(E59/'Guide & drivers'!F62)*50% -> 0.2938314128 | F77: =((F59/'Guide & drivers'!G43)*50%)+(F59/'Guide & drivers'!G62)*50% -> 0.284445765 | G77: =((G59/'Guide & drivers'!H43)*50%)+(G59/'Guide & drivers'!H62)*50% -> 0.1312633584 | H77: =((H59/'Guide & drivers'!I43)*50%)+(H59/'Guide & drivers'!I62)*50% -> 0.1163397835 | I77: =((I59/'Guide & drivers'!J43)*50%)+(I59/'Guide & drivers'!J62)*50% -> 0.1127109702 | J77: =((J59/'Guide & drivers'!K43)*50%)+(J59/'Guide & drivers'!K62)*50% -> 0.09274856507 | P77: NPgN | Q77: =RANK(G77,$G$76:$G$89,1) -> 2 | R77: =RANK(H77,$H$76:$H$89,1) -> 1 | S77: =RANK(I77,$I$76:$I$89,1) -> 2 | T77: =RANK(J77,$J$76:$J$89,1) -> 2
D78: NPgY | E78: =((E60/'Guide & drivers'!F44)*50%)+(E60/'Guide & drivers'!F63)*50% -> 0.2543662023 | F78: =((F60/'Guide & drivers'!G44)*50%)+(F60/'Guide & drivers'!G63)*50% -> 0.2751934989 | G78: =((G60/'Guide & drivers'!H44)*50%)+(G60/'Guide & drivers'!H63)*50% -> 0.1383058475 | H78: =((H60/'Guide & drivers'!I44)*50%)+(H60/'Guide & drivers'!I63)*50% -> 0.1312457027 | I78: =((I60/'Guide & drivers'!J44)*50%)+(I60/'Guide & drivers'!J63)*50% -> 0.114111096 | J78: =((J60/'Guide & drivers'!K44)*50%)+(J60/'Guide & drivers'!K63)*50% -> 0.09514474014 | P78: NPgY | Q78: 3 | R78: 3 | S78: =RANK(I78,$I$76:$I$89,1) -> 3 | T78: 3
D79: WMID | E79: =((E61/'Guide & drivers'!F45)*50%)+(E61/'Guide & drivers'!F64)*50% -> 0.2338154455 | F79: =((F61/'Guide & drivers'!G45)*50%)+(F61/'Guide & drivers'!G64)*50% -> 0.2361382021 | G79: =((G61/'Guide & drivers'!H45)*50%)+(G61/'Guide & drivers'!H64)*50% -> 0.2132090763 | H79: =((H61/'Guide & drivers'!I45)*50%)+(H61/'Guide & drivers'!I64)*50% -> 0.1822174502 | I79: =((I61/'Guide & drivers'!J45)*50%)+(I61/'Guide & drivers'!J64)*50% -> 0.1647423725 | J79: =((J61/'Guide & drivers'!K45)*50%)+(J61/'Guide & drivers'!K64)*50% -> 0.1364384441 | P79: WMID | Q79: 12 | R79: 11 | S79: 10 | T79: 8
D80: EMID | E80: =((E62/'Guide & drivers'!F46)*50%)+(E62/'Guide & drivers'!F65)*50% -> 0.214072048 | F80: =((F62/'Guide & drivers'!G46)*50%)+(F62/'Guide & drivers'!G65)*50% -> 0.2131084198 | G80: =((G62/'Guide & drivers'!H46)*50%)+(G62/'Guide & drivers'!H65)*50% -> 0.1607737547 | H80: =((H62/'Guide & drivers'!I46)*50%)+(H62/'Guide & drivers'!I65)*50% -> 0.1477705392 | I80: =((I62/'Guide & drivers'!J46)*50%)+(I62/'Guide & drivers'!J65)*50% -> 0.136389936 | J80: =((J62/'Guide & drivers'!K46)*50%)+(J62/'Guide & drivers'!K65)*50% -> 0.1319492214 | P80: EMID | Q80: 7 | R80: 7 | S80: 7 | T80: 7
D81: SWALES | E81: =((E63/'Guide & drivers'!F47)*50%)+(E63/'Guide & drivers'!F66)*50% -> 0.1949024161 | F81: =((F63/'Guide & drivers'!G47)*50%)+(F63/'Guide & drivers'!G66)*50% -> 0.2654115098 | G81: =((G63/'Guide & drivers'!H47)*50%)+(G63/'Guide & drivers'!H66)*50% -> 0.1974104917 | H81: =((H63/'Guide & drivers'!I47)*50%)+(H63/'Guide & drivers'!I66)*50% -> 0.1799824258 | I81: =((I63/'Guide & drivers'!J47)*50%)+(I63/'Guide & drivers'!J66)*50% -> 0.1755520401 | J81: =((J63/'Guide & drivers'!K47)*50%)+(J63/'Guide & drivers'!K66)*50% -> 0.1749679271 | P81: SWALES | Q81: 11 | R81: 10 | S81: 12 | T81: 12
D82: SWEST | E82: =((E64/'Guide & drivers'!F48)*50%)+(E64/'Guide & drivers'!F67)*50% -> 0.2344787461 | F82: =((F64/'Guide & drivers'!G48)*50%)+(F64/'Guide & drivers'!G67)*50% -> 0.2401606302 | G82: =((G64/'Guide & drivers'!H48)*50%)+(G64/'Guide & drivers'!H67)*50% -> 0.1796857348 | H82: =((H64/'Guide & drivers'!I48)*50%)+(H64/'Guide & drivers'!I67)*50% -> 0.1601893411 | I82: =((I64/'Guide & drivers'!J48)*50%)+(I64/'Guide & drivers'!J67)*50% -> 0.1547060723 | J82: =((J64/'Guide & drivers'!K48)*50%)+(J64/'Guide & drivers'!K67)*50% -> 0.1556714376 | P82: SWEST | Q82: 9 | R82: 8 | S82: 9 | T82: 10
D83: LPN | E83: =((E65/'Guide & drivers'!F49)*50%)+(E65/'Guide & drivers'!F68)*50% -> 0.2286651572 | F83: =((F65/'Guide & drivers'!G49)*50%)+(F65/'Guide & drivers'!G68)*50% -> 0.2726711059 | G83: =((G65/'Guide & drivers'!H49)*50%)+(G65/'Guide & drivers'!H68)*50% -> 0.1949851558 | H83: =((H65/'Guide & drivers'!I49)*50%)+(H65/'Guide & drivers'!I68)*50% -> 0.2029014011 | I83: =((I65/'Guide & drivers'!J49)*50%)+(I65/'Guide & drivers'!J68)*50% -> 0.175056848 | J83: =((J65/'Guide & drivers'!K49)*50%)+(J65/'Guide & drivers'!K68)*50% -> 0.1601985343 | P83: LPN | Q83: 10 | R83: 12 | S83: 11 | T83: 11
D84: SPN | E84: =((E66/'Guide & drivers'!F50)*50%)+(E66/'Guide & drivers'!F69)*50% -> 0.2618267853 | F84: =((F66/'Guide & drivers'!G50)*50%)+(F66/'Guide & drivers'!G69)*50% -> 0.2424633021 | G84: =((G66/'Guide & drivers'!H50)*50%)+(G66/'Guide & drivers'!H69)*50% -> 0.1713060431 | H84: =((H66/'Guide & drivers'!I50)*50%)+(H66/'Guide & drivers'!I69)*50% -> 0.1613021033 | I84: =((I66/'Guide & drivers'!J50)*50%)+(I66/'Guide & drivers'!J69)*50% -> 0.15059491 | J84: =((J66/'Guide & drivers'!K50)*50%)+(J66/'Guide & drivers'!K69)*50% -> 0.1543179945 | P84: SPN | Q84: 8 | R84: 9 | S84: 8 | T84: 9
D85: EPN | E85: =((E67/'Guide & drivers'!F51)*50%)+(E67/'Guide & drivers'!F70)*50% -> 0.1881686575 | F85: =((F67/'Guide & drivers'!G51)*50%)+(F67/'Guide & drivers'!G70)*50% -> 0.1724223582 | G85: =((G67/'Guide & drivers'!H51)*50%)+(G67/'Guide & drivers'!H70)*50% -> 0.1246497895 | H85: =((H67/'Guide & drivers'!I51)*50%)+(H67/'Guide & drivers'!I70)*50% -> 0.1371884653 | I85: =((I67/'Guide & drivers'!J51)*50%)+(I67/'Guide & drivers'!J70)*50% -> 0.1304369811 | J85: =((J67/'Guide & drivers'!K51)*50%)+(J67/'Guide & drivers'!K70)*50% -> 0.1196374946 | P85: EPN | Q85: 1 | R85: 4 | S85: 6 | T85: 6
D86: SPD* | E86: =((E68/'Guide & drivers'!F52)*50%)+(E68/'Guide & drivers'!F71)*50% -> 0.2788453277 | F86: =((F68/'Guide & drivers'!G52)*50%)+(F68/'Guide & drivers'!G71)*50% -> 0.2191359917 | G86: =((G68/'Guide & drivers'!H52)*50%)+(G68/'Guide & drivers'!H71)*50% -> 0.1385083327 | H86: =((H68/'Guide & drivers'!I52)*50%)+(H68/'Guide & drivers'!I71)*50% -> 0.1190828736 | I86: =((I68/'Guide & drivers'!J52)*50%)+(I68/'Guide & drivers'!J71)*50% -> 0.10691808 | J86: =((J68/'Guide & drivers'!K52)*50%)+(J68/'Guide & drivers'!K71)*50% -> 0.0924734654 | P86: SPD | Q86: 4 | R86: 2 | S86: 1 | T86: 1
D87: SPMW* | E87: =((E69/'Guide & drivers'!F53)*50%)+(E69/'Guide & drivers'!F72)*50% -> 0.1681138295 | F87: =((F69/'Guide & drivers'!G53)*50%)+(F69/'Guide & drivers'!G72)*50% -> 0.2879918727 | G87: =((G69/'Guide & drivers'!H53)*50%)+(G69/'Guide & drivers'!H72)*50% -> 0.1398896417 | H87: =((H69/'Guide & drivers'!I53)*50%)+(H69/'Guide & drivers'!I72)*50% -> 0.1380731773 | I87: =((I69/'Guide & drivers'!J53)*50%)+(I69/'Guide & drivers'!J72)*50% -> 0.1266377275 | J87: =((J69/'Guide & drivers'!K53)*50%)+(J69/'Guide & drivers'!K72)*50% -> 0.1081859763 | P87: SPMW | Q87: 6 | R87: 6 | S87: 5 | T87: 4
D88: SSEH | E88: =((E70/'Guide & drivers'!F54)*50%)+(E70/'Guide & drivers'!F73)*50% -> 0.2617973042 | F88: =((F70/'Guide & drivers'!G54)*50%)+(F70/'Guide & drivers'!G73)*50% -> 0.4819343863 | G88: =((G70/'Guide & drivers'!H54)*50%)+(G70/'Guide & drivers'!H73)*50% -> 0.3001972206 | H88: =((H70/'Guide & drivers'!I54)*50%)+(H70/'Guide & drivers'!I73)*50% -> 0.2761239978 | I88: =((I70/'Guide & drivers'!J54)*50%)+(I70/'Guide & drivers'!J73)*50% -> 0.27222728 | J88: =((J70/'Guide & drivers'!K54)*50%)+(J70/'Guide & drivers'!K73)*50% -> 0.2823549374 | P88: SSEH | Q88: 14 | R88: 14 | S88: 14 | T88: 14
D89: SSES | E89: =((E71/'Guide & drivers'!F55)*50%)+(E71/'Guide & drivers'!F74)*50% -> 0.2364617812 | F89: =((F71/'Guide & drivers'!G55)*50%)+(F71/'Guide & drivers'!G74)*50% -> 0.226471735 | G89: =((G71/'Guide & drivers'!H55)*50%)+(G71/'Guide & drivers'!H74)*50% -> 0.228305846 | H89: =((H71/'Guide & drivers'!I55)*50%)+(H71/'Guide & drivers'!I74)*50% -> 0.2234259157 | I89: =((I71/'Guide & drivers'!J55)*50%)+(I71/'Guide & drivers'!J74)*50% -> 0.2100694537 | J89: =((J71/'Guide & drivers'!K55)*50%)+(J71/'Guide & drivers'!K74)*50% -> 0.1895511148 | P89: SSES | Q89: 13 | R89: 13 | S89: 13 | T89: 13
D90: Total | E90: =((E72/'Guide & drivers'!F56)*50%)+(E72/'Guide & drivers'!F75)*50% -> 0.2301198839 | F90: =((F72/'Guide & drivers'!G56)*50%)+(F72/'Guide & drivers'!G75)*50% -> 0.2486034148 | G90: =((G72/'Guide & drivers'!H56)*50%)+(G72/'Guide & drivers'!H75)*50% -> 0.1728190982 | H90: =((H72/'Guide & drivers'!I56)*50%)+(H72/'Guide & drivers'!I75)*50% -> 0.1635281859 | I90: =((I72/'Guide & drivers'!J56)*50%)+(I72/'Guide & drivers'!J75)*50% -> 0.1524164797 | J90: =((J72/'Guide & drivers'!K56)*50%)+(J72/'Guide & drivers'!K75)*50% -> 0.1410905257
B93: Sulphur hexafluoride emissions (SF6)
D94: SF6 emissions (kg) | P94: SF6 bank (kg)
E95: DPCR5 - 2013/14 | F95: DPCR5 - 2014/15 | G95: 2015/16 | H95: 2016/17 | I95: 2017/18 | J95: 2018/19 | K95: 2019/20 | L95: 2020/21 | M95: 2021/22 | N95: 2022/23 | Q95: DPCR5 - 2013/14 | R95: DPCR5 - 2014/15 | S95: 2015/16 | T95: 2016/17 | U95: 2017/18 | V95: 2018/19 | W95: 2019/20 | X95: 2020/21 | Y95: 2021/22 | Z95: 2022/23
D96: ENWL | E96: 57.1 | F96: 36.1 | G96: 14.627 | H96: 55.23 | I96: 54.27 | J96: 38.03 | P96: ENWL | Q96: 13508.72 | R96: 16852.1 | S96: 14736.27 | T96: 14159.45 | U96: 14615.28 | V96: 15751.63
D97: NPgN | E97: 25.11 | F97: 16.12 | G97: 23.75 | H97: 14.87 | I97: 36 | J97: 17.7 | P97: NPgN | Q97: 14530.14981 | R97: 15125.06981 | S97: 15258.78981 | T97: 15392.50981 | U97: 16174 | V97: 16357.03
D98: NPgY | E98: 97.98 | F98: 79.105 | G98: 84.49 | H98: 98.75 | I98: 61.96 | J98: 47.45 | P98: NPgY | Q98: 17280.80328 | R98: 17816.80328 | S98: 18304.15328 | T98: 18637.59328 | U98: 19101.25328 | V98: 19486.64328
D99: WMID | E99: 94.66088137 | F99: 62 | G99: 352.64 | H99: 199.63 | I99: 186.96 | J99: 166.284 | P99: WMID | Q99: 17537 | R99: 19464 | S99: 20866 | T99: 22761 | U99: 24570 | V99: 25776.7
D100: EMID | E100: 43.52911863 | F100: 14.14 | G100: 75.61 | H100: 56.74 | I100: 56.96 | J100: 69.1 | P100: EMID | Q100: 15684 | R100: 16952 | S100: 18231 | T100: 20124 | U100: 22588 | V100: 25327.9
D101: SWALES | E101: 41.83 | F101: 141.42 | G101: 93.9 | H101: 88.3 | I101: 103.64 | J101: 151.383 | P101: SWALES | Q101: 15597 | R101: 16227 | S101: 16632 | T101: 17455 | U101: 18098 | V101: 18801.1
D102: SWEST | E102: 157.67 | F102: 128.97 | G102: 105.3 | H102: 74 | I102: 121.28 | J102: 92.79 | P102: SWEST | Q102: 11327 | R102: 11558 | S102: 11684 | T102: 12368 | U102: 13277 | V102: 16009.59
D103: LPN | E103: 10.42 | F103: 20.609 | G103: 9.55 | H103: 16.1 | I103: 7.35 | J103: 26.65 | P103: LPN | Q103: 43149.7 | R103: 40825.459 | S103: 41889.606 | T103: 42305 | U103: 46089 | V103: 46880.7
D104: SPN | E104: 16.578 | F104: 15.138 | G104: 17.609 | H104: 16.5 | I104: 35.7 | J104: 22.68 | P104: SPN | Q104: 19622.9 | R104: 20451.965 | S104: 21158.534 | T104: 21124 | U104: 21603 | V104: 24198.5
D105: EPN | E105: 71.86 | F105: 64.47 | G105: 66.89 | H105: 98.96 | I105: 93.28 | J105: 42.47 | P105: EPN | Q105: 32780.7 | R105: 34185.484 | S105: 36058.736 | T105: 36921 | U105: 41022 | V105: 42961.75
D106: SPD | E106: 61.7 | F106: 62.4 | G106: 0.8 | H106: 1.04 | I106: 36.502 | J106: 5.445 | P106: SPD | Q106: 12564 | R106: 13259 | S106: 12709.962 | T106: 25114.642 | U106: 15181.751 | V106: 15274.388
D107: SPMW | E107: 121.8 | F107: 124.2 | G107: 29.87 | H107: 46.69 | I107: 67.49 | J107: 37.5 | P107: SPMW | Q107: 22193 | R107: 23117 | S107: 16893.361 | T107: 16922.361 | U107: 17833.271 | V107: 18739.053
D108: SSEH | E108: 9 | F108: 14 | G108: 5.8 | H108: 3.9 | I108: 1.56 | J108: 8.47 | P108: SSEH | Q108: 4887.276 | R108: 5231.978 | S108: 5510.844556 | T108: 5716.13 | U108: 5653.77 | V108: 5433.386
D109: SSES | E109: 107 | F109: 102 | G109: 133 | H109: 132.3 | I109: 186.2 | J109: 200.352 | P109: SSES | Q109: 22983.677 | R109: 21967.991 | S109: 25702 | T109: 24272.526 | U109: 23941.639 | V109: 22703.79
D110: Total | E110: =SUM(E96:E109) -> 916.238 | F110: 880.672 | G110: 1013.836 | H110: 903.01 | I110: 1049.152 | J110: 926.304 | P110: Total | Q110: =SUM(Q96:Q109) -> 263645.9261 | R110: 273033.8501 | S110: 275635.2566 | T110: 293273.2121 | U110: 299747.9643 | V110: 313702.1603
D114: SF6 emissions as a percentage of the SF6 bank | P114: SF6 emitted as % of bank - SNAPSHOT
E115: DPCR5 - 2013/14 | F115: DPCR5 - 2014/15 | G115: 2015/16 | H115: 2016/17 | I115: 2017/18 | J115: 2018/19 | K115: 2019/20 | L115: 2020/21 | M115: 2021/22 | N115: 2022/23 | P115: Ranking | Q115: 2015/16 | R115: 2016/17 | S115: 2017/18 | T115: 2018/19 | U115: 2019/20 | V115: 2020/21 | W115: 2021/22 | X115: 2022/23
D116: ENWL | E116: =E96/Q96 -> 0.004226899366 | F116: 0.002142166258 | G116: 0.0009925849621 | H116: 0.003900575234 | I116: 0.003713237105 | J116: 0.002414353308 | P116: ENWL | Q116: =RANK(G116,$G$116:$G$129,1) -> 4 | R116: =RANK(H116,$H$116:$H$129,1) -> 9 | S116: =RANK(I116,$I$116:$I$129,1) -> 9 | T116: =RANK(J116,$J$116:$J$129,1) -> 8
D117: NPgN | E117: =E97/Q97 -> 0.001728130841 | F117: =F97/R97 -> 0.001065780205 | G117: =G97/S97 -> 0.001556479924 | H117: =H97/T97 -> 0.0009660542813 | I117: =I97/U97 -> 0.002225794485 | J117: =J97/V97 -> 0.001082103536 | P117: NPgN | Q117: =RANK(G117,$G$116:$G$129,1) -> 6 | R117: =RANK(H117,$H$116:$H$129,1) -> 5 | S117: =RANK(I117,$I$116:$I$129,1) -> 4 | T117: =RANK(J117,$J$116:$J$129,1) -> 5
D118: NPgY | E118: 0.00566987532 | F118: 0.00443990983 | G118: 0.004615892291 | H118: 0.005298430894 | I118: =I98/U98 -> 0.003243766213 | J118: 0.002435001212 | P118: NPgY | Q118: 10 | R118: 11 | S118: 8 | T118: 9
D119: WMID | E119: 0.00539778077 | F119: 0.003185367859 | G119: 0.01690022045 | H119: 0.008770704275 | I119: 0.007609279609 | J119: 0.00645094213 | P119: WMID | Q119: 14 | R119: 14 | S119: 12 | T119: 12
D120: EMID | E120: 0.002775383743 | F120: 0.0008341198679 | G120: 0.004147331468 | H120: 0.002819518982 | I120: 0.002521692934 | J120: 0.00272821671 | P120: EMID | Q120: 9 | R120: 8 | S120: 7 | T120: 10
D121: SWALES | E121: 0.002681926011 | F121: 0.008715104456 | G121: 0.005645743146 | H121: 0.005058722429 | I121: 0.005726599624 | J121: 0.008051816117 | P121: SWALES | Q121: 12 | R121: 10 | S121: 11 | T121: 13
D122: SWEST | E122: 0.01391983756 | F122: 0.01115850493 | G122: 0.009012324546 | H122: 0.005983182406 | I122: 0.009134593658 | J122: 0.005795901082 | P122: SWEST | Q122: 13 | R122: 13 | S122: 14 | T122: 11
D123: LPN | E123: 0.0002414848771 | F123: 0.0005048075516 | G123: 0.000227980182 | H123: 0.0003805696726 | I123: 0.0001594740611 | J123: 0.0005684642081 | P123: LPN | Q123: 2 | R123: 2 | S123: 1 | T123: 2
D124: SPN | E124: 0.0008448292556 | F124: 0.000740173377 | G124: 0.0008322410239 | H124: 0.000781102064 | I124: 0.001652548257 | J124: 0.0009372481765 | P124: SPN | Q124: 3 | R124: 4 | S124: 3 | T124: 3
D125: EPN | E125: 0.002192143548 | F125: 0.001885888174 | G125: 0.001855028973 | H125: 0.002680317435 | I125: 0.002273901809 | J125: 0.0009885537717 | P125: EPN | Q125: 8 | R125: 6 | S125: 5 | T125: 4
D126: SPD | E126: 0.004910856415 | F126: 0.004706237273 | G126: 6.294275309e-05 | H126: 4.14101065e-05 | I126: 0.002404333993 | J126: 0.0003564790943 | P126: SPD | Q126: 1 | R126: 1 | S126: 6 | T126: 1
D127: SPMW | E127: 0.005488217005 | F127: 0.005372669464 | G127: 0.001768150222 | H127: 0.002759071267 | I127: 0.003784499209 | J127: 0.002001168362 | P127: SPMW | Q127: 7 | R127: 7 | S127: 10 | T127: 7
D128: SSEH | E128: 0.001841516624 | F128: 0.00267585223 | G128: 0.00105247026 | H128: 0.0006822797942 | I128: 0.0002759220838 | J128: 0.001558880595 | P128: SSEH | Q128: 5 | R128: 3 | S128: 2 | T128: 6
D129: SSES | E129: 0.004655477885 | F129: 0.004643119164 | G129: 0.005174694576 | H129: 0.005450606995 | I129: 0.007777245326 | J129: 0.008824605936 | P129: SSES | Q129: 11 | R129: 12 | S129: 13 | T129: 14
D130: Total | E130: 0.003475259465 | F130: 0.003225504822 | G130: 0.00367817968 | H130: 0.003079074265 | I130: 0.003500113846 | J130: 0.002952813583
B133: Leakages from fluid filled cables
D134: Top up of fluid filled cables (litres) | P134: Oil in Service in Cables (litres)
E135: DPCR5 - 2013/14 | F135: DPCR5 - 2014/15 | G135: 2015/16 | H135: 2016/17 | I135: 2017/18 | J135: 2018/19 | K135: 2019/20 | L135: 2020/21 | M135: 2021/22 | N135: 2022/23 | Q135: DPCR5 - 2013/14 | R135: DPCR5 - 2014/15 | S135: 2015/16 | T135: 2016/17 | U135: 2017/18 | V135: 2018/19 | W135: 2019/20 | X135: 2020/21 | Y135: 2021/22 | Z135: 2022/23
D136: ENWL | E136: 33115 | F136: 28318 | G136: 31220 | H136: 21096 | I136: 67398 | J136: 55829 | P136: ENWL | Q136: 1311206 | R136: 1266283.417 | S136: 1202260.53 | T136: 1319898.91 | U136: 1106980.41 | V136: 1093156.61
D137: NPgN | E137: 16837 | F137: 15890 | G137: 13021 | H137: 18641 | I137: 12124 | J137: 14747 | P137: NPgN | Q137: 1469598.816 | R137: 1419147.339 | S137: 1433538.018 | T137: 1429192.027 | U137: 1347254 | V137: 1305156.334
D138: NPgY | E138: 42951 | F138: 28113 | G138: 18732 | H138: 18150 | I138: 17438 | J138: 19567 | P138: NPgY | Q138: 1398926.373 | R138: 1362750.509 | S138: 1145692.085 | T138: 1089977.698 | U138: 1078595.852 | V138: 1042745.063
D139: WMID | E139: 11382 | F139: 19717 | G139: 8392 | H139: 9421 | I139: 12771 | J139: 31474 | P139: WMID | Q139: 918008.229 | R139: 877755.234 | S139: 865392 | T139: 935150 | U139: 663808 | V139: 671353
D140: EMID | E140: 10110 | F140: 9303 | G140: 7255 | H140: 7220 | I140: 9630 | J140: 9848 | P140: EMID | Q140: 794256.8495 | R140: 770711.498 | S140: 711036 | T140: 694510 | U140: 521215 | V140: 521138
D141: SWALES | E141: 0 | F141: 0 | G141: 938 | H141: 400 | I141: 270 | J141: 860 | P141: SWALES | Q141: 144156.0682 | R141: 143999.3922 | S141: 144974 | T141: 182210 | U141: 161291 | V141: 193712
D142: SWEST | E142: 724 | F142: 1930 | G142: 706 | H142: 210 | I142: 687 | J142: 3310 | P142: SWEST | Q142: 311241.5292 | R142: 314455.3845 | S142: 303186 | T142: 285380 | U142: 241053 | V142: 273595
D143: LPN | E143: 143605 | F143: 165221 | G143: 151557 | H143: 137086 | I143: 114723 | J143: 96865 | P143: LPN | Q143: 3111189.2 | R143: 3158906.69 | S143: 3156496.207 | T143: 3238312.287 | U143: 3248501.919 | V143: 3182030.941
D144: SPN | E144: 66208 | F144: 71297 | G144: 52446 | H144: 52068 | I144: 72233 | J144: 80385 | P144: SPN | Q144: 1981939.81 | R144: 2002002.87 | S144: 2002711.878 | T144: 2073473.872 | U144: 2062589.84 | V144: 2054119.779
D145: EPN | E145: 30829 | F145: 46916 | G145: 37768 | H145: 42306 | I145: 55978 | J145: 63787 | P145: EPN | Q145: 1943552.7 | R145: 1989261.7 | S145: 1931841.77 | T145: 2196313.671 | U145: 2191115.463 | V145: 2191115.463
D146: SPD | E146: 46 | F146: 37 | G146: 0 | H146: 0 | I146: 20 | J146: 26 | P146: SPD | Q146: 0 | R146: 0 | S146: 86700 | T146: 86700 | U146: 86700 | V146: 86700
D147: SPMW | E147: 5535 | F147: 3555 | G147: 13600 | H147: 9315 | I147: 4420 | J147: 5024 | P147: SPMW | Q147: 0 | R147: 0 | S147: 699600 | T147: 699600 | U147: 699319.28 | V147: 699319.28
D148: SSEH | E148: 1077 | F148: 1623 | G148: 410 | H148: 612 | I148: 3440 | J148: 1191 | P148: SSEH | Q148: 38188.995 | R148: 38116.845 | S148: 35090.393 | T148: 32744.075 | U148: 32744.075 | V148: 30317.911
D149: SSES | E149: 17184 | F149: 18804 | G149: 14851 | H149: 21199 | I149: 31857 | J149: 0 | P149: SSES | Q149: 513316.1781 | R149: 513316.1781 | S149: 689617.708 | T149: 684272.836 | U149: 646332.3588 | V149: 643478.3518
D150: Total | E150: =SUM(E136:E149) -> 379603 | F150: 410724 | G150: 350896 | H150: 337724 | I150: 402989 | J150: 382913 | P150: Total | Q150: =SUM(Q136:Q149) -> 13935580.75 | R150: 13856707.06 | S150: 14408136.59 | T150: 14947735.38 | U150: 14087500.2 | V150: 13987937.73
D153: Top up as a % of oil in service | P153: Top up as a % of oil in service - SNAPSHOT
E154: DPCR5 - 2013/14 | F154: DPCR5 - 2014/15 | G154: 2015/16 | H154: 2016/17 | I154: 2017/18 | J154: 2018/19 | K154: 2019/20 | L154: 2020/21 | M154: 2021/22 | N154: 2022/23 | P154: Ranking | Q154: 2015/16 | R154: 2016/17 | S154: 2017/18 | T154: 2018/19 | U154: 2019/20 | V154: 2020/21 | W154: 2021/22 | X154: 2022/23 | AA154: 2015/16 | AB154: 2016/17 | AC154: 2017/18 | AD154: 2018/19 | AE154: 2019/20 | AF154: 2020/21 | AG154: 2021/22 | AH154: 2022/23
D155: ENWL | E155: =IFERROR(E136/Q136,"") -> 0.02525537559 | F155: =IFERROR(F136/R136,"") -> 0.02236308208 | G155: =IFERROR(G136/S136,"") -> 0.02596774927 | H155: =IFERROR(H136/T136,"") -> 0.01598304222 | I155: 0.06088454628 | J155: =IFERROR(J136/V136,"") -> 0.05107136479 | K155: =IFERROR(K136/W136,"") ->  | L155: =IFERROR(L136/X136,"") ->  | M155: =IFERROR(M136/Y136,"") ->  | N155: =IFERROR(N136/Z136,"") ->  | P155: ENWL | Q155: =RANK(AA155,$AA$155:$AA$167,1) -> 11 | R155: =RANK(AB155,$AB$155:$AB$167,1) -> 7 | S155: =RANK(AC155,$AC$155:$AC$167,1) -> 12 | T155: =RANK(AD155,$AD$155:$AD$167,1) -> 13 | Z155: ENWL | AA155: =G155 -> 0.02596774927 | AB155: =H155 -> 0.01598304222 | AC155: =I155 -> 0.06088454628 | AD155: =J155 -> 0.05107136479
D156: NPgN | E156: 0.01145686824 | F156: 0.01119686418 | G156: 0.009083121506 | H156: 0.01304303386 | I156: 0.008999045466 | J156: 0.01129902956 | P156: NPgN | Q156: =RANK(AA156,$AA$155:$AA$167,1) -> 3 | R156: =RANK(AB156,$AB$155:$AB$167,1) -> 5 | S156: =RANK(AC156,$AC$155:$AC$167,1) -> 4 | T156: =RANK(AD156,$AD$155:$AD$167,1) -> 4 | Z156: NPgN | AA156: 0.009083121506 | AB156: 0.01304303386 | AC156: 0.008999045466 | AD156: 0.01129902956
D157: NPgY | E157: 0.03070283099 | F157: 0.02062960154 | G157: 0.01634994275 | H157: 0.01665171684 | I157: 0.01616731602 | J157: 0.01876489344 | P157: NPgY | Q157: 7 | R157: 8 | S157: =RANK(AC157,$AC$155:$AC$167,1) -> 5 | T157: 6 | Z157: NPgY | AA157: 0.01634994275 | AB157: 0.01665171684 | AC157: 0.01616731602 | AD157: 0.01876489344
D158: WMID | E158: 0.01239858167 | F158: 0.02246298198 | G158: 0.009697339472 | H158: 0.01007431963 | I158: 0.01923899682 | J158: 0.04688144687 | P158: WMID | Q158: 4 | R158: 3 | S158: 7 | T158: 12 | Z158: WMID | AA158: 0.009697339472 | AB158: 0.01007431963 | AC158: 0.01923899682 | AD158: 0.04688144687
D159: EMID | E159: 0.01272887984 | F159: 0.01207066461 | G159: 0.01020342149 | H159: 0.01039581863 | I159: 0.01847606074 | J159: 0.01889710595 | P159: EMID | Q159: 5 | R159: 4 | S159: 6 | T159: 7 | Z159: EMID | AA159: 0.01020342149 | AB159: 0.01039581863 | AC159: 0.01847606074 | AD159: 0.01889710595
D160: SWALES | E160: 0 | F160: 0 | G160: 0.006470125678 | H160: 0.002195269195 | I160: 0.001673992969 | J160: 0.004439580408 | N160: =IFERROR(N141/Z141,"") ->  | P160: SWALES | Q160: 2 | R160: 2 | S160: 1 | T160: 2 | Z160: SWALES | AA160: 0.006470125678 | AB160: 0.002195269195 | AC160: 0.001673992969 | AD160: 0.004439580408
D161: SWEST | E161: 0.002326167725 | F161: 0.006137595649 | G161: 0.002328603563 | H161: 0.0007358609573 | I161: 0.002849995644 | J161: 0.01209817431 | P161: SWEST | Q161: 1 | R161: 1 | S161: 2 | T161: 5 | Z161: SWEST | AA161: 0.002328603563 | AB161: 0.0007358609573 | AC161: 0.002849995644 | AD161: 0.01209817431
D162: LPN | E162: 0.04615759144 | F162: 0.05230322267 | G162: 0.04801431399 | H162: 0.04233254481 | I162: 0.0353156633 | J162: 0.0304412502 | P162: LPN | Q162: 13 | R162: 13 | S162: 10 | T162: 9 | Z162: LPN | AA162: 0.04801431399 | AB162: 0.04233254481 | AC162: 0.0353156633 | AD162: 0.0304412502
D163: SPN | E163: 0.03340565625 | F163: 0.03561283606 | G163: 0.02618749136 | H163: 0.02511148112 | I163: 0.03502053516 | J163: 0.03913355045 | P163: SPN | Q163: 12 | R163: 11 | S163: 9 | T163: 10 | Z163: SPN | AA163: 0.02618749136 | AB163: 0.02511148112 | AC163: 0.03502053516 | AD163: 0.03913355045
D164: EPN | E164: 0.01586218887 | F164: 0.02358462941 | G164: =IFERROR(G145/S145,"") -> 0.0195502554 | H164: 0.01926227595 | I164: 0.02554771802 | J164: 0.02911165617 | P164: EPN | Q164: 9 | R164: 10 | S164: 8 | T164: 8 | Z164: EPN | AA164: 0.0195502554 | AB164: 0.01926227595 | AC164: 0.02554771802 | AD164: 0.02911165617
D165: SPD | E165: =IFERROR(E146/Q146,"") ->  | F165: =IFERROR(F146/R146,"") ->  | G165: =IFERROR(G146/S146,"") -> 0 | H165: =IFERROR(H146/T146,"") -> 0 | I165: =IFERROR(I146/U146,"") -> 0.0002306805075 | J165: =IFERROR(J146/V146,"") -> 0.0002998846597 | K165: - | L165: - | M165: - | N165: - | P165: SPMW | Q165: =RANK(AA165,$AA$155:$AA$167,1) -> 8 | R165: =RANK(AB165,$AB$155:$AB$167,1) -> 6 | S165: =RANK(AC165,$AC$155:$AC$167,1) -> 3 | T165: 3 | Z165: SPMW | AA165: =G166 -> 0.01943967982 | AB165: 0.01331475129 | AC165: =I166 -> 0.006320432064 | AD165: =J166 -> 0.007184129115
D166: SPMW | E166: =IFERROR(E147/Q147,"") ->  | F166: =IFERROR(F147/R147,"") ->  | G166: =IFERROR(G147/S147,"") -> 0.01943967982 | H166: 0.01331475129 | I166: 0.006320432064 | J166: 0.007184129115 | P166: SSEH | Q166: =RANK(AA166,$AA$155:$AA$167,1) -> 6 | R166: =RANK(AB166,$AB$155:$AB$167,1) -> 9 | S166: =RANK(AC166,$AC$155:$AC$167,1) -> 13 | T166: 11 | Z166: SSEH | AA166: 0.01168410967 | AB166: 0.01869040429 | AC166: =I167 -> 0.1050571745 | AD166: 0.03928370922
D167: SSEH | E167: =IFERROR(E148/Q148,"") -> 0.02820184192 | F167: 0.04257959965 | G167: 0.01168410967 | H167: 0.01869040429 | I167: 0.1050571745 | J167: 0.03928370922 | P167: SSES | Q167: =RANK(AA167,$AA$155:$AA$167,1) -> 10 | R167: =RANK(AB167,$AB$155:$AB$167,1) -> 12 | S167: =RANK(AC167,$AC$155:$AC$167,1) -> 11 | T167: =RANK(AD167,$AD$155:$AD$167,1) -> 1 | Z167: SSES | AA167: 0.02153511986 | AB167: 0.03098033253 | AC167: 0.04928888298 | AD167: 0
D168: SSES | E168: 0.03347644344 | F168: 0.03663239306 | G168: 0.02153511986 | H168: 0.03098033253 | I168: 0.04928888298 | J168: 0
D169: Total | E169: 0.02723984073 | F169: 0.02964080848 | G169: 0.02435401676 | H169: 0.0225936566 | I169: 0.02860613979 | J169: 0.02737451419
B172: Undergrounding
D173: Undergrounding performance
E174: 2015/16 | H174: 2016/17 | K174: 2017/18 | N174: 2018/19 | Q174: 2019/20 | T174: 2020/21 | W174: 2021/22 | Z174: 2022/23
E175: Length of overhead lines removed (km) | F175: Length of underground lines installed (km) | G175: Undergrounding expenditure (£m) | H175: Length of overhead lines removed (km) | I175: Length of underground lines installed (km) | J175: Undergrounding expenditure (£m) | K175: Length of overhead lines removed (km) | L175: Length of underground lines installed (km) | M175: Undergrounding expenditure (£m) | N175: Length of overhead lines removed (km) | O175: Length of underground lines installed (km) | P175: Undergrounding expenditure (£m) | Q175: Length of overhead lines removed (km) | R175: Length of underground lines installed (km) | S175: Undergrounding expenditure (£m) | T175: Length of overhead lines removed (km) | U175: Length of underground lines installed (km) | V175: Undergrounding expenditure (£m) | W175: Length of overhead lines removed (km) | X175: Length of underground lines installed (km) | Y175: Undergrounding expenditure (£m) | Z175: Length of overhead lines removed (km) | AA175: Length of underground lines installed (km) | AB175: Undergrounding expenditure (£m)
D176: ENWL | E176: 3.79 | F176: 3.41 | G176: 0.9411466405 | H176: 11.23 | I176: 12.206 | J176: 1.008667677 | K176: 4.88 | L176: 4.46 | M176: 1.108753211 | N176: 7.311 | O176: 9.2 | P176: 1.080380989
D177: NPgN | E177: 9.112 | F177: 9.067 | G177: 0.8959014606 | H177: 9.161 | I177: 8.876 | J177: 2.39350743 | K177: 9.995 | L177: 12.03 | M177: 1.808321147 | N177: 6.93 | O177: 7.592 | P177: 0.9413040735
D178: NPgY | E178: 7.751 | F178: 7.845 | G178: 0.4328470668 | H178: 3.85 | I178: 3.645 | J178: 0.6396869843 | K178: 3.87 | L178: 3.585 | M178: 0.6802535539 | N178: 4.38 | O178: 5.5 | P178: 1.13574739
D179: WMID | E179: 4.655857 | F179: 5.029391 | G179: 0.7559015145 | H179: 3.293036 | I179: 6.442838042 | J179: 1.225210452 | K179: 0 | L179: 0 | M179: 0 | N179: 0.350793 | O179: 0 | P179: 0.00109682247
D180: EMID | E180: 4.160633 | F180: 0 | G180: 0.01823686115 | H180: 0 | I180: 0.289111 | J180: 0.04233711508 | K180: 1.092980523 | L180: 0.014685116 | M180: 0 | N180: 0 | O180: 0 | P180: 0.0093
D181: SWALES | E181: 0 | F181: 0 | G181: 0 | H181: 1.171771696 | I181: 1.174857 | J181: 0.0778880224 | K181: 0.113239 | L181: 0 | M181: 0.1830266882 | N181: 0.116752 | O181: 0.124092983 | P181: 0.0136
D182: SWEST | E182: 0 | F182: 0 | G182: 0.05787746355 | H182: 0.305728 | I182: 0.685364377 | J182: 0.09664836372 | K182: 1.898316 | L182: 9.438434236 | M182: 1.121553743 | N182: 0.336942 | O182: 1.348525441 | P182: 0.1579268605
D183: LPN* | E183: N/A | F183: N/A | G183: N/A | H183: 0 | I183: 0 | J183: N/A | K183: 0 | L183: 0 | M183: N/A | N183: 0 | O183: 0 | P183: 0
D184: SPN | E184: 5.349638 | F184: 7.883125 | G184: 0.3696157111 | H184: 3.1821 | I184: 1.86 | J184: 0.3678901709 | K184: 0 | L184: 0 | M184: 0.04996547697 | N184: 0 | O184: 0 | P184: 0.04362120667
D185: EPN | E185: 0 | F185: 0.135 | G185: 0.5219929319 | H185: 1.46682782 | I185: 1.785446065 | J185: 0.2020639028 | K185: 2.053488 | L185: 3.449360167 | M185: 0.1895294544 | N185: 0.53192 | O185: 2.6719 | P185: 0.778679724
D186: SPD | E186: 0 | F186: 0 | G186: 0 | H186: 0 | I186: 0 | J186: 0.1545937191 | K186: 0.12712 | L186: 0 | M186: 0 | N186: 0.12712 | O186: 0 | P186: 0.1766683
D187: SPMW | E187: 1.6 | F187: 0 | G187: 0.1017572845 | H187: 1.968943195 | I187: 1.623761834 | J187: 0.2239113781 | K187: 7.437 | L187: 0.6927 | M187: 0.5087558845 | N187: 0.7059 | O187: 0.6927 | P187: 0.2371858407
D188: SSEH | E188: 0 | F188: 0 | G188: 0 | H188: 0 | I188: 0 | J188: 0.2523284682 | K188: 1.922 | L188: 2.509 | M188: 0.8473410668 | N188: 2.599 | O188: 3.133 | P188: 0.2117954
D189: SSES | E189: 2.5 | F189: 2.4 | G189: 0.2727597777 | H189: 6.027 | I189: 6.967 | J189: 0.4871830298 | K189: 0 | L189: 0 | M189: 0.209783469 | N189: 0 | O189: 0 | P189: 0.14006302
D190: Total | E190: =SUM(E176:E189) -> 38.919128 | F190: 35.769516 | G190: =SUM(G176:G189) -> 4.368036712 | H190: 41.65640671 | I190: 45.55537832 | J190: 7.171916714 | K190: 33.38914352 | L190: 36.17917952 | M190: 6.707283695 | N190: 23.389427 | O190: 30.26221842 | P190: 4.927369626
D191: * nb LPN does not have an undergrounding allowance
D194: Detailed Undergrounding Activity Under ED1 Visual Amenity Allowance
D196: DNO | E196: AONB / national park | F196: 2015/16 | I196: 2016/17 | L196: 2017/18 | O196: 2018/19 | R196: 2019/20 | U196: 2020/21 | X196: 2021/22 | AA196: 2022/23
F197: Length of overhead lines (km) removed | G197: Length of underground cables installed in Designated Areas (km) | H197: Expenditure (£m) | I197: Length of overhead lines (km) removed | J197: Length of underground cables installed in Designated Areas (km) | K197: Expenditure (£m) | L197: Length of overhead lines (km) removed | M197: Length of underground cables installed in Designated Areas (km) | N197: Expenditure (£m) | O197: Length of overhead lines (km) removed | P197: Length of underground cables installed in Designated Areas (km) | Q197: Expenditure (£m) | R197: Length of overhead lines (km) removed | S197: Length of underground cables installed in Designated Areas (km) | T197: Expenditure (£m) | U197: Length of overhead lines (km) removed | V197: Length of underground cables installed in Designated Areas (km) | W197: Expenditure (£m) | X197: Length of overhead lines (km) removed | Y197: Length of underground cables installed in Designated Areas (km) | Z197: Expenditure (£m) | AA197: Length of overhead lines (km) removed | AB197: Length of underground cables installed in Designated Areas (km) | AC197: Expenditure (£m)
D198: ENWL | E198: Arnside & Silverdale | F198: 0 | G198: 0 | H198: 0.009314799662 | I198: 0 | J198: 0 | K198: -0.0001439570621 | L198: 0 | M198: 0 | N198: 0 | O198: 0 | P198: 0 | Q198: 0
E199: Forest of Bowland | F199: 1.22 | G199: 1.355 | H199: 0.1437723247 | I199: 1.801 | J199: 2.251 | K199: 0.172920478 | L199: 2.687 | M199: 3.4 | N199: 0.2839582806 | O199: 0 | P199: 0 | Q199: 0.1803688971
E200: North Pennines | F200: 0 | G200: 0 | H200: 0.003129829724 | I200: 2.719 | J200: 3.108 | K200: 0.3263526773 | L200: 0 | M200: 0 | N200: 0.007724014798 | O200: 0 | P200: 0 | Q200: 0.001142979973
E201: Solway Coast | F201: 0.93 | G201: 1.185 | H201: 0.09417146894 | I201: 1.607 | J201: 2.241 | K201: 0.1678437822 | L201: 0 | M201: 0 | N201: 0 | O201: 0 | P201: 0 | Q201: 0
E202: The Lake District | F202: 0.8 | G202: 0.87 | H202: 0.6080399434 | I202: 4.052 | J202: 3.555 | K202: 0.1740469938 | L202: 0.882 | M202: 1.06 | N202: 0.7140864562 | O202: 5.827 | P202: 7.031 | Q202: 0.5407228586
E203: The Peak District | F203: 0.84 | G203: 0 | H203: 0.05080544399 | I203: 1.051 | J203: 1.051 | K203: 0.1700557564 | L203: 1.315 | M203: 0 | N203: 0.1029844593 | O203: 0.98 | P203: 1.49 | Q203: 0.2254293721
E204: The Yorkshire Dales | F204: 0 | G204: 0 | H204: 0.03191283006 | I204: 0 | J204: 0 | K204: 0.0007854072743 | L204: 0 | M204: 0 | N204: 0 | O204: 0.504 | P204: 0.679 | Q204: 0.1352710018
D205: NPGN | E205: Howardian Hills | F205: 1.505 | G205: 1.505 | H205: 0.1280522065 | I205: 1.07 | J205: 0.965 | K205: 0.2074396073 | L205: 0.27 | M205: 0.425 | N205: 0.05531485954 | O205: 0.58 | P205: 0.8 | Q205: 0.07750762013
E206: Nidderdale | F206: 1.148 | G206: 1.148 | H206: 0.08985103186 | I206: 0.192 | J206: 0.192 | K206: 0.01160552066 | L206: 0 | M206: 0 | N206: 0.09873369542 | O206: 0.52 | P206: 0.54 | Q206: 0.08769626819
E207: North Pennines | F207: 1.17 | G207: 1.17 | H207: 0.1548258135 | I207: 1.446 | J207: 1.446 | K207: 0.285216664 | L207: 1.755 | M207: 1.875 | N207: 0.5669522291 | O207: 1.56 | P207: 1.697 | Q207: 0.4064399528
E208: Northumberland Coast | F208: 0 | G208: 0 | H208: 0 | I208: 0.73 | J208: 0.73 | K208: 0.09276685761 | L208: 0 | M208: 0 | N208: 0.01755102273 | O208: 0.32 | P208: 0.31 | Q208: 0.046852865
E209: Northumberland | F209: 0.78 | G209: 0.78 | H209: 0.07803093165 | I209: 0.86 | J209: 0.5 | K209: 0.1322464471 | L209: 0 | M209: 0 | N209: 0.02706138213 | O209: 0 | P209: 0 | Q209: 0.02382524145
E210: North York Moors | F210: 4.309 | G210: 4.264 | H210: 0.423091787 | I210: 4.863 | J210: 5.043 | K210: 1.662090652 | L210: 4.44 | M210: 5.545 | N210: 0.6531080234 | O210: 3.95 | P210: 4.245 | Q210: 0.2541962093
E211: Yorkshire Dales | F211: 0.2 | G211: 0.2 | H211: 0.02204969006 | I211: 0 | J211: 0 | K211: 0 | L211: 3.53 | M211: 4.185 | N211: 0.389599966 | O211: 0 | P211: 0 | Q211: 0.04478591661
D212: NPGY | E212: Peak District | F212: 0.481 | G212: 0.575 | H212: 0.01969054493 | I212: 0 | J212: 0 | K212: 0.04036175895 | L212: 0.25 | M212: 0.28 | N212: 0.3050412723 | O212: 1.8 | P212: 2.6 | Q212: 0.04480441159
E213: Yorkshire Dales | F213: 0 | G213: 0 | H213: 0 | I213: 0 | J213: 0 | K213: 0.01956781121 | L213: 0 | M213: 0 | N213: 0.005310304649 | O213: 0 | P213: 0 | Q213: 0.5366552585
E214: Nidderdale | F214: 5 | G214: 5 | H214: 0.1097762659 | I214: 0.24 | J214: 0.24 | K214: 0.05021271139 | L214: 0 | M214: 0 | N214: 0.0003265693232 | O214: 0 | P214: 0 | Q214: 0.005493605977
E215: Lincolnshire Wolds | F215: 2.27 | G215: 2.27 | H215: 0.303380256 | I215: 3.61 | J215: 3.405 | K215: 0.5295447027 | L215: 3.62 | M215: 3.305 | N215: 0.3695754076 | O215: 2.58 | P215: 2.9 | Q215: 0.5487941139
D216: WMID | E216: Cannock Chase | F216: 0.052672 | G216: 0.015998 | H216: -0.08441373457 | I216: 0 | J216: 0 | K216: -0.08488805398 | L216: 0 | M216: 0 | N216: 0 | O216: 0 | P216: 0 | Q216: 0
E217: Cotswolds (WMID) | F217: 0.75935 | G217: 1.100196 | H217: 0.07338425567 | I217: 1.533846 | J217: 1.821023042 | K217: 0.2933662722 | L217: 0 | M217: 0 | N217: 0 | O217: 0 | P217: 0 | Q217: 0
E218: Malvern Hills | F218: 1.826298 | G218: 1.117835 | H218: 0.07742475784 | I218: 0 | J218: 0.18185 | K218: 0.0758005419 | L218: 0 | M218: 0 | N218: 0 | O218: 0 | P218: 0 | Q218: 0
E219: Peak District NP (WMID) | F219: 0.641478 | G219: 0.827735 | H219: 0.2960486862 | I219: 0.416485 | J219: 0.458741 | K219: 0.2906934745 | L219: 0 | M219: 0 | N219: 0 | O219: 0 | P219: 0 | Q219: 0
E220: Wye Valley (WMID) | F220: 0 | G220: 0 | H220: 0.3449715233 | I220: 0 | J220: 1.882215 | K220: 0.3347411801 | L220: 0 | M220: 0 | N220: 0 | O220: 0 | P220: 0 | Q220: 0.0011
E221: Shropshire Hills | F221: 1.376059 | G221: 1.967627 | H221: 0.04815841778 | I221: 1.342705 | J221: 2.099009 | K221: 0.3154970369 | L221: 0 | M221: 0 | N221: 0 | O221: 0.350793 | P221: 0 | Q221: 0
D222: EMID | E222: Lincolnshire Wolds | F222: 0 | G222: 0 | H222: -0.01070187062 | I222: 0 | J222: 0.289111 | K222: 0.01389854788 | L222: 1.092980523 | M222: 0.014685116 | N222: 0 | O222: 0 | P222: 0 | Q222: 0
... 95 more rows

Sheet Ch2 - Incentive payments
A1: Chapter 2 - Reliability and Availability
B3: Incentive payments
C5: 2018/19 prices
D6: Interruptions Incentive Scheme (IIS) | E6: Incentive on connections engagement (ICE) | F6: Time to Connect Incentive (TTC) | G6: Broad measure of customer service (BMCS) | H6: Losses discretionary reward scheme (LDR) | I6: Total incentive payments
C7: ENWL | D7: ='Ch2 outputs - reliability'!E112 -> 11.6092048 | E7: 0 | F7: ='Ch2 outputs - connections'!BH42 -> 1.362032085 | G7: ='Ch2 outputs - cust sat'!W99 -> 2.12103071 | H7: ='Ch2 outputs - environment'!H28/1000000 -> 0 | I7: =SUM(D7:H7) -> 15.0922676
C8: NPgN | D8: ='Ch2 outputs - reliability'!E113 -> 6.697073682 | E8: 0 | F8: ='Ch2 outputs - connections'!BH43 -> 0.353389605 | G8: ='Ch2 outputs - cust sat'!W100 -> 2.586094421 | H8: ='Ch2 outputs - environment'!H29/1000000/2 -> 0 | I8: 9.636557708
C9: NPgY | D9: ='Ch2 outputs - reliability'!E114 -> 15.60962412 | E9: 0 | F9: ='Ch2 outputs - connections'!BH44 -> 0.4085054149 | G9: ='Ch2 outputs - cust sat'!W101 -> 3.137969006 | H9: ='Ch2 outputs - environment'!H29/1000000/2 -> 0 | I9: 19.15609854
C10: WMID | D10: ='Ch2 outputs - reliability'!E115 -> 20.49474446 | E10: 0 | F10: ='Ch2 outputs - connections'!BH45 -> 1.852632267 | G10: ='Ch2 outputs - cust sat'!W102 -> 6.571923494 | H10: ='Ch2 outputs - environment'!$H$30/1000000/4 -> 0 | I10: 28.91930022
C11: EMID | D11: ='Ch2 outputs - reliability'!E116 -> 19.49707692 | E11: 0 | F11: ='Ch2 outputs - connections'!BH46 -> 1.852632267 | G11: ='Ch2 outputs - cust sat'!W103 -> 6.517004527 | H11: ='Ch2 outputs - environment'!$H$30/1000000/4 -> 0 | I11: 27.86671371
C12: SWALES | D12: ='Ch2 outputs - reliability'!E117 -> 5.591010394 | E12: 0 | F12: ='Ch2 outputs - connections'!BH47 -> 0.9263161336 | G12: ='Ch2 outputs - cust sat'!W104 -> 3.106632733 | H12: ='Ch2 outputs - environment'!$H$30/1000000/4 -> 0 | I12: 9.623959261
C13: SWEST | D13: ='Ch2 outputs - reliability'!E118 -> 3.799387809 | E13: 0 | F13: ='Ch2 outputs - connections'!BH48 -> 1.3894742 | G13: ='Ch2 outputs - cust sat'!W105 -> 4.517875363 | H13: ='Ch2 outputs - environment'!$H$30/1000000/4 -> 0 | I13: 9.706737372
C14: LPN | D14: ='Ch2 outputs - reliability'!E119 -> 15.2842162 | E14: 0 | F14: ='Ch2 outputs - connections'!BH49 -> 1.196022315 | G14: ='Ch2 outputs - cust sat'!W106 -> 4.049720922 | H14: ='Ch2 outputs - environment'!$H$31/1000000/3 -> 0 | I14: 20.52995944
C15: SPN | D15: ='Ch2 outputs - reliability'!E120 -> 10.67463963 | E15: 0 | F15: ='Ch2 outputs - connections'!BH50 -> 0.6859925508 | G15: ='Ch2 outputs - cust sat'!W107 -> 3.894721658 | H15: ='Ch2 outputs - environment'!$H$31/1000000/3 -> 0 | I15: 15.25535384
C16: EPN | D16: ='Ch2 outputs - reliability'!E121 -> 23.5052718 | E16: 0 | F16: ='Ch2 outputs - connections'!BH51 -> 0.9202216906 | G16: ='Ch2 outputs - cust sat'!W108 -> 5.947611894 | H16: ='Ch2 outputs - environment'!$H$31/1000000/3 -> 0 | I16: 30.37310538
C17: SPD | D17: ='Ch2 outputs - reliability'!E122 -> 5.228857068 | E17: 0 | F17: ='Ch2 outputs - connections'!BH52 -> 0.6947371002 | G17: ='Ch2 outputs - cust sat'!W109 -> 4.267405464 | H17: ='Ch2 outputs - environment'!$H$32/1000000/2 -> 0 | I17: 10.19099963
C18: SPMW | D18: ='Ch2 outputs - reliability'!E123 -> 2.163085625 | E18: 0 | F18: ='Ch2 outputs - connections'!BH53 -> 0.6947371002 | G18: ='Ch2 outputs - cust sat'!W110 -> 4.909214982 | H18: ='Ch2 outputs - environment'!$H$32/1000000/2 -> 0 | I18: 7.767037707
C19: SSEH | D19: ='Ch2 outputs - reliability'!E124 -> 0.1425421346 | E19: 0 | F19: ='Ch2 outputs - connections'!BH54 -> 0.9263161336 | G19: ='Ch2 outputs - cust sat'!W111 -> 2.315790334 | H19: ='Ch2 outputs - environment'!$H$33/1000000/2 -> 0 | I19: 3.384648602
C20: SSES | D20: ='Ch2 outputs - reliability'!E125 -> 2.28037143 | E20: 0 | F20: ='Ch2 outputs - connections'!BH55 -> 1.820558571 | G20: ='Ch2 outputs - cust sat'!W112 -> 2.338292328 | H20: ='Ch2 outputs - environment'!$H$33/1000000/2 -> 0 | I20: 6.439222329
C21: Total | D21: =SUM(D7:D20) -> 142.5771061 | E21: =SUM(E7:E20) -> 0 | F21: =SUM(F7:F20) -> 15.08356744 | G21: =SUM(G7:G20) -> 56.28128784 | H21: =SUM(H7:H20) -> 0 | I21: 213.9419613

Sheet Ch2 outputs - reliability
A1: Chapter 2 - Reliability and Availability
B2: Performance against the outputs that DNOs are incentivised to deliver under RIIO-ED1.
B4: Reliability and availability: providing long-term reliability, minimising the number and duration of interruptions and ensuring adaptation to climate change.
B5: Incentive measure | F5: Incentive type
B6: Interruption incentive scheme (IIS): DNOs can receive a financial reward or incur a financial penalty depending on their performance against a target for both the number and length of their network supply interruptions. | F6: Financial: 250 RORE basis points per annum. Supported by monitoring of Secondary Deliverables. Reputational.
B7: Guaranteed Standards of Performance (GSoP): direct payment to customers of fixed amounts if DNO fails to deliver specified minimum levels of performance. | F7: Financial: payment to customers for failure to meet standards. Reputational.
B8: Worst-served customers (WSC): DNOs have access to funding to improve the reliability for a subset of customers whose supply has been repeatedly interrupted. | F8: Financial: £76.5 million over ED1 (use-it-or-lose-it). Reputational.
B9: Network resilience: proactive network investment for reducing the impact of disruptive events, such as floods or severe storms. | F9: Reputational.
B12: Interruption Incentive Scheme (IIS) | E12: CI performance | N12: 2018/19 RAG status | Q12: CI target (Planned and unplanned)
E13: 2014/15 | F13: 2015/16 | G13: 2016/17 | H13: 2017/18 | I13: 2018/19 | J13: 2019/20 | K13: 2020/21 | L13: 2021/22 | M13: 2022/23 | Q13: 2015/16 | R13: 2016/17 | S13: 2017/18 | T13: 2018/19 | U13: 2019/20 | V13: 2020/21 | W13: 2021/22 | X13: 2022/23
D14: ENWL | E14: 36.64007359 | F14: 36.65750416 | G14: 32.89872416 | H14: 33.23113479 | I14: 33.60530932 | N14: =IF(I14<=T14,"Green",IF(I14<=T14*1.05,"Amber","Red")) -> Green | P14: ENWL | Q14: 48.37195356 | R14: 48.02825334 | S14: 47.4508901 | T14: 47.17457568
D15: NPgN | E15: 65.26359301 | F15: 58.34727383 | G15: 53.28905362 | H15: 51.81519134 | I15: 54.28416236 | N15: Green | P15: NPgN | Q15: 63.75172954 | R15: 62.70868495 | S15: 62.16495153 | T15: 61.37388629
D16: NPgY | E16: 60.91975461 | F16: 52.53464728 | G16: 48.5363288 | H16: 48.1345217 | I16: 49.3031241 | N16: Green | P16: NPgY | Q16: 68.59357099 | R16: 67.55372114 | S16: 66.47527679 | T16: 65.1851129
D17: WMID | E17: 70.24026493 | F17: 65.22689603 | G17: 58.9599988 | H17: 55.64408383 | I17: 55.37075929 | N17: Green | P17: WMID | Q17: 89.07684423 | R17: 87.05456485 | S17: 85.3947733 | T17: 84.02887678
D18: EMID | E18: 45.95520502 | F18: 42.65072457 | G18: 44.12571874 | H18: 46.94172138 | I18: 39.77135469 | N18: Green | P18: EMID | Q18: 53.22076207 | R18: 52.13962623 | S18: 51.42330642 | T18: 51.0723674
D19: SWALES | E19: 56.48447461 | F19: 48.53141809 | G19: 41.64040259 | H19: 48.46686218 | I19: 41.29104808 | N19: Green | P19: SWALES | Q19: 55.06037337 | R19: 53.75180744 | S19: 53.31319243 | T19: 53.07260091
D20: SWEST | E20: 51.61839023 | F20: 51.99880507 | G20: 52.45442106 | H20: 62.03699686 | I20: 51.46478332 | N20: Green | P20: SWEST | Q20: 59.17962458 | R20: 58.86083942 | S20: 58.53708391 | T20: 58.52783638
D21: LPN | E21: 20.88055269 | F21: 18.956803 | G21: 17.22140308 | H21: 14.21623774 | I21: 14.09492818 | N21: Green | P21: LPN | Q21: 27.80442323 | R21: 27.68332947 | S21: 27.33851583 | T21: 27.03102655
D22: SPN | E22: 50.09437788 | F22: 48.73709832 | G22: 47.72406612 | H22: 46.68681691 | I22: 44.35653462 | N22: Green | P22: SPN | Q22: 65.32600982 | R22: 64.66907452 | S22: 64.09331146 | T22: 63.63893188
D23: EPN | E23: 52.79515655 | F23: 45.75570628 | G23: 49.37111816 | H23: 48.5218 | I23: 41.42250444 | N23: Green | P23: EPN | Q23: 69.78626007 | R23: 68.69974372 | S23: 67.94105245 | T23: 67.20450235
D24: SPD | E24: 46.58826613 | F24: 48.46533187 | G24: 42.8901371 | H24: 41.30501494 | I24: 49.33473597 | N24: Green | P24: SPD | Q24: 52.07347876 | R24: 51.90160342 | S24: 51.64197259 | T24: 51.10824503
D25: SPMW | E25: 32.77742581 | F25: 30.14843269 | G25: 38.16376257 | H25: 30.49896858 | I25: 36.14398836 | N25: Green | P25: SPMW | Q25: 38.27366337 | R25: 38.0644497 | S25: 37.59791787 | T25: 37.02766789
D26: SSEH | E26: 73.52165044 | F26: 66.72040063 | G26: 68.10679953 | H26: 57.34640044 | I26: 69.36756075 | N26: Green | P26: SSEH | Q26: 71.90053998 | R26: 71.18886245 | S26: 70.15106303 | T26: 70.27630282
D27: SSES | E27: 59.84592631 | F27: 47.50998757 | G27: 47.81686091 | H27: 55.13280003 | I27: 52.10169007 | N27: Green | P27: SSES | Q27: 62.53435987 | R27: 61.57780772 | S27: 60.39368654 | T27: 59.36556426
D28: Total | E28: 50.83062035 | F28: 46.26024092 | G28: 45.06427933 | H28: 45.28779569 | I28: 43.81037002
E30: CML performance | N30: 2018/19 RAG Status | Q30: CML target (Planned and unplanned)
E31: 2014/15 | F31: 2015/16 | G31: 2016/17 | H31: 2017/18 | I31: 2018/19 | J31: 2019/20 | K31: 2020/21 | L31: 2021/22 | M31: 2022/23 | Q31: 2015/16 | R31: 2016/17 | S31: 2017/18 | T31: 2018/19 | U31: 2019/20 | V31: 2020/21 | W31: 2021/22 | X31: 2022/23
D32: ENWL | E32: 34.76243236 | F32: 32.49629202 | G32: 33.71355615 | H32: 34.63112634 | I32: 32.97001656 | N32: =IF(I32<=T32,"Green",IF(I32<=T32*1.05,"Amber","Red")) -> Green | P32: ENWL | Q32: 47.37353943 | R32: 45.82728822 | S32: 44.22557415 | T32: 43.03167082
D33: NPgN | E33: 56.06517018 | F33: 50.10896408 | G33: 45.00430019 | H33: 44.62516576 | I33: 47.63165205 | N33: Green | P33: NPgN | Q33: 65.86223246 | R33: 64.09760406 | S33: 61.87164277 | T33: 59.09927409
D34: NPgY | E34: 50.43404375 | F34: 41.83767088 | G34: 38.0051775 | H34: 36.39574708 | I34: 38.77214491 | N34: Green | P34: NPgY | Q34: 63.11966704 | R34: 61.61618976 | S34: 60.17853616 | T34: 57.93524463
D35: WMID | E35: 34.24748607 | F35: 32.15125114 | G35: 31.97361396 | H35: 31.02404506 | I35: 32.29735482 | N35: Green | P35: WMID | Q35: 55.65600016 | R35: 53.60162252 | S35: 52.99336073 | T35: 52.77337452
D36: EMID | E36: 22.85262752 | F36: 21.55496789 | G36: 21.96212168 | H36: 24.07177192 | I36: 22.9171638 | N36: Green | P36: EMID | Q36: 40.23357433 | R36: 39.10588266 | S36: 38.82708102 | T36: 38.03231952
D37: SWALES | E37: 30.39829093 | F37: 26.3408534 | G37: 25.72609148 | H37: 28.41460867 | I37: 24.87022259 | N37: Green | P37: SWALES | Q37: 35.44214891 | R37: 33.56820749 | S37: 33.35629545 | T37: 33.40477928
D38: SWEST | E38: 38.95592924 | F38: 37.51045627 | G38: 39.69870511 | H38: 42.78232644 | I38: 40.22496535 | N38: Green | P38: SWEST | Q38: 43.91734302 | R38: 43.63298563 | S38: 43.50199529 | T38: 43.7873154
D39: LPN | E39: 24.03006735 | F39: 19.28684622 | G39: 19.78127401 | H39: 16.74064131 | I39: 15.91679339 | N39: Green | P39: LPN | Q39: 40.44154825 | R39: 39.71882371 | S39: 38.8503032 | T39: 37.73730231
D40: SPN | E40: 35.03520804 | F40: 36.34049005 | G40: 35.06263583 | H40: 37.56921184 | I40: 36.68784517 | N40: Green | P40: SPN | Q40: 50.17473647 | R40: 48.36490519 | S40: 46.54170473 | T40: 45.23671355
D41: EPN | E41: 40.20514835 | F41: 34.76516025 | G41: 39.20381675 | H41: 41.79128818 | I41: 34.81117617 | N41: Green | P41: EPN | Q41: 55.7003846 | R41: 54.22268524 | S41: 52.00439817 | T41: 49.63519984
D42: SPD | E42: 34.03126444 | F42: 34.81463329 | G42: 29.32836726 | H42: 31.19284596 | I42: 35.01017159 | N42: Green | P42: SPD | Q42: 46.23040403 | R42: 45.68157588 | S42: 44.75054439 | T42: 43.39318806
D43: SPMW | E43: 36.13681094 | F43: 33.56467524 | G43: 37.33744028 | H43: 32.98727132 | I43: 35.60105498 | N43: Green | P43: SPMW | Q43: 45.61961944 | R43: 44.23979445 | S43: 42.41891188 | T43: 40.28876989
D44: SSEH | E44: 71.56350154 | F44: 55.20969992 | G44: 59.88609562 | H44: 55.24026901 | I44: 59.068469 | N44: Green | P44: SSEH | Q44: 64.55381854 | R44: 62.23321321 | S44: 59.45033586 | T44: 59.30965059
D45: SSES | E45: 56.92164691 | F45: 41.19510635 | G45: 43.29800356 | H45: 47.56372229 | I45: 49.94647671 | N45: Amber | P45: SSES | Q45: 54.12297476 | R45: 52.92818986 | S45: 50.82738041 | T45: 49.48533488
D46: Total | E46: 34.43367633 | F46: 34.71078638 | G46: 35.50477337 | H46: 35.50477918 | I46: 35.19952148
J49: Breakdown of performance for CI and CML/planned and unplanned
J50: PLANNED | P50: UNPLANNED
B51: Rewards and penalties under the IIS | D51: 2015/16 | E51: IIS performance total reward | I51: 2015/16 | J51: CI | M51: CML | P51: CI | S51: CML
E52: Total reward (£m)** | F52: Regulation 7 Severe Weather Conditions Adjustment | G52: Normal weather conditions adjustment | J52: Performance | K52: Target | L52: Reward/Penalty (£m) | M52: Performance | N52: Target | O52: Reward/Penalty (£m) | P52: Performance | Q52: Target | R52: Reward/Penalty (£m) | S52: Performance | T52: Target | U52: Reward/Penalty (£m)
D53: ENWL | E53: 14.80812476 | F53: 0 | G53: 0 | I53: ENWL | J53: 1.624115947 | K53: 2.37195356 | L53: 0.229849798 | M53: 4.058171082 | N53: 6.773539429 | O53: 2.007492149 | P53: 35.03338821 | Q53: 46 | R53: 3.370616108 | S53: 28.43812094 | T53: 40.6 | U53: 8.991368249
D54: NPgN | E54: 8.642312319 | F54: 0 | G54: -0.03637762388 | I54: NPgN | J54: 2.965282572 | K54: 3.951729539 | L54: 0.186339709 | M54: 6.802123103 | N54: 11.06223246 | O54: 2.011835313 | P54: 55.38199126 | Q54: 59.8 | R54: 0.8345612993 | S54: 43.30684097 | T54: 54.8 | U54: 5.427640766
D55: NPgY | E55: 15.10937558 | F55: -0.4509986684 | G55: 0 | I55: NPgY | J55: 1.54251192 | K55: 1.893570992 | L55: 0.09670939674 | M55: 3.989441512 | N55: 5.61966704 | O55: 1.103485346 | P55: 50.99213536 | Q55: 66.7 | R55: 4.327186604 | S55: 37.84822937 | T55: 57.5 | U55: 13.30211099
D56: WMID | E56: 20.49474446 | F56: 0 | G56: 0 | I56: WMID | J56: 2.084164733 | K56: 2.376844226 | L56: 0.1112905153 | M56: 3.759735338 | N56: 4.556000165 | O56: 0.7410077381 | P56: 63.1427313 | Q56: 86.7 | R56: 8.957582043 | S56: 28.3915158 | T56: 51.1 | U56: 21.13262064
D57: EMID | E57: 19.80000736 | F57: 0 | G57: 0 | I57: EMID | J57: 0.974794934 | K57: 1.320762067 | L57: 0.1384768246 | M57: 1.658110796 | N57: 2.433574328 | O57: 0.7682080183 | P57: 41.67592964 | Q57: 51.9 | R57: 4.092286994 | S57: 19.8968571 | T57: 37.8 | U57: 17.7356347
D58: SWALES | E58: 5.010324451 | F58: 0 | G58: 0 | I58: SWALES | J58: 3.570779753 | K58: 4.96037337 | L58: 0.2363844992 | M58: 5.625713764 | N58: 7.942148915 | O58: 0.9735352905 | P58: 44.96063834 | Q58: 50.1 | R58: 0.8742595085 | S58: 20.71513964 | T58: 27.5 | U58: 2.851494031
D59: SWEST | E59: 5.540754126 | F59: 0 | G59: 0 | I59: SWEST | J59: 3.496934059 | K59: 3.479624576 | L59: -0.004156976606 | M59: 8.523135122 | N59: 8.117343018 | O59: -0.2395729969 | P59: 48.50187101 | Q59: 55.7 | R59: 1.728674115 | S59: 28.98732115 | T59: 35.8 | U59: 4.022093762
D60: LPN | E60: 15.05075459 | F60: 0 | G60: -0.2016258633 | I60: LPN | J60: 0.2850245641 | K60: 0.8044232306 | L60: 0.1384577638 | M60: 0.5502822311 | N60: 1.64154825 | O60: 0.7147884423 | P60: 18.67177844 | Q60: 27 | R60: 2.220080659 | S60: 18.73656399 | T60: 38.8 | U60: 13.14171973
D61: SPN | E61: 13.15525764 | F61: -0.08732726424 | G61: -0.2516398544 | I61: SPN | J61: 1.121586982 | K61: 1.926009816 | L61: 0.2144375677 | M61: 2.433797828 | N61: 4.674736473 | O61: 1.450765871 | P61: 47.61551134 | Q61: 63.4 | R61: 4.207721629 | S61: 33.90669222 | T61: 45.5 | U61: 7.505415329
D62: EPN | E62: 23.2601751 | F62: -0.002004962699 | G62: -0.2096694592 | I62: EPN | J62: 1.434231194 | K62: 2.686260072 | L62: 0.5244758243 | M62: 3.766439201 | N62: 7.700384598 | O62: 4.014963159 | P62: 44.32147509 | Q62: 67.1 | R62: 9.541940951 | S62: 30.99872105 | T62: 48 | U62: 17.35141233
D63: SPD | E63: 7.459048495 | F63: 0 | G63: 0 | I63: SPD | J63: 1.552173372 | K63: 1.673478755 | L63: 0.02875939671 | M63: 3.786221998 | N63: 4.030404027 | O63: 0.1400596266 | P63: 46.9131585 | Q63: 50.4 | R63: 0.8266694806 | S63: 31.02841129 | T63: 42.2 | U63: 6.407877583
D64: SPMW | E64: 6.686487891 | F64: 0 | G64: 0 | I64: SPMW | J64: 2.191182475 | K64: 3.073663372 | L64: 0.1552283902 | M64: 7.172235912 | N64: 10.51961944 | O64: 1.433611599 | P64: 27.95725022 | Q64: 35.2 | R64: 1.27399969 | S64: 26.39243933 | T64: 35.1 | U64: 3.729258949
D65: SSEH | E65: 2.579151975 | F65: -0.002568448948 | G65: -0.06463056231 | I65: SSEH | J65: 3.095889549 | K65: 5.000539981 | L65: 0.1845009199 | M65: 5.633821836 | N65: 10.65381854 | O65: 1.134654064 | P65: 63.62451108 | Q65: 66.9 | R65: 0.317292196 | S65: 49.57587808 | T65: 53.9 | U65: 0.9773676755
D66: SSES | E66: 17.46558502 | F66: -9.173031958e-05 | G66: -0.02612348458 | I66: SSES | J66: 1.303539163 | K66: 2.234359868 | L66: 0.3456414967 | M66: 3.076354745 | N66: 6.022974762 | O66: 2.664061017 | P66: 46.2064484 | Q66: 60.3 | R66: 5.233356154 | S66: 38.11875161 | T66: 48.1 | U66: 9.024120717
D67: Total | E67: =SUM(E53:E66) -> 175.0621038 | F67: =SUM(F53:F66) -> -0.5429910746 | G67: =SUM(G53:G66) -> -0.7900668476
D68: NB: The total reward includes an adjustment for Regulation 7 Severe weather and Normal weather (Regulation 5,6 and 8)
J71: PLANNED | P71: UNPLANNED
D72: 2016/17 | I72: 2016/17 | J72: CI | M72: CML | P72: CI | S72: CML
E73: Total reward (£m)** | F73: Regulation 7 Severe Weather Conditions Adjustment | G73: Normal weather conditions adjustment | J73: Performance | K73: Target | L73: Reward/Penalty (£m) | M73: Performance | N73: Target | O73: Reward/Penalty (£m) | P73: Performance | Q73: Target | R73: Reward/Penalty (£m) | S73: Performance | T73: Target | U73: Reward/Penalty (£m)
D74: ENWL | E74: 13.68980083 | F74: 0 | G74: -0.09600903052 | I74: ENWL | J74: 1.780368863 | K74: 2.228253342 | L74: 0.1376584369 | M74: 4.370618837 | N74: 6.02728822 | O74: 1.224788079 | P74: 31.1183553 | Q74: 45.8 | R74: 4.51244095 | S74: 29.34293731 | T74: 39.8 | U74: 7.73098474
D75: NPgN | E75: 11.10159555 | F75: 0 | G75: 0 | I75: NPgN | J75: 2.968264429 | K75: 3.808684951 | L75: 0.1587553319 | M75: 7.378907974 | N75: 10.39760406 | O75: 1.425578285 | P75: 50.32078919 | Q75: 58.9 | R75: 1.620611852 | S75: 37.62539222 | T75: 53.7 | U75: 7.591228513
D76: NPgY | E76: 15.63158476 | F76: 0 | G76: 0 | I76: NPgY | J76: 1.178463043 | K76: 1.853721136 | L76: 0.186019414 | M76: 2.974318269 | N76: 5.316189761 | O76: 1.58519225 | P76: 47.35786576 | Q76: 65.7 | R76: 5.052872519 | S76: 35.03085923 | T76: 56.3 | U76: 14.39689464
D77: WMID | E77: 20.49474446 | F77: 0 | G77: 0 | I77: WMID | J77: 2.881645697 | K77: 2.054564851 | L77: -0.3144950556 | M77: 4.894022268 | N77: 3.301622518 | O77: -1.481894587 | P77: 56.0783531 | Q77: 85 | R77: 10.99737105 | S77: 27.07959169 | T77: 50.3 | U77: 21.60901958
D78: EMID | E78: 19.80000736 | F78: 0 | G78: 0 | I78: EMID | J78: 0.911529648 | K78: 1.039626225 | L78: 0.05127194335 | M78: 1.519959202 | N78: 1.505882664 | O78: -0.01394483274 | P78: 43.21418909 | Q78: 51.1 | R78: 3.156375128 | S78: 20.44216248 | T78: 37.6 | U78: 16.99730267
D79: SWALES | E79: 5.406017567 | F79: 0 | G79: 0 | I79: SWALES | J79: 3.663084826 | K79: 3.851807436 | L79: 0.03210370211 | M79: 6.270450968 | N79: 6.06820749 | O79: -0.0849974854 | P79: 37.97731777 | Q79: 49.9 | R79: 2.028173729 | S79: 19.45564051 | T79: 27.5 | U79: 3.380827583
D80: SWEST | E80: 3.879672914 | F80: 0 | G80: 0 | I80: SWEST | J80: 4.144309349 | K80: 3.460839424 | L80: -0.164139427 | M80: 9.551975296 | N80: 8.032985627 | O80: -0.8967865666 | P80: 48.31011171 | Q80: 55.4 | R80: 1.702679457 | S80: 30.14672981 | T80: 35.6 | U80: 3.219521204
D81: LPN | E81: 15.11842252 | F81: 0 | G81: -0.1431854062 | I81: LPN | J81: 0.1843066038 | K81: 0.7833294726 | L81: 0.1596834421 | M81: 0.4557331298 | N81: 1.618823708 | O81: 0.7618341345 | P81: 17.03709648 | Q81: 26.9 | R81: 2.629185738 | S81: 19.32554088 | T81: 38.1 | U81: 12.297429
D82: SPN | E82: 13.03873416 | F82: -0.005112527382 | G82: -0.227596633 | I82: SPN | J82: 1.190313375 | K82: 1.669074517 | L82: 0.1276248888 | M82: 2.709920611 | N82: 3.864905187 | O82: 0.7477278362 | P82: 46.53375275 | Q82: 63 | R82: 4.389460197 | S82: 32.35271522 | T82: 44.5 | U82: 7.864055637
D83: EPN | E83: 23.06138267 | F83: -0.01284225824 | G83: -0.37051647 | I83: EPN | J83: 1.558917572 | K83: 2.599743722 | L83: 0.4360028448 | M83: 4.245139318 | N83: 7.222685244 | O83: 3.038867089 | P83: 47.81220059 | Q83: 66.1 | R83: 7.660772713 | S83: 34.95867743 | T83: 47 | U83: 12.28930797
D84: SPD | E84: 11.66612431 | F84: 0 | G84: 0 | I84: SPD | J84: 1.10780349 | K84: 1.801603415 | L84: 0.1644878964 | M84: 2.847161982 | N84: 4.381575883 | O84: 0.8801198017 | P84: 41.78233361 | Q84: 50.1 | R84: 1.971974049 | S84: 26.48120528 | T84: 41.3 | U84: 8.49986738
D85: SPMW | E85: 2.974720168 | F85: 0 | G85: 0 | I85: SPMW | J85: 1.829821194 | K85: 2.964449697 | L85: 0.1995811542 | M85: 5.755886634 | N85: 9.939794454 | O85: 1.791876769 | P85: 36.33394137 | Q85: 35.1 | R85: -0.2170502881 | S85: 31.58155364 | T85: 34.3 | U85: 1.16425148
D86: SSEH | E86: 0.8249537075 | F86: 0 | G86: 0 | I86: SSEH | J86: 5.521052508 | K86: 4.588862451 | L86: -0.09029999421 | M86: 11.76512746 | N86: 9.433213213 | O86: -0.5270752417 | P86: 62.58574703 | Q86: 66.6 | R86: 0.3888552743 | S86: 48.12096816 | T86: 52.8 | U86: 1.057586849
D87: SSES | E87: 14.02498596 | F87: -0.0003207357203 | G87: -0.005144600954 | I87: SSES | J87: 1.713139095 | K87: 2.177807717 | L87: 0.1725453217 | M87: 4.102107449 | N87: 5.828189858 | O87: 1.56056391 | P87: 46.10372182 | Q87: 59.4 | R87: 4.937304752 | S87: 39.19589611 | T87: 47.1 | U87: 7.146158966
D88: Total | E88: =SUM(E74:E87) -> 170.7127469 | F88: =SUM(F74:F87) -> -0.01827552134 | G88: =SUM(G74:G87) -> -0.8424521407
J90: PLANNED | P90: UNPLANNED
D91: 2017/18 | I91: 2017/18 | J91: CI | M91: CML | P91: CI | S91: CML
E92: Total reward (£m)** | F92: Regulation 7 Severe Weather Conditions Adjustment | G92: Normal weather conditions adjustment | J92: Performance | K92: Target | L92: Reward/Penalty (£m) | M92: Performance | N92: Target | O92: Reward/Penalty (£m) | P92: Performance | Q92: Target | R92: Reward/Penalty (£m) | S92: Performance | T92: Target | U92: Reward/Penalty (£m)
D93: ENWL | E93: 11.19170705 | F93: -0.002770133659 | G93: -0.232154514 | I93: ENWL | J93: 1.892266706 | K93: 1.950890097 | L93: 0.01801804904 | M93: 5.03023843 | N93: 5.125574149 | O93: 0.07048241058 | P93: 31.33886808 | Q93: 45.5 | R93: 4.352460017 | S93: 29.60088791 | T93: 39.1 | U93: 7.022764689
D94: NPgN | E94: 10.0997118 | F94: 0 | G94: 0 | I94: NPgN | J94: 2.109038728 | K94: 3.564951535 | L94: 0.2750217475 | M94: 4.752085388 | N94: 9.171642771 | O94: 2.087134596 | P94: 49.70615261 | Q94: 58.6 | R94: 1.680046663 | S94: 39.87308037 | T94: 52.7 | U94: 6.057508793
D95: NPgY | E95: 15.56502862 | F95: 0 | G95: -0.05748027343 | I95: NPgY | J95: 1.300773539 | K95: 1.775276789 | L95: 0.1307156737 | M95: 3.277801493 | N95: 4.978536158 | O95: 1.151212362 | P95: 46.83374816 | Q95: 64.7 | R95: 4.921776918 | S95: 33.11794559 | T95: 55.2 | U95: 14.94714874
D96: WMID | E96: 20.49474446 | F96: 0 | G96: 0 | I96: WMID | J96: 2.365847094 | K96: 2.0947733 | L96: -0.1030750119 | M96: 4.440768406 | N96: 3.493360725 | O96: -0.8816619782 | P96: 53.27835761 | Q96: 83.3 | R96: 11.4156411 | S96: 26.58327666 | T96: 49.5 | U96: 21.32640894
D97: EMID | E97: 16.41105265 | F97: 0 | G97: 0 | I97: EMID | J97: 0.8762177194 | K97: 1.023306419 | L97: 0.05887373122 | M97: 1.433053249 | N97: 1.527081019 | O97: 0.09314801255 | P97: 46.06550366 | Q97: 50.4 | R97: 1.734925756 | S97: 22.63871867 | T97: 37.3 | U97: 14.52410515
D98: SWALES | E98: 2.901269608 | F98: 0 | G98: 0 | I98: SWALES | J98: 3.622316104 | K98: 3.713192429 | L98: 0.01545901936 | M98: 5.675784859 | N98: 5.956295449 | O98: 0.1178910439 | P98: 44.84454607 | Q98: 49.6 | R98: 0.8089527619 | S98: 22.73882381 | T98: 27.4 | U98: 1.958966783
D99: SWEST | E99: -0.4156445455 | F99: 0 | G99: 0 | I99: SWEST | J99: 3.835253512 | K99: 3.437083906 | L99: -0.09562283363 | M99: 8.694057778 | N99: 8.101995285 | O99: -0.349543977 | P99: 58.20174335 | Q99: 55.1 | R99: -0.7449023829 | S99: 34.08826867 | T99: 35.4 | U99: 0.7744246481
D100: LPN | E100: 15.22213343 | F100: 0 | G100: -0.05361692631 | I100: LPN | J100: 0.1235182605 | K100: 0.6385158282 | L100: 0.1372845488 | M100: 0.3379394419 | N100: 1.350303202 | O100: 0.6631067977 | P100: 14.09271948 | Q100: 26.7 | R100: 3.360763093 | S100: 16.40270186 | T100: 37.5 | U100: 13.81890814
D101: SPN | E101: 10.06725613 | F101: -0.002164166921 | G101: -0.3273729119 | I101: SPN | J101: 0.9905462404 | K101: 1.393311458 | L101: 0.1073664123 | M101: 2.161999241 | N101: 3.041704732 | O101: 0.5695143442 | P101: 45.69627067 | Q101: 62.7 | R101: 4.532738513 | S101: 35.4072126 | T101: 43.5 | U101: 5.239206256
D102: EPN | E102: 18.07663092 | F102: 0 | G102: -0.4158861023 | I102: EPN | J102: 1.663598741 | K102: 2.241052451 | L102: 0.2418957869 | M102: 4.4995078 | N102: 6.104398168 | O102: 1.637942334 | P102: 46.85820126 | Q102: 65.7 | R102: 7.892843444 | S102: 37.29178038 | T102: 45.9 | U102: 8.785501864
D103: SPD | E103: 10.22723189 | F103: 0 | G103: 0 | I103: SPD | J103: 1.027902085 | K103: 1.741972587 | L103: 0.1692936977 | M103: 2.910449196 | N103: 4.250544389 | O103: 0.7686611248 | P103: 40.27711286 | Q103: 49.9 | R103: 2.281419192 | S103: 28.28239676 | T103: 40.5 | U103: 7.007857872
D104: SPMW | E104: 5.288071811 | F104: 0 | G104: 0 | I104: SPMW | J104: 1.700473442 | K104: 2.697917873 | L104: 0.1754504757 | M104: 5.515700008 | N104: 8.918911884 | O104: 1.457521667 | P104: 28.79849514 | Q104: 34.9 | R104: 1.073254708 | S104: 27.47157131 | T104: 33.5 | U104: 2.581844961
D105: SSEH | E105: 2.191958571 | F105: 0 | G105: 0 | I105: SSEH | J105: 5.439763307 | K105: 3.95106303 | L105: -0.144208389 | M105: 12.25645486 | N105: 7.850335858 | O105: -0.9959012179 | P105: 51.90663714 | Q105: 66.2 | R105: 1.384578793 | S105: 42.98381415 | T105: 51.6 | U105: 1.947489386
D106: SSES | E106: 4.904221627 | F106: 0 | G106: 0 | I106: SSES | J106: 1.658156072 | K106: 1.79368654 | L106: 0.05032650581 | M106: 3.289450491 | N106: 4.627380411 | O106: 1.209632366 | P106: 53.47464396 | Q106: 58.6 | R106: 1.903197601 | S106: 44.2742718 | T106: 46.2 | U106: 1.741065155
D107: Total | E107: =SUM(E93:E106) -> 142.225374 | F107: =SUM(F93:F106) -> -0.004934300581 | G107: =SUM(G93:G106) -> -1.086510728
J109: PLANNED | P109: UNPLANNED
D110: 2018/19 | I110: 2018/19 | J110: CI | M110: CML | P110: CI | S110: CML
E111: Total reward (£m)** | F111: Regulation 7 Severe Weather Conditions Adjustment | G111: Normal weather conditions adjustment | J111: Performance | K111: Target | L111: Reward/Penalty (£m) | M111: Performance | N111: Target | O111: Reward/Penalty (£m) | P111: Performance | Q111: Target | R111: Reward/Penalty (£m) | S111: Performance | T111: Target | U111: Reward/Penalty (£m)
D112: ENWL | E112: 11.6092048 | F112: 0 | G112: -1.405164e-07 | I112: ENWL | J112: 0.9369779536 | K112: 1.870446082 | L112: 0.2869038104 | M112: 2.345466329 | N112: 4.702774568 | O112: 1.742775631 | P112: 32.66833137 | Q112: 45.3041296 | R112: 3.883644818 | S112: 30.62455023 | T112: 38.32889626 | U112: 5.695880703
D113: NPgN | E113: 6.697073682 | F113: -0.00855 | G113: -0.123972 | I113: NPgN | J113: 1.890711573 | K113: 3.082080068 | L113: 0.2282374912 | M113: 4.258405124 | N113: 7.406846537 | O113: 1.507913741 | P113: 52.39345079 | Q113: 58.29180622 | R113: 1.129982749 | S113: 43.37324692 | T113: 51.69242756 | U113: 3.984386285
D114: NPgY | E114: 15.60962412 | F114: 0 | G114: -0.018966 | I114: NPgY | J114: 1.056348868 | K114: 1.485476497 | L114: 0.1198903293 | M114: 2.384664181 | N114: 3.85158627 | O114: 1.007013126 | P114: 48.24677524 | Q114: 63.6996364 | R114: 4.317243845 | S114: 36.38748072 | T114: 54.08365836 | U114: 12.14807746
D115: WMID | E115: 20.49474446 | F115: 0 | G115: 0 | I115: WMID | J115: 2.566582049 | K115: 2.378876779 | L115: -0.0713743763 | M115: 5.260792939 | N115: 4.083374521 | O115: -1.095711037 | P115: 52.80417724 | Q115: 81.65 | R115: 10.96853915 | S115: 27.03656188 | T115: 48.69 | U115: 20.15078986
D116: EMID | E116: 19.49707692 | F116: 0 | G116: 0 | I116: EMID | J116: 0.880210894 | K116: 0.9515548137 | L116: 0.02855612142 | M116: 1.643946521 | N116: 1.51194585 | O116: -0.1307656258 | P116: 38.8911438 | Q116: 50.12081258 | R116: 4.494787876 | S116: 21.27321728 | T116: 36.52037367 | U116: 15.10449855
D117: SWALES | E117: 5.591010394 | F117: 0 | G117: 0 | I117: SWALES | J117: 3.381534032 | K117: 3.694929231 | L117: 0.05331182166 | M117: 5.463302373 | N117: 6.044779277 | O117: 0.244379078 | P117: 37.90951405 | Q117: 49.37767168 | R117: 1.95085431 | S117: 19.40692021 | T117: 27.36 | U117: 3.342465184
D118: SWEST | E118: 3.799387809 | F118: 0 | G118: 0 | I118: SWEST | J118: 3.444087946 | K118: 3.680367983 | L118: 0.05674407682 | M118: 7.84315674 | N118: 8.627315401 | O118: 0.4629544011 | P118: 48.02069537 | Q118: 54.8474684 | R118: 1.639490738 | S118: 32.38180861 | T118: 35.16 | U118: 1.640198593
D119: LPN | E119: 15.2842162 | F119: 0 | G119: -1.0488e-09 | I119: LPN | J119: 0.1186411422 | K119: 0.434255338 | L119: 0.08413428565 | M119: 0.2869809424 | N119: 0.9242553081 | O119: 0.4174200821 | P119: 13.97628704 | Q119: 26.59677121 | R119: 3.364282831 | S119: 15.62981244 | T119: 36.81304701 | U119: 13.87519722
D120: SPN | E120: 10.67463963 | F120: -3.6e-11 | G120: -1.18788e-07 | I120: SPN | J120: 1.169428263 | K120: 1.225831627 | L120: 0.01503562512 | M120: 2.568054754 | N120: 2.679543487 | O120: 0.0721769202 | P120: 43.18710635 | Q120: 62.41310025 | R120: 5.125134688 | S120: 34.11979041 | T120: 42.55717006 | U120: 5.462292533
D121: EPN | E121: 23.5052718 | F121: -1.008e-09 | G121: -8.02848e-08 | I121: EPN | J121: 1.928074655 | K121: 1.788450915 | L121: -0.0584884881 | M121: 5.267370991 | N121: 4.711008991 | O121: -0.5678200153 | P121: 39.49442978 | Q121: 65.41605144 | R121: 10.8585865 | S121: 29.54380518 | T121: 44.92419085 | U121: 15.6971375
D122: SPD | E122: 5.228857068 | F122: 0 | G122: 0 | I122: SPD | J122: 1.065710581 | K122: 1.495074946 | L122: 0.101794824 | M122: 3.091231217 | N122: 3.718747006 | O122: 0.3599348728 | P122: 48.26902539 | Q122: 49.61317009 | R122: 0.3186733315 | S122: 31.91894037 | T122: 39.67444105 | U122: 4.44845404
D123: SPMW | E123: 2.163085625 | F123: 0 | G123: 0 | I123: SPMW | J123: 1.636045031 | K123: 2.325807492 | L123: 0.121329217 | M123: 5.315877734 | N123: 7.502718408 | O123: 0.9365763227 | P123: 34.50794333 | Q123: 34.7018604 | R123: 0.03411001225 | S123: 30.28517724 | T123: 32.78605148 | U123: 1.071070073
D124: SSEH | E124: 0.1425421346 | F124: 0 | G124: 0 | I124: SSEH | J124: 4.29774227 | K124: 4.380424523 | L124: 0.008009318386 | M124: 9.310820708 | N124: 8.849477843 | O124: -0.1042758765 | P124: 65.06981848 | Q124: 65.8958783 | R124: 0.08001930134 | S124: 49.7576483 | T124: 50.46017275 | U124: 0.1587893914
D125: SSES | E125: 2.28037143 | F125: 0 | G125: -3.72e-09 | I125: SSES | J125: 1.460321879 | K125: 1.690791671 | L125: 0.08558030954 | M125: 3.685621978 | N125: 4.217909169 | O125: 0.4812447981 | P125: 50.64136819 | Q125: 57.67477259 | R125: 2.611712877 | S125: 46.26085473 | T125: 45.26742571 | U125: -0.8981665499
D126: Total | E126: =SUM(E112:E125) -> 142.5771061 | F126: =SUM(F112:F125) -> -0.008550001044 | G126: =SUM(G112:G125) -> -0.1429383444
J128: PLANNED | P128: UNPLANNED
D129: 2019/20 | I129: 2019/20 | J129: CI | M129: CML | P129: CI | S129: CML
E130: Total reward (£m)** | F130: Regulation 7 Severe Weather Conditions Adjustment | G130: Normal weather conditions adjustment | J130: Performance | K130: Target | L130: Reward/Penalty (£m) | M130: Performance | N130: Target | O130: Reward/Penalty (£m) | P130: Performance | Q130: Target | R130: Reward/Penalty (£m) | S130: Performance | T130: Target | U130: Reward/Penalty (£m)
D131: ENWL | I131: ENWL
D132: NPgN | I132: NPgN
D133: NPgY | I133: NPgY
D134: WMID | I134: WMID
D135: EMID | I135: EMID
D136: SWALES | I136: SWALES
D137: SWEST | I137: SWEST
D138: LPN | I138: LPN
D139: SPN | I139: SPN
D140: EPN | I140: EPN
D141: SPD | I141: SPD
D142: SPMW | I142: SPMW
D143: SSEH | I143: SSEH
D144: SSES | I144: SSES
D145: Total | E145: =SUM(E131:E144) -> 0 | F145: =SUM(F131:F144) -> 0 | G145: =SUM(G131:G144) -> 0
J147: PLANNED | P147: UNPLANNED
D148: 2020/21 | I148: 2020/21 | J148: CI | M148: CML | P148: CI | S148: CML
E149: Total reward (£m)** | F149: Regulation 7 Severe Weather Conditions Adjustment | G149: Normal weather conditions adjustment | J149: Performance | K149: Target | L149: Reward/Penalty (£m) | M149: Performance | N149: Target | O149: Reward/Penalty (£m) | P149: Performance | Q149: Target | R149: Reward/Penalty (£m) | S149: Performance | T149: Target | U149: Reward/Penalty (£m)
D150: ENWL | I150: ENWL
D151: NPgN | I151: NPgN
D152: NPgY | I152: NPgY
D153: WMID | I153: WMID
D154: EMID | I154: EMID
D155: SWALES | I155: SWALES
D156: SWEST | I156: SWEST
D157: LPN | I157: LPN
D158: SPN | I158: SPN
D159: EPN | I159: EPN
D160: SPD | I160: SPD
D161: SPMW | I161: SPMW
D162: SSEH | I162: SSEH
D163: SSES | I163: SSES
D164: Total | E164: =SUM(E150:E163) -> 0 | F164: =SUM(F150:F163) -> 0 | G164: =SUM(G150:G163) -> 0
J166: PLANNED | P166: UNPLANNED
D167: 2021/22 | I167: 2021/22 | J167: CI | M167: CML | P167: CI | S167: CML
E168: Total reward (£m)** | F168: Regulation 7 Severe Weather Conditions Adjustment | G168: Normal weather conditions adjustment | J168: Performance | K168: Target | L168: Reward/Penalty (£m) | M168: Performance | N168: Target | O168: Reward/Penalty (£m) | P168: Performance | Q168: Target | R168: Reward/Penalty (£m) | S168: Performance | T168: Target | U168: Reward/Penalty (£m)
D169: ENWL | I169: ENWL
D170: NPgN | I170: NPgN
D171: NPgY | I171: NPgY
D172: WMID | I172: WMID
D173: EMID | I173: EMID
D174: SWALES | I174: SWALES
D175: SWEST | I175: SWEST
D176: LPN | I176: LPN
D177: SPN | I177: SPN
D178: EPN | I178: EPN
D179: SPD | I179: SPD
D180: SPMW | I180: SPMW
D181: SSEH | I181: SSEH
D182: SSES | I182: SSES
D183: Total | E183: =SUM(E169:E182) -> 0 | F183: =SUM(F169:F182) -> 0 | G183: =SUM(G169:G182) -> 0
J185: PLANNED | P185: UNPLANNED
D186: 2022/23 | I186: 2022/23 | J186: CI | M186: CML | P186: CI | S186: CML
E187: Total reward (£m)** | F187: Regulation 7 Severe Weather Conditions Adjustment | G187: Normal weather conditions adjustment | J187: Performance | K187: Target | L187: Reward/Penalty (£m) | M187: Performance | N187: Target | O187: Reward/Penalty (£m) | P187: Performance | Q187: Target | R187: Reward/Penalty (£m) | S187: Performance | T187: Target | U187: Reward/Penalty (£m)
D188: ENWL | I188: ENWL
D189: NPgN | I189: NPgN
D190: NPgY | I190: NPgY
D191: WMID | I191: WMID
D192: EMID | I192: EMID
D193: SWALES | I193: SWALES
D194: SWEST | I194: SWEST
D195: LPN | I195: LPN
D196: SPN | I196: SPN
D197: EPN | I197: EPN
D198: SPD | I198: SPD
D199: SPMW | I199: SPMW
D200: SSEH | I200: SSEH
D201: SSES | I201: SSES
D202: Total | E202: =SUM(E188:E201) -> 0 | F202: =SUM(F188:F201) -> 0 | G202: =SUM(G188:G201) -> 0
B206: Guaranteed Standards of Performance (GSoP)
E207: Guaranteed Standards of Performance - payments owed and percentage of mandatory payments made, 2015/16
E208: Regulation 5 (Supply Restoration: Normal Conditions)* | G208: Regulation 6 (Supply Restoration: Normal Conditions - 5,000 or more customers' premises interrupted) | I208: Regulation 7(1) - Supply Restoration: Category 1 Severe Weather Conditions* | K208: Regulation 7(2) - Supply Restoration: Category 2 Severe Weather Conditions* | M208: Regulation 7(3) - Supply Restoration: Category 3 Severe Weather Conditions* | O208: Regulation 8 (Supply Restoration: Rota Disconnection) | Q208: Regulation 10 (Supply Restoration: Multiple interruptions) | S208: Regulation 11 (Responding to Operation of Distributor's Fuse) | U208: Regulation 12 (Notice of Supply Interruption ) | W208: Regulation 13 (Investigation of Voltage complaints) | X208: Regulation 17 (Making and Keeping Appointments) | Z208: Regulation 19 (Payments owed under the Guaranteed Standards)
E209: Number of valid payments owed | F209: Mandatory payments vs valid payments owed | G209: Number of valid payments owed | H209: Mandatory payments vs valid payments owed | I209: Number of valid payments owed | J209: Mandatory payments vs valid payments owed | K209: Number of valid payments owed | L209: Mandatory payments vs valid payments owed | M209: Number of valid payments owed | N209: Mandatory payments vs valid payments owed | O209: Number of valid payments owed | P209: Mandatory payments vs valid payments owed | Q209: Number of valid payments owed | R209: Mandatory payments vs valid payments owed | S209: Number of failures to attend on time | T209: Mandatory payments vs valid payments owed | U209: Number of valid payments owed | V209: Mandatory payments vs valid payments owed | W209: Total number of mandatory payments made | X209: Failures to offer timed appt. | Y209: Mandatory payments vs valid payments owed | Z209: Total payments due | AA209: Mandatory payments vs valid payments owed
D210: ENWL | E210: 256 | F210: 1.1015625 | G210: 0 | H210: N/A | I210: 0 | J210: N/A | K210: 3 | L210: 1 | M210: 0 | N210: N/A | O210: 0 | P210: N/A | Q210: 21 | R210: 1 | S210: 0 | T210: N/A | U210: 383 | V210: 1 | W210: 0 | X210: 1079 | Y210: 1 | Z210: 1042 | AA210: 1
D211: NPGN | E211: 2426 | F211: 1 | G211: 0 | H211: N/A | I211: 321 | J211: 1 | K211: 0 | L211: N/A | M211: 0 | N211: N/A | O211: 0 | P211: N/A | Q211: 2 | R211: 1 | S211: 0 | T211: N/A | U211: 28 | V211: 1 | W211: 0 | X211: 22 | Y211: 0.7727272727 | Z211: 14 | AA211: 1
D212: NPGY | E212: 1455 | F212: 1 | G212: 0 | H212: N/A | I212: 1067 | J212: 1 | K212: 0 | L212: N/A | M212: 0 | N212: N/A | O212: 0 | P212: N/A | Q212: 0 | R212: N/A | S212: 0 | T212: N/A | U212: 24 | V212: 1 | W212: 0 | X212: 39 | Y212: 0.6923076923 | Z212: 17 | AA212: 1
D213: WMID | E213: 0 | F213: N/A | G213: 0 | H213: N/A | I213: 0 | J213: N/A | K213: 0 | L213: N/A | M213: 0 | N213: N/A | O213: 0 | P213: N/A | Q213: 0 | R213: N/A | S213: 0 | T213: N/A | U213: 0 | V213: N/A | W213: 0 | X213: 12664 | Y213: 0 | Z213: 0 | AA213: N/A
D214: EMID | E214: 0 | F214: N/A | G214: 0 | H214: N/A | I214: 0 | J214: N/A | K214: 0 | L214: N/A | M214: 0 | N214: N/A | O214: 0 | P214: N/A | Q214: 0 | R214: N/A | S214: 0 | T214: N/A | U214: 3 | V214: 1 | W214: 0 | X214: 17409 | Y214: 0 | Z214: 0 | AA214: N/A
D215: SWALES | E215: 0 | F215: N/A | G215: 0 | H215: N/A | I215: 0 | J215: N/A | K215: 0 | L215: N/A | M215: 0 | N215: N/A | O215: 0 | P215: N/A | Q215: 0 | R215: N/A | S215: 0 | T215: N/A | U215: 1 | V215: 1 | W215: 0 | X215: 7505 | Y215: 0.0001332445037 | Z215: 0 | AA215: N/A
D216: SWEST | E216: 33 | F216: 1 | G216: 0 | H216: N/A | I216: 0 | J216: N/A | K216: 0 | L216: N/A | M216: 0 | N216: N/A | O216: 0 | P216: N/A | Q216: 0 | R216: N/A | S216: 2 | T216: 1 | U216: 5 | V216: 1 | W216: 0 | X216: 19295 | Y216: 0 | Z216: 0 | AA216: N/A
D217: LPN | E217: 2555 | F217: 0.03209393346 | G217: 0 | H217: N/A | I217: 0 | J217: N/A | K217: 0 | L217: N/A | M217: 0 | N217: N/A | O217: 0 | P217: N/A | Q217: 17 | R217: 1 | S217: 9 | T217: 1 | U217: 28 | V217: 1 | W217: 0 | X217: 46 | Y217: 1 | Z217: 0 | AA217: N/A
... 294 more rows

Sheet Ch2 - Network Asset SDs
A1: Chapter 2 - Reliability and Availability
B2: Performance against the outputs that DNOs are incentivised to deliver under RIIO-ED1.
B4: Reliability and availability: providing long-term reliability, minimising the number and duration of interruptions and ensuring adaptation to climate change.
B5: Incentive measure | F5: Incentive type
B6: Health, criticality and monetised risk: DNOs can receive a financial reward or incur a financial penalty depending on their performance against a target for the reduction in network risk that is delivered through specified asset replacement and refurbishment activities. | F6: Financial: penalty of 2.5% of under delivery or reward of 2.5% of over delivery.
D8: Year 1 to Year 4 cumulative delivery against rebased NAW target (Monetised risk points)
B9: Network Asset Indices Secondary Deliverables
D10: Position at Beginning of RIIO-ED1 | E10: End of RIIO-ED1 (Without Investment) | F10: End of RIIO-ED1 (With Investment) | G10: Impact of investment | H10: Deterioration | I10: Year 1 to Year 4 cumulative delivery against rebased NAW target | J10: % Delivered
C11: ENWL | D11: 34717173.95 | E11: 52801732.97 | F11: 41290441.3 | G11: =SUM(F11-E11) * -1 -> 11511291.66 | H11: =+E11-D11 -> 18084559.02 | I11: 7068687.404 | J11: =I11/G11 -> 0.6140655289
C12: NPgN | D12: 35398060.56 | E12: 50635472.35 | F12: 40069116.53 | G12: =SUM(F12-E12) * -1 -> 10566355.82 | H12: =+E12-D12 -> 15237411.79 | I12: 6302359.077 | J12: =I12/G12 -> 0.5964553137
C13: NPgY | D13: 29674137.94 | E13: 39226669.01 | F13: 29830607.61 | G13: 9396061.403 | H13: 9552531.069 | I13: 4203616.931 | J13: 0.4473807429
C14: WMID | D14: 40210986.97 | E14: 52621580.09 | F14: 35393380.37 | G14: 17228199.72 | H14: 12410593.12 | I14: 12715737.58 | J14: 0.7380769779
C15: EMID | D15: 34930944.44 | E15: 42724719.56 | F15: 30194501.95 | G15: 12530217.61 | H15: 7793775.128 | I15: 9175476.199 | J15: 0.7322679048
C16: SWALES | D16: 20709600.89 | E16: 27797837.72 | F16: 17981336.21 | G16: 9816501.507 | H16: 7088236.823 | I16: 6783917.061 | J16: 0.6910727876
C17: SWEST | D17: 31601986.91 | E17: 46546170.72 | F17: 30235486.38 | G17: 16310684.34 | H17: 14944183.81 | I17: 10119492.86 | J17: 0.620421109
C18: LPN | D18: 27708452.58 | E18: 35728247.99 | F18: 26585580.8 | G18: 9142667.194 | H18: 8019795.416 | I18: 5076348.008 | J18: 0.5552370988
C19: SPN | D19: 35848065.34 | E19: 46097951.08 | F19: 37659235.17 | G19: 8438715.907 | H19: 10249885.73 | I19: 5133386.915 | J19: 0.6083137495
C20: EPN | D20: 50577623.92 | E20: 65823784.59 | F20: 54362805.49 | G20: 11460979.09 | H20: 15246160.66 | I20: 6956326.721 | J20: 0.6069574566
C21: SPD | D21: 30942854.04 | E21: 46997140.34 | F21: 40114396.53 | G21: 6882743.814 | H21: 16054286.3 | I21: 4879252.191 | J21: 0.7089109116
C22: SPMW | D22: 36840842.87 | E22: 52578037.67 | F22: 42446657.55 | G22: 10131380.12 | H22: 15737194.81 | I22: 6405151.751 | J22: 0.6322092027
C23: SSEH | D23: 29746923.89 | E23: 40727721.33 | F23: 34325214.59 | G23: 6402506.739 | H23: 10980797.44 | I23: 3684729.418 | J23: 0.5755135556
C24: SSES | D24: 47453646.57 | E24: 65647485.21 | F24: 49343867.27 | G24: 16303617.94 | H24: 18193838.64 | I24: 7157095.134 | J24: 0.4389881534
C25: Total | D25: =SUM(D11:D24) -> 486361300.9 | E25: =SUM(E11:E24) -> 665954550.6 | F25: =SUM(F11:F24) -> 509832627.8 | G25: =SUM(F25-E25) * -1 -> 156121922.9 | H25: =+E25-D25 -> 179593249.8 | I25: =SUM(I11:I24) -> 95661577.26 | J25: 0.6127363505

Sheet Ch2 outputs - connections
A1: Chapter 2 - Connections
B2: Performance against the outputs that DNOs are incentivised to deliver under RIIO-ED1.
B4: Connections: connecting customers in a timely and efficient way, including responding to different customers' specific needs, while enabling competition.
B5: Incentive measure | F5: Incentive type
B6: Time to Connect Incentive: reward for reducing average time taken to connect smaller and less complex customer connections. | F6: Financial: reward only of up to 0.4% base revenue.
B7: Incentive on Connections Engagement (ICE): penalty where DNOs fail to engage effectively with, and understand requirements of, customers seeking larger and more complex connections. | F7: Financial: penalty only of up to 0.9% of base revenue.
B8: Connections Guaranteed Standards of Performance (GSOP): direct payment to customers of fixed amounts if DNO fails to deliver specified minimum levels of performance regarding connections. | F8: Financial: payment to customers for failure to meet standards. Reputational.
B9: Customer satisfaction survey: connection customers are one of three customer types in the Broad Measure of Customer Satisfaction survey. | F9: Financial: reward or penalty of 0.5% of base revenue which feeds into the overall reward or penalty under BMCS of +/- 1.5% of base revenue.
B12: Distributed Generation (DG) | D12: Capacity of generation connected to the distribution network by type (MW)
E13: 2016 | F13: 2017 | G13: 2018 | H13: 2019 | I13: 2020 | J13: 2021 | K13: 2022 | L13: 2023
D14: Photovoltaic (G83) | E14: 366.1418678 | F14: 60.27948237 | G14: 41.94234 | H14: 61.533676
D15: Other DG (G83) | E15: 0.63915 | F15: 0.189813 | G15: 0.3235 | H15: 0.511
D16: DG (non G83) | E16: 3526.46702 | F16: 3310.88799 | G16: 1715.203335 | H16: 988.108625
B21: Time to connect incentive
D22: Industry average Time to Connect improvements from targets (working days) comparing 2013 and 2017-18 performance
F23: LVSSA | I23: LVSSB
F24: Average Time to Quote | G24: Time to Connect | H24: Overall | I24: Average Time to Quote | J24: Time to Connect | K24: Overall
E25: Previous industry average (2013 performance) | F25: 9.140409588 | G25: 46.3821136 | H25: 55.52252319 | I25: 14.45688562 | J25: 57.00932472 | K25: 71.46621034
D26: New industry average | E26: 2016 | F26: =E56 -> 4.913018774 | G26: =G56 -> 35.71963442 | H26: 40.63265319 | I26: =I56 -> 7.438419017 | J26: =K56 -> 43.1603969 | K26: 50.59881592
E27: 2017 | F27: =U56 -> 4.641116624 | G27: =W56 -> 43.50555453 | H27: 48.14667115 | I27: =Y56 -> 7.178433711 | J27: =AA56 -> 53.13871612 | K27: 60.31714983
E28: 2018 | F28: =AJ56 -> 4.979260877 | G28: =AL56 -> 38.62718439 | H28: 43.60644526 | I28: =AN56 -> 8.906817939 | J28: =AP56 -> 47.51635595 | K28: 56.42317389
E29: 2019 | F29: =AY56 -> 4.829855035 | G29: =BA56 -> 36.17609876 | H29: 41.0059538 | I29: =BC56 -> 8.001225029 | J29: =BE56 -> 44.71706555 | K29: 52.71829058
E30: 2020
E31: 2021
E32: 2022
E33: 2023
E34: Improvement | F34: =F25-F28 -> 4.161148711 | G34: 7.754929218 | H34: 11.91607793 | I34: 5.55006768 | J34: 9.492968769 | K34: 15.04303645
E35: Improvement - % | F35: =F34/F25 -> 0.4552475106 | G35: 0.1671965466 | H35: 0.2146170103 | I35: 0.3839047929 | J35: 0.1665160711 | K35: 0.2104915929
E38: 2015/16 | U38: 2016/17 | AJ38: 2017/18 | AY38: 2018/19 | BN38: 2019-20 | CC38: 2020-21 | CR38: 2021-22 | DG38: 2022-23
E39: LVSSA | I39: LVSSB | M39: Reward | O39: RAG and ranking | U39: LVSSA | Y39: LVSSB | AC39: Reward | AE39: RAG and ranking | AJ39: LVSSA | AN39: LVSSB | AR39: Reward | AT39: RAG and ranking | AY39: LVSSA | BC39: LVSSB | BG39: Reward | BI39: RAG and ranking | BN39: LVSSA | BR39: LVSSB | BV39: Reward | BX39: RAG and ranking | CC39: LVSSA | CG39: LVSSB | CK39: Reward | CM39: RAG and ranking | CR39: LVSSA | CV39: LVSSB | CZ39: Reward | DB39: RAG and ranking | DG39: LVSSA | DK39: LVSSB | DO39: Reward | DQ39: RAG and ranking
E40: Average Time to Quote | F40: Ranking | G40: Time to Connect | H40: Ranking | I40: Time to Quote | J40: Ranking | K40: Time to Connect | L40: Ranking | M40: (£m 2012/13 Prices) | N40: (£m 2018/19 Prices) | O40: RAG | P40: Average ranking | Q40: Overall ranking | R40: Overall (LVSSA + LVSSB) | U40: Average Time to Quote | V40: Ranking | W40: Time to Connect | X40: Ranking | Y40: Time to Quote | Z40: Ranking | AA40: Time to Connect | AB40: Ranking | AC40: (£m 2012/13 Prices) | AD40: (£m 2018/19 Prices) | AE40: RAG | AF40: Average ranking | AG40: Overall ranking | AH40: Overall (LVSSA + LVSSB) | AJ40: Average Time to Quote | AK40: Ranking | AL40: Time to Connect | AM40: Ranking | AN40: Time to Quote | AO40: Ranking | AP40: Time to Connect | AQ40: Ranking | AR40: (£m 2012/13 Prices) | AS40: (£m 2018/19 Prices) | AT40: RAG | AU40: Average ranking | AV40: Overall ranking | AW40: Overall (LVSSA + LVSSB) | AY40: Average Time to Quote | AZ40: Ranking | BA40: Time to Connect | BB40: Ranking | BC40: Time to Quote | BD40: Ranking | BE40: Time to Connect | BF40: Ranking | BG40: (£m 2012/13 Prices) | BH40: (£m 2018/19 Prices) | BI40: RAG | BJ40: Average ranking | BK40: Overall ranking | BL40: Overall (LVSSA + LVSSB) | BN40: Average Time to Quote | BO40: Ranking | BP40: Time to Connect | BQ40: Ranking | BR40: Time to Quote | BS40: Ranking | BT40: Time to Connect | BU40: Ranking | BV40: (£m 2012/13 Prices) | BW40: (£m 2016/17 Prices) | BX40: RAG | BY40: Average ranking | BZ40: Overall ranking | CA40: Overall (LVSSA + LVSSB) | CC40: Average Time to Quote | CD40: Ranking | CE40: Time to Connect | CF40: Ranking | CG40: Time to Quote | CH40: Ranking | CI40: Time to Connect | CJ40: Ranking | CK40: (£m 2012/13 Prices) | CL40: (£m 2016/17 Prices) | CM40: RAG | CN40: Average ranking | CO40: Overall ranking | CP40: Overall (LVSSA + LVSSB) | CR40: Average Time to Quote | CS40: Ranking | CT40: Time to Connect | CU40: Ranking | CV40: Time to Quote | CW40: Ranking | CX40: Time to Connect | CY40: Ranking | CZ40: (£m 2012/13 Prices) | DA40: (£m 2016/17 Prices) | DB40: RAG | DC40: Average ranking | DD40: Overall ranking | DE40: Overall (LVSSA + LVSSB) | DG40: Average Time to Quote | DH40: Ranking | DI40: Time to Connect | DJ40: Ranking | DK40: Time to Quote | DL40: Ranking | DM40: Time to Connect | DN40: Ranking | DO40: (£m 2012/13 Prices) | DP40: (£m 2016/17 Prices) | DQ40: RAG | DR40: Average ranking | DS40: Overall ranking | DT40: Overall (LVSSA + LVSSB)
E41: Working days | U41: Working days | AJ41: Working days | AY41: Working days | BN41: Working days | CC41: Working days | CR41: Working days | DG41: Working days
D42: ENWL | E42: 4.002441406 | F42: =RANK(E42,$E$42:$E$55,1) -> 5 | G42: 30.36199095 | H42: =RANK(G42,$G$42:$G$55,1) -> 2 | I42: 7.434077079 | J42: =RANK(I42,$I$42:$I$55,1) -> 9 | K42: 36.88172043 | L42: =RANK(K42,$K$42:$K$55,1) -> 2 | M42: 1.2 | N42: =M42*'Guide & drivers'!$D$28 -> 1.3894742 | O42: =IF(SUM(IF(E42<=$E$57,1,0),IF(G42<=$G$57,1,0),IF(I42<=$I$57,1,0),IF(K42<=$K$57,1,0))=4,"Green",IF(SUM(IF(E42>$E$59,1,0),IF(G42>$G$59,1,0),IF(I42>$I$59,1,0),IF(K42>$K$59,1,0))>=3,"Red","Amber")) -> Green | P42: =AVERAGE(F42,H42,J42,L42) -> 4.5 | Q42: =RANK(P42,$P$42:$P$55,1) -> 3 | R42: =SUM(E42,G42,I42,K42) -> 78.68022987 | T42: ENWL | U42: 2.96 | V42: =RANK(U42,$U$42:$U$55,1) -> 2 | W42: 31.91009464 | X42: =RANK(W42,$W$42:$W$55,1) -> 2 | Y42: 7.91556367 | Z42: =RANK(Y42,$Y$42:$Y$55,1) -> 10 | AA42: 31.672 | AB42: =RANK(AA42,$AA$42:$AA$55,1) -> 1 | AC42: 1.2 | AD42: =AC42*'Guide & drivers'!$D$28 -> 1.3894742 | AE42: =IF(SUM(IF(U42<=$U$57,1,0),IF(W42<=$W$57,1,0),IF(Y42<=$Y$57,1,0),IF(AA42<=$AA$57,1,0))=4,"Green",IF(SUM(IF(U42>$U$59,1,0),IF(W42>$W$59,1,0),IF(Y42>$Y$59,1,0),IF(AA42>$AA$59,1,0))>=3,"Red","Amber")) -> Green | AF42: =AVERAGE(V42,X42,Z42,AB42) -> 3.75 | AG42: =RANK(AF42,$AF$42:$AF$55,1) -> 3 | AH42: =SUM(U42,W42,Y42,AA42) -> 74.45765831 | AI42: ENWL | AJ42: 3.7 | AK42: =RANK(AJ42,$AJ$42:$AJ$55,1) -> 5 | AL42: 31.72 | AM42: =RANK(AL42,$AL$42:$AL$55,1) -> 6 | AN42: 8.25 | AO42: =RANK(AN42,$AN$42:$AN$55,1) -> 7 | AP42: 34.28 | AQ42: =RANK(AP42,$AP$42:$AP$55,1) -> 3 | AR42: 1.2 | AS42: =AR42*'Guide & drivers'!C35 -> 1.3894742 | AT42: =IF(SUM(IF(AJ42<=$AJ$57,1,0),IF(AL42<=$AL$57,1,0),IF(AN42<=$AN$57,1,0),IF(AP42<=$AP$57,1,0))=4,"Green",IF(SUM(IF(AJ42>$AJ$59,1,0),IF(AL42>$AL$59,1,0),IF(AN42>$AN$59,1,0),IF(AP42>$AP$59,1,0))>=3,"Red","Amber")) -> Green | AU42: =AVERAGE(AK42,AM42,AO42,AQ42) -> 5.25 | AV42: =RANK(AU42,$AU$42:$AU$55,1) -> 6 | AW42: =SUM(AJ42,AL42,AN42,AP42) -> 77.95 | AY42: 3.72 | AZ42: =RANK(AY42,$AY$42:$AY$55,1) -> 6 | BA42: 32.87 | BB42: =RANK(BA42,$BA$42:$BA$55,1) -> 7 | BC42: 6.79 | BD42: =RANK(BC42,$BC$42:$BC$55,1) -> 7 | BE42: 35.67 | BF42: =RANK(BE42,$BE$42:$BE$55,1) -> 5 | BG42: 1.1763 | BH42: 1.362032085 | BI42: =IF(SUM(IF(AY42<=$AJ$57,1,0),IF(BA42<=$AL$57,1,0),IF(BC42<=$AN$57,1,0),IF(BE42<=$AP$57,1,0))=4,"Green",IF(SUM(IF(AY42>$AJ$59,1,0),IF(BA42>$AL$59,1,0),IF(BC42>$AN$59,1,0),IF(BE42>$AP$59,1,0))>=3,"Red","Amber")) -> Green | BJ42: =AVERAGE(AZ42,BB42,BD42,BF42) -> 6.25 | BK42: =RANK(BJ42,$BJ$42:$BJ$55,1) -> 6 | BL42: =SUM(AY42,BA42,BC42,BE42) -> 79.05
D43: NPgN | E43: 5.715898401 | F43: =RANK(E43,$E$42:$E$55,1) -> 11 | G43: 40.14694656 | H43: =RANK(G43,$G$42:$G$55,1) -> 11 | I43: 9.584170854 | J43: =RANK(I43,$I$42:$I$55,1) -> 12 | K43: 47.12105263 | L43: =RANK(K43,$K$42:$K$55,1) -> 12 | M43: 0.5502400161 | N43: =M43*'Guide & drivers'!$D$28 -> 0.6371202553 | O43: Green | P43: =AVERAGE(F43,H43,J43,L43) -> 11.5 | Q43: =RANK(P43,$P$42:$P$55,1) -> 12 | R43: =SUM(E43,G43,I43,K43) -> 102.5680685 | T43: NPgN | U43: 5.581349206 | V43: =RANK(U43,$U$42:$U$55,1) -> 13 | W43: 50.62416107 | X43: =RANK(W43,$W$42:$W$55,1) -> 10 | Y43: 9.408921933 | Z43: =RANK(Y43,$Y$42:$Y$55,1) -> 13 | AA43: 57.69114471 | AB43: =RANK(AA43,$AA$42:$AA$55,1) -> 8 | AC43: 0.4 | AD43: =AC43*'Guide & drivers'!$D$28 -> 0.4631580668 | AE43: Amber | AF43: =AVERAGE(V43,X43,Z43,AB43) -> 11 | AG43: 12 | AH43: =SUM(U43,W43,Y43,AA43) -> 123.3055769 | AI43: NPgN | AJ43: 7.99 | AK43: =RANK(AJ43,$AJ$42:$AJ$55,1) -> 14 | AL43: 53.75 | AM43: =RANK(AL43,$AL$42:$AL$55,1) -> 13 | AN43: 15.9 | AO43: =RANK(AN43,$AN$42:$AN$55,1) -> 13 | AP43: 63.01 | AQ43: =RANK(AP43,$AP$42:$AP$55,1) -> 11 | AR43: 0.03 | AS43: =AR43*'Guide & drivers'!C35 -> 0.03473685501 | AT43: =IF(SUM(IF(AJ43<=$AJ$57,1,0),IF(AL43<=$AL$57,1,0),IF(AN43<=$AN$57,1,0),IF(AP43<=$AP$57,1,0))=4,"Green",IF(SUM(IF(AJ43>$AJ$59,1,0),IF(AL43>$AL$59,1,0),IF(AN43>$AN$59,1,0),IF(AP43>$AP$59,1,0))>=3,"Red","Amber")) -> Red | AU43: =AVERAGE(AK43,AM43,AO43,AQ43) -> 12.75 | AV43: 14 | AW43: =SUM(AJ43,AL43,AN43,AP43) -> 140.65 | AY43: 6.3 | AZ43: =RANK(AY43,$AY$42:$AY$55,1) -> 11 | BA43: 41.15 | BB43: =RANK(BA43,$BA$42:$BA$55,1) -> 10 | BC43: 11.39 | BD43: =RANK(BC43,$BC$42:$BC$55,1) -> 13 | BE43: 50.75 | BF43: =RANK(BE43,$BE$42:$BE$55,1) -> 10 | BG43: 0.3052 | BH43: 0.353389605 | BI43: =IF(SUM(IF(AY43<=$AJ$57,1,0),IF(BA43<=$AL$57,1,0),IF(BC43<=$AN$57,1,0),IF(BE43<=$AP$57,1,0))=4,"Green",IF(SUM(IF(AY43>$AJ$59,1,0),IF(BA43>$AL$59,1,0),IF(BC43>$AN$59,1,0),IF(BE43>$AP$59,1,0))>=3,"Red","Amber")) -> Green | BJ43: =AVERAGE(AZ43,BB43,BD43,BF43) -> 11 | BK43: =RANK(BJ43,$BJ$42:$BJ$55,1) -> 11 | BL43: =SUM(AY43,BA43,BC43,BE43) -> 109.59
D44: NPgY | E44: 5.929051988 | F44: 12 | G44: 43.39694656 | H44: 14 | I44: 8.811673152 | J44: 11 | K44: 47.90960452 | L44: 13 | M44: 0.6958079096 | N44: =M44*'Guide & drivers'!$D$28 -> 0.8056726157 | O44: Amber | P44: 12.5 | Q44: 14 | R44: 106.0472762 | T44: NPgY | U44: 5.449211356 | V44: 11 | W44: 47.31283906 | X44: 9 | Y44: 8.455755677 | Z44: 12 | AA44: 55.8582996 | AB44: 7 | AC44: 0.6 | AD44: =AC44*'Guide & drivers'!$D$28 -> 0.6947371002 | AE44: Amber | AF44: 9.75 | AG44: 10 | AH44: 117.0761057 | AI44: NPgY | AJ44: 7.84 | AK44: 13 | AL44: 47.07 | AM44: 12 | AN44: 16.81 | AO44: 14 | AP44: 55.51 | AQ44: 10 | AR44: 0.06 | AS44: =AR44*'Guide & drivers'!C35 -> 0.06947371002 | AT44: Red | AU44: 12.25 | AV44: 13 | AW44: 127.23 | AY44: 6.81 | AZ44: 12 | BA44: 41.36 | BB44: 11 | BC44: 15.14 | BD44: 14 | BE44: 48.04 | BF44: 9 | BG44: 0.3528 | BH44: 0.4085054149 | BI44: Amber | BJ44: 11.5 | BK44: 13 | BL44: 111.35
D45: WMID | E45: 4.8 | F45: 7 | G45: 34.32 | H45: 7 | I45: 6.11 | J45: 4 | K45: 44.8 | L45: 8 | M45: 1.3474 | N45: =M45*'Guide & drivers'!$D$28 -> 1.560147948 | O45: Green | P45: 6.5 | Q45: 5 | R45: 90.03 | T45: WMID | U45: 4.516757011 | V45: 6 | W45: 37.18447876 | X45: 6 | Y45: 6.083300114 | Z45: 4 | AA45: 47.50359726 | AB45: 6 | AC45: 1.15 | AD45: =AC45*'Guide & drivers'!$D$28 -> 1.331579442 | AE45: Green | AF45: 5.5 | AG45: 6 | AH45: 95.28813314 | AI45: WMID | AJ45: 4.14 | AK45: 6 | AL45: 28.08 | AM45: 3 | AN45: 4.47 | AO45: 1 | AP45: 40.28 | AQ45: 6 | AR45: 1.57 | AS45: =AR45*'Guide & drivers'!C35 -> 1.817895412 | AT45: Green | AU45: 4 | AV45: 3 | AW45: 76.97 | AY45: 4.867473602 | AZ45: 8 | BA45: 29.94631958 | BB45: 4 | BC45: 5.705698967 | BD45: 4 | BE45: 37.60849762 | BF45: 6 | BG45: 1.6 | BH45: 1.852632267 | BI45: Green | BJ45: 5.5 | BK45: 5 | BL45: 78.12798977
D46: EMID | E46: 3.48 | F46: 3 | G46: 31.89 | H46: 4 | I46: 5.2 | J46: 3 | K46: 41.25 | L46: 5 | M46: 1.5435 | N46: =M46*'Guide & drivers'!$D$28 -> 1.78721119 | O46: Green | P46: 3.75 | Q46: 2 | R46: 81.82 | T46: EMID | U46: 3.475764751 | V46: 3 | W46: 34.40456009 | X46: 4 | Y46: 4.734363079 | Z46: 1 | AA46: 45.77630234 | AB46: 5 | AC46: 1.31 | AD46: =AC46*'Guide & drivers'!$D$28 -> 1.516842669 | AE46: Green | AF46: 3.25 | AG46: 1 | AH46: 88.39099026 | AI46: EMID | AJ46: 3.51 | AK46: 4 | AL46: 28.16 | AM46: 4 | AN46: 4.91 | AO46: 2 | AP46: 35.42 | AQ46: 4 | AR46: 1.6 | AS46: =AR46*'Guide & drivers'!C35 -> 1.852632267 | AT46: Green | AU46: 3.5 | AV46: 1 | AW46: 72 | AY46: 3.63255024 | AZ46: 5 | BA46: 30.38181877 | BB46: 5 | BC46: 5.293838978 | BD46: 1 | BE46: 35.40050507 | BF46: 4 | BG46: 1.6 | BH46: 1.852632267 | BI46: Green | BJ46: 3.75 | BK46: 2 | BL46: 74.70871305
D47: SWALES | E47: 8.37 | F47: 14 | G47: 30.26 | H47: 1 | I47: 11.1 | J47: 14 | K47: 34.55 | L47: 1 | M47: 0.4571 | N47: =M47*'Guide & drivers'!$D$28 -> 0.5292738809 | O47: Amber | P47: 7.5 | Q47: 7 | R47: 84.28 | T47: SWALES | U47: 4.298858166 | V47: 5 | W47: 33.75547409 | X47: 3 | Y47: 5.778291225 | Z47: 2 | AA47: 42.5506897 | AB47: 3 | AC47: 0.67 | AD47: =AC47*'Guide & drivers'!$D$28 -> 0.7757897619 | AE47: Green | AF47: 3.25 | AG47: 1 | AH47: 86.38331318 | AI47: SWALES | AJ47: 3.3 | AK47: 2 | AL47: 28.35 | AM47: 5 | AN47: 4.93 | AO47: 3 | AP47: 38.51 | AQ47: 5 | AR47: 0.74 | AS47: =AR47*'Guide & drivers'!C35 -> 0.8568424236 | AT47: Green | AU47: 3.75 | AV47: 2 | AW47: 75.09 | AY47: 3.612288237 | AZ47: 4 | BA47: 27.12729645 | BB47: 2 | BC47: 6.367875576 | BD47: 6 | BE47: 34.06459427 | BF47: 3 | BG47: 0.8 | BH47: 0.9263161336 | BI47: Green | BJ47: 3.75 | BK47: 2 | BL47: 71.17205453
D48: SWEST | E48: 6.64 | F48: 13 | G48: 32.01 | H48: 5 | I48: 7.87 | J48: 10 | K48: 37.68 | L48: 3 | M48: 1.1355 | N48: =M48*'Guide & drivers'!$D$28 -> 1.314789962 | O48: Green | P48: 7.75 | Q48: 10 | R48: 84.2 | T48: SWEST | U48: 5.15520525 | V48: 8 | W48: 36.52682114 | X48: 5 | Y48: 5.863285065 | Z48: 3 | AA48: 43.38860703 | AB48: 4 | AC48: 0.95 | AD48: =AC48*'Guide & drivers'!$D$28 -> 1.100000409 | AE48: Green | AF48: 5 | AG48: 5 | AH48: 90.93391848 | AI48: SWEST | AJ48: 4.87 | AK48: 9 | AL48: 25.73 | AM48: 1 | AN48: 5.4 | AO48: 4 | AP48: 29.92 | AQ48: 2 | AR48: 1.2 | AS48: =AR48*'Guide & drivers'!C35 -> 1.3894742 | AT48: Green | AU48: 4 | AV48: 3 | AW48: 65.92 | AY48: 5.370464325 | AZ48: 9 | BA48: 27.41638947 | BB48: 3 | BC48: 5.609411716 | BD48: 3 | BE48: 33.39303589 | BF48: 2 | BG48: 1.2 | BH48: 1.3894742 | BI48: Green | BJ48: 4.25 | BK48: 4 | BL48: 71.7893014
D49: LPN | E49: 3.64244898 | F49: 4 | G49: 41.29574468 | H49: 12 | I49: 4.729618768 | J49: 1 | K49: 46.79542396 | L49: 11 | M49: 0.7416191804 | N49: =M49*'Guide & drivers'!$D$28 -> 0.8587172648 | O49: Green | P49: 7 | Q49: 6 | R49: 96.46323639 | T49: LPN | U49: 5.37 | V49: 10 | W49: 59.64 | X49: 14 | Y49: 8.38 | Z49: 11 | AA49: 57.85 | AB49: 9 | AC49: 0.6 | AD49: =AC49*'Guide & drivers'!$D$28 -> 0.6947371002 | AE49: Amber | AF49: 11 | AG49: 12 | AH49: 131.24 | AI49: LPN | AJ49: 5.734031414 | AK49: 10 | AL49: 40.97727273 | AM49: 8 | AN49: 7.368633791 | AO49: 6 | AP49: 45.04388298 | AQ49: 7 | AR49: 0.79 | AS49: =AR49*'Guide & drivers'!C35 -> 0.914737182 | AT49: Green | AU49: 7.75 | AV49: 7 | AW49: 99.12382091 | AY49: 5.391160221 | AZ49: 10 | BA49: 34.06010929 | BB49: 8 | BC49: 6.973474801 | BD49: 8 | BE49: 43.08343711 | BF49: 8 | BG49: 1.032927979 | BH49: 1.196022315 | BI49: Green | BJ49: 8.5 | BK49: 8 | BL49: 89.50818142
D50: SPN | E50: 4.624687239 | F50: 6 | G50: 37.6561939 | H50: 10 | I50: 7.345218801 | J50: 8 | K50: 45.30828025 | L50: 10 | M50: 0.880548578 | N50: =M50*'Guide & drivers'!$D$28 -> 1.019582943 | O50: Green | P50: 8.5 | Q50: 11 | R50: 94.93438019 | T50: SPN | U50: 5.57 | V50: 12 | W50: 52.91 | X50: 12 | Y50: 6.52 | Z50: 6 | AA50: 66.43 | AB50: 13 | AC50: 0.6 | AD50: =AC50*'Guide & drivers'!$D$28 -> 0.6947371002 | AE50: Amber | AF50: 10.75 | AG50: 11 | AH50: 131.43 | AI50: SPN | AJ50: 5.748065015 | AK50: 11 | AL50: 36.50903832 | AM50: 7 | AN50: 9.797826087 | AO50: 10 | AP50: 46.02680653 | AQ50: 8 | AR50: 0.9 | AS50: =AR50*'Guide & drivers'!C35 -> 1.04210565 | AT50: Green | AU50: 9 | AV50: 10 | AW50: 98.08173595 | AY50: 7.122287968 | AZ50: 13 | BA50: 39.25501433 | BB50: 9 | BC50: 9.400570885 | BD50: 10 | BE50: 51.56063618 | BF50: 11 | BG50: 0.5924478919 | BH50: 0.6859925508 | BI50: Green | BJ50: 10.75 | BK50: 10 | BL50: 107.3385094
D51: EPN | E51: 5.560302162 | F51: 9 | G51: 42.76034483 | H51: 13 | I51: 9.705137751 | J51: 13 | K51: 51.00676329 | L51: 14 | M51: 1.067729469 | N51: =M51*'Guide & drivers'!$D$28 -> 1.236318791 | O51: Amber | P51: 12.25 | Q51: 13 | R51: 109.032548 | T51: EPN | U51: 6.12 | V51: 14 | W51: 54.17 | X51: 13 | Y51: 9.76 | Z51: 14 | AA51: 67.37 | AB51: 14 | AC51: 1 | AD51: =AC51*'Guide & drivers'!$D$28 -> 1.157895167 | AE51: Amber | AF51: 13.75 | AG51: 14 | AH51: 137.42 | AI51: EPN | AJ51: 7.240318302 | AK51: 12 | AL51: 43.22931985 | AM51: 9 | AN51: 11.46362253 | AO51: 12 | AP51: 49.01349693 | AQ51: 9 | AR51: 0.48 | AS51: =AR51*'Guide & drivers'!C35 -> 0.5557896802 | AT51: Amber | AU51: 10.5 | AV51: 11 | AW51: 110.9467576 | AY51: 7.144962406 | AZ51: 14 | BA51: 41.90106802 | BB51: =RANK(BA51,$BA$42:$BA$55,1) -> 12 | BC51: 9.982537517 | BD51: 12 | BE51: 52.47799386 | BF51: 12 | BG51: 0.7947366193 | BH51: 0.9202216906 | BI51: Green | BJ51: 12.5 | BK51: 14 | BL51: 111.5065618
D52: SPD | E52: 5.24955595 | F52: 8 | G52: 35.73757455 | H52: 9 | I52: 7.325987144 | J52: 7 | K52: 42.42203742 | L52: 6 | M52: 0.962 | N52: =M52*'Guide & drivers'!$D$28 -> 1.113895151 | O52: Green | P52: 7.5 | Q52: 7 | R52: 90.73515507 | T52: SPD | U52: 4.92173189 | V52: 7 | W52: 51.10739191 | X52: 11 | Y52: 6.309927361 | Z52: 5 | AA52: 63.96688742 | AB52: 12 | AC52: 0.6 | AD52: =AC52*'Guide & drivers'!$D$28 -> 0.6947371002 | AE52: Amber | AF52: 8.75 | AG52: 9 | AH52: 126.3059386 | AI52: SPD | AJ52: 3.208126858 | AK52: 1 | AL52: 58.93573668 | AM52: 14 | AN52: 7.006410256 | AO52: 5 | AP52: 69.57369255 | AQ52: 14 | AR52: 0.6 | AS52: =AR52*'Guide & drivers'!C35 -> 0.6947371002 | AT52: Amber | AU52: 8.5 | AV52: 8 | AW52: 138.7239663 | AY52: 2.850731707 | AZ52: 1 | BA52: 54.30344828 | BB52: 14 | BC52: 5.744360902 | BD52: 5 | BE52: 69.34831461 | BF52: 14 | BG52: 0.6 | BH52: 0.6947371002 | BI52: Amber | BJ52: 8.5 | BK52: =RANK(BJ52,$BJ$42:$BJ$55,1) -> 8 | BL52: 132.2468555
D53: SPMW | E53: 5.607876712 | F53: 10 | G53: 35.55913978 | H53: 8 | I53: 6.881982691 | J53: 5 | K53: 43.46067416 | L53: 7 | M53: 1.008 | N53: =M53*'Guide & drivers'!$D$28 -> 1.167158328 | O53: Green | P53: 7.5 | Q53: 7 | R53: 91.50967335 | T53: SPMW | U53: 5.315705128 | V53: 9 | W53: 45.25950413 | X53: 8 | Y53: 6.839459865 | Z53: 7 | AA53: 59.76293823 | AB53: 10 | AC53: 0.6 | AD53: =AC53*'Guide & drivers'!$D$28 -> 0.6947371002 | AE53: Amber | AF53: 8.5 | AG53: 8 | AH53: 117.1776074 | AI53: SPMW | AJ53: 4.792436975 | AK53: 8 | AL53: 44.72089314 | AM53: 10 | AN53: 10.09006211 | AO53: 11 | AP53: 65.87636364 | AQ53: 13 | AR53: 0.6 | AS53: =AR53*'Guide & drivers'!C35 -> 0.6947371002 | AT53: Amber | AU53: 10.5 | AV53: 11 | AW53: 125.4797559 | AY53: 4.82605178 | AZ53: 7 | BA53: 52.7539185 | BB53: 13 | BC53: 9.629381059 | BD53: 11 | BE53: 66.55190311 | BF53: 13 | BG53: 0.6 | BH53: 0.6947371002 | BI53: Amber | BJ53: 11 | BK53: 11 | BL53: 133.7612544
D54: SSEH | E54: 2.5 | F54: 1 | G54: 31.5 | H54: 3 | I54: 5.1 | J54: 2 | K54: 40.02 | L54: 4 | M54: 0.8 | N54: =M54*'Guide & drivers'!$D$28 -> 0.9263161336 | O54: Green | P54: 2.5 | Q54: 1 | R54: 79.12 | T54: SSEH | U54: 3.552147239 | V54: 4 | W54: 29.97927461 | X54: 1 | Y54: 7.220560748 | Z54: 8 | AA54: 40.43773585 | AB54: 2 | AC54: 0.8 | AD54: =AC54*'Guide & drivers'!$D$28 -> 0.9263161336 | AE54: Green | AF54: 3.75 | AG54: 3 | AH54: 81.18971845 | AI54: SSEH | AJ54: 4.22214941 | AK54: 7 | AL54: 27.83704735 | AM54: 2 | AN54: 9.015625 | AO54: 8 | AP54: 28.75909091 | AQ54: 1 | AR54: 0.8 | AS54: =AR54*'Guide & drivers'!C35 -> 0.9263161336 | AT54: Green | AU54: 4.5 | AV54: 5 | AW54: 69.83391267 | AY54: 2.86 | AZ54: 2 | BA54: 22.1 | BB54: 1 | BC54: 5.34 | BD54: 2 | BE54: 27.8 | BF54: 1 | BG54: 0.8 | BH54: 0.9263161336 | BI54: Green | BJ54: 1.5 | BK54: 1 | BL54: 58.1
D55: SSES | E55: 2.66 | F55: 2 | G55: 33.18 | H55: 6 | I55: 6.94 | J55: 6 | K55: 45.04 | L55: 9 | M55: 1.3858 | N55: =M55*'Guide & drivers'!$D$28 -> 1.604611123 | O55: Green | P55: 5.75 | Q55: 4 | R55: 87.82 | T55: SSES | U55: 2.688902743 | V55: 1 | W55: 44.29316389 | X55: 7 | Y55: 7.228643216 | Z55: 9 | AA55: 63.68382353 | AB55: 11 | AC55: 0.8 | AD55: =AC55*'Guide & drivers'!$D$28 -> 0.9263161336 | AE55: Amber | AF55: 7 | AG55: 7 | AH55: 117.8945334 | AI55: SSES | AJ55: 3.414524301 | AK55: 3 | AL55: 45.71127332 | AM55: 11 | AN55: 9.283271375 | AO55: 9 | AP55: 64.00564972 | AQ55: 12 | AR55: 0.8 | AS55: =AR55*'Guide & drivers'!C35 -> 0.9263161336 | AT55: Amber | AU55: 8.75 | AV55: 9 | AW55: 122.4147187 | AY55: 3.11 | AZ55: 3 | BA55: 31.84 | BB55: 6 | BC55: 8.65 | BD55: 9 | BE55: 40.29 | BF55: 7 | BG55: 1.5723 | BH55: 1.820558571 | BI55: Green | BJ55: 6.25 | BK55: 6 | BL55: 83.89
D56: Industry Average Score/Total Reward | E56: =AVERAGE(E42:E55) -> 4.913018774 | G56: 35.71963442 | I56: 7.438419017 | K56: 43.1603969 | M56: =SUM(M42:M55) -> 13.77524515 | N56: =SUM(N42:N55) -> 15.95028979 | T56: Industry Average Score/Total Reward | U56: =AVERAGE(U42:U55) -> 4.641116624 | W56: =AVERAGE(W42:W55) -> 43.50555453 | Y56: =AVERAGE(Y42:Y55) -> 7.178433711 | AA56: =AVERAGE(AA42:AA55) -> 53.13871612 | AC56: =SUM(AC42:AC55) -> 11.28 | AD56: =SUM(AD42:AD55) -> 13.06105748 | AF56: Industry Average Score/Total Reward | AJ56: =AVERAGE(AJ42:AJ55) -> 4.979260877 | AL56: =AVERAGE(AL42:AL55) -> 38.62718439 | AN56: =AVERAGE(AN42:AN55) -> 8.906817939 | AP56: =AVERAGE(AP42:AP55) -> 47.51635595 | AR56: =SUM(AR42:AR55) -> 11.37 | AS56: =SUM(AS42:AS55) -> 13.16526805 | AU56: Industry Average Score/Total Reward | AY56: =AVERAGE(AY42:AY55) -> 4.829855035 | BA56: =AVERAGE(BA42:BA55) -> 36.17609876 | BC56: =AVERAGE(BC42:BC55) -> 8.001225029 | BE56: =AVERAGE(BE42:BE55) -> 44.71706555 | BG56: =SUM(BG42:BG55) -> 13.02671249 | BH56: =SUM(BH42:BH55) -> 15.08356744
D57: Target | E57: 8.21 | G57: 42.08 | I57: 11.73 | K57: 52.7 | T57: Target | U57: 8.21 | W57: 42.08 | Y57: 11.73 | AA57: 52.7 | AI57: Target | AJ57: 8.21 | AL57: 42.08 | AN57: 11.73 | AP57: 52.7 | AX57: Target | AY57: 8.21 | BA57: 42.08 | BC57: 11.73 | BE57: 52.7
D58: Maximum Reward score | E58: 6.4 | G58: 32.47 | I58: 10.12 | K58: 39.91 | T58: Maximum Reward score | U58: 6.4 | W58: 32.47 | Y58: 10.12 | AA58: 39.91 | AI58: Maximum Reward score | AJ58: =E58 -> 6.4 | AK58: =G58 -> 32.47 | AL58: =I58 -> 10.12 | AM58: =K58 -> 39.91 | AT58: =U58 -> 6.4 | AX58: Maximum Reward score | BD58: =AJ58 -> 6.4 | BE58: =AK58 -> 32.47 | BF58: =AL58 -> 10.12 | BG58: =AM58 -> 39.91 | BN58: =AT58 -> 6.4 | BO58: =AU58 -> 0 | BP58: =AV58 -> 0 | BQ58: =AW58 -> 0 | BX58: =BD58 -> 6.4 | BY58: =BE58 -> 32.47 | BZ58: =BF58 -> 10.12 | CA58: =BG58 -> 39.91 | CH58: =BN58 -> 6.4 | CI58: =BO58 -> 0 | CJ58: =BP58 -> 0 | CK58: =BQ58 -> 0
D59: 105% of target | E59: =E57*1.05 -> 8.6205 | G59: =G57*1.05 -> 44.184 | I59: =I57*1.05 -> 12.3165 | K59: =K57*1.05 -> 55.335 | T59: 105% of target | U59: =U57*1.05 -> 8.6205 | W59: =W57*1.05 -> 44.184 | Y59: =Y57*1.05 -> 12.3165 | AA59: =AA57*1.05 -> 55.335 | AH59: 105% of target | AJ59: =AJ57*1.05 -> 8.6205 | AL59: =AL57*1.05 -> 44.184 | AN59: =AN57*1.05 -> 12.3165 | AP59: =AP57*1.05 -> 55.335 | AW59: 105% of target | AY59: =AY57*1.05 -> 8.6205 | BA59: =BA57*1.05 -> 44.184 | BC59: =BC57*1.05 -> 12.3165 | BE59: =BE57*1.05 -> 55.335
D61: Time to Connect improvements from 2013
E62: 2015/16 | L62: 2016/17 | S62: 2017/18 | Z62: 2018/19 | AG62: 2019/20 | AN62: 2020/21 | AU62: 2021/22 | BB62: 2022/23
E63: LVSSA | H63: LVSSB | L63: LVSSA | O63: LVSSB | S63: LVSSA | V63: LVSSB | Z63: LVSSA | AC63: LVSSB | AG63: LVSSA | AJ63: LVSSB | AN63: LVSSA | AQ63: LVSSB | AU63: LVSSA | AX63: LVSSB | BB63: LVSSA | BE63: LVSSB
E64: Average Time to Quote | F64: Time to Connect | G64: Overall | H64: Average Time to Quote | I64: Time to Connect | J64: Overall | L64: Average Time to Quote | M64: Time to Connect | N64: Overall | O64: Average Time to Quote | P64: Time to Connect | Q64: Overall | S64: Average Time to Quote | T64: Time to Connect | U64: Overall | V64: Average Time to Quote | W64: Time to Connect | X64: Overall | Z64: Average Time to Quote | AA64: Time to Connect | AB64: Overall | AC64: Average Time to Quote | AD64: Time to Connect | AE64: Overall | AG64: Average Time to Quote | AH64: Time to Connect | AI64: Overall | AJ64: Average Time to Quote | AK64: Time to Connect | AL64: Overall | AN64: Average Time to Quote | AO64: Time to Connect | AP64: Overall | AQ64: Average Time to Quote | AR64: Time to Connect | AS64: Overall | AU64: Average Time to Quote | AV64: Time to Connect | AW64: Overall | AX64: Average Time to Quote | AY64: Time to Connect | AZ64: Overall | BB64: Average Time to Quote | BC64: Time to Connect | BD64: Overall | BE64: Average Time to Quote | BF64: Time to Connect | BG64: Overall
D65: ENWL | E65: 3.523335197 | F65: 43.79341055 | G65: 47.31674575 | H65: 4.083818411 | I65: 45.79215901 | J65: 49.87597742 | L65: 4.565776603 | M65: 42.24530686 | N65: 46.81108347 | O65: 3.602331821 | P65: 51.00187944 | Q65: 54.60421126 | S65: 3.825776603 | T65: 42.4354015 | U65: 46.2611781 | V65: 3.26789549 | W65: 48.39387944 | X65: 51.66177493 | Z65: 3.805776603 | AA65: 41.2854015 | AB65: 45.0911781 | AC65: 4.72789549 | AD65: 47.00387944 | AE65: 51.73177493
D66: NPgN | E66: 5.407092376 | F66: 11.4797201 | G66: 16.88681248 | H66: 10.23449286 | I66: 5.570614035 | J66: 15.8051069 | L66: 5.541641571 | M66: 1.002505593 | N66: 6.544147164 | O66: 10.40974178 | P66: -4.999478042 | Q66: 5.410263742 | S66: 3.132990777 | T66: -2.123333333 | U66: 1.009657444 | V66: 3.918663717 | W66: -10.31833333 | X66: -6.399669617 | Z66: 4.822990777 | AA66: 10.47666667 | AB66: 15.29965744 | AC66: 8.428663717 | AD66: 1.941666667 | AE66: 10.37033038
D67: NPgY | E67: 5.193938789 | F67: 4.234720102 | G67: 9.428658891 | H67: 10.50699056 | I67: 11.71872881 | J67: 22.22571938 | L67: 5.673779421 | M67: 0.318827607 | N67: 5.992607028 | O67: 10.86290804 | P67: 3.770033738 | Q67: 14.63294178 | S67: 3.282990777 | T67: 0.5616666667 | U67: 3.844657444 | V67: 2.508663717 | W67: 4.118333333 | X67: 6.62699705 | Z67: 4.312990777 | AA67: 6.271666667 | AB67: 10.58465744 | AC67: 4.178663717 | AD67: 11.58833333 | AE67: 15.76699705
D68: WMID | E68: 4.272990777 | F68: 17.82 | G68: 22.09299078 | H68: 11.04199705 | I68: 11.72 | J68: 22.76199705 | L68: 4.556233766 | M68: 14.95552124 | N68: 19.51175501 | O68: 11.06869694 | P68: 9.01640274 | Q68: 20.08509968 | S68: 4.932990777 | T68: 24.06 | U68: 28.99299078 | V68: 12.68199705 | W68: 16.24 | X68: 28.92199705 | Z68: 4.205517175 | AA68: 22.19368042 | AB68: 26.39919759 | AC68: 11.44629808 | AD68: 18.91150238 | AE68: 30.35780046
D69: EMID | E69: 4.762990777 | F69: 12.33 | G69: 17.09299078 | H69: 9.19199705 | I69: 13.85 | J69: 23.04199705 | L69: 4.767226026 | M69: 9.815439911 | N69: 14.58266594 | O69: 9.657633971 | P69: 9.323697662 | Q69: 18.98133163 | S69: 4.732990777 | T69: 16.06 | U69: 20.79299078 | V69: 9.48199705 | W69: 19.68 | X69: 29.16199705 | Z69: 4.610440538 | AA69: 13.83818123 | AB69: 18.44862177 | AC69: 9.098158072 | AD69: 19.69949493 | AE69: 28.79765301
D70: SWALES | E70: -1.257009223 | F70: 11.81 | G70: 10.55299078 | H70: -1.24800295 | I70: 21.55 | J70: 20.30199705 | L70: 2.814132611 | M70: 8.314525909 | N70: 11.12865852 | O70: 4.073705825 | P70: 13.5493103 | Q70: 17.62301613 | S70: 3.812990777 | T70: 13.72 | U70: 17.53299078 | V70: 4.92199705 | W70: 17.59 | X70: 22.51199705 | Z70: 3.500702541 | AA70: 14.94270355 | AB70: 18.44340609 | AC70: 3.484121474 | AD70: 22.03540573 | AE70: 25.51952721
D71: SWEST | E71: 0.8729907772 | F71: 11.59 | G71: 12.46299078 | H71: 2.25199705 | I71: 19.79 | J71: 22.04199705 | L71: 2.357785527 | M71: 7.073178864 | N71: 9.430964391 | O71: 4.258711985 | P71: 14.08139297 | Q71: 18.34010496 | S71: 2.642990777 | T71: 17.87 | U71: 20.51299078 | V71: 4.72199705 | W71: 27.55 | X71: 32.27199705 | Z71: 2.142526452 | AA71: 16.18361053 | AB71: 18.32613699 | AC71: 4.512585334 | AD71: 24.07696411 | AE71: 28.58954944
D72: LPN | E72: 6.07755102 | F72: 7.734255319 | G72: 13.81180634 | H72: 11.37038123 | I72: 23.02457604 | J72: 34.39495727 | L72: 4.35 | M72: -10.61 | N72: -6.26 | O72: 7.72 | P72: 11.97 | Q72: 19.69 | S72: 3.985968586 | T72: 8.052727273 | U72: 12.03869586 | V72: 8.731366209 | W72: 24.77611702 | X72: 33.50748323 | Z72: 4.328839779 | AA72: 14.96989071 | AB72: 19.29873049 | AC72: 9.126525199 | AD72: 26.73656289 | AE72: 35.86308809
D73: SPN | E73: 5.775312761 | F73: 11.4338061 | G73: 17.20911886 | H73: 10.5447812 | I73: 18.23171975 | J73: 28.77650094 | L73: 4.83 | M73: -3.82 | N73: 1.01 | O73: 11.37 | P73: -2.89 | Q73: 8.48 | S73: 4.651934985 | T73: 12.58096168 | U73: 17.23289666 | V73: 8.092173913 | W73: 17.51319347 | X73: 25.60536739 | Z73: 3.277712032 | AA73: 9.834985673 | AB73: 13.1126977 | AC73: 8.489429115 | AD73: 11.97936382 | AE73: 20.46879293
D74: EPN | E74: 4.499697838 | F74: -0.5103448276 | G74: 3.98935301 | H74: 5.914862249 | I74: 2.693236715 | J74: 8.608098964 | L74: 3.94 | M74: -11.92 | N74: -7.98 | O74: 5.86 | P74: -13.67 | Q74: -7.81 | S74: 2.819681698 | T74: -0.9793198529 | U74: 1.840361845 | V74: 4.156377473 | W74: 4.686503067 | X74: 8.842880541 | Z74: 2.915037594 | AA74: 0.3489319843 | AB74: 3.263969578 | AC74: 5.637462483 | AD74: 1.222006141 | AE74: 6.859468624
D75: SPD | E75: 4.574434157 | F75: 6.391408755 | G75: 10.96584291 | H75: 6.171719278 | I75: 2.598634413 | J75: 8.77035369 | L75: 4.902258217 | M75: -8.978408603 | N75: -4.076150386 | O75: 7.187779061 | P75: -18.94621558 | Q75: -11.75843652 | S75: 6.615863249 | T75: -16.80675337 | U75: -10.19089012 | V75: 6.491296166 | W75: -24.55302072 | X75: -18.06172455 | Z75: 6.9732584 | AA75: -12.17446497 | AB75: -5.201206568 | AC75: 7.75334552 | AD75: -24.32764277 | AE75: -16.57429725
D76: SPMW | E76: 3.668890964 | F76: 1.269745615 | G76: 4.93863658 | H76: 4.161614039 | I76: 2.508318091 | J76: 6.66993213 | L76: 3.961062549 | M76: -8.430618732 | N76: -4.469556183 | O76: 4.204136865 | P76: -13.79394598 | Q76: -9.589809117 | S76: 4.484330702 | T76: -7.892007742 | U76: -3.40767704 | V76: 0.9535346184 | W76: -19.90737139 | X76: -18.95383677 | Z76: 4.450715897 | AA76: -15.92503309 | AB76: -11.4743172 | AC76: 1.414215671 | AD76: -20.58291087 | AE76: -19.16869519
D77: SSEH | E77: 6.278027356 | F77: 3.581850534 | G77: 9.859877889 | H77: 8.599600464 | I77: 12.68906631 | J77: 21.28866677 | L77: 5.225880116 | M77: 5.102575922 | N77: 10.32845604 | O77: 6.479039717 | P77: 12.27133046 | Q77: 18.75037017 | S77: 4.555877945 | T77: 7.24480318 | U77: 11.80068113 | V77: 4.683975464 | W77: 23.9499754 | X77: 28.63395086 | Z77: 5.918027356 | AA77: 12.98185053 | AB77: 18.89987789 | AC77: 8.359600464 | AD77: 24.90906631 | AE77: 33.26866677
D78: SSES | E78: 5.533227827 | F78: 6.316136364 | G78: 11.84936419 | H78: 5.432283935 | I78: 2.147936191 | J78: 7.580220127 | L78: 5.504325084 | M78: -4.797027528 | N78: 0.7072975564 | O78: 5.143640719 | P78: -16.49588734 | Q78: -11.35224662 | S78: 4.778703526 | T78: -6.215136953 | U78: -1.436433427 | V78: 3.08901256 | W78: -16.81771353 | X78: -13.72870097 | Z78: 5.083227827 | AA78: 7.656136364 | AB78: 12.73936419 | AC78: 3.722283935 | AD78: 6.897936191 | AE78: 10.62022013
D79: Industry Average | E79: =AVERAGE(E65:E78) -> 4.227390814 | F79: 10.66247919 | G79: 14.88987 | H79: 7.018466603 | I79: 13.84892781 | J79: 20.86739441 | L79: =AVERAGE(L65:L78) -> 4.499292964 | M79: 2.876559075 | N79: 7.375852039 | O79: 7.278451909 | P79: 3.870608598 | Q79: 11.14906051 | S79: 4.161148711 | T79: 7.754929218 | U79: 11.91607793 | V79: 5.55006768 | W79: 9.492968769 | X79: 15.04303645 | Z79: 4.310554553 | AA79: 10.20601484 | AB79: 14.51656939 | AC79: 6.455660591 | AD79: 12.29225916 | AE79: 18.74791976
D80: *2015/16 targets in cells E57:K57 | L80: *2016/17 targets in cells U57:AA57 | S80: *2017/18 targets in cells AJ57:AP57 | Z80: *2018/19 targets in cells AY57:BE57
B82: Connections Guaranteed Standards of Performance (GSOPs) | D82: Connections Guaranteed Standard of Performance
E83: 2015/16 | L83: 2016/17 | S83: 2017/18 | Z83: 2018/19 | AG83: 2019/20 | AN83: 2020/21 | AU83: 2021/22 | BB83: 2022/23
E84: Total number of cases where the Connection GSOPs apply | F84: Total number of cases where the Connection GSOPs apply and the standard was not met | G84: Total penalties paid against the Connection GSOPs (£) (2018/19 prices) | H84: % of total cases when standard not met | I84: RAG | J84: Ranking | L84: Total number of cases where the Connection GSOPs apply | M84: Total number of cases where the Connection GSOPs apply and the standard was not met | N84: Total penalties paid against the Connection GSOPs (£) (2018/19 prices) | O84: % of total cases when standard not met | P84: RAG | Q84: Ranking | S84: Total number of cases where the Connection GSOPs apply | T84: Total number of cases where the Connection GSOPs apply and the standard was not met | U84: Total penalties paid against the Connection GSOPs (£) (2018/19 prices) | V84: % of total cases when standard not met | W84: RAG | X84: Ranking | Z84: Total number of cases where the Connection GSOPs apply | AA84: Total number of cases where the Connection GSOPs apply and the standard was not met | AB84: Total penalties paid against the Connection GSOPs (£) | AC84: % of total cases when standard not met | AD84: RAG | AE84: Ranking | AG84: Total number of cases where the Connection GSOPs apply | AH84: Total number of cases where the Connection GSOPs apply and the standard was not met | AI84: Total penalties paid against the Connection GSOPs (£) | AJ84: % of total cases when standard not met | AK84: RAG | AL84: Ranking | AN84: Total number of cases where the Connection GSOPs apply | AO84: Total number of cases where the Connection GSOPs apply and the standard was not met | AP84: Total penalties paid against the Connection GSOPs (£) | AQ84: % of total cases when standard not met | AR84: RAG | AS84: Ranking | AU84: Total number of cases where the Connection GSOPs apply | AV84: Total number of cases where the Connection GSOPs apply and the standard was not met | AW84: Total penalties paid against the Connection GSOPs (£) | AX84: % of total cases when standard not met | AY84: RAG | AZ84: Ranking | BB84: Total number of cases where the Connection GSOPs apply | BC84: Total number of cases where the Connection GSOPs apply and the standard was not met | BD84: Total penalties paid against the Connection GSOPs (£) | BE84: % of total cases when standard not met | BF84: RAG | BG84: Ranking
D85: ENWL | E85: 21541 | F85: 338 | G85: 104294.0973 | H85: =F85/E85 -> 0.01569100785 | I85: =IF(H85<=2%,"Green",IF(H85:H85>5%,"Red","Amber")) -> Green | J85: =RANK(H85,$H$85:$H$98,1) -> 14 | L85: 19435 | M85: 179 | N85: 45464.28836 | O85: =M85/L85 -> 0.009210187806 | P85: =IF(O85<=2%,"Green",IF(O85:O85>5%,"Red","Amber")) -> Green | Q85: =RANK(O85,O$85:O$98,1) -> 14 | S85: 19960 | T85: 59 | U85: 10692.01515 | V85: =T85/S85 -> 0.002955911824 | W85: =IF(V85<=2%,"Green",IF(V85:V85>5%,"Red","Amber")) -> Green | X85: =RANK(V85,V$85:V$98,1) -> 9 | Z85: 20857 | AA85: 22 | AB85: 6450 | AC85: =AA85/Z85 -> 0.001054801745 | AD85: =IF(AC85<=2%,"Green",IF(AC85:AC85>5%,"Red","Amber")) -> Green | AE85: =RANK(AC85,AC$85:AC$98,1) -> 7
D86: NPgN | E86: 25025 | F86: 32 | G86: 4444.552389 | H86: =F86/E86 -> 0.001278721279 | I86: =IF(H86<=2%,"Green",IF(H86:H86>5%,"Red","Amber")) -> Green | J86: =RANK(H86,$H$85:$H$98,1) -> 9 | L86: 21151 | M86: 66 | N86: 10092.484 | O86: =M86/L86 -> 0.003120419838 | P86: =IF(O86<=2%,"Green",IF(O86:O86>5%,"Red","Amber")) -> Green | Q86: =RANK(O86,O$85:O$98,1) -> 10 | S86: 22582 | T86: 110 | U86: 26985.1004 | V86: =T86/S86 -> 0.004871136303 | W86: =IF(V86<=2%,"Green",IF(V86:V86>5%,"Red","Amber")) -> Green | X86: =RANK(V86,V$85:V$98,1) -> 11 | Z86: 18686 | AA86: 84 | AB86: 21995 | AC86: =AA86/Z86 -> 0.004495344108 | AD86: =IF(AC86<=2%,"Green",IF(AC86:AC86>5%,"Red","Amber")) -> Green | AE86: =RANK(AC86,AC$85:AC$98,1) -> 10
D87: NPgY | E87: 35257 | F87: 29 | G87: 9784.567422 | H87: 0.0008225316958 | I87: =IF(H87<=2%,"Green",IF(H87:H87>5%,"Red","Amber")) -> Green | J87: 7 | L87: 30076 | M87: 50 | N87: 14727.11516 | O87: 0.001662455114 | P87: Green | Q87: =RANK(O87,O$85:O$98,1) -> 8 | S87: 29262 | T87: 176 | U87: 36203.42093 | V87: 0.006014626478 | W87: Green | X87: =RANK(V87,V$85:V$98,1) -> 12 | Z87: 27120 | AA87: 173 | AB87: 37740 | AC87: 0.006379056047 | AD87: Green | AE87: =RANK(AC87,AC$85:AC$98,1) -> 12
D88: WMID | E88: 36475 | F88: 0 | G88: 0 | H88: 0 | I88: Green | J88: 1 | L88: 33786 | M88: 0 | N88: 0 | O88: 0 | P88: Green | Q88: 1 | S88: 37789 | T88: 0 | U88: 0 | V88: 0 | W88: Green | X88: 1 | Z88: 36158 | AA88: 1 | AB88: 130 | AC88: 2.765639692e-05 | AD88: Green | AE88: 3
D89: EMID | E89: 36477 | F89: 3 | G89: 283.9271797 | H89: 8.224360556e-05 | I89: Green | J89: 4 | L89: 35861 | M89: 0 | N89: 0 | O89: 0 | P89: Green | Q89: 1 | S89: 37198 | T89: 0 | U89: 0 | V89: 0 | W89: Green | X89: 1 | Z89: 38018 | AA89: 0 | AB89: 0 | AC89: 0 | AD89: Green | AE89: 1
D90: SWALES | E90: 17189 | F90: 0 | G90: 0 | H90: 0 | I90: Green | J90: 1 | L90: 17373 | M90: 0 | N90: 0 | O90: 0 | P90: Green | Q90: 1 | S90: 16412 | T90: 0 | U90: 0 | V90: 0 | W90: Green | X90: 1 | Z90: 15416 | AA90: 0 | AB90: 0 | AC90: 0 | AD90: Green | AE90: 1
D91: SWEST | E91: 34727 | F91: 1 | G91: 70.98179491 | H91: 2.879603767e-05 | I91: Green | J91: 3 | L91: 35009 | M91: 0 | N91: 0 | O91: 0 | P91: Green | Q91: 1 | S91: 36429 | T91: 0 | U91: 0 | V91: 0 | W91: Green | X91: 1 | Z91: 35922 | AA91: 1 | AB91: 30 | AC91: 2.783809365e-05 | AD91: Green | AE91: 4
D92: LPN | E92: 23103 | F92: 59 | G92: 21785.9509 | H92: 0.002553780894 | I92: Green | J92: 11 | L92: 24042 | M92: 33 | N92: 3105.790892 | O92: 0.001372597954 | P92: Green | Q92: 7 | S92: 22392 | T92: 20 | U92: 6049.361823 | V92: 0.0008931761343 | W92: Green | X92: 6 | Z92: 21455 | AA92: 4 | AB92: 410 | AC92: 0.000186436728 | AD92: Green | AE92: 5
D93: SPN | E93: 28093 | F93: 106 | G93: 48163.87792 | H93: 0.003773181931 | I93: Green | J93: 12 | L93: 28894 | M93: 148 | N93: 34527.20029 | O93: 0.005122170693 | P93: Green | Q93: 13 | S93: 29614 | T93: 65 | U93: 18864.32166 | V93: 0.002194907814 | W93: Green | X93: 7 | Z93: 28627 | AA93: 42 | AB93: 13735 | AC93: 0.0014671464 | AD93: Green | AE93: 9
D94: EPN | E94: 48149 | F94: 183 | G94: 51074.13151 | H94: 0.003800701988 | I94: Green | J94: 13 | L94: 51074 | M94: 241 | N94: 51649.14216 | O94: 0.004718643537 | P94: Green | Q94: 12 | S94: 51254 | T94: 113 | U94: 17096.91868 | V94: 0.002204705974 | W94: Green | X94: 8 | Z94: 52745 | AA94: 70 | AB94: 8780 | AC94: 0.001327140013 | AD94: Green | AE94: 8
D95: SPD | E95: 14518 | F95: 23 | G95: 2762.829864 | H95: 0.001584240253 | I95: Green | J95: 10 | L95: 14270 | M95: 54 | N95: 8467.423017 | O95: 0.003784162579 | P95: Green | Q95: 11 | S95: 13973 | T95: 55 | U95: 11258.82077 | V95: 0.003936162599 | W95: Green | X95: 10 | Z95: 12718 | AA95: 133 | AB95: 50885 | AC95: 0.01045761912 | AD95: Green | AE95: 13
D96: SPMW | E96: 17438 | F96: 12 | G96: 10510.76579 | H96: 0.000688152311 | I96: Green | J96: 5 | L96: 16411 | M96: 18 | N96: 3324.960301 | O96: 0.0010968253 | P96: Green | Q96: 6 | S96: 15272 | T96: 96 | U96: 26289.47532 | V96: 0.00628601362 | W96: Green | X96: 13 | Z96: 13664 | AA96: 64 | AB96: 41645 | AC96: 0.004683840749 | AD96: Green | AE96: 11
D97: SSEH | E97: 17111 | F97: 16 | G97: 9249.473891 | H97: 0.000935071007 | I97: Green | J97: 8 | L97: 16147 | M97: 10 | N97: 6083.287495 | O97: 0.0006193100886 | P97: Green | Q97: 5 | S97: 15972 | T97: 14 | U97: 43123.6023 | V97: 0.0008765339344 | W97: Green | X97: 5 | Z97: 16295 | AA97: 17 | AB97: 14855 | AC97: 0.001043264805 | AD97: Green | AE97: 6
D98: SSES | E98: 50730 | F98: 38 | G98: 13027.88944 | H98: 0.0007490636704 | I98: Green | J98: 6 | L98: 24035 | M98: 45 | N98: 17683.22938 | O98: 0.001872269607 | P98: Green | Q98: 9 | S98: 48229 | T98: 307 | U98: 66986.11899 | V98: 0.006365464762 | W98: Green | X98: 14 | Z98: 49956 | AA98: 869 | AB98: 598495 | AC98: 0.01739530787 | AD98: Green | AE98: 14
D99: Total | E99: =SUM(E85:E98) -> 405833 | F99: =SUM(F85:F98) -> 840 | G99: =SUM(G85:G98) -> 275453.0454 | L99: =SUM(L85:L98) -> 367564 | M99: =SUM(M85:M98) -> 844 | N99: =SUM(N85:N98) -> 195124.9211 | S99: =SUM(S85:S98) -> 396338 | T99: =SUM(T85:T98) -> 1015 | U99: =SUM(U85:U98) -> 263549.156 | Z99: =SUM(Z85:Z98) -> 387637 | AA99: =SUM(AA85:AA98) -> 1480 | AB99: =SUM(AB85:AB98) -> 795150 | AG99: =SUM(AG85:AG98) -> 0 | AH99: =SUM(AH85:AH98) -> 0 | AI99: =SUM(AI85:AI98) -> 0 | AN99: =SUM(AN85:AN98) -> 0 | AO99: =SUM(AO85:AO98) -> 0 | AP99: =SUM(AP85:AP98) -> 0 | AU99: =SUM(AU85:AU98) -> 0 | AV99: =SUM(AV85:AV98) -> 0 | AW99: =SUM(AW85:AW98) -> 0 | BB99: =SUM(BB85:BB98) -> 0 | BC99: =SUM(BC85:BC98) -> 0 | BD99: =SUM(BD85:BD98) -> 0

Sheet Ch2 outputs - cust sat
A1: Chapter 2 - Customer Satisfaction
C2: Performance against the outputs that DNOs are incentivised to deliver under RIIO-ED1.
B4: Customer Service: maintaining high levels of customer satisfaction and improving service where required. Undertaking effective stakeholder engagement and reflecting stakeholders' views in the day-to-day operation of their business.
B5: Incentive measure | F5: Incentive type
B6: Customer satisfaction survey: a survey under the Broad Measure of Customer Satisfaction (BMCS) of three customer types (connections, interruptions, general enquiries) to drive DNOs to deliver good customer service. | F6: Financial: reward or penalty of +/- 1% of base revenue which feeds into the overall reward or penalty under BMCS of +/- 1.5% of base revenues.
B7: Complaints metric: part of the Broad Measure of Customer Satisfaction measuring DNOs' complaint handling procedures to drive DNOs to deliver good customer service. | F7: Financial: penalty only of 0.5% of base revenue which feeds into the overall reward or penalty under BMCS of +/- 1.5% of base revenues.
B8: Stakeholder engagement and customer vulnerability: annual panel assessment with reward for DNOs who demonstrate strong engagement with all stakeholders and address customer vulnerability issues. | F8: Financial: reward only of 0.5% of base revenue which feeds into the reward or penalty under BMCS of +/- 1.5% of base revenues.
B11: Customer satisfaction survey
D12: Customer satisfaction scores (out of 10)
E13: 2014/15 | F13: 2015/16 | G13: 2016/17 | H13: 2017/18 | I13: 2018/19 | J13: 2019/20 | K13: 2020/21 | L13: 2021/22 | M13: 2022/23 | O13: 2012/13 - baseline
D14: Interruptions | E14: 8.624285714 | F14: =AVERAGE(E23:E36) -> 8.745 | G14: =AVERAGE(K23:K36) -> 8.798335714 | H14: =AVERAGE(Q23:Q36) -> 8.839011901 | I14: =AVERAGE(W23:W36) -> 8.950271429 | O14: 8.2
D15: Connections | E15: 8.16 | F15: =AVERAGE(F23:F36) -> 8.320714286 | G15: =AVERAGE(L23:L36) -> 8.485342857 | H15: =AVERAGE(R23:R36) -> 8.55074279 | I15: =AVERAGE(X23:X36) -> 8.6924 | O15: 7.76
D16: General Enquiries | E16: 8.725714286 | F16: =AVERAGE(G23:G36) -> 8.974285714 | G16: =AVERAGE(M23:M36) -> 9.09265 | H16: =AVERAGE(S23:S36) -> 9.054650962 | I16: =AVERAGE(Y23:Y36) -> 9.1381 | O16: 8.05
D19: Annual customer satisfaction score by DNO per category (out of 10)
E20: 2015/16 | K20: 2016/17 | Q20: 2017/18 | W20: 2018/19 | AC20: 2019/20 | AG20: 2020/21 | AL20: 2021/22 | AQ20: 2022/23
E21: Interruptions | F21: Connections | G21: General Enquiries | H21: Overall | I21: RAG | J21: Ranking | K21: Interruptions | L21: Connections | M21: General Enquiries | N21: Overall | O21: RAG | P21: Ranking | Q21: Interruptions | R21: Connections | S21: General Enquiries | T21: Overall | U21: RAG | V21: Ranking | W21: Interruptions | X21: Connections | Y21: General Enquiries | Z21: Overall | AA21: RAG | AB21: Ranking | AC21: Interruptions | AD21: Connections | AE21: General Enquiries | AF21: RAG | AG21: Ranking | AH21: Interruptions | AI21: Connections | AJ21: General Enquiries | AK21: RAG | AL21: Ranking | AM21: Interruptions | AN21: Connections | AO21: General Enquiries | AP21: RAG | AQ21: Ranking | AR21: Interruptions | AS21: Connections | AT21: General Enquiries | AU21: RAG | AV21: Ranking
E22: 0.3 | F22: 0.5 | G22: 0.2 | K22: 0.3 | L22: 0.5 | M22: 0.2 | Q22: 0.3 | R22: 0.5 | S22: 0.2 | W22: 0.3 | X22: 0.5 | Y22: 0.2 | AC22: 0.3 | AD22: 0.5 | AE22: 0.2 | AH22: 0.3 | AI22: 0.5 | AJ22: 0.2 | AM22: 0.3 | AN22: 0.5 | AO22: 0.2 | AR22: 0.3 | AS22: 0.5 | AT22: 0.2
C23: =Z23-H23 -> 0.6441 | D23: ENWL | E23: 8.08 | F23: 7.75 | G23: 8.52 | H23: =(E23*E$22)+(F23*F$22)+(G23*G$22) -> 8.003 | I23: =IF(H23<7.79,"Red",IF(H23>=8.2,"Green","Amber")) -> Amber | J23: =RANK(H23,H$23:H$36,0) -> 14 | K23: 8.1788 | L23: 8.2403 | M23: 8.7478 | N23: =(K23*K$22)+(L23*L$22)+(M23*M$22) -> 8.32335 | O23: =IF(N23<7.79,"Red",IF(N23>=8.2,"Green","Amber")) -> Green | P23: =RANK(N23,N$23:N$36,0) -> 14 | Q23: 8.3228 | R23: 8.3476 | S23: 8.9806 | T23: =(Q23*Q$22)+(R23*R$22)+(S23*S$22) -> 8.46676 | U23: =IF(T23<7.79,"Red",IF(T23>=8.2,"Green","Amber")) -> Green | V23: =RANK(T23,T$23:T$36,0) -> 13 | W23: 8.6774 | X23: 8.4408 | Y23: 9.1174 | Z23: =(W23*W$22)+(X23*X$22)+(Y23*Y$22) -> 8.6471 | AA23: =IF(Z23<7.79,"Red",IF(Z23>=8.2,"Green","Amber")) -> Green | AB23: =RANK(Z23,Z$23:Z$36,0) -> 12
C24: 0.336 | D24: NPgN | E24: 8.68 | F24: 8.03 | G24: 8.93 | H24: =(E24*E$22)+(F24*F$22)+(G24*G$22) -> 8.405 | I24: =IF(H24<7.79,"Red",IF(H24>=8.2,"Green","Amber")) -> Green | J24: =RANK(H24,H$23:H$36,0) -> 10 | K24: 8.8098 | L24: 8.4809 | M24: 9.0074 | N24: =(K24*K$22)+(L24*L$22)+(M24*M$22) -> 8.68487 | O24: =IF(N24<7.79,"Red",IF(N24>=8.2,"Green","Amber")) -> Green | P24: =RANK(N24,N$23:N$36,0) -> 8 | Q24: 8.77 | R24: 8.55 | S24: 9.05 | T24: =(Q24*Q$22)+(R24*R$22)+(S24*S$22) -> 8.716 | U24: =IF(T24<7.79,"Red",IF(T24>=8.2,"Green","Amber")) -> Green | V24: =RANK(T24,T$23:T$36,0) -> 10 | W24: 8.84 | X24: 8.55 | Y24: 9.07 | Z24: =(W24*W$22)+(X24*X$22)+(Y24*Y$22) -> 8.741 | AA24: =IF(Z24<7.79,"Red",IF(Z24>=8.2,"Green","Amber")) -> Green | AB24: =RANK(Z24,Z$23:Z$36,0) -> 10
C25: 0.283 | D25: NPgY | E25: 8.69 | F25: 7.95 | G25: 8.76 | H25: 8.334 | I25: =IF(H25<7.79,"Red",IF(H25>=8.2,"Green","Amber")) -> Green | J25: =RANK(H25,H$23:H$36,0) -> 12 | K25: 8.7253 | L25: 8.4332 | M25: 8.7674 | N25: 8.58767 | O25: Green | P25: 12 | Q25: 8.73 | R25: 8.34 | S25: 8.84 | T25: =(Q25*Q$22)+(R25*R$22)+(S25*S$22) -> 8.557 | U25: =IF(T25<7.79,"Red",IF(T25>=8.2,"Green","Amber")) -> Green | V25: =RANK(T25,T$23:T$36,0) -> 12 | W25: 8.79 | X25: 8.44 | Y25: 8.8 | Z25: =(W25*W$22)+(X25*X$22)+(Y25*Y$22) -> 8.617 | AA25: =IF(Z25<7.79,"Red",IF(Z25>=8.2,"Green","Amber")) -> Green | AB25: =RANK(Z25,Z$23:Z$36,0) -> 13
C26: 0.19066 | D26: WMID | E26: 8.88 | F26: 8.7 | G26: 9.14 | H26: 8.842 | I26: Green | J26: 4 | K26: 8.98 | L26: 8.66 | M26: 9.2 | N26: 8.864 | O26: Green | P26: 4 | Q26: 8.9862 | R26: 8.7127 | S26: 9.2665 | T26: 8.90551 | U26: Green | V26: 2 | W26: 9.0773 | X26: 8.8675 | Y26: 9.3786 | Z26: 9.03266 | AA26: Green | AB26: 3
C27: 0.03116 | D27: EMID | E27: 8.97 | F27: 8.79 | G27: 9.35 | H27: 8.956 | I27: Green | J27: 2 | K27: 9.02 | L27: 8.78 | M27: 9.32 | N27: 8.96 | O27: =IF(N27<7.79,"Red",IF(N27>=8.2,"Green","Amber")) -> Green | P27: 1 | Q27: 8.8675 | R27: 8.8073 | S27: 9.1944 | T27: 8.90278 | U27: Green | V27: 3 | W27: 9.031 | X27: 8.872 | Y27: 9.2093 | Z27: 8.98716 | AA27: Green | AB27: 5
C28: 0.15618 | D28: SWALES | E28: 9.14 | F28: 8.75 | G28: 9.29 | H28: 8.975 | I28: Green | J28: 1 | K28: 9.07 | L28: 8.68 | M28: 9.15 | N28: 8.891 | O28: Green | P28: 3 | Q28: 9.1037 | R28: 8.9076 | S28: 9.2067 | T28: 9.02625 | U28: Green | V28: 1 | W28: 9.234 | X28: 8.9812 | Y28: 9.3519 | Z28: 9.13118 | AA28: Green | AB28: 1
C29: 0.11793 | D29: SWEST | E29: 8.86 | F29: 8.73 | G29: 9.18 | H29: 8.859 | I29: Green | J29: 3 | K29: 8.92 | L29: 8.77 | M29: 9.24 | N29: 8.909 | O29: Green | P29: 2 | Q29: 8.8683 | R29: 8.7658 | S29: 9.2888 | T29: 8.90115 | U29: Green | V29: 4 | W29: 9.0012 | X29: 8.8419 | Y29: 9.2781 | Z29: 8.97693 | AA29: Green | AB29: 6
C30: 0.38898 | D30: LPN | E30: 8.52 | F30: 8.13 | G30: 8.86 | H30: 8.393 | I30: Green | J30: 11 | K30: 8.5501 | L30: 8.4166 | M30: 9.3043 | N30: 8.63419 | O30: Green | P30: 10 | Q30: 8.77 | R30: 8.7 | S30: 8.84 | T30: 8.749 | U30: Green | V30: 6 | W30: 8.7892 | X30: 8.6432 | Y30: 9.1181 | Z30: 8.78198 | AA30: Green | AB30: 9
C31: 0.15677 | D31: SPN | E31: 8.63 | F31: 8.34 | G31: 9.12 | H31: 8.583 | I31: Green | J31: 8 | K31: 8.7693 | L31: 8.4119 | M31: 9.2622 | N31: 8.68918 | O31: Green | P31: 7 | Q31: 8.793373494 | R31: 8.503448276 | S31: 9.254901961 | T31: 8.740716578 | U31: Green | V31: 8 | W31: 8.951 | X31: 8.4701 | Y31: 9.0971 | Z31: 8.73977 | AA31: Green | AB31: 11
C32: 0.26589 | D32: EPN | E32: 8.88 | F32: 8.1 | G32: 9.16 | H32: 8.546 | I32: Green | J32: 9 | K32: 8.8178 | L32: 8.18 | M32: 9.3541 | N32: 8.60616 | O32: Green | P32: 11 | Q32: 8.883293124 | R32: 8.429350791 | S32: 9.228611501 | T32: 8.725385633 | U32: Green | V32: 9 | W32: 9.0434 | X32: 8.5071 | Y32: 9.2266 | Z32: 8.81189 | AA32: Green | AB32: 8
C33: 0.35007 | D33: SPD | E33: 8.79 | F33: 8.36 | G33: 8.84 | H33: 8.585 | I33: Green | J33: 7 | K33: 8.7406 | L33: 8.4311 | M33: 9.045 | N33: 8.64673 | O33: Green | P33: 9 | Q33: 8.822 | R33: 8.5213 | S33: 8.9478 | T33: 8.69681 | U33: Green | V33: 11 | W33: 8.8902 | X33: 8.8173 | Y33: 9.2968 | Z33: 8.93507 | AA33: Green | AB33: 7
C34: 0.28588 | D34: SPMW | E34: 8.86 | F34: 8.43 | G34: 9.24 | H34: 8.721 | I34: Green | J34: 6 | K34: 8.735 | L34: 8.6808 | M34: 9.2989 | N34: 8.82068 | O34: =IF(N34<7.79,"Red",IF(N34>=8.2,"Green","Amber")) -> Green | P34: 6 | Q34: 8.859 | R34: 8.4253 | S34: 9.3868 | T34: 8.74771 | U34: Green | V34: 7 | W34: 8.9991 | X34: 8.8825 | Y34: 9.3295 | Z34: 9.00688 | AA34: Green | AB34: 4
C35: 0.332 | D35: SSEH | E35: 9.06 | F35: 8.55 | G35: 8.72 | H35: 8.737 | I35: Green | J35: 5 | K35: 9.15 | L35: 8.53 | M35: 9.06 | N35: 8.822 | O35: Green | P35: 5 | Q35: 9.22 | R35: 8.59 | S35: 8.96 | T35: 8.853 | U35: Green | V35: 5 | W35: 9.19 | X35: 8.96 | Y35: 9.16 | Z35: 9.069 | AA35: Green | AB35: 2
C36: 0.384 | D36: SSES | E36: 8.39 | F36: 7.88 | G36: 8.53 | H36: 8.163 | I36: =IF(H36<7.79,"Red",IF(H36>=8.2,"Green","Amber")) -> Amber | J36: 13 | K36: 8.71 | L36: 8.1 | M36: 8.54 | N36: 8.371 | O36: =IF(N36<7.79,"Red",IF(N36>=8.2,"Green","Amber")) -> Green | P36: 13 | Q36: 8.75 | R36: 8.11 | S36: 8.32 | T36: 8.344 | U36: Green | V36: 14 | W36: 8.79 | X36: 8.42 | Y36: 8.5 | Z36: 8.547 | AA36: Green | AB36: 14
D37: Target | E37: 8.2 | F37: 8.2 | G37: 8.2 | H37: 8.2 | K37: 8.2 | L37: 8.2 | M37: 8.2 | N37: 8.2 | Q37: 8.2 | R37: 8.2 | S37: 8.2 | T37: 8.2 | W37: 8.2 | X37: 8.2 | Y37: 8.2 | Z37: 8.2 | AC37: 8.2 | AD37: 8.2 | AE37: 8.2 | AG37: 8.2 | AH37: 8.2 | AI37: 8.2 | AL37: 8.2 | AM37: 8.2 | AN37: 8.2 | AQ37: 8.2 | AR37: 8.2 | AS37: 8.2
B40: Complaints metric | D40: DNO complaint metric scores
E41: 2015/16 | L41: 2016/17 | S41: 2017/18 | Z41: 2018/19 | AG41: 2019/20 | AN41: 2020/21 | AU41: 2021/22 | BB41: 2022/23
E42: The percentage of total complaints outstanding after one day | F42: The percentage of total complaints outstanding after 31 days | G42: The percentage of total complaints that are repeat complaints | H42: The number of Energy Ombudsman (EO) Findings Against the Licensee as a percentage of the total complaints | I42: Complaints Metric Score | J42: RAG | K42: Ranking | L42: The percentage of total complaints outstanding after one day | M42: The percentage of total complaints outstanding after 31 days | N42: The percentage of total complaints that are repeat complaints | O42: The number of Energy Ombudsman (EO) Findings Against the Licensee as a percentage of the total complaints | P42: Complaints Metric Score | Q42: RAG | R42: Ranking | S42: The percentage of total complaints outstanding after one day | T42: The percentage of total complaints outstanding after 31 days | U42: The percentage of total complaints that are repeat complaints | V42: The number of Energy Ombudsman (EO) Findings Against the Licensee as a percentage of the total complaints | W42: Complaints Metric Score | X42: RAG | Y42: Ranking | Z42: The percentage of total complaints outstanding after one day | AA42: The percentage of total complaints outstanding after 31 days | AB42: The percentage of total complaints that are repeat complaints | AC42: The number of Energy Ombudsman (EO) Findings Against the Licensee as a percentage of the total complaints | AD42: Complaints Metric Score | AE42: RAG | AF42: Ranking | AG42: The percentage of total complaints outstanding after one day | AH42: The percentage of total complaints outstanding after 31 days | AI42: The percentage of total complaints that are repeat complaints | AJ42: The number of Energy Ombudsman (EO) Findings Against the Licensee as a percentage of the total complaints | AK42: Complaints Metric Score | AL42: RAG | AM42: Ranking | AN42: The percentage of total complaints outstanding after one day | AO42: The percentage of total complaints outstanding after 31 days | AP42: The percentage of total complaints that are repeat complaints | AQ42: The number of Energy Ombudsman (EO) Findings Against the Licensee as a percentage of the total complaints | AR42: Complaints Metric Score | AS42: RAG | AT42: Ranking | AU42: The percentage of total complaints outstanding after one day | AV42: The percentage of total complaints outstanding after 31 days | AW42: The percentage of total complaints that are repeat complaints | AX42: The number of Energy Ombudsman (EO) Findings Against the Licensee as a percentage of the total complaints | AY42: Complaints Metric Score | AZ42: RAG | BA42: Ranking | BB42: The percentage of total complaints outstanding after one day | BC42: The percentage of total complaints outstanding after 31 days | BD42: The percentage of total complaints that are repeat complaints | BE42: The number of Energy Ombudsman (EO) Findings Against the Licensee as a percentage of the total complaints | BF42: Complaints Metric Score | BG42: RAG | BH42: Ranking
C43: =AD43-I43 -> -5.599018854 | D43: ENWL | E43: 0.4879626684 | F43: 0.09248064482 | G43: 0 | H43: 0 | I43: 7.654046028 | J43: =IF(I43<=$I$57,"Green",IF(I43<=$I$57*1.05,"Amber","Red")) -> Green | K43: =RANK(I43,I$43:I$56,1) -> 13 | L43: 0.2330568481 | M43: 0.03722435768 | N43: 0 | O43: 0 | P43: 3.447299211 | Q43: =IF(P43<=$P$57,"Green",IF(P43<=$P$57*1.05,"Amber","Red")) -> Green | R43: =RANK(P43,P$43:P$56,1) -> 9 | S43: 0.1792799412 | T43: 0.01653196179 | U43: 0 | V43: 0 | W43: 2.288758266 | X43: =IF(W43<=$W$57,"Green",IF(W43<=$W$57*1.05,"Amber","Red")) -> Green | Y43: =RANK(W43,W$43:W$56,1) -> 6 | Z43: 0.1790081522 | AA43: 0.008831521739 | AB43: 0 | AC43: 0 | AD43: 2.055027174 | AE43: =IF(AD43<=$W$57,"Green",IF(AD43<=$W$57*1.05,"Amber","Red")) -> Green | AF43: =RANK(AD43,AD$43:AD$56,1) -> 8
C44: -4.471551626 | D44: NPgN | E44: 0.4985549133 | F44: 0.09971098266 | G44: 0.0004816955684 | H44: 0 | I44: 8.000963391 | J44: Green | K44: 14 | L44: 0.3858093126 | M44: 0.1075388027 | N44: 0 | O44: 0 | P44: 7.084257206 | Q44: =IF(P44<=$P$57,"Green",IF(P44<=$P$57*1.05,"Amber","Red")) -> Green | R44: 14 | S44: 0.2820343461 | T44: 0.07529722589 | U44: 0 | V44: 0 | W44: 5.079260238 | X44: =IF(W44<=$W$57,"Green",IF(W44<=$W$57*1.05,"Amber","Red")) -> Green | Y44: =RANK(W44,W$43:W$56,1) -> 14 | Z44: 0.2171945701 | AA44: 0.04524886878 | AB44: 0 | AC44: 0 | AD44: 3.529411765 | AE44: =IF(AD44<=$W$57,"Green",IF(AD44<=$W$57*1.05,"Amber","Red")) -> Green | AF44: =RANK(AD44,AD$43:AD$56,1) -> 14
C45: -4.531174021 | D45: NPgY | E45: 0.473316913 | F45: 0.08128078818 | G45: 0.0004105090312 | H45: 0 | I45: 7.192118227 | J45: Green | K45: 12 | L45: 0.3170620438 | M45: 0.07436131387 | N45: 0 | O45: 0 | P45: 5.401459854 | Q45: Green | R45: 12 | S45: 0.2820242488 | T45: 0.06062203479 | U45: 0 | V45: 0 | W45: 4.638903532 | X45: Green | Y45: 13 | Z45: 0.1811158798 | AA45: 0.02832618026 | AB45: 0 | AC45: 0 | AD45: 2.660944206 | AE45: Green | AF45: 11
C46: -0.4276054226 | D46: WMID | E46: 0.1480505796 | F46: 0.007376185458 | G46: 0 | H46: 0 | I46: 1.701791359 | J46: Green | K46: 1 | L46: 0.1252399232 | M46: 0.00575815739 | N46: 0 | O46: 0 | P46: 1.425143954 | Q46: Green | R46: 1 | S46: 0.1162909836 | T46: 0.006147540984 | U46: 0 | V46: 0 | W46: 1.347336066 | X46: Green | Y46: 1 | Z46: 0.1160924965 | AA46: 0.003775365739 | AB46: 0 | AC46: 0 | AD46: 1.274185937 | AE46: Green | AF46: 3
C47: -0.6909627663 | D47: EMID | E47: 0.1588669951 | F47: 0.01108374384 | G47: 0 | H47: 0 | I47: 1.921182266 | J47: Green | K47: 2 | L47: 0.1431034483 | M47: 0.01034482759 | N47: 0 | O47: 0 | P47: 1.74137931 | Q47: Green | R47: 2 | S47: 0.1253644315 | T47: 0.008163265306 | U47: 0 | V47: 0 | W47: 1.498542274 | X47: Green | Y47: 2 | Z47: 0.1061766207 | AA47: 0.00561510975 | AB47: 0 | AC47: 0 | AD47: 1.2302195 | AE47: Green | AF47: 2
C48: -1.195028836 | D48: SWALES | E48: 0.2439281943 | F48: 0.02006335797 | G48: 0 | H48: 0 | I48: 3.041182682 | J48: Green | K48: 4 | L48: 0.1983663944 | M48: 0.02100350058 | N48: 0 | O48: 0 | P48: 2.613768961 | Q48: Green | R48: 5 | S48: 0.2054794521 | T48: 0.01598173516 | U48: 0 | V48: 0 | W48: 2.534246575 | X48: Green | Y48: 7 | Z48: 0.1582417582 | AA48: 0.008791208791 | AB48: 0 | AC48: 0 | AD48: 1.846153846 | AE48: Green | AF48: 6
C49: -0.347287912 | D49: SWEST | E49: 0.1954066265 | F49: 0.01468373494 | G49: 0.0003765060241 | H49: 0 | I49: 2.413403614 | J49: Green | K49: 3 | L49: 0.1814569536 | M49: 0.01589403974 | N49: 0 | O49: 0 | P49: 2.291390728 | Q49: Green | R49: 4 | S49: 0.1635420822 | T49: 0.009972078181 | U49: 0 | V49: 0 | W49: 1.934583167 | X49: Green | Y49: 4 | Z49: 0.1673553719 | AA49: 0.01239669421 | AB49: 0.0004132231405 | AC49: 0 | AD49: 2.066115702 | AE49: Green | AF49: 9
C50: -2.386322575 | D50: LPN | E50: 0.3590096286 | F50: 0.05295735901 | G50: 0 | H50: 0 | I50: 5.178817056 | J50: Green | K50: 9 | L50: 0.3456090652 | M50: 0.07507082153 | N50: 0 | O50: 0 | P50: 5.708215297 | Q50: Green | R50: 13 | S50: 0.2565130261 | T50: 0.05911823647 | U50: 0 | V50: 0 | W50: 4.338677355 | X50: Green | Y50: 12 | Z50: 0.1931567329 | AA50: 0.02869757174 | AB50: 0 | AC50: 0 | AD50: 2.792494481 | AE50: Green | AF50: 12
C51: -3.613458028 | D51: SPN | E51: 0.4019534185 | F51: 0.06949661908 | G51: 0 | H51: 0 | I51: 6.104432757 | J51: Green | K51: 11 | L51: 0.3390461997 | M51: 0.06333830104 | N51: 0 | O51: 0 | P51: 5.290611028 | Q51: Green | R51: 11 | S51: 0.2431451613 | T51: 0.05725806452 | U51: 0 | V51: 0 | W51: 4.149193548 | X51: Green | Y51: 11 | Z51: 0.1576413959 | AA51: 0.03048535901 | AB51: 0 | AC51: 0 | AD51: 2.490974729 | AE51: Green | AF51: 10
C52: -2.541009809 | D52: EPN | E52: 0.3853528628 | F52: 0.05832223702 | G52: 0 | H52: 0 | I52: 5.603195739 | J52: Green | K52: 10 | L52: 0.3233442458 | M52: 0.06094182825 | N52: 0 | O52: 0 | P52: 5.061697305 | Q52: Green | R52: 10 | S52: 0.2247032222 | T52: 0.04663651781 | U52: 0 | V52: 0 | W52: 3.646127756 | X52: Green | Y52: 10 | Z52: 0.1903266332 | AA52: 0.03863065327 | AB52: 0 | AC52: 0 | AD52: 3.06218593 | AE52: Green | AF52: 13
C53: -2.006304729 | D53: SPD | E53: 0.2331428571 | F53: 0.04228571429 | G53: 0 | H53: 0 | I53: 3.6 | J53: Green | K53: 6 | L53: 0.1892575928 | M53: 0.03205849269 | N53: 0 | O53: 0 | P53: 2.854330709 | Q53: Green | R53: 7 | S53: 0.1291525424 | T53: 0.02677966102 | U53: 0 | V53: 0 | W53: 2.094915254 | X53: Green | Y53: 5 | Z53: 0.1068301226 | AA53: 0.01751313485 | AB53: 0 | AC53: 0 | AD53: 1.593695271 | AE53: Green | AF53: 4
C54: -1.521084164 | D54: SPMW | E54: 0.2110125647 | F54: 0.0421286031 | G54: 0 | H54: 0 | I54: 3.37398374 | J54: Green | K54: 5 | L54: 0.1909353905 | M54: 0.03053680489 | N54: 0 | O54: 0 | P54: 2.825458052 | Q54: Green | R54: 6 | S54: 0.1856060606 | T54: 0.02840909091 | U54: 0 | V54: 0 | W54: 2.708333333 | X54: Green | Y54: 8 | Z54: 0.1269448373 | AA54: 0.01944837341 | AB54: 0 | AC54: 0 | AD54: 1.852899576 | AE54: Green | AF54: 7
C55: -2.854325061 | D55: SSEH | E55: 0.3041594454 | F55: 0.03466204506 | G55: 0 | H55: 0 | I55: 4.081455806 | J55: Green | K55: 7 | L55: 0.1479680445 | M55: 0.02327196943 | N55: 0 | O55: 0 | P55: 2.177839528 | Q55: Green | R55: 3 | S55: 0.1321299639 | T55: 0.009386281588 | U55: 0 | V55: 0 | W55: 1.602888087 | X55: Green | Y55: 3 | Z55: 0.08255243195 | AA55: 0.01338688086 | AB55: 0 | AC55: 0 | AD55: 1.227130745 | AE55: Green | AF55: 1
C56: -2.893700141 | D56: SSES | E56: 0.3249506903 | F56: 0.04684418146 | G56: 0 | H56: 0 | I56: 4.654832347 | J56: Green | K56: 8 | L56: 0.2343330349 | M56: 0.03304983587 | N56: 0 | O56: 0 | P56: 3.334825425 | Q56: Green | R56: 8 | S56: 0.1957754979 | T56: 0.02697646349 | U56: 0 | V56: 0 | W56: 2.767048884 | X56: Green | Y56: 9 | Z56: 0.1133586469 | AA56: 0.02091819123 | AB56: 0 | AC56: 0 | AD56: 1.761132206 | AE56: Green | AF56: 5
D57: Target | I57: 8.33 | P57: 8.33 | W57: 8.33 | AD57: 8.33 | AK57: 8.33 | AR57: 8.33 | AY57: 8.33 | BF57: 8.33
B59: Stakeholder Engagement and Consumer Vulnerability Incentive
E60: Score (out of 10)
E61: 2015/16 | F61: 2016/17 | G61: 2017/18 | H61: 2018/19 | I61: 2019/20 | J61: 2020/21 | K61: 2021/22 | L61: 2022/23
D62: ENWL | E62: 6.9 | F62: 6.375 | G62: 5.75 | H62: 4.5375
D63: NPg | E63: 6.5 | F63: 6.5 | G63: 7.5 | H63: 7.0125
D64: WPD | E64: 8.75 | F64: 8.525 | G64: 8.75 | H64: 8.35
D65: UKPN | E65: 7.525 | F65: 7.525 | G65: 7.25 | H65: 7.95
D66: SPEN | E66: 6.775 | F66: 6.275 | G66: 6.35 | H66: 6.7125
D67: SSEN | E67: 5.725 | F67: 5.225 | G67: 5.5 | H67: 3.95
E69: Reward (£m)
E70: 2015/16 | F70: 2016/17 | G70: 2017/18 | H70: 2018/19 | I70: 2019/20 | J70: 2020/21 | K70: 2021/22 | L70: 2022/23
D71: ENWL | E71: 1.074526715 | F71: 0.880000327 | G71: 0.6484212936 | H71: 0.1991579687
D72: NPg | E72: 1.563158476 | F72: 1.563158476 | G72: 2.188421866 | H72: 1.883605963
D73: WPD | E73: 6.930002575 | F73: 6.601739295 | G73: 6.930002575 | H73: 6.346423411
D74: UKPN | E74: 4.408106901 | F74: 4.408106901 | G74: 4.064212036 | H74: 4.939580783
D75: SPEN | E75: 2.120684998 | F75: 1.738579593 | G75: 1.795895404 | H75: 2.072921823
D76: SSEN | E76: 1.238368881 | F76: 0.8794213794 | G76: 1.076842505 | H76: 0
E78: RAG
E79: 2015/16 | F79: 2016/17 | G79: 2017/18 | H79: 2018/19 | I79: 2019/20 | J79: 2020/21 | K79: 2021/22 | L79: 2022/23
D80: ENWL | E80: =IF(E62<4,"Red","Green") -> Green | F80: =IF(F62<4,"Red","Green") -> Green | G80: Green | H80: Green
D81: NPg | E81: =IF(E63<4,"Red","Green") -> Green | F81: Green | G81: Green | H81: Green
D82: WPD | E82: =IF(E64<4,"Red","Green") -> Green | F82: Green | G82: Green | H82: Green
D83: UKPN | E83: =IF(E65<4,"Red","Green") -> Green | F83: Green | G83: Green | H83: Green
D84: SPEN | E84: =IF(E66<4,"Red","Green") -> Green | F84: Green | G84: Green | H84: Green
D85: SSEN | E85: =IF(E67<4,"Red","Green") -> Green | F85: Green | G85: Green | H85: Red
E87: Ranking
E88: 2015/16 | F88: 2016/17 | G88: 2017/18 | H88: 2018/19 | I88: 2019/20 | J88: 2020/21 | K88: 2021/22 | L88: 2022/23
D89: ENWL | E89: =RANK(E62,$E$62:$E$67,0) -> 3 | F89: =RANK(F62,$F$62:$F$67,0) -> 4 | G89: =RANK(G62,$G$62:$G$67,0) -> 5 | H89: =RANK(H62,$H$62:$H$67,0) -> 5
D90: NPg | E90: 5 | F90: 3 | G90: 2 | H90: 3
D91: WPD | E91: 1 | F91: 1 | G91: 1 | H91: 1
D92: UKPN | E92: 2 | F92: 2 | G92: 3 | H92: 2
D93: SPEN | E93: 4 | F93: 5 | G93: 4 | H93: 4
D94: SSEN | E94: 6 | F94: 6 | G94: 6 | H94: 6
B96: Broad Measure of Customer Service
E97: 2015/16 | J97: 2016/17 | O97: 2017/18 | U97: 2018/19 | Z97: 2019/20 | AE97: 2020/21 | AJ97: 2021/22 | AO97: 2022/23
E98: Customer Satisfaction Survey Reward/Penalty (£m) | F98: Complaints Metric Penalty (£m) | G98: Stakeholder Engagement and Consumer Vulnerability Financial Reward (£m) | H98: Broad Measure of Customer Service reward (£m) | J98: Customer Satisfaction Survey Reward/Penalty (£m) | K98: Complaints Metric Penalty (£m) | L98: Stakeholder Engagement and Consumer Vulnerability Financial Reward (£m) | M98: Broad Measure of Customer Service reward (£m) | O98: Customer Satisfaction Survey Reward/Penalty (£m) | P98: Complaints Metric Penalty (£m) | Q98: Stakeholder Engagement and Consumer Vulnerability Financial Reward (£m) | R98: Broad Measure of Customer Service reward (£m) | T98: Customer Satisfaction Survey Reward/Penalty (£m) | U98: Complaints Metric Penalty (£m) | V98: Stakeholder Engagement and Consumer Vulnerability Financial Reward (£m) | W98: Broad Measure of Customer Service reward (£m) | Y98: Customer Satisfaction Survey Reward/Penalty (£m) | Z98: Complaints Metric Penalty (£m) | AA98: Stakeholder Engagement and Consumer Vulnerability Financial Reward (£m) | AB98: Broad Measure of Customer Service reward (£m) | AD98: Customer Satisfaction Survey Reward/Penalty (£m) | AE98: Complaints Metric Penalty (£m) | AF98: Stakeholder Engagement and Consumer Vulnerability Financial Reward (£m) | AG98: Broad Measure of Customer Service reward (£m) | AI98: Customer Satisfaction Survey Reward/Penalty (£m) | AJ98: Complaints Metric Penalty (£m) | AK98: Stakeholder Engagement and Consumer Vulnerability Financial Reward (£m) | AL98: Broad Measure of Customer Service reward (£m) | AN98: Customer Satisfaction Survey Reward/Penalty (£m) | AO98: Complaints Metric Penalty (£m) | AP98: Stakeholder Engagement and Consumer Vulnerability Financial Reward (£m) | AQ98: Broad Measure of Customer Service reward (£m)
D99: ENWL | E99: -0.6434311084 | F99: 0 | G99: 1.074526715 | H99: 0.4284213142 | J99: 0.4210363076 | K99: 0 | L99: 0.880000327 | M99: =SUM(J99:L99) -> 1.301036635 | O99: 1.053285386 | P99: 0 | Q99: 0.6484212936 | R99: =SUM(O99:Q99) -> 1.701706679 | T99: 1.921872741 | U99: 0 | V99: 0.1991579687 | W99: =SUM(T99:V99) -> 2.12103071
D100: NPgN | E100: 0.7594161856 | F100: 0 | G100: 0.6368423419 | H100: 1.401053487 | J100: 1.688072473 | K100: 0 | L100: 0.6368423419 | M100: =SUM(J100:L100) -> 2.324914815 | O100: 1.765278315 | P100: 0 | Q100: 0.8915792786 | R100: =SUM(O100:Q100) -> 2.656857593 | T100: 1.818699399 | U100: 0 | V100: 0.767395022 | W100: =SUM(T100:V100) -> 2.586094421
D101: NPgY | E101: 0.8048135841 | F101: 0 | G101: 0.9263161336 | H101: 1.736843165 | J101: 1.899416745 | K101: 0 | L101: 0.9263161336 | M101: 2.825732879 | O101: 1.669078407 | P101: 0 | Q101: 1.296842587 | R101: 2.965920995 | T101: 2.021758065 | U101: 0 | V101: 1.116210941 | W101: 3.137969006
D102: WMID | E102: 3.934529974 | F102: 0 | G102: 2.200000817 | H102: 6.136845851 | J102: 3.860422487 | K102: 0 | L102: 2.095790252 | M102: 5.956212739 | O102: 4.037383605 | P102: 0 | Q102: 2.200000817 | R102: 6.237384423 | T102: 4.557185904 | U102: 0 | V102: 2.014737591 | W102: 6.571923494
D103: EMID | E103: 4.235464732 | F103: 0 | G103: 2.200000817 | H103: 6.437898667 | J103: 4.202927877 | K103: 0 | L103: 2.095790252 | M103: 6.29871813 | O103: 4.172744009 | P103: 0 | Q103: 2.200000817 | R103: 6.372744827 | T103: 4.502266936 | U103: 0 | V103: 2.014737591 | W103: 6.517004527
D104: SWALES | E104: 2.011263905 | F104: 0 | G104: 0.9900003678 | H104: 2.998949199 | J104: 1.902653339 | K104: 0 | L104: 0.9431056136 | M104: 2.845758952 | O104: 2.200000817 | P104: 0 | Q104: 0.9900003678 | R104: 3.190001185 | T104: 2.200000817 | U104: 0 | V104: 0.9066319158 | W104: 3.106632733
D105: SWEST | E105: 2.812250081 | F105: 0 | G105: 1.540000572 | H105: 4.353686868 | J105: 2.941053724 | K105: 0 | L105: 1.467053177 | M105: 4.408106901 | O105: 2.908326509 | P105: 0 | Q105: 1.540000572 | R105: 4.448327082 | T105: 3.107559049 | U105: 0 | V105: 1.410316313 | W105: 4.517875363
D106: LPN | E106: 0.9826681286 | F106: 0 | G106: 1.224474139 | H106: 2.211580297 | J106: 1.737804485 | K106: 0 | L106: 1.224474139 | M106: 2.962278625 | O106: 2.707594204 | P106: 0 | Q106: 1.128947788 | R106: 3.836541992 | T106: 2.677615149 | U106: 0 | V106: 1.372105773 | W106: 4.049720922
D107: SPN | E107: 1.662553106 | F107: 0 | G107: 1.306105748 | H107: 2.964212336 | J107: 2.093976183 | K107: 0 | L107: 1.306105748 | M107: 3.400081931 | O107: 2.354925381 | P107: 0 | Q107: 1.204210974 | R107: 3.559136354 | T107: 2.431142166 | U107: 0 | V107: 1.463579491 | W107: 3.894721658
D108: EPN | E108: 2.267024497 | F108: 0 | G108: 1.877527013 | H108: 4.145265688 | J108: 2.361398063 | K108: 0 | L108: 1.877527013 | M108: 4.238925076 | O108: 3.46004756 | P108: 0 | Q108: 1.731053275 | R108: 5.191100834 | T108: 3.843716376 | U108: 0 | V108: 2.103895519 | W108: 5.947611894
D109: SPD | E109: 1.94512629 | F109: 0 | G109: 1.028210908 | H109: 2.97579129 | J109: 2.082374733 | K109: 0 | L109: 0.8429476816 | M109: 2.925322415 | O109: 2.411505784 | P109: 0 | Q109: 0.8707371656 | R109: 3.282242949 | T109: 3.262352459 | U109: 0 | V109: 1.005053005 | W109: 4.267405464
D110: SPMW | E110: 2.497096583 | F110: 0 | G110: 1.09247409 | H110: 3.589475875 | J110: 2.8934686 | K110: 0 | L110: 0.8956319117 | M110: 3.789100512 | O110: 2.432567545 | P110: 0 | Q110: 0.9251582385 | R110: 3.357725784 | T110: 3.841346164 | U110: 0 | V110: 1.067868818 | W110: 4.909214982
D111: SSEH | E111: 1.599284805 | F111: 0 | G111: 0.3994738326 | H111: 2.003159118 | J111: 1.692842734 | K111: 0 | L111: 0.2836843159 | M111: 1.97652705 | O111: 1.790105928 | P111: 0 | Q111: 0.3473685501 | R111: 2.137474478 | T111: 2.315790334 | U111: 0 | V111: 0 | W111: 2.315790334
D112: SSES | E112: 0.237992505 | F112: 0 | G112: 0.8388950485 | H112: 1.076842763 | J112: 1.28504554 | K112: 0 | L112: 0.5957370635 | M112: 1.880782603 | O112: 1.060375127 | P112: 0 | Q112: 0.7294739552 | R112: 1.789849083 | T112: 2.338292328 | U112: 0 | V112: 0 | W112: 2.338292328
D113: Total | E113: =SUM(E99:E112) -> 25.10605327 | F113: =SUM(F99:F112) -> 0 | G113: =SUM(G99:G112) -> 17.33484855 | H113: =SUM(H99:H112) -> 42.46002592 | J113: =SUM(J99:J112) -> 31.06249329 | K113: =SUM(K99:K112) -> 0 | L113: =SUM(L99:L112) -> 16.07100597 | M113: =SUM(M99:M112) -> 47.13349926 | O113: =SUM(O99:O112) -> 34.02321858 | P113: =SUM(P99:P112) -> 0 | Q113: =SUM(Q99:Q112) -> 16.70379568 | R113: =SUM(R99:R112) -> 50.72701426 | T113: =SUM(T99:T112) -> 40.83959789 | U113: =SUM(U99:U112) -> 0 | V113: =SUM(V99:V112) -> 15.44168995 | W113: =SUM(W99:W112) -> 56.28128784

Sheet Ch2 - innovation
A1: Chapter 2 - Innovation
B2: Overview of the DNOs’ expenditure in relation to the various innovation schemes in RIIO-ED1.
B3: Network Innovation Allowance (NIA) Source: Expenditure: Revenue Returns R9 Allowance: NIA % of Base Revenue | D3: Network Innovation Allowance projects and expenditure
E4: 2015/16 (in 15/16 prices) | I4: 2016/17 (in 16/17 prices) | M4: 2017/18 (in 17/18 prices) | Q4: 2018/19 | U4: 2019/20 | Y4: 2020/21 | AC4: 2021/22 | AG4: 2022/23
E5: Number of projects | F5: NIA allowance (£m) | G5: NIA expenditure (£m) | H5: % of allowance | I5: Number of projects | J5: NIA allowance (£m) | K5: NIA expenditure (£m) | L5: % of allowance | M5: Number of projects | N5: NIA allowance (£m) | O5: NIA expenditure (£m) | P5: % of allowance | Q5: Number of projects | R5: NIA allowance (£m) | S5: NIA expenditure (£m) | T5: % of allowance | U5: Number of projects | V5: NIA allowance (£m) | W5: NIA expenditure (£m) | X5: % of allowance | Y5: Number of projects | Z5: NIA allowance (£m) | AA5: NIA expenditure (£m) | AB5: % of allowance | AC5: Number of projects | AD5: NIA allowance (£m) | AE5: NIA expenditure (£m) | AF5: % of allowance | AG5: Number of projects | AH5: NIA allowance (£m) | AI5: NIA expenditure (£m) | AJ5: % of allowance
D6: ENWL | E6: 18 | F6: 2.825102 | G6: 2.525378644 | H6: =G6/F6 -> 0.8939070676 | I6: 18 | J6: 2.865936317 | K6: 2.86498227 | L6: =K6/J6 -> 0.9996671081 | M6: 21 | N6: 2.729036879 | O6: 2.729036879 | P6: =O6/N6 -> 1 | Q6: 23 | R6: 2.792660125 | S6: 2.792660125 | T6: 1
D7: NPg | E7: 16 | F7: 3.7179684 | G7: 1.307496213 | H7: =G7/F7 -> 0.3516695336 | I7: 18 | J7: 3.7090614 | K7: 1.259185095 | L7: =K7/J7 -> 0.3394888785 | M7: 26 | N7: 3.699986137 | O7: 3.697980533 | P7: =O7/N7 -> 0.9994579428 | Q7: 30 | R7: 3.840466706 | S7: 3.832167322 | T7: 0.9978389647
D8: WPD | E8: 14 | F8: 6.802534 | G8: 1.534576988 | H8: 0.2255890214 | I8: 22 | J8: 7.051369 | K8: 5.060908023 | L8: 0.717719924 | M8: 33 | N8: 7.211238998 | O8: 6.20455 | P8: 0.8603999953 | Q8: 39 | R8: 7.52939105 | S8: 4.10796 | T8: 0.5455899385
D9: UKPN | E9: 24 | F9: 5.903535 | G9: 2.47017267 | H9: 0.4184226349 | I9: 22 | J9: 6.1354335 | K9: 4.523898929 | L9: 0.7373397379 | M9: 46 | N9: 5.941970593 | O9: 5.473571124 | P9: 0.921171022 | Q9: 40 | R9: 6.630393771 | S9: 5.002599375 | T9: 0.7544950644
D10: SPEN | E10: 21 | F10: 3.2145 | G10: 3.0739 | H10: 0.9562606937 | I10: 22 | J10: 3.2758 | K10: 3.0412 | L10: 0.9283839062 | M10: 39 | N10: 3.226876645 | O10: 2.0511 | P10: 0.6356301233 | Q10: 42 | R10: 3.66142714 | S10: 2.942286464 | T10: 0.8035900624
D11: SSEN | E11: 35 | F11: 3.794717 | G11: 3.085577681 | H11: 0.8131245837 | I11: 30 | J11: 3.8070795 | K11: 2.790449717 | L11: 0.7329633429 | M11: 32 | N11: 3.759920429 | O11: 1.813750698 | P11: 0.4823907134 | Q11: 37 | R11: 4.083544453 | S11: 2.308242238 | T11: 0.5652545882
D12: Total | E12: 128 | F12: =SUM(F6:F11) -> 26.2583564 | G12: =SUM(G6:G11) -> 13.9971022 | H12: 0.5330532491 | I12: =SUM(I6:I11) -> 132 | J12: =SUM(J6:J11) -> 26.84467972 | K12: =SUM(K6:K11) -> 19.54062403 | L12: 0.7279142176 | M12: =SUM(M6:M11) -> 197 | N12: =SUM(N6:N11) -> 26.56902968 | O12: =SUM(O6:O11) -> 21.96998923 | P12: 0.8269022052 | Q12: =SUM(Q6:Q11) -> 211 | R12: =SUM(R6:R11) -> 28.53788324 | S12: =SUM(S6:S11) -> 20.98591552 | T12: =S12/R12 -> 0.7353704318
B15: Network Innovation Competition (NIC) | D15: Network Innovation Competition projects
D16: 2015/16
D17: Project Title | E17: Lead company | F17: Description | G17: NIC funding awarded (£m) | H17: Total project costs (£m) | I17: Project end date
D18: Celsius | E18: ENWL | F18: To develop a new way of managing the temperature of substations – increasing their operational capacity and lifespan. | G18: 5.180397189 | H18: 5.999800644 | I18: 2020
D19: ANGLE- DC | E19: SPEN - SPMW | F19: To increase Network Reinforcement through converting an existing Alternating Current (AC) circuit between the mainland and Anglesey to Direct Current (DC). | G19: 14.32897067 | H19: 15.94942015 | I19: 2020
D20: Source: https://www.ofgem.gov.uk/sites/default/files/docs/innovation_competitions_brochure_webready_0.pdf
D22: 2016/17
D23: Project Title | E23: Lead company | F23: Description | G23: NIC funding awarded (£m) | H23: Total project costs (£m) | I23: Project end date
D24: Open LV | E24: WPD - WMID | F24: To develop a new software platform which uses cloud technology to enhance visibility of residential-level substations. | G24: 5.190122465 | H24: 6.316665497 | I24: 2020
D25: PowerFul-CB | E25: UKPN - LPN | F25: To develop two new types of circuit breaker on the GB network. | G25: 4.911994487 | H25: 6.616500431 | I25: 2021
D26: Source: https://www.ofgem.gov.uk/system/files/docs/2016/11/innovation_competitions_brochure_to_upload.pdf
D28: 2017/18
D29: Project Title | E29: Lead company | F29: Description | G29: NIC funding awarded (£m) | H29: Total project costs (£m) | I29: Project end date
D30: Active Response | E30: UKPN - LPN | F30: To develop two new types of network equipment to direct power flows across the distribution network | G30: 14.25675825 | H30: 18.8568803 | I30: 2021
D31: LV Engine | E31: SPEN - SPD | F31: To test a new type of solid-state transformer on the GB network | G31: 7.512814188 | H31: 8.548752437 | I31: 2022
D32: EFFS | E32: WPD - EMID | F32: To develop an IT platform to forecast network capacity and identify opportunities to trade flexible network services | G32: 3.032620701 | H32: 4.44339796 | I32: 2020
D33: Transition | E33: SSE - SSES | F33: To test technical and commercial solution to resolve constraints on the distribution network | G33: =13.1*'Guide & drivers'!J27 -> 13.50027937 | H33: 15.13974345 | I33: 2021
D34: Fusion | E34: SPEN - SPD | F34: To test a technical and commercial solution developed in Europe to resolve constraints on the distribution network. | G34: 5.456086801 | H34: 6.153288201 | I34: 2022
D35: Source: https://www.ofgem.gov.uk/system/files/docs/2017/11/ofg1031_innovation_competitions_brochure_web.pdf
D37: 2018/19
D38: Project Title | E38: Lead company | F38: Description | G38: NIC funding awarded (£m) | H38: Total project costs (£m) | I38: Project end date
D39: Charge | E39: SPEN - SPMW | F39: Overlaying transport planning and network mapping to give visibility of network capacity for electric vehicle (EV) charging points, including conducting trials of on street residential and destination charging in preparation for the deliver of flexible connection. | G39: 6.85 | H39: 8.4 | I39: 2021
D40: Optimise Prime | E40: UKPN - LPN | F40: Conducting trials and gathering data on the charging patterns of different commercial electric vehicle (EV) fleets and their network impact. | G40: 16.4 | H40: 34.5 | I40: 2021
D41: Source: https://www.ofgem.gov.uk/system/files/docs/2018/11/competitions_brochure_2018.pdf
D43: 2019/20
D44: Project Title | E44: Lead company | F44: Description | G44: NIC funding awarded (£m) | H44: Total project costs (£m) | I44: Project end date
F45: in preparation for the delivery of flexible
F46: connections.
D48: 2020/21
D49: Project Title | E49: Lead company | F49: Description | G49: NIC funding awarded (£m) | H49: Total project costs (£m) | I49: Project end date
D53: 2021/22
D54: Project Title | E54: Lead company | F54: Description | G54: NIC funding awarded (£m) | H54: Total project costs (£m) | I54: Project end date
D58: 2022/23
D59: Project Title | E59: Lead company | F59: Description | G59: NIC funding awarded (£m) | H59: Total project costs (£m) | I59: Project end date
D63: 2023
D64: Project Title | E64: Lead company | F64: Description | G64: NIC funding awarded (£m) | H64: Total project costs (£m) | I64: Project end date
B68: Innovation project Source data 'Environment and Innovation' Reporting Pack > 'Environment' Spreadsheet > 'E6 - Innovative solutions' | D68: Innovation projects in 2018-19
D69: Solution type/ Primary benefit | E69: ENWL | F69: NPg | G69: WPD | H69: UKPN | I69: SPEN | J69: SSEN
D70: Increase network capacity/optimise utilisation | E70: Demand Side Response; Power Saver Challenge | F70: Load Capacity Release; Generation Capacity Release; Voltage Reduction at Primary. | G70: Voltage Reduction | H70: Demand Side Response; Energy Storage (SNS); Flexible DG Connections; FUN-LV; Load Blinding Relays; LPN Interconnection; Dynamic Transformer Rating; Timed Connections | I70: Bes Section Reactor; Enhanced Transformer Rating; Enhanced Secondary Substation Monitoring.; Voltage Optimisation. | J70: Active Network Management (Western Isles, Orkney); 3rd Party ANM
D71: Improve asset life cycle management | E71: Transformer regeneration | F71: Transformer insulating oil on-line regeneration; HV Circuit breaker retrofit | H71: CNAIM (Asset Risk Prioritisation); Joint Shell; Oil Regeneration; Woodpecker filler; PFT; Optimising Overhead Line conductor inspection & condition assessment; Recharge the Future. | I71: Transformer Refurbishment | J71: Pole Pinning;
D72: Improve network performance | E72: LV Fault Management | F72: LV Technology Programme; Automatic Power Restoration System | H72: Automated Power Restoration System; LV Re-energising Devices; Point of Connection (POC); Mobile Asset Assessment Vehicle; Kent Active System Management; OHL Assessment Using Panoramic Images; Primary Outage Restoration Tool (PORT); Pressurised Cable Active Management; Directional Earth Fault Passage Indicator. | I72: Sniffer Dog UGC Oil Leak Detection & Location; Protean Steel Mast | J72: Bidoyng; Thermal Cameras
D73: Improve vegetation management | H73: LIDAR Vegetation Management | J73: Live Line Tree Cutting; Forestry Mulcher
D74: Improve safety | F74: Telematics in operational vehicles; Fire Retardant Workwear; Farm Safety | H74: Public Safety; 3D Laser Surveying; Fire Pro Fire Supression System. | I74: Virtual World Asset Management, Smart Lock Deployment
D75: Improve environmental impact | F75: PFT leak detection | H75: Innovative Bunding | J75: Bi-directional Hybrid Generation
D76: Improve connection performance | E76: Connect & Manage of PV Clusters on LV networks; Capacity to Customers (Customer contribution); Capacity to Customers (DUoS) contribution | F76: Constrained generation connections | G76: Active Network Management; Soft Intertrip; Timed; Export Limiting | H76: Distribution Network Visibility; Flexible DG Connections; Point of Connection (POC) Mast; Timed Connection | I76: SPT2 004 ARC
D78: Number of Projects | E78: 7 | F78: 6 | G78: 5 | H78: 22 | I78: 2 | J78: 6

Sheet Ch3 financial performance
A1: Chapter 3 - Financial Performance
A2: Review of the expenditure and financial performance of DNOs in 2018/19 | E2: Annual (2018-19) | I2: Cumulative to date (2015-16 to 2018-19) | M2: Forecast RIIO-ED1 (2015-16 to 2022-23)
B3: Totex performance Source: PCFM | E3: Allowance | F3: Actual | G3: Difference | H3: Difference | I3: Allowance | J3: Actual | K3: Difference | L3: Difference | M3: Allowance | N3: Actual & Forecast | O3: Difference | P3: Difference
E4: £m | F4: £m | G4: £m | H4: % | I4: £m | J4: £m | K4: £m | L4: % | M4: £m | N4: £m | O4: £m | P4: %
D5: ENWL | E5: =E128 -> 267.7379006 | F5: 269.4169034 | G5: =F5-E5 -> 1.679002847 | H5: =G5/E5 -> 0.006271068994 | I5: =I128 -> 1070.683169 | J5: =J128 -> 1024.964094 | K5: =J5-I5 -> -45.71907561 | L5: =K5/I5 -> -0.04270084459 | M5: =M128 -> 2151.824911 | N5: =N128 -> 1995.43724 | O5: =N5-M5 -> -156.3876703 | P5: =O5/M5 -> -0.07267676357
D6: NPgN | E6: 191.635066 | F6: 187.0007132 | G6: -4.634352839 | H6: -0.02418321936 | I6: =I129 -> 806.6486606 | J6: =J129 -> 776.6950472 | K6: -29.95361342 | L6: -0.0371334075 | M6: =M129 -> 1506.104707 | N6: =N129 -> 1506.095832 | O6: -0.008874549638 | P6: -5.892385568e-06
D7: NPgY | E7: 261.9004376 | F7: 239.6243164 | G7: -22.27612122 | H7: -0.08505568537 | I7: 1065.109459 | J7: 974.9143634 | K7: -90.19509574 | L7: -0.0846815273 | M7: 2013.824643 | N7: 2013.861043 | O7: 0.03640036641 | P7: 1.807524133e-05
D8: WMID | E8: 299.0873931 | F8: 262.0100868 | G8: -37.0773063 | H8: -0.1239681349 | I8: 1198.560741 | J8: 1235.350216 | K8: 36.78947558 | L8: 0.03069471103 | M8: 2448.199161 | N8: 2479.566796 | O8: 31.36763534 | P8: 0.01281253414
D9: EMID | E9: 293.7394653 | F9: 266.1283699 | G9: -27.61109544 | H9: -0.09399858957 | I9: 1236.914748 | J9: 1236.560794 | K9: -0.35395456 | L9: -0.0002861592204 | M9: 2457.950731 | N9: 2449.164631 | O9: -8.786099759 | P9: -0.003574563008
D10: SWALES | E10: 172.9506029 | F10: 147.9085956 | G10: -25.04200725 | H10: -0.1447928301 | I10: 677.2170204 | J10: 605.876521 | K10: -71.34049934 | L10: -0.1053436302 | M10: 1259.748066 | N10: 1223.777014 | O10: -35.97105194 | P10: -0.02855416326
D11: SWEST | E11: 248.1393103 | F11: 222.0729082 | G11: -26.06640211 | H11: -0.1050474513 | I11: 990.6945687 | J11: 985.5553375 | K11: -5.139231183 | L11: -0.005187503137 | M11: 1992.074551 | N11: 1938.309293 | O11: -53.76525824 | P11: -0.02698958139
D12: LPN | E12: 255.4508146 | F12: 228.5813787 | G12: -26.86943591 | H12: -0.1051843814 | I12: 1088.643408 | J12: 899.6914915 | K12: -188.9519163 | L12: -0.1735663992 | M12: 2065.330179 | N12: 1867.457052 | O12: -197.8731265 | P12: -0.09580701844
D13: SPN | E13: 251.8765143 | F13: 227.6096578 | G13: -24.26685649 | H13: -0.09634426041 | I13: 1058.452837 | J13: 857.5817099 | K13: -200.8711269 | L13: -0.1897780609 | M13: 2002.474166 | N13: 1742.082093 | O13: -260.3920735 | P13: -0.1300351725
D14: EPN | E14: 378.2133364 | F14: 340.9623171 | G14: -37.25101933 | H14: -0.09849208301 | I14: 1544.031893 | J14: 1336.42616 | K14: -207.605733 | L14: -0.1344568943 | M14: 2977.318277 | N14: 2592.482193 | O14: -384.8360847 | P14: -0.1292559441
D15: SPD | E15: 229.4629926 | F15: 255.1457995 | G15: 25.68280692 | H15: 0.1119257037 | I15: 944.5811687 | J15: 924.4451019 | K15: -20.13606682 | L15: -0.02131745528 | M15: 1778.526702 | N15: 1778.569596 | O15: 0.04289399673 | P15: 2.41177131e-05
D16: SPMW | E16: 238.7704052 | F16: 290.8887768 | G16: 52.11837166 | H16: 0.2182781892 | I16: 1054.486626 | J16: 1106.159655 | K16: 51.67302916 | L16: 0.04900301996 | M16: 1969.079552 | N16: 1969.127727 | O16: 0.04817513925 | P16: 2.446581663e-05
D17: SSEH | E17: 187.5113539 | F17: 191.0440014 | G17: 3.532647514 | H17: 0.01883964592 | I17: 748.1641938 | J17: 718.3818768 | K17: -29.782317 | L17: -0.03980719373 | M17: 1593.494713 | N17: 1538.786153 | O17: -54.7085605 | P17: -0.0343324393
D18: SSES | E18: 352.047366 | F18: 352.9030894 | G18: 0.8557233769 | H18: 0.002430705239 | I18: 1421.015451 | J18: 1359.689151 | K18: -61.3262996 | L18: -0.04315667332 | M18: 2729.572156 | N18: 2597.002199 | O18: -132.5699568 | P18: -0.04856803528
D19: Total | E19: =SUM(E5:E18) -> 3628.522959 | F19: =SUM(F5:F18) -> 3481.296914 | G19: =SUM(G5:G18) -> -147.2260446 | H19: -0.04057464876 | I19: =SUM(I5:I18) -> 14905.20394 | J19: =SUM(J5:J18) -> 14042.29152 | K19: =SUM(K5:K18) -> -862.9124248 | L19: -0.05789336584 | M19: =SUM(M5:M18) -> 28945.52251 | N19: =SUM(N5:N18) -> 27691.71886 | O19: =SUM(O5:O18) -> -1253.803652 | P19: -0.04331597923
E21: Annual (2018-19) | I21: Cumulative to date (2015-16 to 2018-19) | M21: Forecast RIIO-ED1 (2015-16 to 2022-23)
E22: Allowance | F22: Actual | G22: Difference | H22: Difference | I22: Allowance | J22: Actual | K22: Difference | L22: Difference | M22: Allowance | N22: Actual & Forecast | O22: Difference | P22: Difference
E23: £m | F23: £m | G23: £m | H23: % | I23: £m | J23: £m | K23: £m | L23: % | M23: £m | N23: £m | O23: £m | P23: %
D24: ENWL | E24: =E5 -> 267.7379006 | F24: =F5 -> 269.4169034 | G24: =F24-E24 -> 1.679002847 | H24: =G24/E24 -> 0.006271068994 | I24: =I5 -> 1070.683169 | J24: =J5 -> 1024.964094 | K24: =J24-I24 -> -45.71907561 | L24: =K24/I24 -> -0.04270084459 | M24: =M5 -> 2151.824911 | N24: =N5 -> 1995.43724 | O24: =N24-M24 -> -156.3876703 | P24: =O24/M24 -> -0.07267676357
D25: NPg | E25: =SUM(E6:E7) -> 453.5355036 | F25: =SUM(F6:F7) -> 426.6250296 | G25: -26.91047406 | H25: -0.05933487862 | I25: =SUM(I6:I7) -> 1871.75812 | J25: =SUM(J6:J7) -> 1751.609411 | K25: -120.1487092 | L25: -0.06419029676 | M25: =SUM(M6:M7) -> 3519.929349 | N25: =SUM(N6:N7) -> 3519.956875 | O25: 0.02752581678 | P25: 7.819991268e-06
D26: WPD | E26: =SUM(E8:E11) -> 1013.916772 | F26: =SUM(F8:F11) -> 898.1199605 | G26: -115.7968111 | H26: -0.1142074126 | I26: =SUM(I8:I11) -> 4103.387078 | J26: =SUM(J8:J11) -> 4063.342868 | K26: -40.04420951 | L26: -0.009758818447 | M26: =SUM(M8:M11) -> 8157.972509 | N26: =SUM(N8:N11) -> 8090.817735 | O26: -67.15477459 | P26: -0.008231797118
D27: UKPN | E27: =SUM(E12:E14) -> 885.5406654 | F27: =SUM(F12:F14) -> 797.1533537 | G27: -88.38731172 | H27: -0.09981169152 | I27: =SUM(I12:I14) -> 3691.128138 | J27: =SUM(J12:J14) -> 3093.699362 | K27: -597.4287762 | L27: -0.1618553336 | M27: =SUM(M12:M14) -> 7045.122623 | N27: =SUM(N12:N14) -> 6202.021338 | O27: -843.1012848 | P27: -0.1196716267
D28: SPEN | E28: =SUM(E15:E16) -> 468.2333978 | F28: =SUM(F15:F16) -> 546.0345764 | G28: 77.80117858 | H28: 0.1661589689 | I28: =SUM(I15:I16) -> 1999.067794 | J28: =SUM(J15:J16) -> 2030.604757 | K28: 31.53696233 | L28: 0.01577583433 | M28: =SUM(M15:M16) -> 3747.606253 | N28: =SUM(N15:N16) -> 3747.697323 | O28: 0.09106913597 | P28: 2.43006148e-05
D29: SSEN | E29: =SUM(E17:E18) -> 539.5587199 | F29: =SUM(F17:F18) -> 543.9470908 | G29: 4.388370891 | H29: 0.008133259142 | I29: =SUM(I17:I18) -> 2169.179645 | J29: =SUM(J17:J18) -> 2078.071028 | K29: -91.1086166 | L29: -0.04200141598 | M29: =SUM(M17:M18) -> 4323.066869 | N29: =SUM(N17:N18) -> 4135.788352 | O29: -187.2785173 | P29: -0.04332075421
D30: Total | E30: =SUM(E24:E29) -> 3628.522959 | F30: =SUM(F24:F29) -> 3481.296914 | G30: -147.2260446 | H30: -0.04057464876 | I30: =SUM(I24:I29) -> 14905.20394 | J30: =SUM(J24:J29) -> 14042.29152 | K30: =J30-I30 -> -862.9124248 | L30: =K30/I30 -> -0.05789336584 | M30: =SUM(M24:M29) -> 28945.52251 | N30: =SUM(N24:N29) -> 27691.71886 | O30: =N30-M30 -> -1253.803652 | P30: =O30/M30 -> -0.04331597923
F33: Annual (2018-19) | I33: Cumulative to date (2015-16 to 2018-19) | L33: Forecast RIIO-ED1 (2015-16 to 2022-23)
E34: Sharing factor | F34: Totex performance | G34: Customer share | H34: DNO share | I34: Totex performance | J34: Customer share | K34: DNO share | L34: Totex performance | M34: Customer share | N34: DNO share
D35: ENWL | E35: =E57 -> 0.5811466619 | F35: =G5 -> 1.679002847 | G35: =F35*(1-$E$35) -> 0.7032559472 | H35: =F35*$E$35 -> 0.9757468998 | I35: =K5 -> -45.71907561 | J35: =I35*(1-$E$35) -> -19.14958744 | K35: =I35*$E$35 -> -26.56948818 | L35: =O5 -> -156.3876703 | M35: =L35*(1-$E$35) -> -65.50349774 | N35: =L35*$E$35 -> -90.88417254
D36: NPgN | E36: =F57 -> 0.5584370346 | F36: -4.634352839 | G36: =F36*(1-$E$36) -> -2.046358582 | H36: =F36*$E$36 -> -2.587994256 | I36: -29.95361342 | J36: =I36*(1-$E$36) -> -13.22640637 | K36: =I36*$E$36 -> -16.72720705 | L36: -0.008874549638 | M36: =L36*(1-$E$36) -> -0.003918672455 | N36: =L36*$E$36 -> -0.004955877183
D37: NPgY | E37: =G57 -> 0.5584370346 | F37: -22.27612122 | G37: =F37*(1-$E$37) -> -9.836310143 | H37: =F37*$E$37 -> -12.43981107 | I37: -90.19509574 | J37: =I37*(1-$E$37) -> -39.82681394 | K37: =I37*$E$37 -> -50.3682818 | L37: 0.03640036641 | M37: =L37*(1-$E$37) -> 0.01607305374 | N37: =L37*$E$37 -> 0.02032731268
D38: WMID | E38: =H57 -> 0.7 | F38: -37.0773063 | G38: =F38*(1-$E$38) -> -11.12319189 | H38: =F38*$E$38 -> -25.95411441 | I38: 36.78947558 | J38: =I38*(1-$E$38) -> 11.03684267 | K38: =I38*$E$38 -> 25.75263291 | L38: 31.36763534 | M38: =L38*(1-$E$38) -> 9.410290602 | N38: =L38*$E$38 -> 21.95734474
D39: EMID | E39: =I57 -> 0.7 | F39: -27.61109544 | G39: =F39*(1-$E$38) -> -8.283328632 | H39: =F39*$E$38 -> -19.32776681 | I39: -0.35395456 | J39: =I39*(1-$E$38) -> -0.106186368 | K39: =I39*$E$38 -> -0.247768192 | L39: -8.786099759 | M39: =L39*(1-$E$38) -> -2.635829928 | N39: =L39*$E$38 -> -6.150269831
D40: SWALES | E40: =J57 -> 0.7 | F40: -25.04200725 | G40: =F40*(1-$E$38) -> -7.512602175 | H40: =F40*$E$38 -> -17.52940508 | I40: -71.34049934 | J40: =I40*(1-$E$38) -> -21.4021498 | K40: =I40*$E$38 -> -49.93834954 | L40: -35.97105194 | M40: =L40*(1-$E$38) -> -10.79131558 | N40: =L40*$E$38 -> -25.17973635
D41: SWEST | E41: =K57 -> 0.7 | F41: -26.06640211 | G41: =F41*(1-$E$38) -> -7.819920632 | H41: =F41*$E$38 -> -18.24648148 | I41: -5.139231183 | J41: =I41*(1-$E$38) -> -1.541769355 | K41: =I41*$E$38 -> -3.597461828 | L41: -53.76525824 | M41: =L41*(1-$E$38) -> -16.12957747 | N41: =L41*$E$38 -> -37.63568076
D42: LPN | E42: =L57 -> 0.5328418572 | F42: -26.86943591 | G42: =F42*(1-$E$42) -> -12.55227578 | H42: =F42*$E$42 -> -14.31716013 | I42: -188.9519163 | J42: =I42*(1-$E$42) -> -88.2704263 | K42: =I42*$E$42 -> -100.68149 | L42: -197.8731265 | M42: =L42*(1-$E$42) -> -92.43804231 | N42: =L42*$E$42 -> -105.4350842
D43: SPN | E43: =M57 -> 0.5328418572 | F43: -24.26685649 | G43: =F43*(1-$E$42) -> -11.33645961 | H43: =F43*$E$42 -> -12.93039688 | I43: -200.8711269 | J43: =I43*(1-$E$42) -> -93.83858258 | K43: =I43*$E$42 -> -107.0325443 | L43: -260.3920735 | M43: =L43*(1-$E$42) -> -121.6442775 | N43: =L43*$E$42 -> -138.7477961
D44: EPN | E44: =N57 -> 0.5328418572 | F44: -37.25101933 | G44: =F44*(1-$E$42) -> -17.40211701 | H44: =F44*$E$42 -> -19.84890232 | I44: -207.605733 | J44: =I44*(1-$E$42) -> -96.98470868 | K44: =I44*$E$42 -> -110.6210244 | L44: -384.8360847 | M44: =L44*(1-$E$42) -> -179.7793106 | N44: =L44*$E$42 -> -205.0567741
D45: SPD | E45: =O57 -> 0.5350457456 | F45: 25.68280692 | G45: =F45*(1-$E$45) -> 11.94133034 | H45: =F45*$E$45 -> 13.74147657 | I45: -20.13606682 | J45: =I45*(1-$E$45) -> -9.362349937 | K45: =I45*$E$45 -> -10.77371689 | L45: 0.04289399673 | M45: =L45*(1-$E$45) -> 0.01994374627 | N45: =L45*$E$45 -> 0.02295025046
D46: SPMW | E46: =P57 -> 0.5350457456 | F46: 52.11837166 | G46: =F46*(1-$E$45) -> 24.23265864 | H46: =F46*$E$45 -> 27.88571303 | I46: 51.67302916 | J46: =I46*(1-$E$45) -> 24.02559475 | K46: =I46*$E$45 -> 27.64743441 | L46: 0.04817513925 | M46: =L46*(1-$E$45) -> 0.02239923595 | N46: =L46*$E$45 -> 0.0257759033
D47: SSEH | E47: =Q57 -> 0.5647137527 | F47: 3.532647514 | G47: =F47*(1-$E$47) -> 1.537712879 | H47: =F47*$E$47 -> 1.994934635 | I47: -29.782317 | J47: =I47*(1-$E$47) -> -12.963833 | K47: =I47*$E$47 -> -16.818484 | L47: -54.7085605 | M47: =L47*(1-$E$47) -> -23.813884 | N47: =L47*$E$47 -> -30.89467651
D48: SSES | E48: =R57 -> 0.5647137527 | F48: 0.8557233769 | G48: =F48*(1-$E$47) -> 0.3724846174 | H48: =F48*$E$47 -> 0.4832387594 | I48: -61.3262996 | J48: =I48*(1-$E$47) -> -26.69449481 | K48: =I48*$E$47 -> -34.63180479 | L48: -132.5699568 | M48: =L48*(1-$E$47) -> -57.70587899 | N48: =L48*$E$47 -> -74.86407779
D49: Total | F49: =SUM(F35:F48) -> -147.2260446 | G49: -49.12512202 | H49: -98.10092254 | I49: -862.9124248 | J49: -388.3048712 | K49: -474.6075536 | L49: -1253.803652 | M49: -560.9768261 | N49: -692.8268259
D52: Pre-tax Totex (£m) | E52: 2015/16
E53: ENWL | F53: NPgN | G53: NPgY | H53: WMID | I53: EMID | J53: SWALES | K53: SWEST | L53: LPN | M53: SPN | N53: EPN | O53: SPD | P53: SPMW | Q53: SSEH | R53: SSES
D54: Allowed Totex | E54: 274.9981678 | F54: 212.1367674 | G54: 279.4444445 | H54: 302.0131141 | I54: 330.6148911 | J54: 170.1210533 | K54: 248.5660932 | L54: 286.2215411 | M54: 258.089403 | N54: 386.6596067 | O54: 237.4605687 | P54: 272.2386277 | Q54: 185.1474372 | R54: 354.6632897
D55: Actual Totex | E55: 266.9130833 | F55: 205.9107627 | G55: 272.4971624 | H55: 340.5371268 | I55: 336.2358484 | J55: 155.067266 | K55: 243.6748234 | L55: 206.4286837 | M55: 188.8823555 | N55: 306.7129728 | O55: 210.7293584 | P55: 262.2137627 | Q55: 165.2558839 | R55: 306.6549734
D56: Overspend (underspend) | E56: =E55-E54 -> -8.085084562 | F56: =F55-F54 -> -6.226004676 | G56: -6.947282057 | H56: 38.52401262 | I56: 5.620957259 | J56: -15.05378733 | K56: -4.891269788 | L56: -79.79285743 | M56: -69.20704748 | N56: -79.94663382 | O56: -26.73121031 | P56: -10.02486496 | Q56: -19.89155331 | R56: -48.0083163
D57: Totex incentive rate | E57: 0.5811466619 | F57: 0.5584370346 | G57: 0.5584370346 | H57: 0.7 | I57: 0.7 | J57: 0.7 | K57: 0.7 | L57: 0.5328418572 | M57: 0.5328418572 | N57: 0.5328418572 | O57: 0.5350457456 | P57: 0.5350457456 | Q57: 0.5647137527 | R57: 0.5647137527
D58: Allowed Totex after Totex incentive rate | E58: =(E57*-E56)+E55 -> 271.6117032 | F58: 209.3875943 | G58: 276.376782 | H58: 313.5703179 | I58: 332.3011783 | J58: 165.6049171 | K58: 247.0987122 | L58: 248.945658 | M58: 225.7587672 | N58: 349.3118857 | O58: 225.0317787 | P58: 267.5775241 | Q58: 176.4889176 | R58: 333.7659298
E61: 2016/17
E62: ENWL | F62: NPgN | G62: NPgY | H62: WMID | I62: EMID | J62: SWALES | K62: SWEST | L62: LPN | M62: SPN | N62: EPN | O62: SPD | P62: SPMW | Q62: SSEH | R62: SSES
D63: Allowed Totex | E63: 262.782628 | F63: 208.3739198 | G63: 264.0179708 | H63: 303.4942916 | I63: 324.0586723 | J63: 171.6539772 | K63: 249.2985557 | L63: 280.8668584 | M63: 282.7345872 | N63: 399.4077458 | O63: 236.0977766 | P63: 283.6107236 | Q63: 187.6948066 | R63: 361.8422397
D64: Actual Totex | E64: 226.2346027 | F64: 201.6507317 | G64: 235.0148674 | H64: 341.92462 | I64: 338.4153468 | J64: 160.6799702 | K64: 278.2879728 | L64: 222.3820709 | M64: 220.3516856 | N64: 332.6251501 | O64: 227.224054 | P64: 274.3507864 | Q64: 185.9229661 | R64: 329.480526
D65: Overspend (underspend) | E65: =E64-E63 -> -36.54802531 | F65: =F64-F63 -> -6.723188098 | G65: -29.00310346 | H65: 38.43032836 | I65: 14.35667449 | J65: -10.97400698 | K65: 28.98941713 | L65: =L64-L63 -> -58.48478742 | M65: =M64-M63 -> -62.38290167 | N65: -66.78259578 | O65: -8.873722607 | P65: -9.259937194 | Q65: -1.771840461 | R65: -32.3617137
D66: Totex incentive rate | E66: =E57 -> 0.5811466619 | F66: =F57 -> 0.5584370346 | G66: 0.5584370346 | H66: 0.7 | I66: 0.7 | J66: 0.7 | K66: 0.7 | L66: =L57 -> 0.5328418572 | M66: =M57 -> 0.5328418572 | N66: 0.5328418572 | O66: 0.5350457456 | P66: 0.5350457456 | Q66: 0.5647137527 | R66: 0.5647137527
D67: Allowed Totex after Totex incentive rate | E67: =(E66*-E65)+E64 -> 247.4743656 | F67: =(F66*-F65)+F64 -> 205.4052089 | G67: 251.2112745 | H67: 315.0233901 | I67: 328.3656746 | J67: 168.3617751 | K67: 257.9953808 | L67: 253.5452137 | M67: 253.5919067 | N67: 368.2097124 | O67: 231.9719015 | P67: 279.3052764 | Q67: 186.9235488 | R67: 347.7556308
E70: 2017/18
E71: ENWL | F71: NPgN | G71: NPgY | H71: WMID | I71: EMID | J71: SWALES | K71: SWEST | L71: LPN | M71: SPN | N71: EPN | O71: SPD | P71: SPMW | Q71: SSEH | R71: SSES
D72: Allowed Totex | E72: 265.1644728 | F72: 194.5029074 | G72: 259.7466062 | H72: 293.9659418 | I72: 288.5017195 | J72: 162.491387 | K72: 244.6906095 | L72: 266.1041937 | M72: 265.7523322 | N72: 379.7512043 | O72: 241.5598308 | P72: 259.8668691 | Q72: 187.8105961 | R72: 352.4625557
D73: Actual Totex | E73: 262.3995042 | F73: 182.1328396 | G73: 227.7780172 | H73: 290.8783826 | I73: 295.7812286 | J73: 142.2206892 | K73: 241.519633 | L73: 242.2993581 | M73: 220.738011 | N73: 356.1257202 | O73: 231.3458899 | P73: 278.7063287 | Q73: 176.1590253 | R73: 370.6505627
D74: Overspend (underspend) | E74: =E73-E72 -> -2.764968593 | F74: =F73-F72 -> -12.37006781 | G74: -31.968589 | H74: -3.087559101 | I74: 7.279509128 | J74: -20.27069778 | K74: -3.170976414 | L74: =L73-L72 -> -23.80483556 | M74: =M73-M72 -> -45.01432125 | N74: -23.62548411 | O74: -10.21394082 | P74: 18.83945965 | Q74: -11.65157075 | R74: 18.18800702
D75: Totex incentive rate | E75: =E57 -> 0.5811466619 | F75: =F57 -> 0.5584370346 | G75: 0.5584370346 | H75: 0.7 | I75: 0.7 | J75: 0.7 | K75: 0.7 | L75: 0.5328418572 | M75: 0.5328418572 | N75: 0.5328418572 | O75: 0.5350457456 | P75: 0.5350457456 | Q75: 0.5647137527 | R75: 0.5647137527
D76: Allowed Totex after Totex incentive rate | E76: =(E75*-E74)+E73 -> 264.0063565 | F76: =(F75*-F74)+F73 -> 189.0407436 | G76: 245.6304613 | H76: 293.039674 | I76: 290.6855722 | J76: 156.4101776 | K76: 243.7393165 | L76: 254.9835709 | M76: 244.7235255 | N76: 368.7143671 | O76: 236.8108155 | P76: 268.626356 | Q76: 182.7388276 | R76: 360.379545
E79: 2018/19
E80: ENWL | F80: NPgN | G80: NPgY | H80: WMID | I80: EMID | J80: SWALES | K80: SWEST | L80: LPN | M80: SPN | N80: EPN | O80: SPD | P80: SPMW | Q80: SSEH | R80: SSES
D81: Allowed Totex | E81: 267.7379006 | F81: 191.635066 | G81: 261.9004376 | H81: 299.0873931 | I81: 293.7394653 | J81: 172.9506029 | K81: 248.1393103 | L81: 255.4508146 | M81: 251.8765143 | N81: 378.2133364 | O81: 229.4629926 | P81: 238.7704052 | Q81: 187.5113539 | R81: 352.047366
D82: Actual Totex | E82: 269.4169034 | F82: 187.0007132 | G82: 239.6243164 | H82: 262.0100868 | I82: 266.1283699 | J82: 147.9085956 | K82: 222.0729082 | L82: 228.5813787 | M82: 227.6096578 | N82: 340.9623171 | O82: 255.1457995 | P82: 290.8887768 | Q82: 191.0440014 | R82: 352.9030894
D83: Overspend (underspend) | E83: =E82-E81 -> 1.679002847 | F83: =F82-F81 -> -4.634352839 | G83: -22.27612122 | H83: -37.0773063 | I83: -27.61109544 | J83: -25.04200725 | K83: -26.06640211 | L83: =L82-L81 -> -26.86943591 | M83: =M82-M81 -> -24.26685649 | N83: -37.25101933 | O83: 25.68280692 | P83: 52.11837166 | Q83: 3.532647514 | R83: 0.8557233769
D84: Totex incentive rate | E84: =E66 -> 0.5811466619 | F84: =F66 -> 0.5584370346 | G84: 0.5584370346 | H84: 0.7 | I84: 0.7 | J84: 0.7 | K84: 0.7 | L84: 0.5328418572 | M84: 0.5328418572 | N84: 0.5328418572 | O84: 0.5350457456 | P84: 0.5350457456 | Q84: 0.5647137527 | R84: 0.5647137527
D85: Allowed Totex after Totex incentive rate | E85: =(E84*-E83)+E82 -> 268.4411565 | F85: =(F84*-F83)+F82 -> 189.5887074 | G85: 252.0641275 | H85: 287.9642012 | I85: 285.4561367 | J85: 165.4380007 | K85: 240.3193897 | L85: 242.8985389 | M85: 240.5400547 | N85: 360.8112194 | O85: 241.404323 | P85: 263.0030638 | Q85: 189.0490668 | R85: 352.4198506
E88: 2019/20
E89: ENWL | F89: NPgN | G89: NPgY | H89: WMID | I89: EMID | J89: SWALES | K89: SWEST | L89: LPN | M89: SPN | N89: EPN | O89: SPD | P89: SPMW | Q89: SSEH | R89: SSES
D90: Allowed Totex
D91: Actual Totex
D92: Overspend (underspend)
D93: Totex incentive rate
D94: Allowed Totex after Totex incentive rate
E97: 2020/21
E98: ENWL | F98: NPgN | G98: NPgY | H98: WMID | I98: EMID | J98: SWALES | K98: SWEST | L98: LPN | M98: SPN | N98: EPN | O98: SPD | P98: SPMW | Q98: SSEH | R98: SSES
D99: Allowed Totex
D100: Actual Totex
D101: Overspend (underspend)
D102: Totex incentive rate
D103: Allowed Totex after Totex incentive rate
E106: 2021/22
E107: ENWL | F107: NPgN | G107: NPgY | H107: WMID | I107: EMID | J107: SWALES | K107: SWEST | L107: LPN | M107: SPN | N107: EPN | O107: SPD | P107: SPMW | Q107: SSEH | R107: SSES
D108: Allowed Totex
D109: Actual Totex
D110: Overspend (underspend)
D111: Totex incentive rate
D112: Allowed Totex after Totex incentive rate
E115: 2022/23
E116: ENWL | F116: NPgN | G116: NPgY | H116: WMID | I116: EMID | J116: SWALES | K116: SWEST | L116: LPN | M116: SPN | N116: EPN | O116: SPD | P116: SPMW | Q116: SSEH | R116: SSES
D117: Allowed Totex
D118: Actual Totex
D119: Overspend (underspend)
D120: Totex incentive rate
D121: Allowed Totex after Totex incentive rate
D124: Expenditure relative to cost allowances
E125: 2018-19 | I125: Cumulative to date | M125: RIIO-ED1
E126: Allowance | F126: Actual | G126: Difference | I126: Allowance | J126: Actual | K126: Difference | M126: Allowance | N126: Actual | O126: Difference
G127: No | H127: % | K127: No | L127: % | O127: No | P127: %
D128: ENWL | E128: =TRANSPOSE(E81:R81) -> 267.7379006 | F128: =TRANSPOSE(E82:R82) -> 269.4169034 | G128: =F128-E128 -> 1.679002847 | H128: =G128/E128 -> 0.006271068994 | I128: =E54+E63+E72+E81 -> 1070.683169 | J128: =SUM(E55,E64,E73,E82) -> 1024.964094 | K128: =J128-I128 -> -45.71907561 | L128: =K128/I128 -> -0.04270084459 | M128: 2151.824911 | N128: 1995.43724 | O128: =N128-M128 -> -156.3876703 | P128: =O128/M128 -> -0.07267676357
D129: NPgN | E129: 191.635066 | F129: 187.0007132 | G129: -4.634352839 | H129: -0.02418321936 | I129: =F54+F63+F72+F81 -> 806.6486606 | J129: =SUM(F55,F64,F73,F82) -> 776.6950472 | K129: -29.95361342 | L129: -0.0371334075 | M129: 1506.104707 | N129: 1506.095832 | O129: -0.008874549638 | P129: -5.892385568e-06
D130: NPgY | E130: 261.9004376 | F130: 239.6243164 | G130: -22.27612122 | H130: -0.08505568537 | I130: =SUM(G54,G63,G72,G81) -> 1065.109459 | J130: =SUM(G55,G64,G73,G82) -> 974.9143634 | K130: -90.19509574 | L130: -0.0846815273 | M130: 2013.824643 | N130: 2013.861043 | O130: 0.03640036641 | P130: 1.807524133e-05
D131: WMID | E131: 299.0873931 | F131: 262.0100868 | G131: -37.0773063 | H131: -0.1239681349 | I131: =SUM(H54,H63,H72,H81) -> 1198.560741 | J131: =SUM(H55,H64,H73,H82) -> 1235.350216 | K131: 36.78947558 | L131: 0.03069471103 | M131: 2448.199161 | N131: 2479.566796 | O131: 31.36763534 | P131: 0.01281253414
D132: EMID | E132: 293.7394653 | F132: 266.1283699 | G132: -27.61109544 | H132: -0.09399858957 | I132: =SUM(I54,I63,I72,I81) -> 1236.914748 | J132: =SUM(I55,I64,I73,I82) -> 1236.560794 | K132: -0.35395456 | L132: -0.0002861592204 | M132: 2457.950731 | N132: 2449.164631 | O132: -8.786099759 | P132: -0.003574563008
D133: SWALES | E133: 172.9506029 | F133: 147.9085956 | G133: -25.04200725 | H133: -0.1447928301 | I133: =SUM(J54,J63,J72,J81) -> 677.2170204 | J133: =SUM(J55,J64,J73,J82) -> 605.876521 | K133: -71.34049934 | L133: -0.1053436302 | M133: 1259.748066 | N133: 1223.777014 | O133: -35.97105194 | P133: -0.02855416326
D134: SWEST | E134: 248.1393103 | F134: 222.0729082 | G134: -26.06640211 | H134: -0.1050474513 | I134: =SUM(K54,K63,K72,K81) -> 990.6945687 | J134: =SUM(K55,K64,K73,K82) -> 985.5553375 | K134: -5.139231183 | L134: -0.005187503137 | M134: 1992.074551 | N134: 1938.309293 | O134: -53.76525824 | P134: -0.02698958139
D135: LPN | E135: 255.4508146 | F135: 228.5813787 | G135: -26.86943591 | H135: -0.1051843814 | I135: =SUM(L54,L63,L72,L81) -> 1088.643408 | J135: =SUM(L55,L64,L73,L82) -> 899.6914915 | K135: -188.9519163 | L135: -0.1735663992 | M135: 2065.330179 | N135: 1867.457052 | O135: -197.8731265 | P135: -0.09580701844
D136: SPN | E136: 251.8765143 | F136: 227.6096578 | G136: -24.26685649 | H136: -0.09634426041 | I136: =SUM(M54,M63,M72,M81) -> 1058.452837 | J136: =SUM(M55,M64,M73,M82) -> 857.5817099 | K136: -200.8711269 | L136: -0.1897780609 | M136: 2002.474166 | N136: 1742.082093 | O136: -260.3920735 | P136: -0.1300351725
D137: EPN | E137: 378.2133364 | F137: 340.9623171 | G137: -37.25101933 | H137: -0.09849208301 | I137: =SUM(N54,N63,N72,N81) -> 1544.031893 | J137: =SUM(N55,N64,N73,N82) -> 1336.42616 | K137: -207.605733 | L137: -0.1344568943 | M137: 2977.318277 | N137: 2592.482193 | O137: -384.8360847 | P137: -0.1292559441
D138: SPD | E138: 229.4629926 | F138: 255.1457995 | G138: 25.68280692 | H138: 0.1119257037 | I138: =SUM(O54,O63,O72,O81) -> 944.5811687 | J138: =SUM(O55,O64,O73,O82) -> 924.4451019 | K138: -20.13606682 | L138: -0.02131745528 | M138: 1778.526702 | N138: 1778.569596 | O138: 0.04289399673 | P138: 2.41177131e-05
D139: SPMW | E139: 238.7704052 | F139: 290.8887768 | G139: 52.11837166 | H139: 0.2182781892 | I139: =SUM(P54,P63,P72,P81) -> 1054.486626 | J139: =SUM(P55,P64,P73,P82) -> 1106.159655 | K139: 51.67302916 | L139: 0.04900301996 | M139: 1969.079552 | N139: 1969.127727 | O139: 0.04817513925 | P139: 2.446581663e-05
D140: SSEH | E140: 187.5113539 | F140: 191.0440014 | G140: 3.532647514 | H140: 0.01883964592 | I140: =SUM(Q54,Q63,Q72,Q81) -> 748.1641938 | J140: =SUM(Q55,Q64,Q73,Q82) -> 718.3818768 | K140: -29.782317 | L140: -0.03980719373 | M140: 1593.494713 | N140: 1538.786153 | O140: -54.7085605 | P140: -0.0343324393
D141: SSES | E141: 352.047366 | F141: 352.9030894 | G141: 0.8557233769 | H141: 0.002430705239 | I141: =SUM(R54,R63,R72,R81) -> 1421.015451 | J141: =SUM(R55,R64,R73,R82) -> 1359.689151 | K141: -61.3262996 | L141: -0.04315667332 | M141: 2729.572156 | N141: 2597.002199 | O141: -132.5699568 | P141: -0.04856803528
D142: Total | E142: =SUM(E128:E141) -> 3628.522959 | F142: =SUM(F128:F141) -> 3481.296914 | G142: -147.2260446 | H142: -0.04057464876 | I142: =SUM(I128:I141) -> 14905.20394 | J142: =SUM(J128:J141) -> 14042.29152 | K142: -862.9124248 | L142: -0.05789336584 | M142: =SUM(M128:M141) -> 28945.52251 | N142: =SUM(N128:N141) -> 27691.71886 | O142: -1253.803652 | P142: -0.04331597923
E144: 2018-19 | I144: Cumulative to date | M144: RIIO-ED1
E145: Allowance | F145: Actual | G145: Difference | I145: Allowance | J145: Actual | K145: Difference | M145: Allowance | N145: Actual | O145: Difference
G146: No | H146: % | K146: No | L146: % | O146: No | P146: %
D147: ENWL | E147: =E128 -> 267.7379006 | F147: =F128 -> 269.4169034 | G147: =F147-E147 -> 1.679002847 | H147: =G147/E147 -> 0.006271068994 | I147: =I128 -> 1070.683169 | J147: =J128 -> 1024.964094 | K147: =J147-I147 -> -45.71907561 | L147: =K147/I147 -> -0.04270084459 | M147: =M128 -> 2151.824911 | N147: =N128 -> 1995.43724 | O147: =N147-M147 -> -156.3876703 | P147: =O147/M147 -> -0.07267676357
D148: NPg | E148: =SUM(E129:E130) -> 453.5355036 | F148: =SUM(F129:F130) -> 426.6250296 | G148: -26.91047406 | H148: -0.05933487862 | I148: =SUM(I129:I130) -> 1871.75812 | J148: =SUM(J129:J130) -> 1751.609411 | K148: -120.1487092 | L148: -0.06419029676 | M148: =SUM(M129:M130) -> 3519.929349 | N148: =SUM(N129:N130) -> 3519.956875 | O148: 0.02752581678 | P148: 7.819991268e-06
D149: WPD | E149: =SUM(E131:E134) -> 1013.916772 | F149: =SUM(F131:F134) -> 898.1199605 | G149: -115.7968111 | H149: -0.1142074126 | I149: =SUM(I131:I134) -> 4103.387078 | J149: =SUM(J131:J134) -> 4063.342868 | K149: -40.04420951 | L149: -0.009758818447 | M149: =SUM(M131:M134) -> 8157.972509 | N149: =SUM(N131:N134) -> 8090.817735 | O149: -67.15477459 | P149: -0.008231797118
D150: UKPN | E150: =SUM(E135:E137) -> 885.5406654 | F150: =SUM(F135:F137) -> 797.1533537 | G150: -88.38731172 | H150: -0.09981169152 | I150: =SUM(I135:I137) -> 3691.128138 | J150: =SUM(J135:J137) -> 3093.699362 | K150: -597.4287762 | L150: -0.1618553336 | M150: =SUM(M135:M137) -> 7045.122623 | N150: =SUM(N135:N137) -> 6202.021338 | O150: -843.1012848 | P150: -0.1196716267
D151: SPEN | E151: =SUM(E138:E139) -> 468.2333978 | F151: =SUM(F138:F139) -> 546.0345764 | G151: 77.80117858 | H151: 0.1661589689 | I151: =SUM(I138:I139) -> 1999.067794 | J151: =SUM(J138:J139) -> 2030.604757 | K151: 31.53696233 | L151: 0.01577583433 | M151: =SUM(M138:M139) -> 3747.606253 | N151: =SUM(N138:N139) -> 3747.697323 | O151: 0.09106913597 | P151: 2.43006148e-05
D152: SSEN | E152: =SUM(E140:E141) -> 539.5587199 | F152: =SUM(F140:F141) -> 543.9470908 | G152: 4.388370891 | H152: 0.008133259142 | I152: =SUM(I140:I141) -> 2169.179645 | J152: =SUM(J140:J141) -> 2078.071028 | K152: -91.1086166 | L152: -0.04200141598 | M152: =SUM(M140:M141) -> 4323.066869 | N152: =SUM(N140:N141) -> 4135.788352 | O152: -187.2785173 | P152: -0.04332075421
D153: Total | E153: =SUM(E147:E152) -> 3628.522959 | F153: =SUM(F147:F152) -> 3481.296914 | G153: -147.2260446 | H153: -0.04057464876 | I153: =SUM(I147:I152) -> 14905.20394 | J153: =SUM(J147:J152) -> 14042.29152 | K153: -862.9124248 | L153: -0.05789336584 | M153: =SUM(M147:M152) -> 28945.52251 | N153: =SUM(N147:N152) -> 27691.71886 | O153: -1253.803652 | P153: -0.04331597923
D156: Regional estimates of typical GB customer cost to meet Allowed Revenue
B157: Customer Bll Impact | D157: £ real prices per domestic consumer
F158: 2015-04-01 | G158: 2016-04-01 | H158: 2017-04-01 | I158: 2018-04-01 | J158: 2019-04-01
D159: GB consumer count weighted average
D160: Region | E160: DNO
D161: North West | E161: ENWL | F161: 97.04740203 | G161: 98.73635326 | H161: 81.45048319 | I161: 80.4365 | J161: 84.58105161
D162: North East | E162: NPgN | F162: 106.4219131 | G162: 103.8724013 | H162: 93.4059596 | I162: 87.899 | J162: 90.46329053
D163: Yorkshire | E163: NPgY | F163: 91.20996842 | G163: 85.41566424 | H163: 77.90846333 | I163: 74.862 | J163: 75.49212503
D164: Midlands | E164: WMID | F164: 86.86752062 | G164: 99.2206642 | H164: 85.81643232 | I164: 82.1845 | J164: 80.91010419
D165: East Midlands | E165: EMID | F165: 82.61134299 | G165: 88.6064501 | H165: 77.8347786 | I165: 72.7485 | J165: 72.89701963
D166: South Wales | E166: SWALES | F166: 104.6200675 | G166: 119.7659253 | H166: 105.5144735 | I166: 101.564 | J166: 101.9321541
D167: South West | E167: SWEST | F167: 116.6875187 | G167: 130.0145007 | H167: 116.5012276 | I167: 102.7385 | J167: 100.6687667
D168: London | E168: LPN | F168: 71.64083358 | G168: 80.93541387 | H168: 69.04465396 | I168: 66.5895 | J168: 72.93336564
D169: South East | E169: SPN | F169: 93.71180369 | G169: 109.9363377 | H169: 93.92535966 | I169: 83.9665 | J169: 89.73249334
D170: East Anglia | E170: EPN | F170: 83.18356546 | G170: 84.36258196 | H170: 81.47212486 | I170: 77.8905 | J170: 80.95614248
D171: South Scotland | E171: SPD | F171: 105.0972836 | G171: 102.0853687 | H171: 94.0964319 | I171: 93.511 | J171: 95.03998062
D172: Merseyside and N Wales | E172: SPMW | F172: 132.0052808 | G172: 115.8679172 | H172: 107.0809182 | I172: 101.6325 | J172: 113.8531621
D173: North Scotland | E173: SSEH | F173: 133.5162102 | G173: 146.5596528 | H173: 128.7401068 | I173: 126.365 | J173: 124.8567967
D174: Southern | E174: SSES | F174: 87.54785382 | G174: 92.4558133 | H174: 83.34825147 | I174: 75.966 | J174: 73.82311606
D175: Customer Bill Value: the methodology chosen by Ofgem and relevant network companies have simplifying assumptions that may result in a different customer bill value
B179: RAV | D179: 2015/16 | E179: ENWL | F179: NPgN | G179: NPgY | H179: WMID | I179: EMID | J179: SWALES | K179: SWEST | L179: LPN | M179: SPN | N179: EPN | O179: SPD | P179: SPMW | Q179: SSEH | R179: SSES
D180: RAV at 1st April 2015 | E180: 1767.207537 | F180: 1307.48976 | G180: 1723.447999 | H180: 2273.654135 | I180: 2233.536256 | J180: 973.7326526 | K180: 1397.233221 | L180: 1638.846315 | M180: 1671.243671 | N180: 2664.021268 | O180: 1762.787187 | P180: 1765.840403 | Q180: 1103.660437 | R180: 2333.154007
D181: Slow Money | E181: 184.6407469 | F181: 146.5308765 | G181: 199.1555852 | H181: 250.6059448 | I181: 265.572789 | J181: 132.4839337 | K181: 197.6789698 | L181: 169.2830475 | M181: 153.5159617 | N181: 237.5331101 | O181: 180.025423 | P181: 214.6548541 | Q181: 109.419675 | R181: 234.2007007
D182: Depreciation | E182: -171.002595 | F182: -117.5523911 | G182: -156.579996 | H182: -198.9347799 | I182: -193.3435268 | J182: -98.55010177 | K182: -129.6120059 | L182: -159.5317965 | M182: -141.0522425 | N182: -240.8680745 | O182: -161.2862025 | P182: -153.3087366 | Q182: -105.5259519 | R182: -227.9272701
D183: RAV at 31st March 2016 | E183: 1780.845689 | F183: 1336.468245 | G183: 1766.023589 | H183: 2325.3253 | I183: 2305.765518 | J183: 1007.666485 | K183: 1465.300185 | L183: 1648.597566 | M183: 1683.70739 | N183: 2660.686304 | O183: 1781.526408 | P183: 1827.186521 | Q183: 1107.55416 | R183: 2339.427437
D185: 2016/17 | E185: ENWL | F185: NPgN | G185: NPgY | H185: WMID | I185: EMID | J185: SWALES | K185: SWEST | L185: LPN | M185: SPN | N185: EPN | O185: SPD | P185: SPMW | Q185: SSEH | R185: SSES
D186: RAV at 1st April 2016 | E186: =E183 -> 1780.845689 | F186: =F183 -> 1336.468245 | G186: 1766.023589 | H186: 2325.3253 | I186: 2305.765518 | J186: 1007.666485 | K186: 1465.300185 | L186: 1648.597566 | M186: 1683.70739 | N186: 2660.686304 | O186: 1781.526408 | P186: 1827.186521 | Q186: 1107.55416 | R186: 2339.427437
D187: Slow Money | E187: 168.2471239 | F187: 143.6844906 | G187: 180.807074 | H187: 251.5268263 | I187: 262.2740239 | J187: 134.6894201 | K187: 206.3963046 | L187: 171.9205123 | M187: 172.0277693 | N187: 250.1706181 | O187: 185.5775212 | P187: 223.7852097 | Q187: 115.9058078 | R187: 244.2689511
D188: Depreciation | E188: -172.6183161 | F188: -120.1514615 | G188: -159.6886073 | H188: -203.5457671 | I188: -199.6453465 | J188: -99.69435491 | K188: -133.8520179 | L188: -160.5458395 | M188: -144.8453515 | N188: -243.7274153 | O188: -163.4337663 | P188: -158.32744 | Q188: -106.0831429 | R188: -226.5572341
D189: RAV at 31st March 2017 | E189: 1776.474497 | F189: 1360.001274 | G189: 1787.142055 | H189: 2373.306359 | I189: 2368.394195 | J189: 1042.66155 | K189: 1537.844472 | L189: 1659.972239 | M189: 1710.889808 | N189: 2667.129506 | O189: 1803.670163 | P189: 1892.64429 | Q189: 1117.376825 | R189: 2357.139154
D191: 2017/18 | E191: ENWL | F191: NPgN | G191: NPgY | H191: WMID | I191: EMID | J191: SWALES | K191: SWEST | L191: LPN | M191: SPN | N191: EPN | O191: SPD | P191: SPMW | Q191: SSEH | R191: SSES
D192: RAV at 1st April 2017 | E192: =E189 -> 1776.474497 | F192: =F189 -> 1360.001274 | G192: =G189 -> 1787.142055 | H192: 2373.306359 | I192: 2368.394195 | J192: 1042.66155 | K192: 1537.844472 | L192: 1659.972239 | M192: 1710.889808 | N192: 2667.129506 | O192: 1803.670163 | P192: 1892.64429 | Q192: 1117.376825 | R192: 2357.139154
D193: Slow Money | E193: 179.4759371 | F193: 132.2923103 | G193: 176.7404653 | H193: 233.8774294 | I193: 232.1262006 | J193: 125.1281421 | K193: 194.9914532 | L193: 173.3888282 | M193: 166.4119741 | N193: 250.7305568 | O193: 189.4486524 | P193: 215.2559306 | Q193: 113.3072526 | R193: 252.1266716
D194: Depreciation | E194: -162.8441539 | F194: -121.6201621 | G194: -160.3683087 | H194: -205.9383753 | I194: -204.0350979 | J194: -92.34070135 | K194: -136.8088393 | L194: -159.7452698 | M194: -147.7595082 | N194: -245.4528917 | O194: -166.1326798 | P194: -162.4016061 | Q194: -105.3161933 | R194: -223.6336599
D195: RAV at 31st March 2018 | E195: 1793.10628 | F195: 1370.673423 | G195: 1803.514212 | H195: 2401.245413 | I195: 2396.485298 | J195: 1075.44899 | K195: 1596.027086 | L195: 1673.615797 | M195: 1729.542274 | N195: 2672.407172 | O195: 1826.986135 | P195: 1945.498615 | Q195: 1125.367885 | R195: 2385.632166
D197: 2018/19 | E197: ENWL | F197: NPgN | G197: NPgY | H197: WMID | I197: EMID | J197: SWALES | K197: SWEST | L197: LPN | M197: SPN | N197: EPN | O197: SPD | P197: SPMW | Q197: SSEH | R197: SSES
D198: RAV at 1st April 2018 | E198: =E195 -> 1793.10628 | F198: =F195 -> 1370.673423 | G198: 1803.514212 | H198: 2401.245413 | I198: 2396.485298 | J198: 1075.44899 | K198: 1596.027086 | L198: 1673.615797 | M198: 1729.542274 | N198: 2672.407172 | O198: 1826.986135 | P198: 1945.498615 | Q198: 1125.367885 | R198: 2385.632166
D199: Slow Money | E199: 182.5432036 | F199: 132.5974187 | G199: 181.4761229 | H199: 229.9021127 | I199: 228.1982605 | J199: 132.3504006 | K199: 192.2555118 | L199: 165.1710064 | M199: 163.5672372 | N199: 245.3171186 | O199: 193.1234584 | P199: 210.9652977 | Q199: 117.0383334 | R199: 248.0593894
D200: Depreciation | E200: -160.8458666 | F200: -122.4487689 | G200: -158.4106962 | H200: -207.7722514 | I200: -205.2384899 | J200: -91.31985586 | K200: -138.3536353 | L200: -158.6101389 | M200: -150.8556917 | N200: -243.8198177 | O200: -167.7474591 | P200: -165.974228 | Q200: -104.3656844 | R200: -220.9420569
D201: RAV at 31st March 2019 | E201: 1814.803617 | F201: 1380.822072 | G201: 1826.579639 | H201: 2423.375274 | I201: 2419.445069 | J201: 1116.479535 | K201: 1649.928962 | L201: 1680.176665 | M201: 1742.25382 | N201: 2673.904472 | O201: 1852.362134 | P201: 1990.489685 | Q201: 1138.040534 | R201: 2412.749499
D203: 2019/20 | E203: ENWL | F203: NPgN | G203: NPgY | H203: WMID | I203: EMID | J203: SWALES | K203: SWEST | L203: LPN | M203: SPN | N203: EPN | O203: SPD | P203: SPMW | Q203: SSEH | R203: SSES
D204: RAV at 1st April 2019
D205: Slow Money
D206: Depreciation
D207: RAV at 31st March 2020
D209: 2020/21 | E209: ENWL | F209: NPgN | G209: NPgY | H209: WMID | I209: EMID | J209: SWALES | K209: SWEST | L209: LPN | M209: SPN | N209: EPN | O209: SPD | P209: SPMW | Q209: SSEH | R209: SSES
D210: RAV at 1st April 2020
D211: Slow Money
D212: Depreciation
D213: RAV at 31st March 2021
D215: 2021/22 | E215: ENWL | F215: NPgN | G215: NPgY | H215: WMID | I215: EMID | J215: SWALES | K215: SWEST | L215: LPN | M215: SPN | N215: EPN | O215: SPD | P215: SPMW | Q215: SSEH | R215: SSES
D216: RAV at 1st April 2021
D217: Slow Money
D218: Depreciation
D219: RAV at 31st March 2022
D221: 2022/23 | E221: ENWL | F221: NPgN | G221: NPgY | H221: WMID | I221: EMID | J221: SWALES | K221: SWEST | L221: LPN | M221: SPN | N221: EPN | O221: SPD | P221: SPMW | Q221: SSEH | R221: SSES
D222: RAV at 1st April 2022
D223: Slow Money
D224: Depreciation
D225: RAV at 31st March 2023

Sheet Ch4 expenditure drivers
A1: Chapter 4 - Expenditure Drivers
O2: Disaggregated expenditure v allowances for all DNOs
B3: Distribution of allowances and expenditure per cost category | D3: 2018-19 | E3: Baseline Allowance | F3: % of total baseline allowance | G3: Actual | H3: % of total actual | J3: 2018-19 | K3: Technical / glossary term | L3: % of total actual | M3: % of total baseline allowance | O3: 2018-19 | P3: Allowance (£m) | Q3: Actual (£m) | R3: Difference (£m) | S3: Difference (%)
D4: Network Reinforcement | E4: =$Q$185 -> 360.5978564 | F4: =E4/$E$22 -> 0.1006231255 | G4: =$Z$185 -> 183.1121879 | H4: =G4/$G$22 -> 0.05278832833 | J4: Replacing & refurbishing equipment | K4: Asset replacement, Refurbishment, Civil Works Condition Driven, Rising and Lateral Mains and BT21CN | L4: =H5 -> 0.2125842823 | M4: =F5 -> 0.2516685673 | O4: Replacing & refurbishing equipment | P4: =E5 -> 901.891543 | Q4: =G5 -> 737.4124975 | R4: =Q4-P4 -> -164.4790454 | S4: =R4/P4 -> -0.1823712028
D5: Replacing & refurbishing equipment | E5: =$Q$205 -> 901.891543 | F5: 0.2516685673 | G5: =$Z$205 -> 737.4124975 | H5: 0.2125842823 | J5: Operational support | K5: Closely Associate Indirects | L5: =H7 -> 0.2297933215 | M5: =F7 -> 0.1951227193 | O5: Operational support | P5: =E7 -> 699.2511312 | Q5: =G7 -> 797.1072238 | R5: =Q5-P5 -> 97.85609266 | S5: =R5/P5 -> 0.1399441321
D6: Network Faults | E6: =$Q$225 -> 415.1287198 | F6: 0.1158397049 | G6: =$Z$225 -> 504.1362537 | H6: 0.1453344553 | J6: Network faults | K6: Faults, ONIs and Severe Weather 1 in 20 | L6: =H6 -> 0.1453344553 | M6: =F6 -> 0.1158397049 | O6: Network faults | P6: =E6 -> 415.1287198 | Q6: =G6 -> 504.1362537 | R6: 89.00753387 | S6: 0.2144094822
D7: Operational Support | E7: =$Q$245 -> 699.2511312 | F7: 0.1951227193 | G7: =$Z$245 -> 797.1072238 | H7: 0.2297933215 | J7: Network Reinforcement | K7: Connections, Reinforcement and Transmission Connection Points | L7: =H4 -> 0.05278832833 | M7: =F4 -> 0.1006231255 | O7: Network Reinforcement | P7: =E4 -> 360.5978564 | Q7: =G4 -> 183.1121879 | R7: -177.4856686 | S7: -0.4921983462
D8: Business Support | E8: =$Q$265 -> 378.8606781 | F8: 0.1057192794 | G8: =$Z$265 -> 400.454621 | H8: 0.1154446914 | J8: Business support | K8: Business support | L8: =H8 -> 0.1154446914 | M8: =F8 -> 0.1057192794 | O8: Business support | P8: =E8 -> 378.8606781 | Q8: =G8 -> 400.454621 | R8: 21.59394284 | S8: 0.05699705481
D9: Five largest | E9: =$Q$165 -> 2755.729928 | F9: 0.7689733963 | G9: =$Z$165 -> 2622.222784 | H9: 0.7559450788 | J9: Resilience | K9: Black start, Flood mitigation, Physical security and Tree cutting | L9: =H11 -> 0.0383241431 | M9: =F11 -> 0.04160898271 | O9: Resilience | P9: =E11 -> 149.1119452 | Q9: =G11 -> 132.9388126 | R9: -16.17313258 | S9: -0.1084630246
J10: Property & equipment | K10: Non Op Capex | L10: =H19 -> 0.04380319188 | M10: =F19 -> 0.03844379864 | O10: Property & equipment | P10: =E19 -> 137.7690399 | Q10: =G19 -> 151.9445407 | R10: 14.17550081 | S10: 0.102893225
D11: Resilience | E11: =$Q$285 -> 149.1119452 | F11: =E11/$E$22 -> 0.04160898271 | G11: =$Z$285 -> 132.9388126 | H11: =G11/$G$22 -> 0.0383241431 | J11: Network inspection | K11: Inspections and Maintenance | L11: =H16 -> 0.04172511603 | M11: =F16 -> 0.03806047854 | O11: Network inspection | P11: =E16 -> 136.3953555 | Q11: =G16 -> 144.7361098 | R11: 8.340754232 | S11: 0.06115130679
D12: Re-routing | E12: =$Q$368+$Q$388 -> 103.2701679 | F12: 0.02881705167 | G12: =$Z$368+$Z$388 -> 115.4653653 | H12: 0.03328682644 | J12: Re-routing | K12: Diversions (Excluding Rail Electrification) and Diversions Rail Electrification | L12: =H12 -> 0.03328682644 | M12: =F12 -> 0.02881705167 | O12: Re-routing | P12: =E12 -> 103.2701679 | Q12: =G12 -> 115.4653653 | R12: 12.19519745 | S12: 0.1180902259
D13: IT | E13: =$Q$468 -> 64.92590473 | F13: 0.01811726648 | G13: =$Z$468 -> 46.35575056 | H13: 0.01336362483 | J13: Legal & safety compliance | K13: Legal and Safety and Overhead Line Clearances | L13: =H14 -> 0.0271655798 | M13: =F14 -> 0.0261079023 | O13: Legal & safety compliance | P13: =E14 -> 93.56153034 | Q13: =G14 -> 94.231981 | R13: 0.6704506621 | S13: 0.007165879605
D14: Legal & safety compliance | E14: =$Q$528+$Q$628 -> 93.56153034 | F14: 0.0261079023 | G14: =$Z$528+$Z$628 -> 94.231981 | H14: 0.0271655798 | J14: IT | K14: Operational IT and telecoms | L14: =H13 -> 0.01336362483 | M14: =F13 -> 0.01811726648 | O14: IT | P14: =E13 -> 64.92590473 | Q14: =G13 -> 46.35575056 | R14: -18.57015417 | S14: -0.2860207223
D15: Service quality | E15: =$Q$548 -> 8.51086933 | F15: 0.002374917813 | G15: =$Z$548 -> 40.39825286 | H15: 0.0116461731 | J15: High value projects | K15: High Value Projects | L15: =H20 -> 0.01127730772 | M15: =F20 -> 0.009845119393 | O15: High value projects | P15: =E20 -> 35.28144184 | Q15: =G20 -> 39.11873238 | R15: 3.837290537 | S15: 0.1087622936
D16: Network inspection | E16: =$Q$748 -> 136.3953555 | F16: 0.03806047854 | G16: =$Z$748 -> 144.7361098 | H16: 0.04172511603 | J16: Other operational costs | K16: NOCs Other | L16: =H18 -> 0.008411725402 | M16: =F18 -> 0.01097909434 | O16: Other operational costs | P16: =E18 -> 39.34520882 | Q16: =G18 -> 29.17859858 | R16: -10.16661024 | S16: -0.2583951273
D17: Environment | E17: =$Q$648 -> 17.40816101 | F17: 0.004857664953 | G17: =$Z$648 -> 11.71219023 | H17: 0.003376437967 | J17: Environment | K17: Environmental Reporting & Losses | L17: =H17 -> 0.003376437967 | M17: =F17 -> 0.004857664953 | O17: Environment | P17: =E17 -> 17.40816101 | Q17: =G17 -> 11.71219023 | R17: -5.69597078 | S17: -0.3272011775
D18: Other operational costs | E18: =$Q$768 -> 39.34520882 | F18: 0.01097909434 | G18: =$Z$768 -> 29.17859858 | H18: 0.008411725402 | J18: Service quality | K18: QoS & North of Scotland Resilience | L18: =H15 -> 0.0116461731 | M18: =F15 -> 0.002374917813 | O18: Service quality | P18: =E15 -> 8.51086933 | Q18: =G15 -> 40.39825286 | R18: 31.88738353 | S18: 3.746665856
D19: Property & equipment | E19: =$Q$788 -> 137.7690399 | F19: =E19/$E$22 -> 0.03844379864 | G19: =$Z$788 -> 151.9445407 | H19: 0.04380319188 | J19: =D23 -> Policy Adjustments | K19: Forecast DRS 8, Shetland Competitive Process, Shetland Uncertain Energy | L19: =Q19/Q21 -> 0.001511824044 | M19: =P19/P21 -> 0.007885362483 | O19: =D23 -> Policy Adjustments | P19: =E23 -> 28.48296151 | Q19: =G23 -> 5.252156569 | R19: =Q19-P19 -> -23.23080494 | S19: =R19/P19 -> -0.8156035647
D20: High value projects | E20: =$Q$868 -> 35.28144184 | F20: 0.009845119393 | G20: =$Z$868+$Z$888 -> 39.11873238 | H20: 0.01127730772 | J20: Smart metering | K20: Smart metering | L20: =H21 -> 0.01167479496 | M20: =F21 -> 0.01181432687 | O20: Smart metering | P20: =E21 -> 42.33838815 | Q20: =G21 -> 40.4975364 | R20: =Q20-P20 -> -1.840851747 | S20: =R20/P20 -> -0.04347949527
D21: Smart metering | E21: =$Q$808 -> 42.33838815 | F21: 0.01181432687 | G21: =$Z$808 -> 40.4975364 | H21: 0.01167479496 | O21: Total | P21: =SUM(P4:P20) -> 3612.130903 | Q21: =SUM(Q4:Q20) -> 3474.052811 | R21: =Q21-P21 -> -138.0780919 | S21: =R21/P21 -> -0.03822621483
D22: Total of disaggregated areas | E22: =$Q$908 -> 3583.647941 | F22: =SUM(F9:F21) -> 1 | G22: =Z908 -> 3468.800654 | H22: =SUM(H9:H21) -> 1
D23: Policy Adjustments | E23: =P928 -> 28.48296151 | G23: =Z928 -> 5.252156569
D24: Total PCFM Totex | E24: ='Ch3 financial performance '!E142 -> 3628.522959 | G24: ='Ch3 financial performance '!F142 -> 3481.296914
D25: PCFM Totex - (Total disagg+ policy adj) | E25: =E24-(E22+E23) -> 16.39205611 | G25: =G24-(G22+G23) -> 7.244103429
D26: *NB: our totex allowances and actuals when adding up the disaggregated categories in this worksheet are slightly different to the totex figures we report in worksheet "Ch3 financial performance". We are working to understand the cause, but the differences are minimal and does not affect the key messages on totex performance.
D27: Cumulative to date | E27: Baseline Allowance | F27: % of total baseline allowance | G27: Actual | H27: % of total actual | J27: Cumulative to date | K27: Technical / glossary term | L27: % of total actual | M27: % of total baseline allowance | O27: Cumulative to date | P27: Allowance (£m) | Q27: Actual (£m) | R27: Difference (£m) | S27: Difference (%)
D28: Network Reinforcement | E28: =SUM(N185:Q185) -> 1482.115636 | F28: =E28/$E$46 -> 0.1005001921 | G28: =SUM(W185:Z185) -> 910.032236 | H28: =G28/$G$46 -> 0.06520643427 | J28: Replacing & refurbishing equipment | K28: Asset replacement, Refurbishment, Civil Works Condition Driven, Rising and Lateral Mains and BT21CN | L28: =H29 -> 0.2180179376 | M28: =F29 -> 0.2544397885 | O28: =D29 -> Replacing & refurbishing equipment | P28: =E29 -> 3752.323067 | Q28: =G29 -> 3042.695915 | R28: =Q28-P28 -> -709.6271521 | S28: =R28/P28 -> -0.1891167523
D29: Replacing & refurbishing equipment | E29: =SUM(N205:Q205) -> 3752.323067 | F29: 0.2544397885 | G29: =SUM(W205:Z205) -> 3042.695915 | H29: 0.2180179376 | J29: Operational support | K29: Closely Associate Indirects | L29: =H31 -> 0.2257591815 | M29: =F31 -> 0.1918648219 | O29: =D31 -> Operational Support | P29: =E31 -> 2829.505563 | Q29: =G31 -> 3150.734051 | R29: =Q29-P29 -> 321.2284874 | S29: =R29/P29 -> 0.1135281342
D30: Network Faults | E30: =SUM(N225:Q225) -> 1698.822621 | F30: 0.1151947902 | G30: =SUM(W225:Z225) -> 1957.387029 | H30: 0.1402524258 | J30: Network faults | K30: Faults, ONIs and Severe Weather 1 in 20 | L30: =H30 -> 0.1402524258 | M30: =F30 -> 0.1151947902 | O30: =D30 -> Network Faults | P30: =E30 -> 1698.822621 | Q30: =G30 -> 1957.387029 | R30: 258.5644079 | S30: 0.152202122
D31: Operational Support | E31: =SUM(N245:Q245) -> 2829.505563 | F31: =E31/$E$46 -> 0.1918648219 | G31: =SUM(W245:Z245) -> 3150.734051 | H31: 0.2257591815 | J31: Network Reinforcement | K31: Connections, Reinforcement and Transmission Connection Points | L31: =H28 -> 0.06520643427 | M31: =F28 -> 0.1005001921 | O31: =D28 -> Network Reinforcement | P31: =E28 -> 1482.115636 | Q31: =G28 -> 910.032236 | R31: -572.0834001 | S31: -0.3859910699
D32: Business Support | E32: =SUM(N265:Q265) -> 1530.472543 | F32: 0.1037792064 | G32: =SUM(W265:Z265) -> 1514.406929 | H32: 0.1085116241 | J32: Business support | K32: Business support | L32: =H32 -> 0.1085116241 | M32: =F32 -> 0.1037792064 | O32: =D32 -> Business Support | P32: =E32 -> 1530.472543 | Q32: =G32 -> 1514.406929 | R32: -16.06561368 | S32: -0.01049715903
D33: Five largest | E33: =SUM(N165:Q165) -> 11293.23943 | F33: 0.765778799 | G33: =SUM(W165:Z165) -> 10575.25616 | H33: 0.7577476032 | J33: Resilience | K33: Black start, Flood mitigation, Physical security and Tree cutting | L33: =H35 -> 0.04064094589 | M33: =F35 -> 0.04251705787 | O33: =D35 -> Resilience | P33: =E35 -> 627.0156801 | Q33: =G35 -> 567.192046 | R33: -59.82363406 | S33: -0.0954101085
J34: Property & equipment | K34: Non Op Capex | L34: =H43 -> 0.04488026077 | M34: =F43 -> 0.0388509389 | O34: =D43 -> Property & equipment | P34: =E43 -> 572.9499899 | Q34: =G43 -> 626.3566551 | R34: 53.40666518 | S34: 0.0932134848
D35: Resilience | E35: =SUM(N285:Q285) -> 627.0156801 | F35: =E35/$E$46 -> 0.04251705787 | G35: =SUM(W285:Z285) -> 567.192046 | H35: =G35/$G$46 -> 0.04064094589 | J35: Network inspection | K35: Inspections and Maintenance | L35: =H40 -> 0.04346610152 | M35: =F40 -> 0.03748280422 | O35: =D40 -> Network inspection | P35: =E40 -> 552.7735726 | Q35: =G40 -> 606.6204048 | R35: 53.84683218 | S35: 0.09741209574
D36: Re-routing | E36: =$N$368+$N$388+$O$368+$O$388+$P$368+$P$388+$Q$368+$Q$388 -> 450.966621 | F36: 0.03057941696 | G36: =$W$368+$W$388+$X$368+$X$388+$Y$368+$Y$388+$Z$368+$Z$388 -> 412.3667654 | H36: 0.02954726802 | J36: Re-routing | K36: Diversions (Excluding Rail Electrification) and Diversions Rail Electrification | L36: =H36 -> 0.02954726802 | M36: =F36 -> 0.03057941696 | O36: =D36 -> Re-routing | P36: =E36 -> 450.966621 | Q36: =G36 -> 412.3667654 | R36: -38.59985558 | S36: -0.0855935978
D37: IT | E37: =SUM(N468:Q468) -> 291.1159936 | F37: =E37/$E$46 -> 0.01974016909 | G37: =SUM(W468:Z468) -> 191.3739616 | H37: 0.01371249628 | J37: Legal & safety compliance | K37: Legal and Safety and Overhead Line Clearances | L37: =H38 -> 0.0302725519 | M37: =F38 -> 0.02839797419 | O37: =D38 -> Legal & safety compliance | P37: =E38 -> 418.7960314 | Q37: =G38 -> 422.4889522 | R37: 3.692920806 | S37: 0.008817946038
D38: Legal & safety compliance | E38: =$O$528+$O$628+$N$528+$N$628+$P$528+$P$628+Q528+Q628 -> 418.7960314 | F38: 0.02839797419 | G38: =$W$528+$W$628+$X$528+$X$628+$Y$528+$Y$628+$Z$528+$Z$628 -> 422.4889522 | H38: 0.0302725519 | J38: IT | K38: Operational IT and telecoms | L38: =H37 -> 0.01371249628 | M38: =F37 -> 0.01974016909 | O38: =D37 -> IT | P38: =E37 -> 291.1159936 | Q38: =G37 -> 191.3739616 | R38: -99.74203198 | S38: -0.3426195543
D39: Service quality | E39: =SUM(N548:Q548) -> 34.68510838 | F39: =E39/$E$46 -> 0.002351948774 | G39: =SUM(W548:Z548) -> 147.5144669 | H39: 0.01056983699 | J39: High value projects | K39: High Value Projects | L39: =H44 -> 0.01064255943 | M39: =F44 -> 0.01036635902 | O39: =D44 -> High value projects | P39: =E44 -> 152.8767506 | Q39: =G44 -> 148.5293938 | R39: -4.34735682 | S39: -0.02843700433
D40: Network inspection | E40: =SUM(N748:Q748) -> 552.7735726 | F40: 0.03748280422 | G40: =SUM(W748:Z748) -> 606.6204048 | H40: =G40/$G$46 -> 0.04346610152 | J40: Other operational costs | K40: NOCs Other | L40: =H42 -> 0.00777894432 | M40: =F42 -> 0.0107292828 | O40: Other operational costs | P40: =E42 -> 158.2289294 | Q40: =G42 -> 108.5642878 | R40: -49.66464168 | S40: -0.3138783904
D41: Environment | E41: =SUM(N648:Q648) -> 72.90366305 | F41: 0.004943495608 | G41: =SUM(W648:Z648) -> 45.90343983 | H41: 0.003289113851 | J41: Environment | K41: Environmental Reporting & Losses | L41: =H41 -> 0.003289113851 | M41: =F41 -> 0.004943495608 | O41: =D41 -> Environment | P41: =E41 -> 72.90366305 | Q41: =G41 -> 45.90343983 | R41: -27.00022321 | S41: -0.3703548228
D42: Other operational costs | E42: =SUM(N768:Q768) -> 158.2289294 | F42: =E42/$E$46 -> 0.0107292828 | G42: =SUM(W768:Z768) -> 108.5642878 | H42: 0.00777894432 | J42: Service quality | K42: QoS & North of Scotland Resilience | L42: =H39 -> 0.01056983699 | M42: =F39 -> 0.002351948774 | O42: =D39 -> Service quality | P42: =E39 -> 34.68510838 | Q42: =G39 -> 147.5144669 | R42: 112.8293585 | S42: 3.252962546
D43: Property & equipment | E43: =SUM(N788:Q788) -> 572.9499899 | F43: 0.0388509389 | G43: =SUM(W788:Z788) -> 626.3566551 | H43: 0.04488026077 | J43: =D47 -> Policy Adjustments | K43: Forecast DRS 8, Shetland Competitive Process, Shetland Uncertain Energy | L43: =Q43/Q45 -> 0.004226466424 | M43: =P43/P45 -> 0.007275553684 | O43: =D47 -> Policy Adjustments | P43: =E47 -> 108.0817904 | Q43: =G47 -> 59.23565141 | R43: -48.84613898 | S43: -0.4519368046
D44: High value projects | E44: =SUM(N868:Q868) -> 152.8767506 | F44: 0.01036635902 | G44: =$W$868+$W$888+$X$868+$X$888+$Y$868+$Y$888+$Z$868+$Z$888 -> 148.5293938 | H44: 0.01064255943 | J44: Smart metering | K44: Smart metering | L44: =H45 -> 0.007452317802 | M44: =F45 -> 0.008261753596 | O44: Smart metering | P44: =E45 -> 121.8393113 | Q44: =G45 -> 104.0058318 | R44: =Q44-P44 -> -17.83347954 | S44: =R44/P44 -> -0.1463688472
D45: Smart metering | E45: =SUM(N808:Q808) -> 121.8393113 | F45: 0.008261753596 | G45: =SUM(W808:Z808) -> 104.0058318 | H45: 0.007452317802 | O45: Total | P45: =SUM(P28:P44) -> 14855.47287 | Q45: =SUM(Q28:Q44) -> 14015.40802 | R45: =Q45-P45 -> -840.0648559 | S45: =R45/P45 -> -0.05654918312
D46: Total of disaggregated areas | E46: =SUM(N908:Q908) -> 14747.39108 | F46: =SUM(F33:F45) -> 1 | G46: =SUM(W908:Z908) -> 13956.17237 | H46: =SUM(H33:H45) -> 1
D47: Policy Adjustments | E47: =SUM(N928:Q928) -> 108.0817904 | G47: =SUM(W928:Z928) -> 59.23565141
D48: Total PCFM Totex | E48: =SUM('Ch3 financial performance '!I142) -> 14905.20394 | G48: =SUM('Ch3 financial performance '!J142) -> 14042.29152
D49: PCFM Totex - (Total disagg+ policy adj) | E49: =E48-(E46+E47) -> 49.73107073 | G49: =G48-(G46+G47) -> 26.88350183
D52: Expenditure on largest categories of direct costs by DNO | R52: Expenditure on largest categories of indirect costs by DNO
E53: =D188 -> Replacing & refurbishing equipment total | H53: =D168 -> Network Reinforcement total | K53: =D208 -> Network faults total | N53: Total | S53: =D228 -> Operational support | V53: =D248 -> Business support total | Y53: Total
E54: Allowance | F54: Actual | G54: % difference | H54: Allowance | I54: Actual | J54: % difference | K54: Allowance | L54: Actual | M54: % difference | N54: Allowance | O54: Actual | P54: % difference | S54: Allowance | T54: Actual | U54: % difference | V54: Allowance | W54: Actual | X54: % difference | Y54: Allowance | Z54: Actual | AA54: % difference
D55: =D171 -> ENWL | E55: =AU191 -> 79.06750658 | F55: =AV191 -> 63.78823998 | G55: =AX191 -> -0.1932433089 | H55: =AU171 -> 18.63904008 | I55: =AV171 -> 7.280167178 | J55: =AX171 -> -0.6094129769 | K55: =AU211 -> 28.60518478 | L55: =AV211 -> 35.62744534 | M55: =AX211 -> 0.2454890824 | N55: =SUM(K55,H55,E55) -> 126.3117314 | O55: =SUM(L55,I55,F55) -> 106.6958525 | P55: =(O55-N55)/N55 -> -0.155297364 | R55: =D55 -> ENWL | S55: =AU231 -> 52.330873 | T55: =AV231 -> 50.09362505 | U55: =AX231 -> -0.04275197083 | V55: =AU251 -> 34.0220801 | W55: =AV251 -> 34.55036701 | X55: =AX251 -> 0.01552776653 | Y55: =SUM(V55,S55) -> 86.3529531 | Z55: =SUM(W55,T55) -> 84.64399206 | AA55: =SUM(Z55-Y55)/Y55 -> -0.01979041802
D56: NPgN | E56: 54.055007 | F56: 49.52392758 | G56: -0.08382349159 | H56: 15.01420839 | I56: 9.418609102 | J56: -0.3726869338 | K56: 26.13701935 | L56: 33.19719563 | M56: 0.2701217069 | N56: =SUM(K56,H56,E56) -> 95.20623474 | O56: =SUM(L56,I56,F56) -> 92.13973231 | P56: -0.03220905063 | R56: NPgN | S56: 35.23064627 | T56: 37.102527 | U56: 0.0531321713 | V56: 22.53934693 | W56: 21.53277456 | X56: -0.04465845314 | Y56: =SUM(V56,S56) -> 57.7699932 | Z56: =SUM(W56,T56) -> 58.63530157 | AA56: =SUM(Z56-Y56)/Y56 -> 0.01497850901
D57: NPgY | E57: 72.57452683 | F57: 67.92954619 | G57: -0.06400290633 | H57: 16.79833498 | I57: 7.967985721 | J57: -0.5256681255 | K57: 43.86651272 | L57: 49.82851227 | M57: 0.1359123208 | N57: 133.2393745 | O57: 125.7260442 | P57: -0.05638971499 | R57: NPgY | S57: 43.76227112 | T57: 42.31322396 | U57: -0.0331117906 | V57: 25.81566609 | W57: 25.03766087 | X57: -0.03013694139 | Y57: 69.57793721 | Z57: 67.35088483 | AA57: -0.03200802529
D58: WMID | E58: 79.14645915 | F58: 50.3013 | G58: -0.3644529327 | H58: 32.19760007 | I58: 11.7113 | J58: -0.6362679214 | K58: 34.01020708 | L58: 36.3313 | M58: 0.06824695063 | N58: 145.3542663 | O58: 98.3439 | P58: -0.3234192397 | R58: WMID | S58: 61.29800069 | T58: 71.3763 | U58: 0.1644148127 | V58: 31.75641441 | W58: 25.8422027 | X58: -0.1862367593 | Y58: 93.0544151 | Z58: 97.2185027 | AA58: 0.04474895248
D59: EMID | E59: 65.8291144 | F59: 44.0562 | G59: -0.3307490097 | H59: 31.98672966 | I59: 28.1485 | J59: -0.1199944384 | K59: 39.04612758 | L59: 39.2262 | M59: 0.004611786984 | N59: 136.8619716 | O59: 111.4309 | P59: -0.1858154704 | R59: EMID | S59: 60.98433752 | T59: 69.9612 | U59: 0.1471994752 | V59: 32.91719768 | W59: 26.8199 | X59: -0.1852313719 | Y59: 93.90153521 | Z59: 96.7811 | AA59: 0.03066579037
D60: SWALES | E60: 45.83541646 | F60: 36.6854 | G60: -0.1996276497 | H60: 11.88314947 | I60: 3.9381 | J60: -0.668597958 | K60: 15.57832955 | L60: 14.7189 | M60: -0.05516827356 | N60: 73.29689548 | O60: 55.3424 | P60: -0.2449557428 | R60: SWALES | S60: 34.59925714 | T60: 34.6638 | U60: 0.00186544057 | V60: 17.15715934 | W60: 14.3025 | X60: -0.1663829826 | Y60: 51.75641649 | Z60: 48.9663 | AA60: -0.05390861029
D61: SWEST | E61: 67.88895778 | F61: 58.6351 | G61: -0.1363087324 | H61: 15.8866599 | I61: 9.609 | J61: -0.3951529106 | K61: 28.14374972 | L61: 26.0315 | M61: -0.07505217823 | N61: 111.9193674 | O61: 94.2756 | P61: -0.157647133 | R61: SWEST | S61: 50.21775807 | T61: 51.6271 | U61: 0.02806461277 | V61: 27.36964131 | W61: 22.6683 | X61: -0.1717721199 | Y61: 77.58739938 | Z61: 74.2954 | AA61: -0.04242956204
D62: LPN | E62: 40.90667034 | F62: 31.83030859 | G62: -0.2218797491 | H62: 48.50942587 | I62: 16.34297552 | J62: -0.6630969089 | K62: 25.64119499 | L62: 32.07463066 | M62: 0.2509023342 | N62: 115.0572912 | O62: 80.24791477 | P62: -0.3025395093 | R62: LPN | S62: 46.91364553 | T62: 62.15720487 | U62: 0.3249280494 | V62: 25.84261483 | W62: 27.0094613 | X62: 0.04515202772 | Y62: 72.75626037 | Z62: 89.16666616 | AA62: 0.2255531787
D63: SPN | E63: 55.10458706 | F63: 35.35061399 | G63: -0.3584814644 | H63: 29.95995438 | I63: 14.17119948 | J63: -0.5269952916 | K63: 27.13527424 | L63: 40.50297746 | M63: 0.492631956 | N63: 112.1998157 | O63: 90.02479094 | P63: -0.1976386913 | R63: SPN | S63: 50.29497841 | T63: 51.36621437 | U63: 0.02129906398 | V63: 26.65833107 | W63: 23.03685036 | X63: -0.1358479905 | Y63: 76.95330948 | Z63: 74.40306473 | AA63: -0.03314015682
D64: EPN | E64: 79.21063667 | F64: 45.58270199 | G64: -0.4245381188 | H64: 46.46294285 | I64: 10.00608963 | J64: -0.7846436532 | K64: 42.34686501 | L64: 59.56775252 | M64: 0.4066626303 | N64: 168.0204445 | O64: 115.1565441 | P64: -0.3146277855 | R64: EPN | S64: 73.05685857 | T64: 83.60199157 | U64: 0.1443414514 | V64: 33.38970333 | W64: 38.51518854 | X64: 0.1535049642 | Y64: 106.4465619 | Z64: 122.1171801 | AA64: 0.147215823
D65: SPD | E65: 61.2698008 | F65: 61.20309333 | G65: -0.001088749531 | H65: 22.79993095 | I65: 26.88597549 | J65: 0.1792130226 | K65: 27.1095008 | L65: 31.48649885 | M65: 0.1614562396 | N65: 111.1792325 | O65: 119.5755677 | P65: 0.07552071495 | R65: SPD | S65: 42.8995043 | T65: 56.57695137 | U65: 0.3188252941 | V65: 23.81025696 | W65: 39.82576759 | X65: 0.6726307351 | Y65: 66.70976126 | Z65: 96.40271897 | AA65: 0.4451066404
D66: SPMW | E66: 79.72674349 | F66: 84.72178023 | G66: 0.06265195997 | H66: 18.15036054 | I66: 19.04345599 | J66: 0.04920538336 | K66: 21.96054358 | L66: 35.33809962 | M66: 0.6091632473 | N66: 119.8376476 | O66: 139.1033358 | P66: 0.1607649066 | R66: SPMW | S66: 40.88154173 | T66: 55.49226316 | U66: 0.3573916446 | V66: 18.46868981 | W66: 35.67606591 | X66: 0.9317052954 | Y66: 59.35023154 | Z66: 91.16832907 | AA66: 0.5361073866
D67: SSEH | E67: 33.13016794 | F67: 36.25540553 | G67: 0.09433207805 | H67: 17.63115225 | I67: 5.751305091 | J67: -0.6737986825 | K67: 16.37202589 | L67: 17.21854612 | M67: 0.05170528337 | N67: 67.13334607 | O67: 59.22525674 | P67: -0.1177967403 | R67: SSEH | S67: 35.52172126 | T67: 46.03617282 | U67: 0.2960006212 | V67: 22.86626439 | W67: 24.23085743 | X67: 0.05967713029 | Y67: 58.38798566 | Z67: 70.26703025 | AA67: 0.2034501527
D68: SSES | E68: 88.14594847 | F68: 71.54888011 | G68: -0.1882907683 | H68: 34.67836704 | I68: 12.83752464 | J68: -0.6298117317 | K68: 39.17618454 | L68: 52.9866952 | M68: 0.3525231163 | N68: 162.0005001 | O68: 137.3731 | P68: -0.152020519 | R68: SSES | S68: 71.25973757 | T68: 84.73864967 | U68: 0.1891518628 | V68: 36.24731186 | W68: 41.40672466 | X68: 0.1423391843 | Y68: 107.5070494 | Z68: 126.1453743 | AA68: 0.1733683978
D69: Total | E69: 901.891543 | F69: 737.4124975 | G69: -0.1823712028 | H69: 360.5978564 | I69: 183.1121879 | J69: -0.4921983462 | K69: 415.1287198 | L69: 504.1362537 | M69: 0.2144094822 | N69: 1677.618119 | O69: 1424.660939 | P69: -0.1507835289 | R69: Total | S69: 699.2511312 | T69: 797.1072238 | U69: 0.1399441321 | V69: 378.8606781 | W69: 400.454621 | X69: 0.05699705481 | Y69: 1078.111809 | Z69: 1197.561845 | AA69: 0.1107955914
B72: Distribution of overall allowances and expenditure RIGs Annex B Business Plan Data Templates Scores & allowances 2014-20141120-1_7 Post CMA Combining results for Reg Finance-20141120-1 RJ Post CMA DPCR5 Close out report DPCR4 Allowances | D72: Allowances
E73: DR4 | J73: DR5 | O73: ED1
E74: 2005/06 | F74: 2006/07 | G74: 2007/08 | H74: 2008/09 | I74: 2009/10 | J74: 2010/11 | K74: 2011/12 | L74: 2012/13 | M74: 2013/14 | N74: 2014/15 | O74: 2015/16 | P74: 2016/17 | Q74: 2017/18 | R74: 2018/19 | S74: 2019/20 | T74: 2020/21 | U74: 2021/22 | V74: 2022/23
D75: ENWL | E75: 272.2374161 | F75: 267.7687517 | G75: 264.5768486 | H75: 261.5445406 | I75: 258.5122327 | J75: 306.2466248 | K75: 324.9865301 | L75: 321.5327345 | M75: 279.7967551 | N75: 286.5575612 | O75: 274.858456 | P75: 262.6929354 | Q75: 265.0420341 | R75: 267.7460416 | S75: 272.3183394 | T75: 272.5487517 | U75: 269.9420374 | V75: 260.3633808
D76: NPgN | E76: 173.3522578 | F76: 175.2673996 | G76: 174.3098287 | H76: 173.3522578 | I76: 172.554282 | J76: 199.1586194 | K76: 198.2167176 | L76: 207.8500325 | M76: 214.7454775 | N76: 210.3500653 | O76: 212.0333166 | P76: 208.1202637 | Q76: 194.4102758 | R76: 191.3417052 | S76: 188.0042859 | T76: 173.4092306 | U76: 161.5284057 | V76: 158.3702779
D77: NPgY | E77: 231.6683276 | F77: 228.9552099 | G77: 226.0824971 | H77: 224.8057359 | I77: 223.6885698 | J77: 266.9996231 | K77: 269.5538536 | L77: 265.4502983 | M77: 270.2627681 | N77: 280.0403201 | O77: 279.8530805 | P77: 263.8641502 | Q77: 259.4644029 | R77: 261.8754449 | S77: 245.4859651 | T77: 234.8480906 | U77: 218.5156609 | V77: 223.7890518
D78: WMID | E78: 293.718924 | F78: 288.9310693 | G78: 285.1007856 | H78: 282.2280728 | I78: 280.9513115 | J78: 293.2624884 | K78: 302.2679283 | L78: 318.8636699 | M78: 323.72169 | N78: 327.5434861 | O78: 301.5661329 | P78: 302.6159242 | Q78: 292.9761028 | R78: 298.3080567 | S78: 307.3856518 | T78: 305.4535035 | U78: 302.6424615 | V78: 305.8206202
D79: EMID | E79: 296.0490132 | F79: 299.4005115 | G79: 299.4005115 | H79: 296.6873939 | I79: 295.2510375 | J79: 292.4065184 | K79: 305.2969052 | L79: 334.4064178 | M79: 328.5834585 | N79: 326.5787992 | O79: 330.1359985 | P79: 323.3113227 | Q79: 287.7476889 | R79: 293.4418782 | S79: 288.9024789 | T79: 296.5002236 | U79: 311.7228244 | V79: 303.0086887
D80: SWALES | E80: 138.9435423 | F80: 141.1778745 | G80: 141.9758502 | H80: 141.1778745 | I80: 140.3798987 | J80: 144.0587014 | K80: 149.1566546 | L80: 154.2109665 | M80: 153.2565401 | N80: 156.1802011 | O80: 170.1210533 | P80: 171.6539772 | Q80: 162.491387 | R80: 172.9506029 | S80: 158.037589 | T80: 143.6773802 | U80: 138.3571225 | V80: 141.0422175
D81: SWEST | E81: 186.7901699 | F81: 189.8224778 | G81: 190.7800487 | H81: 189.8224778 | I81: 188.8649069 | J81: 197.9008214 | K81: 215.2183103 | L81: 220.5576836 | M81: 224.1141221 | N81: 226.2283888 | O81: 248.5660932 | P81: 249.2985557 | Q81: 244.6906095 | R81: 248.1393103 | S81: 243.9232993 | T81: 243.1634459 | U81: 242.9416625 | V81: 254.4121738
D82: LPN | E82: 254.1712445 | F82: 257.841933 | G82: 260.0762652 | H82: 258.799504 | I82: 257.5227427 | J82: 281.198853 | K82: 282.8760212 | L82: 275.9430062 | M82: 254.2534153 | N82: 253.8013845 | O82: 286.2215411 | P82: 280.8668584 | Q82: 266.1041937 | R82: 255.4508146 | S82: 261.0785519 | T82: 247.7948066 | U82: 230.4757566 | V82: 219.010851
D83: SPN | E83: 264.3853344 | F83: 257.3631476 | G83: 250.660151 | H83: 246.510677 | I83: 239.1692999 | J83: 278.7520583 | K83: 284.3503748 | L83: 273.2089243 | M83: 270.8676189 | N83: 284.5050959 | O83: 258.089403 | P83: 282.7345872 | Q83: 265.7522681 | R83: 251.8765143 | S83: 241.8299524 | T83: 234.0428417 | U83: 233.0307961 | V83: 224.516459
D84: EPN | E84: 389.7313694 | F84: 390.2101549 | G84: 388.4546082 | H84: 386.6990615 | I84: 385.1031099 | J84: 414.1248735 | K84: 396.7969047 | L84: 387.6355751 | M84: 386.8926261 | N84: 402.0051195 | O84: 386.6624434 | P84: 399.3451787 | Q84: 379.7644164 | R84: 378.1180907 | S84: 369.6410804 | T84: 353.7665609 | U84: 349.0318073 | V84: 331.6676638
D85: SPD | E85: 249.1360173 | F85: 255.8310341 | G85: 254.713868 | H85: 253.4371068 | I85: 252.3199407 | J85: 210.7369784 | K85: 223.5144292 | L85: 240.9822671 | M85: 253.4708151 | N85: 247.8450612 | O85: 237.4605687 | P85: 236.0977766 | Q85: 241.5598308 | R85: 229.4629926 | S85: 224.6439398 | T85: 212.5303578 | U85: 201.430802 | V85: 195.3404332
D86: SPMW | E86: 224.2790719 | F86: 222.1843854 | G86: 219.9869597 | H86: 217.1770874 | I86: 216.2195165 | J86: 277.631632 | K86: 271.1807739 | L86: 296.3799868 | M86: 286.7497479 | N86: 290.2517789 | O86: 273.6186562 | P86: 284.4073577 | Q86: 260.6958772 | R86: 240.0853551 | S86: 239.7889507 | T86: 243.5905618 | U86: 226.0169704 | V86: 205.1964435
D87: SSEH | E87: 150.8573206 | F87: 151.8426212 | G87: 154.098803 | H87: 155.7457202 | I87: 154.9477445 | J87: 156.718619 | K87: 152.2603668 | L87: 147.8318051 | M87: 146.7046255 | N87: 152.931785 | O87: 185.1375723 | P87: 187.701214 | Q87: 187.8368142 | R87: 187.019846 | S87: 213.7281162 | T87: 212.0204961 | U87: 211.1695011 | V87: 209.6436449
D88: SSES | E88: 336.1393163 | F88: 343.001908 | G88: 345.5554304 | H88: 344.119074 | I88: 342.6827176 | J88: 368.900425 | K88: 372.7410548 | L88: 377.2102095 | M88: 371.9536853 | N88: 360.4950185 | O88: 356.0915902 | P88: 363.9672343 | Q88: 352.1108986 | R88: 355.5016925 | S88: 329.4117822 | T88: 321.7773609 | U88: 337.0623103 | V88: 320.3052514
D89: Total | E89: 3461.459325 | F89: 3469.598479 | G89: 3455.772456 | H89: 3432.106584 | I89: 3408.167311 | J89: 3688.096836 | K89: 3748.416825 | L89: 3822.063577 | M89: 3765.373345 | N89: 3805.314065 | O89: 3800.415906 | P89: 3816.677336 | Q89: 3660.6468 | R89: 3631.318346 | S89: 3584.179983 | T89: 3495.123612 | U89: 3433.868118 | V89: 3352.487157
D90: Total Slow Track | E90: =SUM(E75:E77,E82:E88) -> 2545.957676 | F90: =SUM(F75:F77,F82:F88) -> 2550.266545 | G90: 2538.51526 | H90: 2522.190765 | I90: 2502.720156 | J90: 2760.468307 | K90: 2776.477027 | L90: 2794.02484 | M90: 2735.697535 | N90: 2768.78319 | O90: =SUM(O75:O77,O82:O88) -> 2750.026628 | P90: =SUM(P75:P77,P82:P88) -> 2769.797556 | Q90: 2672.741012 | R90: 2618.478498 | S90: 2585.930964 | T90: 2506.329059 | U90: 2438.204048 | V90: 2348.203457
D92: Actuals/Forecasts
E93: DR4 | J93: DR5 | O93: ED1
E94: 2005/06 | F94: 2006/07 | G94: 2007/08 | H94: 2008/09 | I94: 2009/10 | J94: 2013/11 | K94: 2011/12 | L94: 2012/13 | M94: 2013/14 | N94: 2014/15 | O94: 2015/16 | P94: 2016/17 | Q94: 2017/18 | R94: 2018/19 | S94: 2019/20 | T94: 2020/21 | U94: 2021/22 | V94: 2022/23
D95: ENWL | E95: 241.8129534 | F95: 229.1643021 | G95: 250.4987794 | H95: 261.6123063 | I95: 246.8493763 | J95: 251.1476375 | K95: 275.6558662 | L95: 274.0302253 | M95: 283.0837361 | N95: 299.095078 | O95: 266.9130833 | P95: 226.2346027 | Q95: 262.3995042 | R95: 269.4169034 | S95: 254.8611037 | T95: 244.4529027 | U95: 247.3722647 | V95: 223.7868757
D96: NPgN | E96: 153.3363583 | F96: 158.2579373 | G96: 171.2075511 | H96: 168.6313406 | I96: 161.3413101 | J96: 142.941418 | K96: 144.4602398 | L96: 201.3056494 | M96: 230.2731974 | N96: 241.1258895 | O96: 205.9107627 | P96: 201.6507317 | Q96: 182.1328396 | R96: 187.0007132 | S96: 188.6233572 | T96: 180.0148827 | U96: 189.6109466 | V96: 171.1515986
D97: NPgY | E97: 212.0681362 | F97: 187.6793108 | G97: 203.3590958 | H97: 216.3008866 | I97: 231.9658124 | J97: 198.3508827 | K97: 208.9304442 | L97: 265.0401525 | M97: 270.7425718 | N97: 313.5932711 | O97: 272.4971624 | P97: 235.0048139 | Q97: 227.7780172 | R97: 239.6243164 | S97: 256.1635232 | T97: 252.9147041 | U97: 263.6962267 | V97: 266.1722257
D98: WMID | E98: 219.1025619 | F98: 279.9466091 | G98: 295.2557224 | H98: 331.2820821 | I98: 306.4010003 | J98: 269.9332871 | K98: 328.8150439 | L98: 310.1967774 | M98: 369.8598525 | N98: 367.3612458 | O98: 340.5371268 | P98: 341.92462 | Q98: 290.8783826 | R98: 262.0100868 | S98: 298.2754286 | T98: 321.039664 | U98: 311.558049 | V98: 313.3434385
D99: EMID | E99: 208.1495154 | F99: 255.5133952 | G99: 282.802345 | H99: 316.0366669 | I99: 280.7509188 | J99: 252.4426117 | K99: 302.5826142 | L99: 347.4163818 | M99: 375.1100777 | N99: 408.2348551 | O99: 336.2359576 | P99: 338.4153468 | Q99: 295.7812286 | R99: 266.1283699 | S99: 289.9336985 | T99: 311.3697138 | U99: 307.6201235 | V99: 303.6803019
D100: SWALES | E100: 114.4541515 | F100: 119.1496813 | G100: 124.6626895 | H100: 118.9645881 | I100: 123.1195947 | J100: 134.9497337 | K100: 133.3547552 | L100: 153.6994231 | M100: 149.9779092 | N100: 155.3790406 | O100: 155.067266 | P100: 160.6799702 | Q100: 142.2206892 | R100: 147.9085956 | S100: 156.5424605 | T100: 156.7051395 | U100: 152.4232024 | V100: 152.2296903
D101: SWEST | E101: 166.7119966 | F101: 174.3794487 | G101: 173.8968553 | H101: 176.9370115 | I101: 190.0703962 | J101: 190.3674909 | K101: 192.0951694 | L101: 202.5212847 | M101: 222.1863737 | N101: 208.2517506 | O101: 243.6748234 | P101: 278.2879728 | Q101: 241.519633 | R101: 222.0729082 | S101: 243.5481995 | T101: 238.7478878 | U101: 233.788949 | V101: 236.6689195
D102: LPN | E102: 196.6665258 | F102: 220.0274667 | G102: 233.7452286 | H102: 248.8557264 | I102: 243.4522686 | J102: 235.1379943 | K102: 208.8656714 | L102: 235.293486 | M102: 251.4996505 | N102: 241.6988655 | O102: 206.4286837 | P102: 222.3820709 | Q102: 242.2993581 | R102: 228.5813787 | S102: 249.074748 | T102: 256.5450083 | U102: 238.4490825 | V102: 223.6967222
D103: SPN | E103: 219.484189 | F103: 177.5159871 | G103: 217.854356 | H103: 275.2346798 | I103: 318.7416661 | J103: 282.5099477 | K103: 253.0948544 | L103: 245.3969962 | M103: 260.3238813 | N103: 213.9328652 | O103: 188.8823555 | P103: 220.3516856 | Q103: 220.738011 | R103: 227.6096578 | S103: 237.2907741 | T103: 227.9648354 | U103: 216.7480973 | V103: 202.496676
D104: EPN | E104: 286.443165 | F104: 314.6936052 | G104: 389.9375661 | H104: 444.8020109 | I104: 489.4778378 | J104: 420.014174 | K104: 366.9337922 | L104: 357.7044651 | M104: 411.1614919 | N104: 400.4402152 | O104: 306.7129728 | P104: 332.0291928 | Q104: 356.1257202 | R104: 340.9623171 | S104: 349.1000721 | T104: 316.857361 | U104: 303.6886803 | V104: 286.409919
D105: SPD | E105: 191.0137229 | F105: 215.5574804 | G105: 216.712621 | H105: 214.0194205 | I105: 189.5109107 | J105: 197.1967423 | K105: 220.7227186 | L105: 207.350684 | M105: 236.7751165 | N105: 242.5643449 | O105: 210.7293584 | P105: 227.224054 | Q105: 231.3458899 | R105: 255.1457995 | S105: 237.2320817 | T105: 225.6363689 | U105: 198.378501 | V105: 192.877542
D106: SPMW | E106: 214.2339672 | F106: 203.8959838 | G106: 223.7053091 | H106: 236.4589919 | I106: 205.0835885 | J106: 216.4756078 | K106: 246.3064129 | L106: 261.4742099 | M106: 290.4512671 | N106: 323.2130659 | O106: 262.219495 | P106: 274.3507864 | Q106: 278.7063287 | R106: 290.8887768 | S106: 238.2769171 | T106: 242.650228 | U106: 200.684027 | V106: 181.3569003
D107: SSEH | E107: 105.9392395 | F107: 111.6252824 | G107: 120.3794158 | H107: 138.6463028 | I107: 147.4361443 | J107: 114.2401434 | K107: 142.6103299 | L107: 139.7323572 | M107: 133.2485782 | N107: 142.8009919 | O107: 165.2558839 | P107: 185.9635926 | Q107: 176.1590253 | R107: 191.0440014 | S107: 227.3376025 | T107: 212.6728131 | U107: 193.2230757 | V107: 187.1707845
D108: SSES | E108: 230.9631868 | F108: 259.5212146 | G108: 299.7686762 | H108: 330.2288254 | I108: 336.3351343 | J108: 260.294221 | K108: 290.9669947 | L108: 321.6586458 | M108: 356.6612706 | N108: 335.5006215 | O108: 306.6547868 | P108: 329.480526 | Q108: 370.6505627 | R108: 352.9030894 | S108: 350.8002262 | T108: 323.6928517 | U108: 288.8643811 | V108: 273.9557752
D109: Total | E109: 2760.37967 | F109: 2906.927705 | G109: 3203.786211 | H109: 3478.01084 | I109: 3470.535959 | J109: 3166.001892 | K109: 3315.394907 | L109: 3522.820738 | M109: 3841.354975 | N109: 3893.192101 | O109: 3467.719718 | P109: 3573.979966 | Q109: 3518.735191 | R109: 3481.296914 | S109: 3577.060193 | T109: 3511.264361 | U109: 3346.105607 | V109: 3214.997369
D110: Total Slow Track | E110: =SUM(E95:E97,E102:E108) -> 2051.961444 | F110: =SUM(F95:F97,F102:F108) -> 2077.93857 | G110: 2327.168599 | H110: 2534.790491 | I110: 2570.194049 | J110: 2318.308769 | K110: 2358.547324 | L110: 2508.986871 | M110: 2724.220762 | N110: 2753.965209 | O110: =SUM(O95:O97,O102:O108) -> 2392.204544 | P110: =SUM(P95:P97,P102:P108) -> 2454.672057 | Q110: =SUM(Q95:Q97,Q102:Q108) -> 2548.335257 | R110: 2583.176954 | S110: 2588.760406 | T110: 2483.401956 | U110: 2340.715283 | V110: 2209.075019
D113: Allowances vs Expenditure
E114: Cumulative to date | I114: Overall ED1 Forecast
E115: Allowance | F115: Actual | G115: Difference | I115: Allowance | J115: Actual (and forecast) | K115: Difference
G116: No | H116: % | K116: No | L116: %
D117: ENWL | E117: =SUM(O75:R75) -> 1070.339467 | F117: =SUM(O95:R95) -> 1024.964094 | G117: =F117-E117 -> -45.37537348 | H117: =G117/E117 -> -0.0423934414 | I117: =SUM(O75:V75) -> 2145.511976 | J117: =SUM(O95:V95) -> 1995.43724 | K117: =J117-I117 -> -150.074736 | L117: =K117/I117 -> -0.06994821639
D118: NPgN | E118: =SUM(O76:R76) -> 805.9055613 | F118: =SUM(O96:R96) -> 776.6950472 | G118: =F118-E118 -> -29.21051414 | H118: =G118/E118 -> -0.03624557956 | I118: 1487.217761 | J118: =SUM(O96:V96) -> 1506.095832 | K118: =J118-I118 -> 18.87807082 | L118: =K118/I118 -> 0.01269354853
D119: NPgY | E119: 1065.057079 | F119: 974.9043099 | G119: -90.15276861 | H119: -0.08464595037 | I119: 1987.695847 | J119: =SUM(O97:V97) -> 2013.85099 | K119: 26.15514271 | L119: 0.0131585236
D120: WMID | E120: 1195.466217 | F120: 1235.350216 | G120: 39.88399956 | H120: 0.03336271574 | I120: 2416.768454 | J120: =SUM(O98:V98) -> 2479.566796 | K120: 62.79834276 | L120: 0.02598442671
D121: EMID | E121: 1234.636888 | F121: 1236.560903 | G121: 1.924014615 | H121: 0.001558364757 | I121: 2434.771104 | J121: 2449.164741 | K121: 14.39363687 | L121: 0.005911700221
D122: SWALES | E122: 677.2170204 | F122: 605.876521 | G122: -71.34049934 | H122: -0.1053436302 | I122: 1258.33133 | J122: =SUM(O100:V100) -> 1223.777014 | K122: -34.55431592 | L122: -0.02746042724
D123: SWEST | E123: 990.6945687 | F123: 985.5553375 | G123: -5.139231183 | H123: -0.005187503137 | I123: 1975.13515 | J123: 1938.309293 | K123: -36.82585684 | L123: -0.0186447276
D124: LPN | E124: 1088.643408 | F124: 899.6914915 | G124: -188.9519163 | H124: -0.1735663992 | I124: 2047.003374 | J124: 1867.457052 | K124: -179.5463213 | L124: -0.08771178573
D125: SPN | E125: 1058.452773 | F125: 857.5817099 | G125: -200.8710628 | H125: -0.1897780118 | I125: 1991.872822 | J125: =SUM(O103:V103) -> 1742.082093 | K125: -249.7907292 | L125: -0.1254049588
D126: EPN | E126: 1543.890129 | F126: 1335.830203 | G126: -208.0599261 | H126: -0.1347634279 | I126: 2947.997241 | J126: 2591.886235 | K126: -356.111006 | L126: -0.1207976049
D127: SPD | E127: 944.5811687 | F127: 924.4451019 | G127: -20.13606682 | H127: -0.02131745528 | I127: 1778.526702 | J127: 1778.569596 | K127: 0.04289399673 | L127: 2.41177131e-05
D128: SPMW | E128: 1058.807246 | F128: 1106.165387 | G128: 47.35814073 | H128: 0.04472782077 | I128: 1973.400173 | J128: 1969.133459 | K128: -4.266713284 | L128: -0.002162112553
D129: SSEH | E129: 747.6954465 | F129: 718.4225033 | G129: -29.27294322 | H129: -0.03915089139 | I129: 1594.257205 | J129: 1538.826779 | K129: -55.43042573 | L129: -0.03476880993
D130: SSES | E130: 1427.671416 | F130: 1359.688965 | G130: -67.9824507 | H130: -0.04761771508 | I130: 2736.22812 | J130: 2597.002199 | K130: -139.2259213 | L130: -0.05088242471
D131: Total | E131: =SUM(O89:Q89) -> 11277.74004 | F131: =SUM(O109:Q109) -> 10560.43488 | G131: =F131-E131 -> -717.3051664 | H131: =G131/E131 -> -0.06360362659 | I131: 28774.71726 | J131: =SUM(J117:J130) -> 27691.15932 | K131: =J131-I131 -> -1083.557938 | L131: =K131/I131 -> -0.03765659724
E134: Cumulative to date | I134: Overall ED1 Forecast
E135: Allowance | F135: Actual | G135: Difference | I135: Allowance | J135: Actual | K135: Difference
G136: No | H136: % | K136: No | L136: %
D137: ENWL | E137: =E117 -> 1070.339467 | F137: =F117 -> 1024.964094 | G137: =F137-E137 -> -45.37537348 | H137: =G137/E137 -> -0.0423934414 | I137: =I117 -> 2145.511976 | J137: =J117 -> 1995.43724 | K137: =J137-I137 -> -150.074736 | L137: =K137/I137 -> -0.06994821639
D138: NPg | E138: =SUM(E118:E119) -> 1870.96264 | F138: =SUM(F118:F119) -> 1751.599357 | G138: =F138-E138 -> -119.3632828 | H138: =G138/E138 -> -0.06379779062 | I138: =SUM(I118:I119) -> 3474.913608 | J138: =SUM(J118:J119) -> 3519.946822 | K138: 45.03321354 | L138: =K138/I138 -> 0.01295952033
D139: WPD | E139: =SUM(E120:E123) -> 4098.014694 | F139: =SUM(F120:F123) -> 4063.342977 | G139: -34.67171635 | H139: -0.00846061299 | I139: =SUM(I120:I123) -> 8085.006037 | J139: =SUM(J120:J123) -> 8090.817844 | K139: 5.811806871 | L139: 0.0007188376663
D140: UKPN | E140: =SUM(E124:E126) -> 3690.98631 | F140: =SUM(F124:F126) -> 3093.103404 | G140: -597.8829052 | H140: -0.1619845903 | I140: =SUM(I124:I126) -> 6986.873437 | J140: =SUM(J124:J126) -> 6201.425381 | K140: -785.4480565 | L140: -0.1124176735
D141: SPEN | E141: =SUM(E127:E128) -> 2003.388415 | F141: =SUM(F127:F128) -> 2030.610489 | G141: 27.22207391 | H141: 0.01358801604 | I141: =SUM(I127:I128) -> 3751.926874 | J141: =SUM(J127:J128) -> 3747.703055 | K141: -4.223819288 | L141: -0.00112577335
D142: SSEN | E142: =SUM(E129:E130) -> 2175.366862 | F142: =SUM(F129:F130) -> 2078.111468 | G142: -97.25539392 | H142: -0.04470758271 | I142: =SUM(I129:I130) -> 4330.485325 | J142: =SUM(J129:J130) -> 4135.828978 | K142: -194.656347 | L142: -0.04495023824
D143: Total | E143: =SUM(E137:E142) -> 14909.05839 | F143: =SUM(F137:F142) -> 14041.73179 | G143: -867.3265978 | H143: -0.05817447187 | I143: =SUM(I137:I142) -> 28774.71726 | J143: =SUM(J137:J142) -> 27691.15932 | K143: -1083.557938 | L143: -0.03765659724
B146: Baseline allowances and actual expenditure by cost category
AF147: 2015/16 | AK147: 2016/17 | AP147: 2017/18 | AU147: 2018/19 | AZ147: 2019/20 | BE147: 2020/21 | BJ147: 2021/22 | BO147: 2022/23
D148: Largest five total | AF148: Baseline Allowance v Actual | AK148: Baseline Allowance v Actual | AP148: Baseline Allowance v Actual | AU148: Baseline Allowance v Actual | AZ148: Baseline Allowance v Actual | BE148: Baseline Allowance v Actual | BJ148: Baseline Allowance v Actual | BO148: Baseline Allowance v Actual
E149: DNO Forecast (£m) - DNO Business Plan Data Templates | N149: DNO Baseline (£m) | W149: DNO Actual (£m) | AF149: Allowance | AG149: Actual | AH149: Difference | AK149: Allowance | AL149: Actual | AM149: Difference | AP149: Allowance | AQ149: Actual | AR149: Difference | AU149: Allowance | AV149: Actual | AW149: Difference | AZ149: Allowance | BA149: Actual | BB149: Difference | BE149: Allowance | BF149: Actual | BG149: Difference | BJ149: Allowance | BK149: Actual | BL149: Difference | BO149: Allowance | BP149: Actual | BQ149: Difference
E150: 2015/16 | F150: 2016/17 | G150: 2017/18 | H150: 2018/19 | I150: 2019/20 | J150: 2020/21 | K150: 2021/22 | L150: 2022/23 | N150: 2015/16 | O150: 2016/17 | P150: 2017/18 | Q150: 2018/19 | R150: 2019/20 | S150: 2020/21 | T150: 2021/22 | U150: 2022/23 | W150: 2015/16 | X150: 2016/17 | Y150: 2017/18 | Z150: 2018/19 | AA150: 2019/20 | AB150: 2020/21 | AC150: 2021/22 | AD150: 2022/23 | AF150: £ | AG150: £ | AH150: £ | AI150: % | AK150: £ | AL150: £ | AM150: £ | AN150: % | AP150: £ | AQ150: £ | AR150: £ | AS150: % | AU150: £ | AV150: £ | AW150: £ | AX150: % | AZ150: £ | BA150: £ | BB150: £ | BC150: % | BE150: £ | BF150: £ | BG150: £ | BH150: % | BJ150: £ | BK150: £ | BL150: £ | BM150: % | BO150: £ | BP150: £ | BQ150: £ | BR150: %
D151: ENWL | E151: =SUM(E171,E191,E211,E231,E251) -> 221.1905763 | F151: =SUM(F171,F191,F211,F231,F251) -> 215.9163716 | G151: 216.5889398 | H151: 214.3099831 | I151: 224.6427207 | J151: 225.5699486 | K151: 232.7116249 | L151: 225.7829703 | N151: =SUM(N171,N191,N211,N231,N251) -> 224.7581892 | O151: =SUM(O171,O191,O211,O231,O251) -> 215.7838597 | P151: 213.8712022 | Q151: 212.6646845 | R151: 215.199093 | S151: 216.1148369 | T151: 220.5079821 | U151: 212.1901659 | W151: =SUM(W171,W191,W211,W231,W251) -> 197.4228375 | X151: =SUM(X171,X191,X211,X231,X251) -> 164.4375355 | Y151: =SUM(Y171,Y191,Y211,Y231,Y251) -> 192.653495 | Z151: 191.3398446 | AA151: 0 | AB151: 0 | AC151: 0 | AD151: 0 | AF151: =N151 -> 224.7581892 | AG151: =W151 -> 197.4228375 | AH151: =AG151-AF151 -> -27.33535173 | AI151: =AH151/AF151 -> -0.1216211601 | AK151: =O151 -> 215.7838597 | AL151: =X151 -> 164.4375355 | AM151: =AL151-AK151 -> -51.34632427 | AN151: =AM151/AK151 -> -0.2379525713 | AP151: =P151 -> 213.8712022 | AQ151: =Y151 -> 192.653495 | AR151: =AQ151-AP151 -> -21.21770725 | AS151: =AR151/AP151 -> -0.09920787385 | AU151: =Q151 -> 212.6646845 | AV151: =Z151 -> 191.3398446 | AW151: =AV151-AU151 -> -21.32483997 | AX151: =AW151/AU151 -> -0.1002744768
D152: NPgN | E152: =SUM(E172,E192,E212,E232,E252) -> 172.8475014 | F152: 172.4825343 | G152: 165.1382877 | H152: 164.9014386 | I152: 167.7229316 | J152: 155.273137 | K152: 141.8869747 | L152: 142.1213565 | N152: =SUM(N172,N192,N212,N232,N252) -> 169.7722689 | O152: =SUM(O172,O192,O212,O232,O252) -> 165.4555816 | P152: 154.6803586 | Q152: 152.9762279 | R152: 152.7588547 | S152: 140.8984175 | T152: 128.7077647 | U152: 127.5599692 | W152: =SUM(W172,W192,W212,W232,W252) -> 164.2069296 | X152: 163.4258256 | Y152: 147.9877529 | Z152: 150.7750339 | AA152: 0 | AB152: 0 | AC152: 0 | AD152: 0 | AF152: =N152 -> 169.7722689 | AG152: =W152 -> 164.2069296 | AH152: =AG152-AF152 -> -5.565339339 | AI152: =AH152/AF152 -> -0.03278120376 | AK152: 165.4555816 | AL152: 163.4258256 | AM152: =AL152-AK152 -> -2.029756021 | AN152: =AM152/AK152 -> -0.01226767935 | AP152: =P152 -> 154.6803586 | AQ152: =Y152 -> 147.9877529 | AR152: =AQ152-AP152 -> -6.692605679 | AS152: =AR152/AP152 -> -0.04326732714 | AU152: =Q152 -> 152.9762279 | AV152: =Z152 -> 150.7750339 | AW152: =AV152-AU152 -> -2.201194071 | AX152: =AW152/AU152 -> -0.01438912503
D153: NPgY | E153: =SUM(E173,E193,E213,E233,E253) -> 205.8588833 | F153: 207.3237622 | G153: 207.8834883 | H153: 214.7718045 | I153: 208.4302958 | J153: 202.2098212 | K153: 186.0208218 | L153: 198.1367495 | N153: 204.6529817 | O153: =SUM(O173,O193,O213,O233,O253) -> 203.4724663 | P153: 199.8226078 | Q153: 202.8173117 | R153: 194.2180647 | S153: 186.7465702 | T153: 172.0161312 | U153: 179.278836 | W153: =SUM(W173,W193,W213,W233,W253) -> 198.847873 | X153: 183.9173624 | Y153: 175.2278586 | Z153: 193.076929 | AA153: 0 | AB153: 0 | AC153: 0 | AD153: 0 | AF153: 204.6529817 | AG153: 198.847873 | AH153: -5.805108707 | AI153: -0.02836561998 | AK153: 203.4724663 | AL153: 183.9173624 | AM153: -19.55510392 | AN153: -0.0961068801 | AP153: 199.8226078 | AQ153: 175.2278586 | AR153: -24.59474917 | AS153: -0.1230829156 | AU153: 202.8173117 | AV153: 193.076929 | AW153: -9.740382728 | AX153: -0.04802540101
D154: WMID | E154: =SUM(E174,E194,E214,E234,E254) -> 235.9726884 | F154: 238.1154295 | G154: 231.7768743 | H154: 238.4086814 | I154: 242.4742698 | J154: 240.5095601 | K154: 246.4152716 | L154: 251.9973767 | N154: 235.9726884 | O154: =SUM(O174,O194,O214,O234,O254) -> 238.1154295 | P154: 231.7768743 | Q154: 238.4086814 | R154: 242.4742698 | S154: 240.5095601 | T154: 246.4152716 | U154: 251.9973767 | W154: =SUM(W174,W194,W214,W234,W254) -> 270.84316 | X154: 250.1386878 | Y154: 226.8402475 | Z154: 195.5624027 | AA154: 0 | AB154: 0 | AC154: 0 | AD154: 0 | AF154: 235.9726884 | AG154: 270.84316 | AH154: 34.87047157 | AI154: 0.1477733368 | AK154: 238.1154295 | AL154: 250.1386878 | AM154: 12.02325838 | AN154: 0.05049340317 | AP154: 231.7768743 | AQ154: 226.8402475 | AR154: -4.93662673 | AS154: -0.02129904783 | AU154: 238.4086814 | AV154: 195.5624027 | AW154: -42.8462787 | AX154: -0.1797177789
D155: EMID | E155: =SUM(E175,E195,E215,E235,E255) -> 264.5213214 | F155: 257.347392 | G155: 222.1373148 | H155: 230.7635068 | I155: 229.9130904 | J155: 241.8052489 | K155: 259.6934657 | L155: 253.9037955 | N155: 264.5213214 | O155: =SUM(O175,O195,O215,O235,O255) -> 257.347392 | P155: 222.1373148 | Q155: 230.7635068 | R155: 229.9130904 | S155: 241.8052489 | T155: 259.6934657 | U155: 253.9037955 | W155: =SUM(W175,W195,W215,W235,W255) -> 269.2669273 | X155: 261.0221061 | Y155: 236.0187886 | Z155: 208.212 | AA155: 0 | AB155: 0 | AC155: 0 | AD155: 0 | AF155: 264.5213214 | AG155: 269.2669273 | AH155: 4.74560593 | AI155: 0.01794035318 | AK155: 257.347392 | AL155: 261.0221061 | AM155: 3.674714074 | AN155: 0.01427919686 | AP155: 222.1373148 | AQ155: 236.0187886 | AR155: 13.88147376 | AS155: 0.0624905085 | AU155: 230.7635068 | AV155: 208.212 | AW155: -22.55150684 | AX155: -0.09772562027
D156: SWALES | E156: =SUM(E176,E196,E216,E236,E256) -> 113.7472113 | F156: 115.8074289 | G156: 116.125262 | H156: 125.053312 | I156: 124.102987 | J156: 124.3511709 | K156: 122.1588701 | L156: 122.5527152 | N156: 113.7472113 | O156: =SUM(O176,O196,O216,O236,O256) -> 115.8074289 | P156: 116.125262 | Q156: 125.053312 | R156: 124.102987 | S156: 124.3511709 | T156: 122.1588701 | U156: 122.5527152 | W156: =SUM(W176,W196,W216,W236,W256) -> 113.4629795 | X156: 108.8738472 | Y156: 109.4386234 | Z156: 104.3087 | AA156: 0 | AB156: 0 | AC156: 0 | AD156: 0 | AF156: 113.7472113 | AG156: 113.4629795 | AH156: -0.2842317523 | AI156: -0.002498801941 | AK156: 115.8074289 | AL156: 108.8738472 | AM156: -6.933581749 | AN156: -0.05987164911 | AP156: 116.125262 | AQ156: 109.4386234 | AR156: -6.686638547 | AS156: -0.05758125694 | AU156: 125.053312 | AV156: 104.3087 | AW156: -20.74461196 | AX156: -0.165886146
D157: SWEST | E157: =SUM(E177,E197,E217,E237,E257) -> 178.6332816 | F157: 180.2008213 | G157: 182.5861378 | H157: 189.5067668 | I157: 192.1921199 | J157: 194.1015064 | K157: 195.633931 | L157: 198.9747185 | N157: 178.6332816 | O157: =SUM(O177,O197,O217,O237,O257) -> 180.2008213 | P157: 182.5861378 | Q157: 189.5067668 | R157: 192.1921199 | S157: 194.1015064 | T157: 195.633931 | U157: 198.9747185 | W157: =SUM(W177,W197,W217,W237,W257) -> 178.9536228 | X157: 188.7341549 | Y157: 188.5557225 | Z157: 168.571 | AA157: 0 | AB157: 0 | AC157: 0 | AD157: 0 | AF157: 178.6332816 | AG157: 178.9536228 | AH157: 0.3203412247 | AI157: 0.001793289704 | AK157: 180.2008213 | AL157: 188.7341549 | AM157: 8.53333364 | AN157: 0.04735457685 | AP157: 182.5861378 | AQ157: 188.5557225 | AR157: 5.969584624 | AS157: 0.03269462126 | AU157: 189.5067668 | AV157: 168.571 | AW157: -20.93576677 | AX157: -0.1104750354
D158: LPN | E158: =SUM(E178,E198,E218,E238,E258) -> 237.1721709 | F158: 233.2132273 | G158: 220.9586885 | H158: 209.7976938 | I158: 220.4916895 | J158: 218.4186909 | K158: 208.8463907 | L158: 204.7244217 | N158: 217.9842782 | O158: =SUM(O178,O198,O218,O238,O258) -> 211.2742392 | P158: 198.485024 | Q158: 187.8135516 | R158: 194.4226055 | S158: 190.3162568 | T158: 177.4298249 | U158: 172.0410079 | W158: =SUM(W178,W198,W218,W238,W258) -> 150.6567001 | X158: 164.9889307 | Y158: 185.088732 | Z158: 169.4145809 | AA158: 0 | AB158: 0 | AC158: 0 | AD158: 0 | AF158: 217.9842782 | AG158: 150.6567001 | AH158: -67.32757809 | AI158: -0.3088643761 | AK158: 211.2742392 | AL158: 164.9889307 | AM158: -46.28530859 | AN158: -0.2190769152 | AP158: 198.485024 | AQ158: 185.088732 | AR158: -13.39629197 | AS158: -0.06749270901 | AU158: 187.8135516 | AV158: 169.4145809 | AW158: -18.39897063 | AX158: -0.09796402058
D159: SPN | E159: =SUM(E179,E199,E219,E239,E259) -> 205.9159231 | F159: 225.473712 | G159: 218.6851401 | H159: 204.1156279 | I159: 196.2099686 | J159: 193.056072 | K159: 196.5022565 | L159: 195.2036749 | N159: 196.718969 | O159: =SUM(O179,O199,O219,O239,O259) -> 212.2691587 | P159: 202.590907 | Q159: 189.1531252 | R159: 179.9245131 | S159: 176.5060981 | T159: 180.0120161 | U159: 174.8319581 | W159: =SUM(W179,W199,W219,W239,W259) -> 139.727308 | X159: 168.326997 | Y159: 165.1760225 | Z159: 164.4278557 | AA159: 0 | AB159: 0 | AC159: 0 | AD159: 0 | AF159: 196.718969 | AG159: 139.727308 | AH159: -56.99166095 | AI159: -0.2897110597 | AK159: 212.2691587 | AL159: 168.326997 | AM159: -43.94216168 | AN159: -0.2070115223 | AP159: 202.590907 | AQ159: 165.1760225 | AR159: -37.4148845 | AS159: -0.1846819537 | AU159: 189.1531252 | AV159: 164.4278557 | AW159: -24.72526948 | AX159: -0.1307156277
D160: EPN | E160: =SUM(E180,E200,E220,E240,E260) -> 291.0303833 | F160: 295.1480917 | G160: 300.7677709 | H160: 299.4788629 | I160: 300.0753771 | J160: 297.7073098 | K160: 300.3922963 | L160: 287.3363506 | N160: 277.7841165 | O160: =SUM(O180,O200,O220,O240,O260) -> 280.6461588 | P160: 279.2654918 | Q160: 274.4670064 | R160: 272.2609047 | S160: 267.4400239 | T160: 267.3709101 | U160: 253.4437526 | W160: =SUM(W180,W200,W220,W240,W260) -> 220.1778192 | X160: 228.3326384 | Y160: 262.3927131 | Z160: 237.2737243 | AA160: 0 | AB160: 0 | AC160: 0 | AD160: 0 | AF160: 277.7841165 | AG160: 220.1778192 | AH160: -57.6062973 | AI160: -0.2073779381 | AK160: 280.6461588 | AL160: 228.3326384 | AM160: -52.31352035 | AN160: -0.1864038352 | AP160: 279.2654918 | AQ160: 262.3927131 | AR160: -16.87277873 | AS160: -0.06041841625 | AU160: 274.4670064 | AV160: 237.2737243 | AW160: -37.19328217 | AX160: -0.1355109405
D161: SPD | E161: =SUM(E181,E201,E221,E241,E261) -> 176.8301336 | F161: 182.2701187 | G161: 188.586101 | H161: 179.2257836 | I161: 173.7520826 | J161: 172.9891772 | K161: 176.6720834 | L161: 174.1335022 | N161: 183.4088168 | O161: =SUM(O181,O201,O221,O241,O261) -> 184.6709974 | P161: 188.580249 | Q161: 177.8889938 | R161: 169.8624813 | S161: 166.4578912 | T161: 161.9997888 | U161: 156.7865056 | W161: =SUM(W181,W201,W221,W241,W261) -> 175.6223715 | X161: 184.3793919 | Y161: 197.1651316 | Z161: 215.9782866 | AA161: 0 | AB161: 0 | AC161: 0 | AD161: 0 | AF161: 183.4088168 | AG161: 175.6223715 | AH161: -7.786445362 | AI161: -0.04245404063 | AK161: 184.6709974 | AL161: 184.3793919 | AM161: -0.2916055709 | AN161: -0.001579054508 | AP161: 188.580249 | AQ161: 197.1651316 | AR161: 8.584882598 | AS161: 0.0455237632 | AU161: 177.8889938 | AV161: 215.9782866 | AW161: 38.08929284 | AX161: 0.2141183219
D162: SPMW | E162: =SUM(E182,E202,E222,E242,E262) -> 231.2739616 | F162: 249.9825503 | G162: 224.7968226 | H162: 203.5093309 | I162: 202.1225605 | J162: 216.1713857 | K162: 212.9367208 | L162: 191.6877529 | N162: 208.5850078 | O162: =SUM(O182,O202,O222,O242,O262) -> 215.8363922 | P162: 196.8445752 | Q162: 179.1878792 | R162: 175.5067968 | S162: 184.1466582 | T162: 173.7254738 | U162: 154.4666468 | W162: =SUM(W182,W202,W222,W242,W262) -> 217.4672277 | X162: 211.1770718 | Y162: 227.5540781 | Z162: 230.2716649 | AA162: 0 | AB162: 0 | AC162: 0 | AD162: 0 | AF162: 208.5850078 | AG162: 217.4672277 | AH162: 8.882219908 | AI162: 0.04258321345 | AK162: 215.8363922 | AL162: 211.1770718 | AM162: -4.659320351 | AN162: -0.0215872787 | AP162: 196.8445752 | AQ162: 227.5540781 | AR162: 30.70950298 | AS162: 0.1560088865 | AU162: 179.1878792 | AV162: 230.2716649 | AW162: 51.08378576 | AX162: 0.2850850515
D163: SSEH | E163: =SUM(E183,E203,E223,E243,E263) -> 124.5246318 | F163: 127.3038597 | G163: 132.1299092 | H163: 132.7457703 | I163: 138.6486316 | J163: 139.2557356 | K163: 145.723019 | L163: 142.7803653 | N163: 121.655579 | O163: =SUM(O183,O203,O223,O243,O263) -> 123.3724163 | P163: 125.4748864 | Q163: 125.5213317 | R163: 128.5557751 | S163: 127.8721543 | T163: 132.460855 | U163: 128.4920572 | W163: =SUM(W183,W203,W223,W243,W263) -> 104.5720119 | X163: 119.4197336 | Y163: 117.7654892 | Z163: 129.492287 | AA163: 0 | AB163: 0 | AC163: 0 | AD163: 0 | AF163: 121.655579 | AG163: 104.5720119 | AH163: -17.08356717 | AI163: -0.140425678 | AK163: 123.3724163 | AL163: 119.4197336 | AM163: -3.952682724 | AN163: -0.03203862616 | AP163: 125.4748864 | AQ163: 117.7654892 | AR163: -7.709397192 | AS163: -0.06144175472 | AU163: 125.5213317 | AV163: 129.492287 | AW163: 3.970955269 | AX163: 0.03163570059
D164: SSES | E164: =SUM(E184,E204,E224,E244,E264) -> 263.596481 | F164: 276.6303627 | G164: 271.3430132 | H164: 271.2865216 | I164: 257.0008769 | J164: 265.0589159 | K164: 283.4999064 | L164: 278.205595 | N164: 272.8889686 | O164: =SUM(O184,O204,O224,O244,O264) -> 279.9249055 | P164: 270.0076858 | Q164: 269.5075495 | R164: 251.687993 | S164: 255.2361821 | T164: 268.2131267 | U164: 260.6482751 | W164: =SUM(W184,W204,W224,W244,W264) -> 215.4677748 | X164: 230.7005336 | Y164: 276.5983622 | Z164: 263.5184743 | AA164: 0 | AB164: 0 | AC164: 0 | AD164: 0 | AF164: 272.8889686 | AG164: 215.4677748 | AH164: -57.42119385 | AI164: -0.2104196228 | AK164: 279.9249055 | AL164: 230.7005336 | AM164: -49.22437185 | AN164: -0.1758484897 | AP164: 270.0076858 | AQ164: 276.5983622 | AR164: 6.590676391 | AS164: 0.02440921773 | AU164: 269.5075495 | AV164: 263.5184743 | AW164: -5.989075195 | AX164: -0.02222229101
D165: Total | E165: =SUM(E151:E164) -> 2923.115149 | F165: 2977.215662 | G165: 2899.50375 | H165: 2877.875084 | I165: 2877.779602 | J165: 2886.47768 | K165: 2909.093633 | L165: 2867.541345 | N165: =SUM(N151:N164) -> 2871.083678 | O165: 2884.177247 | P165: 2782.248577 | Q165: 2755.729928 | R165: 2723.079549 | S165: 2712.502575 | T165: 2706.345412 | U165: 2647.16778 | W165: =SUM(W151:W164) -> 2616.695543 | X165: 2627.874816 | Y165: =SUM(Y151:Y164) -> 2708.463017 | Z165: =SUM(Z151:Z164) -> 2622.222784 | AA165: 0 | AB165: 0 | AC165: 0 | AD165: 0 | AF165: 2871.083678 | AG165: 2616.695543 | AH165: -254.3881356 | AI165: -0.0886035254 | AK165: 2884.177247 | AL165: 2627.874816 | AM165: -256.302431 | AN165: -0.08886500689 | AP165: 2782.248577 | AQ165: 2708.463017 | AR165: -73.78555942 | AS165: -0.02652011759 | AU165: 2755.729928 | AV165: 2622.222784 | AW165: -133.5071447 | AX165: -0.0484471077
D166: Total Slow Track | E166: =E165-SUM(E154:E157) -> 2130.240646 | F166: 2185.744591 | G166: 2146.878161 | H166: 2094.142817 | I166: 2089.097135 | J166: 2085.710194 | K166: 2085.192094 | L166: 2040.112739 | N166: =N165-SUM(N154:N157) -> 2078.209176 | O166: 2092.706176 | P166: 2029.622988 | Q166: 1971.997662 | R166: 1934.397082 | S166: 1911.735089 | T166: 1882.443874 | U166: 1819.739174 | W166: =W165-SUM(W154:W157) -> 1784.168853 | X166: 1819.10602 | Y166: =Y165-SUM(Y154:Y157) -> 1947.609635 | Z166: =Z165-SUM(Z154:Z157) -> 1945.568681 | AA166: 0 | AB166: 0 | AC166: 0 | AD166: 0 | AF166: 2078.209176 | AG166: 1784.168853 | AH166: -294.0403226 | AI166: -0.1414873565 | AK166: 2092.706176 | AL166: 1819.10602 | AM166: -273.6001553 | AN166: -0.1307398805 | AP166: 2029.622988 | AQ166: =Y166 -> 1947.609635 | AR166: -82.01335253 | AS166: -0.04040817089 | AU166: 1971.997662 | AV166: 1945.568681 | AW166: -26.42898037 | AX166: -0.01340213576
D168: Network Reinforcement total | AF168: Baseline Allowance v Actual | AK168: Baseline Allowance v Actual | AP168: Baseline Allowance v Actual | AU168: Baseline Allowance v Actual | AZ168: Baseline Allowance v Actual | BE168: Baseline Allowance v Actual | BJ168: Baseline Allowance v Actual | BO168: Baseline Allowance v Actual
E169: DNO Forecast (£m) - DNO Business Plan Data Templates | N169: DNO Baseline (£m) | W169: DNO Actual (£m) | AF169: Allowance | AG169: Actual | AH169: Difference | AK169: Allowance | AL169: Actual | AM169: Difference | AP169: Allowance | AQ169: Actual | AR169: Difference | AU169: Allowance | AV169: Actual | AW169: Difference | AZ169: Allowance | BA169: Actual | BB169: Difference | BE169: Allowance | BF169: Actual | BG169: Difference | BJ169: Allowance | BK169: Actual | BL169: Difference | BO169: Allowance | BP169: Actual | BQ169: Difference
E170: 2015/16 | F170: 2016/17 | G170: 2017/18 | H170: 2018/19 | I170: 2019/20 | J170: 2020/21 | K170: 2021/22 | L170: 2022/23 | N170: 2015/16 | O170: 2016/17 | P170: 2017/18 | Q170: 2018/19 | R170: 2019/20 | S170: 2020/21 | T170: 2021/22 | U170: 2022/23 | W170: 2015/16 | X170: 2016/17 | Y170: 2017/18 | Z170: 2018/19 | AA170: 2019/20 | AB170: 2020/21 | AC170: 2021/22 | AD170: 2022/23 | AF170: £ | AG170: £ | AH170: £ | AI170: % | AK170: £ | AL170: £ | AM170: £ | AN170: % | AP170: £ | AQ170: £ | AR170: £ | AS170: % | AU170: £ | AV170: £ | AW170: £ | AX170: % | AZ170: £ | BA170: £ | BB170: £ | BC170: % | BE170: £ | BF170: £ | BG170: £ | BH170: % | BJ170: £ | BK170: £ | BL170: £ | BM170: % | BO170: £ | BP170: £ | BQ170: £ | BR170: %
D171: ENWL | E171: =SUM(E294,E314,E334) -> 17.43520894 | F171: =SUM(F294,F314,F334) -> 22.24056217 | G171: 15.20657222 | H171: 19.96828674 | I171: 19.21109246 | J171: 21.35194984 | K171: 28.94700974 | L171: 25.89426378 | N171: =SUM(N294,N314,N334) -> 17.21544042 | O171: =SUM(O294,O314,O334) -> 21.5387031 | P171: 14.39967219 | Q171: 18.63904008 | R171: 17.56730268 | S171: 19.07422505 | T171: 25.72183009 | U171: 22.44930655 | W171: =SUM(W294,W314,W334) -> 11.6010908 | X171: =SUM(X294,X314,X334) -> 3.014214493 | Y171: =SUM(Y294,Y314,Y334) -> 4.037036229 | Z171: 7.280167178 | AA171: 0 | AB171: 0 | AC171: 0 | AD171: 0 | AF171: =N171 -> 17.21544042 | AG171: =W171 -> 11.6010908 | AH171: =AG171-AF171 -> -5.614349615 | AI171: =AH171/AF171 -> -0.3261229152 | AK171: =O171 -> 21.5387031 | AL171: =X171 -> 3.014214493 | AM171: =AL171-AK171 -> -18.52448861 | AN171: =AM171/AK171 -> -0.8600558967 | AP171: =P171 -> 14.39967219 | AQ171: =Y171 -> 4.037036229 | AR171: =AQ171-AP171 -> -10.36263596 | AS171: =AR171/AP171 -> -0.7196438797 | AU171: =Q171 -> 18.63904008 | AV171: =Z171 -> 7.280167178 | AW171: =AV171-AU171 -> -11.3588729 | AX171: =AW171/AU171 -> -0.6094129769
